{"text_format":"1","workbook":"xlsx","n_sheets":3,"sheets":["Лист1","Лист2","Лист3"],"not_rendered":{"charts":0,"images":0,"macros":1,"external_links":0,"defined_names":1,"comments":0,"pivot_tables":0},"unopened":[],"bounds":{"document_bytes":16777216,"sheet_cells":100000,"rows_first":2000,"rows_last":500,"rows_between":2000,"halvings":0,"cell_chars":16384,"cell_head_chars":4096},"cells_cut":0,"cells_raw":0,"read":"whole","date_system":"1900"}

{"sheet":"Лист1","index":0,"n_rows":21,"n_cols":16384,"rows_kept":21,"cut":false,"hidden":false,"merged":[]}
[null,null,null,null,null,null,null,null,null,"НЕ УЧТЁН","НЕ УЧТЁН","НЕ УЧТЁН","НЕ УЧТЁН","УЧТЁН","НЕ УЧТЁН","НЕ УЧТЁН","НЕ УЧТЁН","НЕ УЧТЁН","НЕ УЧТЁН","НЕ УЧТЁН","НЕ УЧТЁН","НЕ УЧТЁН","НЕ УЧТЁН","НЕ УЧТЁН","НЕ УЧТЁН","НЕ УЧТЁН","НЕ УЧТЁН","НЕ УЧТЁН","НЕ УЧТЁН","НЕ УЧТЁН","НЕ УЧТЁН","НЕ УЧТЁН","НЕ УЧТЁН","НЕ УЧТЁН","НЕ УЧТЁН","НЕ УЧТЁН","НЕ УЧТЁН","НЕ УЧТЁН","НЕ УЧТЁН","НЕ УЧТЁН","НЕ УЧТЁН","НЕ УЧТЁН","НЕ УЧТЁН","НЕ УЧТЁН","НЕ УЧТЁН","НЕ УЧТЁН","НЕ УЧТЁН","НЕ УЧТЁН","НЕ УЧТЁН","НЕ УЧТЁН","НЕ УЧТЁН","НЕ УЧТЁН","НЕ УЧТЁН","НЕ УЧТЁН","НЕ УЧТЁН","НЕ УЧТЁН","НЕ УЧТЁН","НЕ УЧТЁН","НЕ УЧТЁН","НЕ УЧТЁН","НЕ УЧТЁН","НЕ УЧТЁН","НЕ УЧТЁН","НЕ УЧТЁН","НЕ УЧТЁН","НЕ УЧТЁН","НЕ УЧТЁН","НЕ УЧТЁН","НЕ УЧТЁН","НЕ УЧТЁН","НЕ УЧТЁН","НЕ УЧТЁН","НЕ УЧТЁН","НЕ УЧТЁН","НЕ УЧТЁН","НЕ УЧТЁН","НЕ УЧТЁН","НЕ УЧТЁН","НЕ УЧТЁН","НЕ УЧТЁН","НЕ УЧТЁН","НЕ УЧТЁН","НЕ УЧТЁН","НЕ УЧТЁН","НЕ УЧТЁН","НЕ УЧТЁН","НЕ УЧТЁН","НЕ УЧТЁН","НЕ УЧТЁН","НЕ УЧТЁН","НЕ УЧТЁН","НЕ УЧТЁН","НЕ УЧТЁН","НЕ УЧТЁН","НЕ УЧТЁН","НЕ УЧТЁН","НЕ УЧТЁН","НЕ УЧТЁН","НЕ УЧТЁН","НЕ УЧТЁН","НЕ УЧТЁН","НЕ УЧТЁН","НЕ УЧТЁН","НЕ УЧТЁН","НЕ УЧТЁН","НЕ УЧТЁН","НЕ УЧТЁН","НЕ УЧТЁН","НЕ УЧТЁН","НЕ УЧТЁН","НЕ УЧТЁН","НЕ УЧТЁН","НЕ УЧТЁН","НЕ УЧТЁН","НЕ УЧТЁН","НЕ УЧТЁН","НЕ УЧТЁН","НЕ УЧТЁН","НЕ УЧТЁН","НЕ УЧТЁН","НЕ УЧТЁН","НЕ УЧТЁН","НЕ УЧТЁН","НЕ УЧТЁН","НЕ УЧТЁН","НЕ УЧТЁН","НЕ УЧТЁН","НЕ УЧТЁН","НЕ УЧТЁН","НЕ УЧТЁН","НЕ УЧТЁН","НЕ УЧТЁН","НЕ УЧТЁН","НЕ УЧТЁН","НЕ УЧТЁН","НЕ УЧТЁН","НЕ УЧТЁН","НЕ УЧТЁН","НЕ УЧТЁН","НЕ УЧТЁН","НЕ УЧТЁН","НЕ УЧТЁН","НЕ УЧТЁН","НЕ УЧТЁН","НЕ УЧТЁН","НЕ УЧТЁН","НЕ УЧТЁН","НЕ УЧТЁН","НЕ УЧТЁН","НЕ УЧТЁН","НЕ УЧТЁН","НЕ УЧТЁН","НЕ УЧТЁН","НЕ УЧТЁН","НЕ УЧТЁН","НЕ УЧТЁН","НЕ УЧТЁН","НЕ УЧТЁН","НЕ УЧТЁН","НЕ УЧТЁН","НЕ УЧТЁН","НЕ УЧТЁН","НЕ УЧТЁН","НЕ УЧТЁН","НЕ УЧТЁН","НЕ УЧТЁН","НЕ УЧТЁН","НЕ УЧТЁН","НЕ УЧТЁН","НЕ УЧТЁН","НЕ УЧТЁН","НЕ УЧТЁН","НЕ УЧТЁН","НЕ УЧТЁН","НЕ УЧТЁН","НЕ УЧТЁН","НЕ УЧТЁН","НЕ УЧТЁН","НЕ УЧТЁН","НЕ УЧТЁН","НЕ УЧТЁН","НЕ УЧТЁН","НЕ УЧТЁН","НЕ УЧТЁН","НЕ УЧТЁН","НЕ УЧТЁН","НЕ УЧТЁН","НЕ УЧТЁН","НЕ УЧТЁН","НЕ УЧТЁН","НЕ УЧТЁН","НЕ УЧТЁН","НЕ УЧТЁН","НЕ УЧТЁН","НЕ УЧТЁН","НЕ УЧТЁН","НЕ УЧТЁН","НЕ УЧТЁН","НЕ УЧТЁН","НЕ УЧТЁН","НЕ УЧТЁН","НЕ УЧТЁН","НЕ УЧТЁН","НЕ УЧТЁН","НЕ УЧТЁН","НЕ УЧТЁН","НЕ УЧТЁН","НЕ УЧТЁН","НЕ УЧТЁН","НЕ УЧТЁН","НЕ УЧТЁН","НЕ УЧТЁН","НЕ УЧТЁН","НЕ УЧТЁН","НЕ УЧТЁН","НЕ УЧТЁН","НЕ УЧТЁН","НЕ УЧТЁН","НЕ УЧТЁН","НЕ УЧТЁН","НЕ УЧТЁН","НЕ УЧТЁН","НЕ УЧТЁН","НЕ УЧТЁН","НЕ УЧТЁН","НЕ УЧТЁН","НЕ УЧТЁН","НЕ УЧТЁН","НЕ УЧТЁН","НЕ УЧТЁН","НЕ УЧТЁН","НЕ УЧТЁН","НЕ УЧТЁН","НЕ УЧТЁН","НЕ УЧТЁН","НЕ УЧТЁН","НЕ УЧТЁН","НЕ УЧТЁН","НЕ УЧТЁН","НЕ УЧТЁН","НЕ УЧТЁН","НЕ УЧТЁН","НЕ УЧТЁН","НЕ УЧТЁН","НЕ УЧТЁН","НЕ УЧТЁН","НЕ УЧТЁН","НЕ УЧТЁН","НЕ УЧТЁН","НЕ УЧТЁН","НЕ УЧТЁН","НЕ УЧТЁН","НЕ УЧТЁН","НЕ УЧТЁН","НЕ УЧТЁН","НЕ УЧТЁН","НЕ УЧТЁН","НЕ УЧТЁН","НЕ УЧТЁН","НЕ УЧТЁН","НЕ УЧТЁН","НЕ УЧТЁН","НЕ УЧТЁН","НЕ УЧТЁН","НЕ УЧТЁН","НЕ УЧТЁН","НЕ УЧТЁН","НЕ УЧТЁН","НЕ УЧТЁН","НЕ УЧТЁН","НЕ УЧТЁН","НЕ УЧТЁН","НЕ УЧТЁН","НЕ УЧТЁН","НЕ УЧТЁН","НЕ УЧТЁН","НЕ УЧТЁН","НЕ УЧТЁН","НЕ УЧТЁН","НЕ УЧТЁН","НЕ УЧТЁН","НЕ УЧТЁН","НЕ УЧТЁН","НЕ УЧТЁН","НЕ УЧТЁН","НЕ УЧТЁН","НЕ УЧТЁН","НЕ УЧТЁН","НЕ УЧТЁН","НЕ УЧТЁН","НЕ УЧТЁН","НЕ УЧТЁН","НЕ УЧТЁН","НЕ УЧТЁН","НЕ УЧТЁН","НЕ УЧТЁН","НЕ УЧТЁН","НЕ УЧТЁН","НЕ УЧТЁН","НЕ УЧТЁН","НЕ УЧТЁН","НЕ УЧТЁН","НЕ УЧТЁН","НЕ УЧТЁН","НЕ УЧТЁН","НЕ УЧТЁН","НЕ УЧТЁН","НЕ УЧТЁН","НЕ УЧТЁН","НЕ УЧТЁН","НЕ УЧТЁН","НЕ УЧТЁН","НЕ УЧТЁН","НЕ УЧТЁН","НЕ УЧТЁН","НЕ УЧТЁН","НЕ УЧТЁН","НЕ УЧТЁН","НЕ УЧТЁН","НЕ УЧТЁН","НЕ УЧТЁН","НЕ УЧТЁН","НЕ УЧТЁН","НЕ УЧТЁН","НЕ УЧТЁН","НЕ УЧТЁН","НЕ УЧТЁН","НЕ УЧТЁН","НЕ УЧТЁН","НЕ УЧТЁН","НЕ УЧТЁН","НЕ УЧТЁН","НЕ УЧТЁН","НЕ УЧТЁН","НЕ УЧТЁН","НЕ УЧТЁН","НЕ УЧТЁН","НЕ УЧТЁН","НЕ УЧТЁН","НЕ УЧТЁН","НЕ УЧТЁН","НЕ УЧТЁН","НЕ УЧТЁН","НЕ УЧТЁН","НЕ УЧТЁН","НЕ УЧТЁН","НЕ УЧТЁН","НЕ УЧТЁН","НЕ УЧТЁН","НЕ УЧТЁН","НЕ УЧТЁН","НЕ УЧТЁН","НЕ УЧТЁН","НЕ УЧТЁН","НЕ УЧТЁН","НЕ УЧТЁН","НЕ УЧТЁН","НЕ УЧТЁН","НЕ УЧТЁН","НЕ УЧТЁН","НЕ УЧТЁН","НЕ УЧТЁН","НЕ УЧТЁН","НЕ УЧТЁН","НЕ УЧТЁН","НЕ УЧТЁН","НЕ УЧТЁН","НЕ УЧТЁН","НЕ УЧТЁН","НЕ УЧТЁН","НЕ УЧТЁН","НЕ УЧТЁН","НЕ УЧТЁН","НЕ УЧТЁН","НЕ УЧТЁН","НЕ УЧТЁН","НЕ УЧТЁН","НЕ УЧТЁН","НЕ УЧТЁН","НЕ УЧТЁН","НЕ УЧТЁН","НЕ УЧТЁН","НЕ УЧТЁН","НЕ УЧТЁН","НЕ УЧТЁН","НЕ УЧТЁН","НЕ УЧТЁН","НЕ УЧТЁН","НЕ УЧТЁН","НЕ УЧТЁН","НЕ УЧТЁН","НЕ УЧТЁН","НЕ УЧТЁН","НЕ УЧТЁН","НЕ УЧТЁН","НЕ УЧТЁН","НЕ УЧТЁН","НЕ УЧТЁН","НЕ УЧТЁН","НЕ УЧТЁН","НЕ УЧТЁН","НЕ УЧТЁН","НЕ УЧТЁН","НЕ УЧТЁН","НЕ УЧТЁН","НЕ УЧТЁН","НЕ УЧТЁН","НЕ УЧТЁН","НЕ УЧТЁН","НЕ УЧТЁН","НЕ УЧТЁН","НЕ УЧТЁН","НЕ УЧТЁН","НЕ УЧТЁН","НЕ УЧТЁН","НЕ УЧТЁН","НЕ УЧТЁН","НЕ УЧТЁН","НЕ УЧТЁН","НЕ УЧТЁН","НЕ УЧТЁН","НЕ УЧТЁН","НЕ УЧТЁН","НЕ УЧТЁН","НЕ УЧТЁН","НЕ УЧТЁН","НЕ УЧТЁН","НЕ УЧТЁН","НЕ УЧТЁН","НЕ УЧТЁН","НЕ УЧТЁН","НЕ УЧТЁН","НЕ УЧТЁН","НЕ УЧТЁН","НЕ УЧТЁН","НЕ УЧТЁН","НЕ УЧТЁН","НЕ УЧТЁН","НЕ УЧТЁН","НЕ УЧТЁН","НЕ УЧТЁН","НЕ УЧТЁН","НЕ УЧТЁН","НЕ УЧТЁН","НЕ УЧТЁН","НЕ УЧТЁН","НЕ УЧТЁН","НЕ УЧТЁН","НЕ УЧТЁН","НЕ УЧТЁН","НЕ УЧТЁН","НЕ УЧТЁН","НЕ УЧТЁН","НЕ УЧТЁН","НЕ УЧТЁН","НЕ УЧТЁН","НЕ УЧТЁН","НЕ УЧТЁН","НЕ УЧТЁН","НЕ УЧТЁН","НЕ УЧТЁН","НЕ УЧТЁН","НЕ УЧТЁН","НЕ УЧТЁН","НЕ УЧТЁН","НЕ УЧТЁН","НЕ УЧТЁН","НЕ УЧТЁН","НЕ УЧТЁН","НЕ УЧТЁН","НЕ УЧТЁН","НЕ УЧТЁН","НЕ УЧТЁН","НЕ УЧТЁН","НЕ УЧТЁН","НЕ УЧТЁН","НЕ УЧТЁН","НЕ УЧТЁН","НЕ УЧТЁН","НЕ УЧТЁН","НЕ УЧТЁН","НЕ УЧТЁН","НЕ УЧТЁН","НЕ УЧТЁН","НЕ УЧТЁН","НЕ УЧТЁН","НЕ УЧТЁН","НЕ УЧТЁН","НЕ УЧТЁН","НЕ УЧТЁН","НЕ УЧТЁН","НЕ УЧТЁН","НЕ УЧТЁН","НЕ УЧТЁН","НЕ УЧТЁН","НЕ УЧТЁН","НЕ УЧТЁН","НЕ УЧТЁН","НЕ УЧТЁН","НЕ УЧТЁН","НЕ УЧТЁН","НЕ УЧТЁН","НЕ УЧТЁН","НЕ УЧТЁН","НЕ УЧТЁН","НЕ УЧТЁН","НЕ УЧТЁН","НЕ УЧТЁН","НЕ УЧТЁН","НЕ УЧТЁН","НЕ УЧТЁН","НЕ УЧТЁН","НЕ УЧТЁН","НЕ УЧТЁН","НЕ УЧТЁН","НЕ УЧТЁН","НЕ УЧТЁН","НЕ УЧТЁН","НЕ УЧТЁН","НЕ УЧТЁН","НЕ УЧТЁН","НЕ УЧТЁН","НЕ УЧТЁН","НЕ УЧТЁН","НЕ УЧТЁН","НЕ УЧТЁН","НЕ УЧТЁН","НЕ УЧТЁН","НЕ УЧТЁН","НЕ УЧТЁН","НЕ УЧТЁН","НЕ УЧТЁН","НЕ УЧТЁН","НЕ УЧТЁН","НЕ УЧТЁН","НЕ УЧТЁН","НЕ УЧТЁН","НЕ УЧТЁН","НЕ УЧТЁН","НЕ УЧТЁН","НЕ УЧТЁН","НЕ УЧТЁН","НЕ УЧТЁН","НЕ УЧТЁН","НЕ УЧТЁН","НЕ УЧТЁН","НЕ УЧТЁН","НЕ УЧТЁН","НЕ УЧТЁН","НЕ УЧТЁН","НЕ УЧТЁН","НЕ УЧТЁН","НЕ УЧТЁН","НЕ УЧТЁН","НЕ УЧТЁН","НЕ УЧТЁН","НЕ УЧТЁН","НЕ УЧТЁН","НЕ УЧТЁН","НЕ УЧТЁН","НЕ УЧТЁН","НЕ УЧТЁН","НЕ УЧТЁН","НЕ УЧТЁН","НЕ УЧТЁН","НЕ УЧТЁН","НЕ УЧТЁН","НЕ УЧТЁН","НЕ УЧТЁН","НЕ УЧТЁН","НЕ УЧТЁН","НЕ УЧТЁН","НЕ УЧТЁН","НЕ УЧТЁН","НЕ УЧТЁН","НЕ УЧТЁН","НЕ УЧТЁН","НЕ УЧТЁН","НЕ УЧТЁН","НЕ УЧТЁН","НЕ УЧТЁН","НЕ УЧТЁН","НЕ УЧТЁН","НЕ УЧТЁН","НЕ УЧТЁН","НЕ УЧТЁН","НЕ УЧТЁН","НЕ УЧТЁН","НЕ УЧТЁН","НЕ УЧТЁН","НЕ УЧТЁН","НЕ УЧТЁН","НЕ УЧТЁН","НЕ УЧТЁН","НЕ УЧТЁН","НЕ УЧТЁН","НЕ УЧТЁН","НЕ УЧТЁН","НЕ УЧТЁН","НЕ УЧТЁН","НЕ УЧТЁН","НЕ УЧТЁН","НЕ УЧТЁН","НЕ УЧТЁН","НЕ УЧТЁН","НЕ УЧТЁН","НЕ УЧТЁН","НЕ УЧТЁН","НЕ УЧТЁН","НЕ УЧТЁН","НЕ УЧТЁН","НЕ УЧТЁН","НЕ УЧТЁН","НЕ УЧТЁН","НЕ УЧТЁН","НЕ УЧТЁН","НЕ УЧТЁН","НЕ УЧТЁН","НЕ УЧТЁН","НЕ УЧТЁН","НЕ УЧТЁН","НЕ УЧТЁН","НЕ УЧТЁН","НЕ УЧТЁН","НЕ УЧТЁН","НЕ УЧТЁН","НЕ УЧТЁН","НЕ УЧТЁН","НЕ УЧТЁН","НЕ УЧТЁН","НЕ УЧТЁН","НЕ УЧТЁН","НЕ УЧТЁН","НЕ УЧТЁН","НЕ УЧТЁН","НЕ УЧТЁН","НЕ УЧТЁН","НЕ УЧТЁН","НЕ УЧТЁН","НЕ УЧТЁН","НЕ УЧТЁН","НЕ УЧТЁН","НЕ УЧТЁН","НЕ УЧТЁН","НЕ УЧТЁН","НЕ УЧТЁН","НЕ УЧТЁН","НЕ УЧТЁН","НЕ УЧТЁН","НЕ УЧТЁН","НЕ УЧТЁН","НЕ УЧТЁН","НЕ УЧТЁН","НЕ УЧТЁН","НЕ УЧТЁН","НЕ УЧТЁН","НЕ УЧТЁН","НЕ УЧТЁН","НЕ УЧТЁН","НЕ УЧТЁН","НЕ УЧТЁН","НЕ УЧТЁН","НЕ УЧТЁН","НЕ УЧТЁН","НЕ УЧТЁН","НЕ УЧТЁН","НЕ УЧТЁН","НЕ УЧТЁН","НЕ УЧТЁН","НЕ УЧТЁН","НЕ УЧТЁН","НЕ УЧТЁН","НЕ УЧТЁН","НЕ УЧТЁН","НЕ УЧТЁН","НЕ УЧТЁН","НЕ УЧТЁН","НЕ УЧТЁН","НЕ УЧТЁН","НЕ УЧТЁН","НЕ УЧТЁН","НЕ УЧТЁН","НЕ УЧТЁН","НЕ УЧТЁН","НЕ УЧТЁН","НЕ УЧТЁН","НЕ УЧТЁН","НЕ УЧТЁН","НЕ УЧТЁН","НЕ УЧТЁН","НЕ УЧТЁН","НЕ УЧТЁН","НЕ УЧТЁН","НЕ УЧТЁН","НЕ УЧТЁН","НЕ УЧТЁН","НЕ УЧТЁН","НЕ УЧТЁН","НЕ УЧТЁН","НЕ УЧТЁН","НЕ УЧТЁН","НЕ УЧТЁН","НЕ УЧТЁН","НЕ УЧТЁН","НЕ УЧТЁН","НЕ УЧТЁН","НЕ УЧТЁН","НЕ УЧТЁН","НЕ УЧТЁН","НЕ УЧТЁН","НЕ УЧТЁН","НЕ УЧТЁН","НЕ УЧТЁН","НЕ УЧТЁН","НЕ УЧТЁН","НЕ УЧТЁН","НЕ УЧТЁН","НЕ УЧТЁН","НЕ УЧТЁН","НЕ УЧТЁН","НЕ УЧТЁН","НЕ УЧТЁН","НЕ УЧТЁН","НЕ УЧТЁН","НЕ УЧТЁН","НЕ УЧТЁН","НЕ УЧТЁН","НЕ УЧТЁН","НЕ УЧТЁН","НЕ УЧТЁН","НЕ УЧТЁН","НЕ УЧТЁН","НЕ УЧТЁН","НЕ УЧТЁН","НЕ УЧТЁН","НЕ УЧТЁН","НЕ УЧТЁН","НЕ УЧТЁН","НЕ УЧТЁН","НЕ УЧТЁН","НЕ УЧТЁН","НЕ УЧТЁН","НЕ УЧТЁН","НЕ УЧТЁН","НЕ УЧТЁН","НЕ УЧТЁН","НЕ УЧТЁН","НЕ УЧТЁН","НЕ УЧТЁН","НЕ УЧТЁН","НЕ УЧТЁН","НЕ УЧТЁН","НЕ УЧТЁН","НЕ УЧТЁН","НЕ УЧТЁН","НЕ УЧТЁН","НЕ УЧТЁН","НЕ УЧТЁН","НЕ УЧТЁН","НЕ УЧТЁН","НЕ УЧТЁН","НЕ УЧТЁН","НЕ УЧТЁН","НЕ УЧТЁН","НЕ УЧТЁН","НЕ УЧТЁН","НЕ УЧТЁН","НЕ УЧТЁН","НЕ УЧТЁН","НЕ УЧТЁН","НЕ УЧТЁН","НЕ УЧТЁН","НЕ УЧТЁН","НЕ УЧТЁН","НЕ УЧТЁН","НЕ УЧТЁН","НЕ УЧТЁН","НЕ УЧТЁН","НЕ УЧТЁН","НЕ УЧТЁН","НЕ УЧТЁН","НЕ УЧТЁН","НЕ УЧТЁН","НЕ УЧТЁН","НЕ УЧТЁН","НЕ УЧТЁН","НЕ УЧТЁН","НЕ УЧТЁН","НЕ УЧТЁН","НЕ УЧТЁН","НЕ УЧТЁН","НЕ УЧТЁН","НЕ УЧТЁН","НЕ УЧТЁН","НЕ УЧТЁН","НЕ УЧТЁН","НЕ УЧТЁН","НЕ УЧТЁН","НЕ УЧТЁН","НЕ УЧТЁН","НЕ УЧТЁН","НЕ УЧТЁН","НЕ УЧТЁН","НЕ УЧТЁН","НЕ УЧТЁН","НЕ УЧТЁН","НЕ УЧТЁН","НЕ УЧТЁН","НЕ УЧТЁН","НЕ УЧТЁН","НЕ УЧТЁН","НЕ УЧТЁН","НЕ УЧТЁН","НЕ УЧТЁН","НЕ УЧТЁН","НЕ УЧТЁН","НЕ УЧТЁН","НЕ УЧТЁН","НЕ УЧТЁН","НЕ УЧТЁН","НЕ УЧТЁН","НЕ УЧТЁН","НЕ УЧТЁН","НЕ УЧТЁН","НЕ УЧТЁН","НЕ УЧТЁН","НЕ УЧТЁН","НЕ УЧТЁН","НЕ УЧТЁН","НЕ УЧТЁН","НЕ УЧТЁН","НЕ УЧТЁН","НЕ УЧТЁН","НЕ УЧТЁН","НЕ УЧТЁН","НЕ УЧТЁН","НЕ УЧТЁН","НЕ УЧТЁН","НЕ УЧТЁН","НЕ УЧТЁН","НЕ УЧТЁН","НЕ УЧТЁН","НЕ УЧТЁН","НЕ УЧТЁН","НЕ УЧТЁН","НЕ УЧТЁН","НЕ УЧТЁН","НЕ УЧТЁН","НЕ УЧТЁН","НЕ УЧТЁН","НЕ УЧТЁН","НЕ УЧТЁН","НЕ УЧТЁН","НЕ УЧТЁН","НЕ УЧТЁН","НЕ УЧТЁН","НЕ УЧТЁН","НЕ УЧТЁН","НЕ УЧТЁН","НЕ УЧТЁН","НЕ УЧТЁН","НЕ УЧТЁН","НЕ УЧТЁН","НЕ УЧТЁН","НЕ УЧТЁН","НЕ УЧТЁН","НЕ УЧТЁН","НЕ УЧТЁН","НЕ УЧТЁН","НЕ УЧТЁН","НЕ УЧТЁН","НЕ УЧТЁН","НЕ УЧТЁН","НЕ УЧТЁН","НЕ УЧТЁН","НЕ УЧТЁН","НЕ УЧТЁН","НЕ УЧТЁН","НЕ УЧТЁН","НЕ УЧТЁН","НЕ УЧТЁН","НЕ УЧТЁН","НЕ УЧТЁН","НЕ УЧТЁН","НЕ УЧТЁН","НЕ УЧТЁН","НЕ УЧТЁН","НЕ УЧТЁН","НЕ УЧТЁН","НЕ УЧТЁН","НЕ УЧТЁН","НЕ УЧТЁН","НЕ УЧТЁН","НЕ УЧТЁН","НЕ УЧТЁН","НЕ УЧТЁН","НЕ УЧТЁН","НЕ УЧТЁН","НЕ УЧТЁН","НЕ УЧТЁН","НЕ УЧТЁН","НЕ УЧТЁН","НЕ УЧТЁН","НЕ УЧТЁН","НЕ УЧТЁН","НЕ УЧТЁН","НЕ УЧТЁН","НЕ УЧТЁН","НЕ УЧТЁН","НЕ УЧТЁН","НЕ УЧТЁН","НЕ УЧТЁН","НЕ УЧТЁН","НЕ УЧТЁН","НЕ УЧТЁН","НЕ УЧТЁН","НЕ УЧТЁН","НЕ УЧТЁН","НЕ УЧТЁН","НЕ УЧТЁН","НЕ УЧТЁН","НЕ УЧТЁН","НЕ УЧТЁН","НЕ УЧТЁН","НЕ УЧТЁН","НЕ УЧТЁН","НЕ УЧТЁН","НЕ УЧТЁН","НЕ УЧТЁН","НЕ УЧТЁН","НЕ УЧТЁН","НЕ УЧТЁН","НЕ УЧТЁН","НЕ УЧТЁН","НЕ УЧТЁН","НЕ УЧТЁН","НЕ УЧТЁН","НЕ УЧТЁН","НЕ УЧТЁН","НЕ УЧТЁН","НЕ УЧТЁН","НЕ УЧТЁН","НЕ УЧТЁН","НЕ УЧТЁН","НЕ УЧТЁН","НЕ УЧТЁН","НЕ УЧТЁН","НЕ УЧТЁН","НЕ УЧТЁН","НЕ УЧТЁН","НЕ УЧТЁН","НЕ УЧТЁН","НЕ УЧТЁН","НЕ УЧТЁН","НЕ УЧТЁН","НЕ УЧТЁН","НЕ УЧТЁН","НЕ УЧТЁН","НЕ УЧТЁН","НЕ УЧТЁН","НЕ УЧТЁН","НЕ УЧТЁН","НЕ УЧТЁН","НЕ УЧТЁН","НЕ УЧТЁН","НЕ УЧТЁН","НЕ УЧТЁН","НЕ УЧТЁН","НЕ УЧТЁН","НЕ УЧТЁН","НЕ УЧТЁН","НЕ УЧТЁН","НЕ УЧТЁН","НЕ УЧТЁН","НЕ УЧТЁН","НЕ УЧТЁН","НЕ УЧТЁН","НЕ УЧТЁН","НЕ УЧТЁН","НЕ УЧТЁН","НЕ УЧТЁН","НЕ УЧТЁН","НЕ УЧТЁН","НЕ УЧТЁН","НЕ УЧТЁН","НЕ УЧТЁН","НЕ УЧТЁН","НЕ УЧТЁН","НЕ УЧТЁН","НЕ УЧТЁН","НЕ УЧТЁН","НЕ УЧТЁН","НЕ УЧТЁН","НЕ УЧТЁН","НЕ УЧТЁН","НЕ УЧТЁН","НЕ УЧТЁН","НЕ УЧТЁН","НЕ УЧТЁН","НЕ УЧТЁН","НЕ УЧТЁН","НЕ УЧТЁН","НЕ УЧТЁН","НЕ УЧТЁН","НЕ УЧТЁН","НЕ УЧТЁН","НЕ УЧТЁН","НЕ УЧТЁН","НЕ УЧТЁН","НЕ УЧТЁН","НЕ УЧТЁН","НЕ УЧТЁН","НЕ УЧТЁН","НЕ УЧТЁН","НЕ УЧТЁН","НЕ УЧТЁН","НЕ УЧТЁН","НЕ УЧТЁН","НЕ УЧТЁН","НЕ УЧТЁН","НЕ УЧТЁН","НЕ УЧТЁН","НЕ УЧТЁН","НЕ УЧТЁН","НЕ УЧТЁН","НЕ УЧТЁН","НЕ УЧТЁН","НЕ УЧТЁН","НЕ УЧТЁН","НЕ УЧТЁН","НЕ УЧТЁН","НЕ УЧТЁН","НЕ УЧТЁН","НЕ УЧТЁН","НЕ УЧТЁН","НЕ УЧТЁН","НЕ УЧТЁН","НЕ УЧТЁН","НЕ УЧТЁН","НЕ УЧТЁН","НЕ УЧТЁН","НЕ УЧТЁН","НЕ УЧТЁН","НЕ УЧТЁН","НЕ УЧТЁН","НЕ УЧТЁН","НЕ УЧТЁН","НЕ УЧТЁН","НЕ УЧТЁН","НЕ УЧТЁН","НЕ УЧТЁН","НЕ УЧТЁН","НЕ УЧТЁН","НЕ УЧТЁН","НЕ УЧТЁН","НЕ УЧТЁН","НЕ УЧТЁН","НЕ УЧТЁН","НЕ УЧТЁН","НЕ УЧТЁН","НЕ УЧТЁН","НЕ УЧТЁН","НЕ УЧТЁН","НЕ УЧТЁН","НЕ УЧТЁН","НЕ УЧТЁН","НЕ УЧТЁН","НЕ УЧТЁН","НЕ УЧТЁН","НЕ УЧТЁН","НЕ УЧТЁН","НЕ УЧТЁН","НЕ УЧТЁН","НЕ УЧТЁН","НЕ УЧТЁН","НЕ УЧТЁН","НЕ УЧТЁН","НЕ УЧТЁН","НЕ УЧТЁН","НЕ УЧТЁН","НЕ УЧТЁН","НЕ УЧТЁН","НЕ УЧТЁН","НЕ УЧТЁН","НЕ УЧТЁН","НЕ УЧТЁН","НЕ УЧТЁН","НЕ УЧТЁН","НЕ УЧТЁН","НЕ УЧТЁН","НЕ УЧТЁН","НЕ УЧТЁН","НЕ УЧТЁН","НЕ УЧТЁН","НЕ УЧТЁН","НЕ УЧТЁН","НЕ УЧТЁН","НЕ УЧТЁН","НЕ УЧТЁН","НЕ УЧТЁН","НЕ УЧТЁН","НЕ УЧТЁН","НЕ УЧТЁН","НЕ УЧТЁН","НЕ УЧТЁН","НЕ УЧТЁН","НЕ УЧТЁН","НЕ УЧТЁН","НЕ УЧТЁН","НЕ УЧТЁН","НЕ УЧТЁН","НЕ УЧТЁН","НЕ УЧТЁН","НЕ УЧТЁН","НЕ УЧТЁН","НЕ УЧТЁН","НЕ УЧТЁН","НЕ УЧТЁН","НЕ УЧТЁН","НЕ УЧТЁН","НЕ УЧТЁН","НЕ УЧТЁН","НЕ УЧТЁН","НЕ УЧТЁН","НЕ УЧТЁН","НЕ УЧТЁН","НЕ УЧТЁН","НЕ УЧТЁН","НЕ УЧТЁН","НЕ УЧТЁН","НЕ УЧТЁН","НЕ УЧТЁН","НЕ УЧТЁН","НЕ УЧТЁН","НЕ УЧТЁН","НЕ УЧТЁН","НЕ УЧТЁН","НЕ УЧТЁН","НЕ УЧТЁН","НЕ УЧТЁН","НЕ УЧТЁН","НЕ УЧТЁН","НЕ УЧТЁН","НЕ УЧТЁН","НЕ УЧТЁН","НЕ УЧТЁН","НЕ УЧТЁН","НЕ УЧТЁН","НЕ УЧТЁН","НЕ УЧТЁН","НЕ УЧТЁН","НЕ УЧТЁН","НЕ УЧТЁН","НЕ УЧТЁН","НЕ УЧТЁН","НЕ УЧТЁН","НЕ УЧТЁН","НЕ УЧТЁН","НЕ УЧТЁН","НЕ УЧТЁН","НЕ УЧТЁН","НЕ УЧТЁН","НЕ УЧТЁН","НЕ УЧТЁН","НЕ УЧТЁН","НЕ УЧТЁН","НЕ УЧТЁН","НЕ УЧТЁН","НЕ УЧТЁН","НЕ УЧТЁН","НЕ УЧТЁН","НЕ УЧТЁН","НЕ УЧТЁН","НЕ УЧТЁН","НЕ УЧТЁН","НЕ УЧТЁН","НЕ УЧТЁН","НЕ УЧТЁН","НЕ УЧТЁН","НЕ УЧТЁН","НЕ УЧТЁН","НЕ УЧТЁН","НЕ УЧТЁН","НЕ УЧТЁН","НЕ УЧТЁН","НЕ УЧТЁН","НЕ УЧТЁН","НЕ УЧТЁН","НЕ УЧТЁН","НЕ УЧТЁН","НЕ УЧТЁН","НЕ УЧТЁН","НЕ УЧТЁН","НЕ УЧТЁН","НЕ УЧТЁН","НЕ УЧТЁН","НЕ УЧТЁН","НЕ УЧТЁН","НЕ УЧТЁН","НЕ УЧТЁН","НЕ УЧТЁН","НЕ УЧТЁН","НЕ УЧТЁН","НЕ УЧТЁН","НЕ УЧТЁН","НЕ УЧТЁН","НЕ УЧТЁН","НЕ УЧТЁН","НЕ УЧТЁН","НЕ УЧТЁН","НЕ УЧТЁН","НЕ УЧТЁН","НЕ УЧТЁН","НЕ УЧТЁН","НЕ УЧТЁН","НЕ УЧТЁН","НЕ УЧТЁН","НЕ УЧТЁН","НЕ УЧТЁН","НЕ УЧТЁН","НЕ УЧТЁН","НЕ УЧТЁН","НЕ УЧТЁН","НЕ УЧТЁН","НЕ УЧТЁН","НЕ УЧТЁН","НЕ УЧТЁН","НЕ УЧТЁН","НЕ УЧТЁН","НЕ УЧТЁН","НЕ УЧТЁН","НЕ УЧТЁН","НЕ УЧТЁН","НЕ УЧТЁН","НЕ УЧТЁН","НЕ УЧТЁН","НЕ УЧТЁН","НЕ УЧТЁН","НЕ УЧТЁН","НЕ УЧТЁН","НЕ УЧТЁН","НЕ УЧТЁН","НЕ УЧТЁН","НЕ УЧТЁН","НЕ УЧТЁН","НЕ УЧТЁН","НЕ УЧТЁН","НЕ УЧТЁН","НЕ УЧТЁН","НЕ УЧТЁН","НЕ УЧТЁН","НЕ УЧТЁН","НЕ УЧТЁН","НЕ УЧТЁН","НЕ УЧТЁН","НЕ УЧТЁН","НЕ УЧТЁН","НЕ УЧТЁН","НЕ УЧТЁН","НЕ УЧТЁН","НЕ УЧТЁН","НЕ УЧТЁН","НЕ УЧТЁН","НЕ УЧТЁН","НЕ УЧТЁН","НЕ УЧТЁН","НЕ УЧТЁН","НЕ УЧТЁН","НЕ УЧТЁН","НЕ УЧТЁН","НЕ УЧТЁН","НЕ УЧТЁН","НЕ УЧТЁН","НЕ УЧТЁН","НЕ УЧТЁН","НЕ УЧТЁН","НЕ УЧТЁН","НЕ УЧТЁН","НЕ УЧТЁН","НЕ УЧТЁН","НЕ УЧТЁН","НЕ УЧТЁН","НЕ УЧТЁН","НЕ УЧТЁН","НЕ УЧТЁН","НЕ УЧТЁН","НЕ УЧТЁН","НЕ УЧТЁН","НЕ УЧТЁН","НЕ УЧТЁН","НЕ УЧТЁН","НЕ УЧТЁН","НЕ УЧТЁН","НЕ УЧТЁН","НЕ УЧТЁН","НЕ УЧТЁН","НЕ УЧТЁН","НЕ УЧТЁН","НЕ УЧТЁН","НЕ УЧТЁН","НЕ УЧТЁН","НЕ УЧТЁН","НЕ УЧТЁН","НЕ УЧТЁН","НЕ УЧТЁН","НЕ УЧТЁН","НЕ УЧТЁН","НЕ УЧТЁН","НЕ УЧТЁН","НЕ УЧТЁН","НЕ УЧТЁН","НЕ УЧТЁН","НЕ УЧТЁН","НЕ УЧТЁН","НЕ УЧТЁН","НЕ УЧТЁН","НЕ УЧТЁН","НЕ УЧТЁН","НЕ УЧТЁН","НЕ УЧТЁН","НЕ УЧТЁН","НЕ УЧТЁН","НЕ УЧТЁН","НЕ УЧТЁН","НЕ УЧТЁН","НЕ УЧТЁН","НЕ УЧТЁН","НЕ УЧТЁН","НЕ УЧТЁН","НЕ УЧТЁН","НЕ УЧТЁН","НЕ УЧТЁН","НЕ УЧТЁН","НЕ УЧТЁН","НЕ УЧТЁН","НЕ УЧТЁН","НЕ УЧТЁН","НЕ УЧТЁН","НЕ УЧТЁН","НЕ УЧТЁН","НЕ УЧТЁН","НЕ УЧТЁН","НЕ УЧТЁН","НЕ УЧТЁН","НЕ УЧТЁН","НЕ УЧТЁН","НЕ УЧТЁН","НЕ УЧТЁН","НЕ УЧТЁН","НЕ УЧТЁН","НЕ УЧТЁН","НЕ УЧТЁН","НЕ УЧТЁН","НЕ УЧТЁН","НЕ УЧТЁН","НЕ УЧТЁН","НЕ УЧТЁН","НЕ УЧТЁН","НЕ УЧТЁН","НЕ УЧТЁН","НЕ УЧТЁН","НЕ УЧТЁН","НЕ УЧТЁН","НЕ УЧТЁН","НЕ УЧТЁН","НЕ УЧТЁН","НЕ УЧТЁН","НЕ УЧТЁН","НЕ УЧТЁН","НЕ УЧТЁН","НЕ УЧТЁН","НЕ УЧТЁН","НЕ УЧТЁН","НЕ УЧТЁН","НЕ УЧТЁН","НЕ УЧТЁН","НЕ УЧТЁН","НЕ УЧТЁН","НЕ УЧТЁН","НЕ УЧТЁН","НЕ УЧТЁН","НЕ УЧТЁН","НЕ УЧТЁН","НЕ УЧТЁН","НЕ УЧТЁН","НЕ УЧТЁН","НЕ УЧТЁН","НЕ УЧТЁН","НЕ УЧТЁН","НЕ УЧТЁН","НЕ УЧТЁН","НЕ УЧТЁН","НЕ УЧТЁН","НЕ УЧТЁН","НЕ УЧТЁН","НЕ УЧТЁН","НЕ УЧТЁН","НЕ УЧТЁН","НЕ УЧТЁН","НЕ УЧТЁН","НЕ УЧТЁН","НЕ УЧТЁН","НЕ УЧТЁН","НЕ УЧТЁН","НЕ УЧТЁН","НЕ УЧТЁН","НЕ УЧТЁН","НЕ УЧТЁН","НЕ УЧТЁН","НЕ УЧТЁН","НЕ УЧТЁН","НЕ УЧТЁН","НЕ УЧТЁН","НЕ УЧТЁН","НЕ УЧТЁН","НЕ УЧТЁН","НЕ УЧТЁН","НЕ УЧТЁН","НЕ УЧТЁН","НЕ УЧТЁН","НЕ УЧТЁН","НЕ УЧТЁН","НЕ УЧТЁН","НЕ УЧТЁН","НЕ УЧТЁН","НЕ УЧТЁН","НЕ УЧТЁН","НЕ УЧТЁН","НЕ УЧТЁН","НЕ УЧТЁН","НЕ УЧТЁН","НЕ УЧТЁН","НЕ УЧТЁН","НЕ УЧТЁН","НЕ УЧТЁН","НЕ УЧТЁН","НЕ УЧТЁН","НЕ УЧТЁН","НЕ УЧТЁН","НЕ УЧТЁН","НЕ УЧТЁН","НЕ УЧТЁН","НЕ УЧТЁН","НЕ УЧТЁН","НЕ УЧТЁН","НЕ УЧТЁН","НЕ УЧТЁН","НЕ УЧТЁН","НЕ УЧТЁН","НЕ УЧТЁН","НЕ УЧТЁН","НЕ УЧТЁН","НЕ УЧТЁН","НЕ УЧТЁН","НЕ УЧТЁН","НЕ УЧТЁН","НЕ УЧТЁН","НЕ УЧТЁН","НЕ УЧТЁН","НЕ УЧТЁН","НЕ УЧТЁН","НЕ УЧТЁН","НЕ УЧТЁН","НЕ УЧТЁН","НЕ УЧТЁН","НЕ УЧТЁН","НЕ УЧТЁН","НЕ УЧТЁН","НЕ УЧТЁН","НЕ УЧТЁН","НЕ УЧТЁН","НЕ УЧТЁН","НЕ УЧТЁН","НЕ УЧТЁН","НЕ УЧТЁН","НЕ УЧТЁН","НЕ УЧТЁН","НЕ УЧТЁН","НЕ УЧТЁН","НЕ УЧТЁН","НЕ УЧТЁН","НЕ УЧТЁН","НЕ УЧТЁН","НЕ УЧТЁН","НЕ УЧТЁН","НЕ УЧТЁН","НЕ УЧТЁН","НЕ УЧТЁН","НЕ УЧТЁН","НЕ УЧТЁН","НЕ УЧТЁН","НЕ УЧТЁН","НЕ УЧТЁН","НЕ УЧТЁН","НЕ УЧТЁН","НЕ УЧТЁН","НЕ УЧТЁН","НЕ УЧТЁН","НЕ УЧТЁН","НЕ УЧТЁН","НЕ УЧТЁН","НЕ УЧТЁН","НЕ УЧТЁН","НЕ УЧТЁН","НЕ УЧТЁН","НЕ УЧТЁН","НЕ УЧТЁН","НЕ УЧТЁН","НЕ УЧТЁН","НЕ УЧТЁН","НЕ УЧТЁН","НЕ УЧТЁН","НЕ УЧТЁН","НЕ УЧТЁН","НЕ УЧТЁН","НЕ УЧТЁН","НЕ УЧТЁН","НЕ УЧТЁН","НЕ УЧТЁН","НЕ УЧТЁН","НЕ УЧТЁН","НЕ УЧТЁН","НЕ УЧТЁН","НЕ УЧТЁН","НЕ УЧТЁН","НЕ УЧТЁН","НЕ УЧТЁН","НЕ УЧТЁН","НЕ УЧТЁН","НЕ УЧТЁН","НЕ УЧТЁН","НЕ УЧТЁН","НЕ УЧТЁН","НЕ УЧТЁН","НЕ УЧТЁН","НЕ УЧТЁН","НЕ УЧТЁН","НЕ УЧТЁН","НЕ УЧТЁН","НЕ УЧТЁН","НЕ УЧТЁН","НЕ УЧТЁН","НЕ УЧТЁН","НЕ УЧТЁН","НЕ УЧТЁН","НЕ УЧТЁН","НЕ УЧТЁН","НЕ УЧТЁН","НЕ УЧТЁН","НЕ УЧТЁН","НЕ УЧТЁН","НЕ УЧТЁН","НЕ УЧТЁН","НЕ УЧТЁН","НЕ УЧТЁН","НЕ УЧТЁН","НЕ УЧТЁН","НЕ УЧТЁН","НЕ УЧТЁН","НЕ УЧТЁН","НЕ УЧТЁН","НЕ УЧТЁН","НЕ УЧТЁН","НЕ УЧТЁН","НЕ УЧТЁН","НЕ УЧТЁН","НЕ УЧТЁН","НЕ УЧТЁН","НЕ УЧТЁН","НЕ УЧТЁН","НЕ УЧТЁН","НЕ УЧТЁН","НЕ УЧТЁН","НЕ УЧТЁН","НЕ УЧТЁН","НЕ УЧТЁН","НЕ УЧТЁН","НЕ УЧТЁН","НЕ УЧТЁН","НЕ УЧТЁН","НЕ УЧТЁН","НЕ УЧТЁН","НЕ УЧТЁН","НЕ УЧТЁН","НЕ УЧТЁН","НЕ УЧТЁН","НЕ УЧТЁН","НЕ УЧТЁН","НЕ УЧТЁН","НЕ УЧТЁН","НЕ УЧТЁН","НЕ УЧТЁН","НЕ УЧТЁН","НЕ УЧТЁН","НЕ УЧТЁН","НЕ УЧТЁН","НЕ УЧТЁН","НЕ УЧТЁН","НЕ УЧТЁН","НЕ УЧТЁН","НЕ УЧТЁН","НЕ УЧТЁН","НЕ УЧТЁН","НЕ УЧТЁН","НЕ УЧТЁН","НЕ УЧТЁН","НЕ УЧТЁН","НЕ УЧТЁН","НЕ УЧТЁН","НЕ УЧТЁН","НЕ УЧТЁН","НЕ УЧТЁН","НЕ УЧТЁН","НЕ УЧТЁН","НЕ УЧТЁН","НЕ УЧТЁН","НЕ УЧТЁН","НЕ УЧТЁН","НЕ УЧТЁН","НЕ УЧТЁН","НЕ УЧТЁН","НЕ УЧТЁН","НЕ УЧТЁН","НЕ УЧТЁН","НЕ УЧТЁН","НЕ УЧТЁН","НЕ УЧТЁН","НЕ УЧТЁН","НЕ УЧТЁН","НЕ УЧТЁН","НЕ УЧТЁН","НЕ УЧТЁН","НЕ УЧТЁН","НЕ УЧТЁН","НЕ УЧТЁН","НЕ УЧТЁН","НЕ УЧТЁН","НЕ УЧТЁН","НЕ УЧТЁН","НЕ УЧТЁН","НЕ УЧТЁН","НЕ УЧТЁН","НЕ УЧТЁН","НЕ УЧТЁН","НЕ УЧТЁН","НЕ УЧТЁН","НЕ УЧТЁН","НЕ УЧТЁН","НЕ УЧТЁН","НЕ УЧТЁН","НЕ УЧТЁН","НЕ УЧТЁН","НЕ УЧТЁН","НЕ УЧТЁН","НЕ УЧТЁН","НЕ УЧТЁН","НЕ УЧТЁН","НЕ УЧТЁН","НЕ УЧТЁН","НЕ УЧТЁН","НЕ УЧТЁН","НЕ УЧТЁН","НЕ УЧТЁН","НЕ УЧТЁН","НЕ УЧТЁН","НЕ УЧТЁН","НЕ УЧТЁН","НЕ УЧТЁН","НЕ УЧТЁН","НЕ УЧТЁН","НЕ УЧТЁН","НЕ УЧТЁН","НЕ УЧТЁН","НЕ УЧТЁН","НЕ УЧТЁН","НЕ УЧТЁН","НЕ УЧТЁН","НЕ УЧТЁН","НЕ УЧТЁН","НЕ УЧТЁН","НЕ УЧТЁН","НЕ УЧТЁН","НЕ УЧТЁН","НЕ УЧТЁН","НЕ УЧТЁН","НЕ УЧТЁН","НЕ УЧТЁН","НЕ УЧТЁН","НЕ УЧТЁН","НЕ УЧТЁН","НЕ УЧТЁН","НЕ УЧТЁН","НЕ УЧТЁН","НЕ УЧТЁН","НЕ УЧТЁН","НЕ УЧТЁН","НЕ УЧТЁН","НЕ УЧТЁН","НЕ УЧТЁН","НЕ УЧТЁН","НЕ УЧТЁН","НЕ УЧТЁН","НЕ УЧТЁН","НЕ УЧТЁН","НЕ УЧТЁН","НЕ УЧТЁН","НЕ УЧТЁН","НЕ УЧТЁН","НЕ УЧТЁН","НЕ УЧТЁН","НЕ УЧТЁН","НЕ УЧТЁН","НЕ УЧТЁН","НЕ УЧТЁН","НЕ УЧТЁН","НЕ УЧТЁН","НЕ УЧТЁН","НЕ УЧТЁН","НЕ УЧТЁН","НЕ УЧТЁН","НЕ УЧТЁН","НЕ УЧТЁН","НЕ УЧТЁН","НЕ УЧТЁН","НЕ УЧТЁН","НЕ УЧТЁН","НЕ УЧТЁН","НЕ УЧТЁН","НЕ УЧТЁН","НЕ УЧТЁН","НЕ УЧТЁН","НЕ УЧТЁН","НЕ УЧТЁН","НЕ УЧТЁН","НЕ УЧТЁН","НЕ УЧТЁН","НЕ УЧТЁН","НЕ УЧТЁН","НЕ УЧТЁН","НЕ УЧТЁН","НЕ УЧТЁН","НЕ УЧТЁН","НЕ УЧТЁН","НЕ УЧТЁН","НЕ УЧТЁН","НЕ УЧТЁН","НЕ УЧТЁН","НЕ УЧТЁН","НЕ УЧТЁН","НЕ УЧТЁН","НЕ УЧТЁН","НЕ УЧТЁН","НЕ УЧТЁН","НЕ УЧТЁН","НЕ УЧТЁН","НЕ УЧТЁН","НЕ УЧТЁН","НЕ УЧТЁН","НЕ УЧТЁН","НЕ УЧТЁН","НЕ УЧТЁН","НЕ УЧТЁН","НЕ УЧТЁН","НЕ УЧТЁН","НЕ УЧТЁН","НЕ УЧТЁН","НЕ УЧТЁН","НЕ УЧТЁН","НЕ УЧТЁН","НЕ УЧТЁН","НЕ УЧТЁН","НЕ УЧТЁН","НЕ УЧТЁН","НЕ УЧТЁН","НЕ УЧТЁН","НЕ УЧТЁН","НЕ УЧТЁН","НЕ УЧТЁН","НЕ УЧТЁН","НЕ УЧТЁН","НЕ УЧТЁН","НЕ УЧТЁН","НЕ УЧТЁН","НЕ УЧТЁН","НЕ УЧТЁН","НЕ УЧТЁН","НЕ УЧТЁН","НЕ УЧТЁН","НЕ УЧТЁН","НЕ УЧТЁН","НЕ УЧТЁН","НЕ УЧТЁН","НЕ УЧТЁН","НЕ УЧТЁН","НЕ УЧТЁН","НЕ УЧТЁН","НЕ УЧТЁН","НЕ УЧТЁН","НЕ УЧТЁН","НЕ УЧТЁН","НЕ УЧТЁН","НЕ УЧТЁН","НЕ УЧТЁН","НЕ УЧТЁН","НЕ УЧТЁН","НЕ УЧТЁН","НЕ УЧТЁН","НЕ УЧТЁН","НЕ УЧТЁН","НЕ УЧТЁН","НЕ УЧТЁН","НЕ УЧТЁН","НЕ УЧТЁН","НЕ УЧТЁН","НЕ УЧТЁН","НЕ УЧТЁН","НЕ УЧТЁН","НЕ УЧТЁН","НЕ УЧТЁН","НЕ УЧТЁН","НЕ УЧТЁН","НЕ УЧТЁН","НЕ УЧТЁН","НЕ УЧТЁН","НЕ УЧТЁН","НЕ УЧТЁН","НЕ УЧТЁН","НЕ УЧТЁН","НЕ УЧТЁН","НЕ УЧТЁН","НЕ УЧТЁН","НЕ УЧТЁН","НЕ УЧТЁН","НЕ УЧТЁН","НЕ УЧТЁН","НЕ УЧТЁН","НЕ УЧТЁН","НЕ УЧТЁН","НЕ УЧТЁН","НЕ УЧТЁН","НЕ УЧТЁН","НЕ УЧТЁН","НЕ УЧТЁН","НЕ УЧТЁН","НЕ УЧТЁН","НЕ УЧТЁН","НЕ УЧТЁН","НЕ УЧТЁН","НЕ УЧТЁН","НЕ УЧТЁН","НЕ УЧТЁН","НЕ УЧТЁН","НЕ УЧТЁН","НЕ УЧТЁН","НЕ УЧТЁН","НЕ УЧТЁН","НЕ УЧТЁН","НЕ УЧТЁН","НЕ УЧТЁН","НЕ УЧТЁН","НЕ УЧТЁН","НЕ УЧТЁН","НЕ УЧТЁН","НЕ УЧТЁН","НЕ УЧТЁН","НЕ УЧТЁН","НЕ УЧТЁН","НЕ УЧТЁН","НЕ УЧТЁН","НЕ УЧТЁН","НЕ УЧТЁН","НЕ УЧТЁН","НЕ УЧТЁН","НЕ УЧТЁН","НЕ УЧТЁН","НЕ УЧТЁН","НЕ УЧТЁН","НЕ УЧТЁН","НЕ УЧТЁН","НЕ УЧТЁН","НЕ УЧТЁН","НЕ УЧТЁН","НЕ УЧТЁН","НЕ УЧТЁН","НЕ УЧТЁН","НЕ УЧТЁН","НЕ УЧТЁН","НЕ УЧТЁН","НЕ УЧТЁН","НЕ УЧТЁН","НЕ УЧТЁН","НЕ УЧТЁН","НЕ УЧТЁН","НЕ УЧТЁН","НЕ УЧТЁН","НЕ УЧТЁН","НЕ УЧТЁН","НЕ УЧТЁН","НЕ УЧТЁН","НЕ УЧТЁН","НЕ УЧТЁН","НЕ УЧТЁН","НЕ УЧТЁН","НЕ УЧТЁН","НЕ УЧТЁН","НЕ УЧТЁН","НЕ УЧТЁН","НЕ УЧТЁН","НЕ УЧТЁН","НЕ УЧТЁН","НЕ УЧТЁН","НЕ УЧТЁН","НЕ УЧТЁН","НЕ УЧТЁН","НЕ УЧТЁН","НЕ УЧТЁН","НЕ УЧТЁН","НЕ УЧТЁН","НЕ УЧТЁН","НЕ УЧТЁН","НЕ УЧТЁН","НЕ УЧТЁН","НЕ УЧТЁН","НЕ УЧТЁН","НЕ УЧТЁН","НЕ УЧТЁН","НЕ УЧТЁН","НЕ УЧТЁН","НЕ УЧТЁН","НЕ УЧТЁН","НЕ УЧТЁН","НЕ УЧТЁН","НЕ УЧТЁН","НЕ УЧТЁН","НЕ УЧТЁН","НЕ УЧТЁН","НЕ УЧТЁН","НЕ УЧТЁН","НЕ УЧТЁН","НЕ УЧТЁН","НЕ УЧТЁН","НЕ УЧТЁН","НЕ УЧТЁН","НЕ УЧТЁН","НЕ УЧТЁН","НЕ УЧТЁН","НЕ УЧТЁН","НЕ УЧТЁН","НЕ УЧТЁН","НЕ УЧТЁН","НЕ УЧТЁН","НЕ УЧТЁН","НЕ УЧТЁН","НЕ УЧТЁН","НЕ УЧТЁН","НЕ УЧТЁН","НЕ УЧТЁН","НЕ УЧТЁН","НЕ УЧТЁН","НЕ УЧТЁН","НЕ УЧТЁН","НЕ УЧТЁН","НЕ УЧТЁН","НЕ УЧТЁН","НЕ УЧТЁН","НЕ УЧТЁН","НЕ УЧТЁН","НЕ УЧТЁН","НЕ УЧТЁН","НЕ УЧТЁН","НЕ УЧТЁН","НЕ УЧТЁН","НЕ УЧТЁН","НЕ УЧТЁН","НЕ УЧТЁН","НЕ УЧТЁН","НЕ УЧТЁН","НЕ УЧТЁН","НЕ УЧТЁН","НЕ УЧТЁН","НЕ УЧТЁН","НЕ УЧТЁН","НЕ УЧТЁН","НЕ УЧТЁН","НЕ УЧТЁН","НЕ УЧТЁН","НЕ УЧТЁН","НЕ УЧТЁН","НЕ УЧТЁН","НЕ УЧТЁН","НЕ УЧТЁН","НЕ УЧТЁН","НЕ УЧТЁН","НЕ УЧТЁН","НЕ УЧТЁН","НЕ УЧТЁН","НЕ УЧТЁН","НЕ УЧТЁН","НЕ УЧТЁН","НЕ УЧТЁН","НЕ УЧТЁН","НЕ УЧТЁН","НЕ УЧТЁН","НЕ УЧТЁН","НЕ УЧТЁН","НЕ УЧТЁН","НЕ УЧТЁН","НЕ УЧТЁН","НЕ УЧТЁН","НЕ УЧТЁН","НЕ УЧТЁН","НЕ УЧТЁН","НЕ УЧТЁН","НЕ УЧТЁН","НЕ УЧТЁН","НЕ УЧТЁН","НЕ УЧТЁН","НЕ УЧТЁН","НЕ УЧТЁН","НЕ УЧТЁН","НЕ УЧТЁН","НЕ УЧТЁН","НЕ УЧТЁН","НЕ УЧТЁН","НЕ УЧТЁН","НЕ УЧТЁН","НЕ УЧТЁН","НЕ УЧТЁН","НЕ УЧТЁН","НЕ УЧТЁН","НЕ УЧТЁН","НЕ УЧТЁН","НЕ УЧТЁН","НЕ УЧТЁН","НЕ УЧТЁН","НЕ УЧТЁН","НЕ УЧТЁН","НЕ УЧТЁН","НЕ УЧТЁН","НЕ УЧТЁН","НЕ УЧТЁН","НЕ УЧТЁН","НЕ УЧТЁН","НЕ УЧТЁН","НЕ УЧТЁН","НЕ УЧТЁН","НЕ УЧТЁН","НЕ УЧТЁН","НЕ УЧТЁН","НЕ УЧТЁН","НЕ УЧТЁН","НЕ УЧТЁН","НЕ УЧТЁН","НЕ УЧТЁН","НЕ УЧТЁН","НЕ УЧТЁН","НЕ УЧТЁН","НЕ УЧТЁН","НЕ УЧТЁН","НЕ УЧТЁН","НЕ УЧТЁН","НЕ УЧТЁН","НЕ УЧТЁН","НЕ УЧТЁН","НЕ УЧТЁН","НЕ УЧТЁН","НЕ УЧТЁН","НЕ УЧТЁН","НЕ УЧТЁН","НЕ УЧТЁН","НЕ УЧТЁН","НЕ УЧТЁН","НЕ УЧТЁН","НЕ УЧТЁН","НЕ УЧТЁН","НЕ УЧТЁН","НЕ УЧТЁН","НЕ УЧТЁН","НЕ УЧТЁН","НЕ УЧТЁН","НЕ УЧТЁН","НЕ УЧТЁН","НЕ УЧТЁН","НЕ УЧТЁН","НЕ УЧТЁН","НЕ УЧТЁН","НЕ УЧТЁН","НЕ УЧТЁН","НЕ УЧТЁН","НЕ УЧТЁН","НЕ УЧТЁН","НЕ УЧТЁН","НЕ УЧТЁН","НЕ УЧТЁН","НЕ УЧТЁН","НЕ УЧТЁН","НЕ УЧТЁН","НЕ УЧТЁН","НЕ УЧТЁН","НЕ УЧТЁН","НЕ УЧТЁН","НЕ УЧТЁН","НЕ УЧТЁН","НЕ УЧТЁН","НЕ УЧТЁН","НЕ УЧТЁН","НЕ УЧТЁН","НЕ УЧТЁН","НЕ УЧТЁН","НЕ УЧТЁН","НЕ УЧТЁН","НЕ УЧТЁН","НЕ УЧТЁН","НЕ УЧТЁН","НЕ УЧТЁН","НЕ УЧТЁН","НЕ УЧТЁН","НЕ УЧТЁН","НЕ УЧТЁН","НЕ УЧТЁН","НЕ УЧТЁН","НЕ УЧТЁН","НЕ УЧТЁН","НЕ УЧТЁН","НЕ УЧТЁН","НЕ УЧТЁН","НЕ УЧТЁН","НЕ УЧТЁН","НЕ УЧТЁН","НЕ УЧТЁН","НЕ УЧТЁН","НЕ УЧТЁН","НЕ УЧТЁН","НЕ УЧТЁН","НЕ УЧТЁН","НЕ УЧТЁН","НЕ УЧТЁН","НЕ УЧТЁН","НЕ УЧТЁН","НЕ УЧТЁН","НЕ УЧТЁН","НЕ УЧТЁН","НЕ УЧТЁН","НЕ УЧТЁН","НЕ УЧТЁН","НЕ УЧТЁН","НЕ УЧТЁН","НЕ УЧТЁН","НЕ УЧТЁН","НЕ УЧТЁН","НЕ УЧТЁН","НЕ УЧТЁН","НЕ УЧТЁН","НЕ УЧТЁН","НЕ УЧТЁН","НЕ УЧТЁН","НЕ УЧТЁН","НЕ УЧТЁН","НЕ УЧТЁН","НЕ УЧТЁН","НЕ УЧТЁН","НЕ УЧТЁН","НЕ УЧТЁН","НЕ УЧТЁН","НЕ УЧТЁН","НЕ УЧТЁН","НЕ УЧТЁН","НЕ УЧТЁН","НЕ УЧТЁН","НЕ УЧТЁН","НЕ УЧТЁН","НЕ УЧТЁН","НЕ УЧТЁН","НЕ УЧТЁН","НЕ УЧТЁН","НЕ УЧТЁН","НЕ УЧТЁН","НЕ УЧТЁН","НЕ УЧТЁН","НЕ УЧТЁН","НЕ УЧТЁН","НЕ УЧТЁН","НЕ УЧТЁН","НЕ УЧТЁН","НЕ УЧТЁН","НЕ УЧТЁН","НЕ УЧТЁН","НЕ УЧТЁН","НЕ УЧТЁН","НЕ УЧТЁН","НЕ УЧТЁН","НЕ УЧТЁН","НЕ УЧТЁН","НЕ УЧТЁН","НЕ УЧТЁН","НЕ УЧТЁН","НЕ УЧТЁН","НЕ УЧТЁН","НЕ УЧТЁН","НЕ УЧТЁН","НЕ УЧТЁН","НЕ УЧТЁН","НЕ УЧТЁН","НЕ УЧТЁН","НЕ УЧТЁН","НЕ УЧТЁН","НЕ УЧТЁН","НЕ УЧТЁН","НЕ УЧТЁН","НЕ УЧТЁН","НЕ УЧТЁН","НЕ УЧТЁН","НЕ УЧТЁН","НЕ УЧТЁН","НЕ УЧТЁН","НЕ УЧТЁН","НЕ УЧТЁН","НЕ УЧТЁН","НЕ УЧТЁН","НЕ УЧТЁН","НЕ УЧТЁН","НЕ УЧТЁН","НЕ УЧТЁН","НЕ УЧТЁН","НЕ УЧТЁН","НЕ УЧТЁН","НЕ УЧТЁН","НЕ УЧТЁН","НЕ УЧТЁН","НЕ УЧТЁН","НЕ УЧТЁН","НЕ УЧТЁН","НЕ УЧТЁН","НЕ УЧТЁН","НЕ УЧТЁН","НЕ УЧТЁН","НЕ УЧТЁН","НЕ УЧТЁН","НЕ УЧТЁН","НЕ УЧТЁН","НЕ УЧТЁН","НЕ УЧТЁН","НЕ УЧТЁН","НЕ УЧТЁН","НЕ УЧТЁН","НЕ УЧТЁН","НЕ УЧТЁН","НЕ УЧТЁН","НЕ УЧТЁН","НЕ УЧТЁН","НЕ УЧТЁН","НЕ УЧТЁН","НЕ УЧТЁН","НЕ УЧТЁН","НЕ УЧТЁН","НЕ УЧТЁН","НЕ УЧТЁН","НЕ УЧТЁН","НЕ УЧТЁН","НЕ УЧТЁН","НЕ УЧТЁН","НЕ УЧТЁН","НЕ УЧТЁН","НЕ УЧТЁН","НЕ УЧТЁН","НЕ УЧТЁН","НЕ УЧТЁН","НЕ УЧТЁН","НЕ УЧТЁН","НЕ УЧТЁН","НЕ УЧТЁН","НЕ УЧТЁН","НЕ УЧТЁН","НЕ УЧТЁН","НЕ УЧТЁН","НЕ УЧТЁН","НЕ УЧТЁН","НЕ УЧТЁН","НЕ УЧТЁН","НЕ УЧТЁН","НЕ УЧТЁН","НЕ УЧТЁН","НЕ УЧТЁН","НЕ УЧТЁН","НЕ УЧТЁН","НЕ УЧТЁН","НЕ УЧТЁН","НЕ УЧТЁН","НЕ УЧТЁН","НЕ УЧТЁН","НЕ УЧТЁН","НЕ УЧТЁН","НЕ УЧТЁН","НЕ УЧТЁН","НЕ УЧТЁН","НЕ УЧТЁН","НЕ УЧТЁН","НЕ УЧТЁН","НЕ УЧТЁН","НЕ УЧТЁН","НЕ УЧТЁН","НЕ УЧТЁН","НЕ УЧТЁН","НЕ УЧТЁН","НЕ УЧТЁН","НЕ УЧТЁН","НЕ УЧТЁН","НЕ УЧТЁН","НЕ УЧТЁН","НЕ УЧТЁН","НЕ УЧТЁН","НЕ УЧТЁН","НЕ УЧТЁН","НЕ УЧТЁН","НЕ УЧТЁН","НЕ УЧТЁН","НЕ УЧТЁН","НЕ УЧТЁН","НЕ УЧТЁН","НЕ УЧТЁН","НЕ УЧТЁН","НЕ УЧТЁН","НЕ УЧТЁН","НЕ УЧТЁН","НЕ УЧТЁН","НЕ УЧТЁН","НЕ УЧТЁН","НЕ УЧТЁН","НЕ УЧТЁН","НЕ УЧТЁН","НЕ УЧТЁН","НЕ УЧТЁН","НЕ УЧТЁН","НЕ УЧТЁН","НЕ УЧТЁН","НЕ УЧТЁН","НЕ УЧТЁН","НЕ УЧТЁН","НЕ УЧТЁН","НЕ УЧТЁН","НЕ УЧТЁН","НЕ УЧТЁН","НЕ УЧТЁН","НЕ УЧТЁН","НЕ УЧТЁН","НЕ УЧТЁН","НЕ УЧТЁН","НЕ УЧТЁН","НЕ УЧТЁН","НЕ УЧТЁН","НЕ УЧТЁН","НЕ УЧТЁН","НЕ УЧТЁН","НЕ УЧТЁН","НЕ УЧТЁН","НЕ УЧТЁН","НЕ УЧТЁН","НЕ УЧТЁН","НЕ УЧТЁН","НЕ УЧТЁН","НЕ УЧТЁН","НЕ УЧТЁН","НЕ УЧТЁН","НЕ УЧТЁН","НЕ УЧТЁН","НЕ УЧТЁН","НЕ УЧТЁН","НЕ УЧТЁН","НЕ УЧТЁН","НЕ УЧТЁН","НЕ УЧТЁН","НЕ УЧТЁН","НЕ УЧТЁН","НЕ УЧТЁН","НЕ УЧТЁН","НЕ УЧТЁН","НЕ УЧТЁН","НЕ УЧТЁН","НЕ УЧТЁН","НЕ УЧТЁН","НЕ УЧТЁН","НЕ УЧТЁН","НЕ УЧТЁН","НЕ УЧТЁН","НЕ УЧТЁН","НЕ УЧТЁН","НЕ УЧТЁН","НЕ УЧТЁН","НЕ УЧТЁН","НЕ УЧТЁН","НЕ УЧТЁН","НЕ УЧТЁН","НЕ УЧТЁН","НЕ УЧТЁН","НЕ УЧТЁН","НЕ УЧТЁН","НЕ УЧТЁН","НЕ УЧТЁН","НЕ УЧТЁН","НЕ УЧТЁН","НЕ УЧТЁН","НЕ УЧТЁН","НЕ УЧТЁН","НЕ УЧТЁН","НЕ УЧТЁН","НЕ УЧТЁН","НЕ УЧТЁН","НЕ УЧТЁН","НЕ УЧТЁН","НЕ УЧТЁН","НЕ УЧТЁН","НЕ УЧТЁН","НЕ УЧТЁН","НЕ УЧТЁН","НЕ УЧТЁН","НЕ УЧТЁН","НЕ УЧТЁН","НЕ УЧТЁН","НЕ УЧТЁН","НЕ УЧТЁН","НЕ УЧТЁН","НЕ УЧТЁН","НЕ УЧТЁН","НЕ УЧТЁН","НЕ УЧТЁН","НЕ УЧТЁН","НЕ УЧТЁН","НЕ УЧТЁН","НЕ УЧТЁН","НЕ УЧТЁН","НЕ УЧТЁН","НЕ УЧТЁН","НЕ УЧТЁН","НЕ УЧТЁН","НЕ УЧТЁН","НЕ УЧТЁН","НЕ УЧТЁН","НЕ УЧТЁН","НЕ УЧТЁН","НЕ УЧТЁН","НЕ УЧТЁН","НЕ УЧТЁН","НЕ УЧТЁН","НЕ УЧТЁН","НЕ УЧТЁН","НЕ УЧТЁН","НЕ УЧТЁН","НЕ УЧТЁН","НЕ УЧТЁН","НЕ УЧТЁН","НЕ УЧТЁН","НЕ УЧТЁН","НЕ УЧТЁН","НЕ УЧТЁН","НЕ УЧТЁН","НЕ УЧТЁН","НЕ УЧТЁН","НЕ УЧТЁН","НЕ УЧТЁН","НЕ УЧТЁН","НЕ УЧТЁН","НЕ УЧТЁН","НЕ УЧТЁН","НЕ УЧТЁН","НЕ УЧТЁН","НЕ УЧТЁН","НЕ УЧТЁН","НЕ УЧТЁН","НЕ УЧТЁН","НЕ УЧТЁН","НЕ УЧТЁН","НЕ УЧТЁН","НЕ УЧТЁН","НЕ УЧТЁН","НЕ УЧТЁН","НЕ УЧТЁН","НЕ УЧТЁН","НЕ УЧТЁН","НЕ УЧТЁН","НЕ УЧТЁН","НЕ УЧТЁН","НЕ УЧТЁН","НЕ УЧТЁН","НЕ УЧТЁН","НЕ УЧТЁН","НЕ УЧТЁН","НЕ УЧТЁН","НЕ УЧТЁН","НЕ УЧТЁН","НЕ УЧТЁН","НЕ УЧТЁН","НЕ УЧТЁН","НЕ УЧТЁН","НЕ УЧТЁН","НЕ УЧТЁН","НЕ УЧТЁН","НЕ УЧТЁН","НЕ УЧТЁН","НЕ УЧТЁН","НЕ УЧТЁН","НЕ УЧТЁН","НЕ УЧТЁН","НЕ УЧТЁН","НЕ УЧТЁН","НЕ УЧТЁН","НЕ УЧТЁН","НЕ УЧТЁН","НЕ УЧТЁН","НЕ УЧТЁН","НЕ УЧТЁН","НЕ УЧТЁН","НЕ УЧТЁН","НЕ УЧТЁН","НЕ УЧТЁН","НЕ УЧТЁН","НЕ УЧТЁН","НЕ УЧТЁН","НЕ УЧТЁН","НЕ УЧТЁН","НЕ УЧТЁН","НЕ УЧТЁН","НЕ УЧТЁН","НЕ УЧТЁН","НЕ УЧТЁН","НЕ УЧТЁН","НЕ УЧТЁН","НЕ УЧТЁН","НЕ УЧТЁН","НЕ УЧТЁН","НЕ УЧТЁН","НЕ УЧТЁН","НЕ УЧТЁН","НЕ УЧТЁН","НЕ УЧТЁН","НЕ УЧТЁН","НЕ УЧТЁН","НЕ УЧТЁН","НЕ УЧТЁН","НЕ УЧТЁН","НЕ УЧТЁН","НЕ УЧТЁН","НЕ УЧТЁН","НЕ УЧТЁН","НЕ УЧТЁН","НЕ УЧТЁН","НЕ УЧТЁН","НЕ УЧТЁН","НЕ УЧТЁН","НЕ УЧТЁН","НЕ УЧТЁН","НЕ УЧТЁН","НЕ УЧТЁН","НЕ УЧТЁН","НЕ УЧТЁН","НЕ УЧТЁН","НЕ УЧТЁН","НЕ УЧТЁН","НЕ УЧТЁН","НЕ УЧТЁН","НЕ УЧТЁН","НЕ УЧТЁН","НЕ УЧТЁН","НЕ УЧТЁН","НЕ УЧТЁН","НЕ УЧТЁН","НЕ УЧТЁН","НЕ УЧТЁН","НЕ УЧТЁН","НЕ УЧТЁН","НЕ УЧТЁН","НЕ УЧТЁН","НЕ УЧТЁН","НЕ УЧТЁН","НЕ УЧТЁН","НЕ УЧТЁН","НЕ УЧТЁН","НЕ УЧТЁН","НЕ УЧТЁН","НЕ УЧТЁН","НЕ УЧТЁН","НЕ УЧТЁН","НЕ УЧТЁН","НЕ УЧТЁН","НЕ УЧТЁН","НЕ УЧТЁН","НЕ УЧТЁН","НЕ УЧТЁН","НЕ УЧТЁН","НЕ УЧТЁН","НЕ УЧТЁН","НЕ УЧТЁН","НЕ УЧТЁН","НЕ УЧТЁН","НЕ УЧТЁН","НЕ УЧТЁН","НЕ УЧТЁН","НЕ УЧТЁН","НЕ УЧТЁН","НЕ УЧТЁН","НЕ УЧТЁН","НЕ УЧТЁН","НЕ УЧТЁН","НЕ УЧТЁН","НЕ УЧТЁН","НЕ УЧТЁН","НЕ УЧТЁН","НЕ УЧТЁН","НЕ УЧТЁН","НЕ УЧТЁН","НЕ УЧТЁН","НЕ УЧТЁН","НЕ УЧТЁН","НЕ УЧТЁН","НЕ УЧТЁН","НЕ УЧТЁН","НЕ УЧТЁН","НЕ УЧТЁН","НЕ УЧТЁН","НЕ УЧТЁН","НЕ УЧТЁН","НЕ УЧТЁН","НЕ УЧТЁН","НЕ УЧТЁН","НЕ УЧТЁН","НЕ УЧТЁН","НЕ УЧТЁН","НЕ УЧТЁН","НЕ УЧТЁН","НЕ УЧТЁН","НЕ УЧТЁН","НЕ УЧТЁН","НЕ УЧТЁН","НЕ УЧТЁН","НЕ УЧТЁН","НЕ УЧТЁН","НЕ УЧТЁН","НЕ УЧТЁН","НЕ УЧТЁН","НЕ УЧТЁН","НЕ УЧТЁН","НЕ УЧТЁН","НЕ УЧТЁН","НЕ УЧТЁН","НЕ УЧТЁН","НЕ УЧТЁН","НЕ УЧТЁН","НЕ УЧТЁН","НЕ УЧТЁН","НЕ УЧТЁН","НЕ УЧТЁН","НЕ УЧТЁН","НЕ УЧТЁН","НЕ УЧТЁН","НЕ УЧТЁН","НЕ УЧТЁН","НЕ УЧТЁН","НЕ УЧТЁН","НЕ УЧТЁН","НЕ УЧТЁН","НЕ УЧТЁН","НЕ УЧТЁН","НЕ УЧТЁН","НЕ УЧТЁН","НЕ УЧТЁН","НЕ УЧТЁН","НЕ УЧТЁН","НЕ УЧТЁН","НЕ УЧТЁН","НЕ УЧТЁН","НЕ УЧТЁН","НЕ УЧТЁН","НЕ УЧТЁН","НЕ УЧТЁН","НЕ УЧТЁН","НЕ УЧТЁН","НЕ УЧТЁН","НЕ УЧТЁН","НЕ УЧТЁН","НЕ УЧТЁН","НЕ УЧТЁН","НЕ УЧТЁН","НЕ УЧТЁН","НЕ УЧТЁН","НЕ УЧТЁН","НЕ УЧТЁН","НЕ УЧТЁН","НЕ УЧТЁН","НЕ УЧТЁН","НЕ УЧТЁН","НЕ УЧТЁН","НЕ УЧТЁН","НЕ УЧТЁН","НЕ УЧТЁН","НЕ УЧТЁН","НЕ УЧТЁН","НЕ УЧТЁН","НЕ УЧТЁН","НЕ УЧТЁН","НЕ УЧТЁН","НЕ УЧТЁН","НЕ УЧТЁН","НЕ УЧТЁН","НЕ УЧТЁН","НЕ УЧТЁН","НЕ УЧТЁН","НЕ УЧТЁН","НЕ УЧТЁН","НЕ УЧТЁН","НЕ УЧТЁН","НЕ УЧТЁН","НЕ УЧТЁН","НЕ УЧТЁН","НЕ УЧТЁН","НЕ УЧТЁН","НЕ УЧТЁН","НЕ УЧТЁН","НЕ УЧТЁН","НЕ УЧТЁН","НЕ УЧТЁН","НЕ УЧТЁН","НЕ УЧТЁН","НЕ УЧТЁН","НЕ УЧТЁН","НЕ УЧТЁН","НЕ УЧТЁН","НЕ УЧТЁН","НЕ УЧТЁН","НЕ УЧТЁН","НЕ УЧТЁН","НЕ УЧТЁН","НЕ УЧТЁН","НЕ УЧТЁН","НЕ УЧТЁН","НЕ УЧТЁН","НЕ УЧТЁН","НЕ УЧТЁН","НЕ УЧТЁН","НЕ УЧТЁН","НЕ УЧТЁН","НЕ УЧТЁН","НЕ УЧТЁН","НЕ УЧТЁН","НЕ УЧТЁН","НЕ УЧТЁН","НЕ УЧТЁН","НЕ УЧТЁН","НЕ УЧТЁН","НЕ УЧТЁН","НЕ УЧТЁН","НЕ УЧТЁН","НЕ УЧТЁН","НЕ УЧТЁН","НЕ УЧТЁН","НЕ УЧТЁН","НЕ УЧТЁН","НЕ УЧТЁН","НЕ УЧТЁН","НЕ УЧТЁН","НЕ УЧТЁН","НЕ УЧТЁН","НЕ УЧТЁН","НЕ УЧТЁН","НЕ УЧТЁН","НЕ УЧТЁН","НЕ УЧТЁН","НЕ УЧТЁН","НЕ УЧТЁН","НЕ УЧТЁН","НЕ УЧТЁН","НЕ УЧТЁН","НЕ УЧТЁН","НЕ УЧТЁН","НЕ УЧТЁН","НЕ УЧТЁН","НЕ УЧТЁН","НЕ УЧТЁН","НЕ УЧТЁН","НЕ УЧТЁН","НЕ УЧТЁН","НЕ УЧТЁН","НЕ УЧТЁН","НЕ УЧТЁН","НЕ УЧТЁН","НЕ УЧТЁН","НЕ УЧТЁН","НЕ УЧТЁН","НЕ УЧТЁН","НЕ УЧТЁН","НЕ УЧТЁН","НЕ УЧТЁН","НЕ УЧТЁН","НЕ УЧТЁН","НЕ УЧТЁН","НЕ УЧТЁН","НЕ УЧТЁН","НЕ УЧТЁН","НЕ УЧТЁН","НЕ УЧТЁН","НЕ УЧТЁН","НЕ УЧТЁН","НЕ УЧТЁН","НЕ УЧТЁН","НЕ УЧТЁН","НЕ УЧТЁН","НЕ УЧТЁН","НЕ УЧТЁН","НЕ УЧТЁН","НЕ УЧТЁН","НЕ УЧТЁН","НЕ УЧТЁН","НЕ УЧТЁН","НЕ УЧТЁН","НЕ УЧТЁН","НЕ УЧТЁН","НЕ УЧТЁН","НЕ УЧТЁН","НЕ УЧТЁН","НЕ УЧТЁН","НЕ УЧТЁН","НЕ УЧТЁН","НЕ УЧТЁН","НЕ УЧТЁН","НЕ УЧТЁН","НЕ УЧТЁН","НЕ УЧТЁН","НЕ УЧТЁН","НЕ УЧТЁН","НЕ УЧТЁН","НЕ УЧТЁН","НЕ УЧТЁН","НЕ УЧТЁН","НЕ УЧТЁН","НЕ УЧТЁН","НЕ УЧТЁН","НЕ УЧТЁН","НЕ УЧТЁН","НЕ УЧТЁН","НЕ УЧТЁН","НЕ УЧТЁН","НЕ УЧТЁН","НЕ УЧТЁН","НЕ УЧТЁН","НЕ УЧТЁН","НЕ УЧТЁН","НЕ УЧТЁН","НЕ УЧТЁН","НЕ УЧТЁН","НЕ УЧТЁН","НЕ УЧТЁН","НЕ УЧТЁН","НЕ УЧТЁН","НЕ УЧТЁН","НЕ УЧТЁН","НЕ УЧТЁН","НЕ УЧТЁН","НЕ УЧТЁН","НЕ УЧТЁН","НЕ УЧТЁН","НЕ УЧТЁН","НЕ УЧТЁН","НЕ УЧТЁН","НЕ УЧТЁН","НЕ УЧТЁН","НЕ УЧТЁН","НЕ УЧТЁН","НЕ УЧТЁН","НЕ УЧТЁН","НЕ УЧТЁН","НЕ УЧТЁН","НЕ УЧТЁН","НЕ УЧТЁН","НЕ УЧТЁН","НЕ УЧТЁН","НЕ УЧТЁН","НЕ УЧТЁН","НЕ УЧТЁН","НЕ УЧТЁН","НЕ УЧТЁН","НЕ УЧТЁН","НЕ УЧТЁН","НЕ УЧТЁН","НЕ УЧТЁН","НЕ УЧТЁН","НЕ УЧТЁН","НЕ УЧТЁН","НЕ УЧТЁН","НЕ УЧТЁН","НЕ УЧТЁН","НЕ УЧТЁН","НЕ УЧТЁН","НЕ УЧТЁН","НЕ УЧТЁН","НЕ УЧТЁН","НЕ УЧТЁН","НЕ УЧТЁН","НЕ УЧТЁН","НЕ УЧТЁН","НЕ УЧТЁН","НЕ УЧТЁН","НЕ УЧТЁН","НЕ УЧТЁН","НЕ УЧТЁН","НЕ УЧТЁН","НЕ УЧТЁН","НЕ УЧТЁН","НЕ УЧТЁН","НЕ УЧТЁН","НЕ УЧТЁН","НЕ УЧТЁН","НЕ УЧТЁН","НЕ УЧТЁН","НЕ УЧТЁН","НЕ УЧТЁН","НЕ УЧТЁН","НЕ УЧТЁН","НЕ УЧТЁН","НЕ УЧТЁН","НЕ УЧТЁН","НЕ УЧТЁН","НЕ УЧТЁН","НЕ УЧТЁН","НЕ УЧТЁН","НЕ УЧТЁН","НЕ УЧТЁН","НЕ УЧТЁН","НЕ УЧТЁН","НЕ УЧТЁН","НЕ УЧТЁН","НЕ УЧТЁН","НЕ УЧТЁН","НЕ УЧТЁН","НЕ УЧТЁН","НЕ УЧТЁН","НЕ УЧТЁН","НЕ УЧТЁН","НЕ УЧТЁН","НЕ УЧТЁН","НЕ УЧТЁН","НЕ УЧТЁН","НЕ УЧТЁН","НЕ УЧТЁН","НЕ УЧТЁН","НЕ УЧТЁН","НЕ УЧТЁН","НЕ УЧТЁН","НЕ УЧТЁН","НЕ УЧТЁН","НЕ УЧТЁН","НЕ УЧТЁН","НЕ УЧТЁН","НЕ УЧТЁН","НЕ УЧТЁН","НЕ УЧТЁН","НЕ УЧТЁН","НЕ УЧТЁН","НЕ УЧТЁН","НЕ УЧТЁН","НЕ УЧТЁН","НЕ УЧТЁН","НЕ УЧТЁН","НЕ УЧТЁН","НЕ УЧТЁН","НЕ УЧТЁН","НЕ УЧТЁН","НЕ УЧТЁН","НЕ УЧТЁН","НЕ УЧТЁН","НЕ УЧТЁН","НЕ УЧТЁН","НЕ УЧТЁН","НЕ УЧТЁН","НЕ УЧТЁН","НЕ УЧТЁН","НЕ УЧТЁН","НЕ УЧТЁН","НЕ УЧТЁН","НЕ УЧТЁН","НЕ УЧТЁН","НЕ УЧТЁН","НЕ УЧТЁН","НЕ УЧТЁН","НЕ УЧТЁН","НЕ УЧТЁН","НЕ УЧТЁН","НЕ УЧТЁН","НЕ УЧТЁН","НЕ УЧТЁН","НЕ УЧТЁН","НЕ УЧТЁН","НЕ УЧТЁН","НЕ УЧТЁН","НЕ УЧТЁН","НЕ УЧТЁН","НЕ УЧТЁН","НЕ УЧТЁН","НЕ УЧТЁН","НЕ УЧТЁН","НЕ УЧТЁН","НЕ УЧТЁН","НЕ УЧТЁН","НЕ УЧТЁН","НЕ УЧТЁН","НЕ УЧТЁН","НЕ УЧТЁН","НЕ УЧТЁН","НЕ УЧТЁН","НЕ УЧТЁН","НЕ УЧТЁН","НЕ УЧТЁН","НЕ УЧТЁН","НЕ УЧТЁН","НЕ УЧТЁН","НЕ УЧТЁН","НЕ УЧТЁН","НЕ УЧТЁН","НЕ УЧТЁН","НЕ УЧТЁН","НЕ УЧТЁН","НЕ УЧТЁН","НЕ УЧТЁН","НЕ УЧТЁН","НЕ УЧТЁН","НЕ УЧТЁН","НЕ УЧТЁН","НЕ УЧТЁН","НЕ УЧТЁН","НЕ УЧТЁН","НЕ УЧТЁН","НЕ УЧТЁН","НЕ УЧТЁН","НЕ УЧТЁН","НЕ УЧТЁН","НЕ УЧТЁН","НЕ УЧТЁН","НЕ УЧТЁН","НЕ УЧТЁН","НЕ УЧТЁН","НЕ УЧТЁН","НЕ УЧТЁН","НЕ УЧТЁН","НЕ УЧТЁН","НЕ УЧТЁН","НЕ УЧТЁН","НЕ УЧТЁН","НЕ УЧТЁН","НЕ УЧТЁН","НЕ УЧТЁН","НЕ УЧТЁН","НЕ УЧТЁН","НЕ УЧТЁН","НЕ УЧТЁН","НЕ УЧТЁН","НЕ УЧТЁН","НЕ УЧТЁН","НЕ УЧТЁН","НЕ УЧТЁН","НЕ УЧТЁН","НЕ УЧТЁН","НЕ УЧТЁН","НЕ УЧТЁН","НЕ УЧТЁН","НЕ УЧТЁН","НЕ УЧТЁН","НЕ УЧТЁН","НЕ УЧТЁН","НЕ УЧТЁН","НЕ УЧТЁН","НЕ УЧТЁН","НЕ УЧТЁН","НЕ УЧТЁН","НЕ УЧТЁН","НЕ УЧТЁН","НЕ УЧТЁН","НЕ УЧТЁН","НЕ УЧТЁН","НЕ УЧТЁН","НЕ УЧТЁН","НЕ УЧТЁН","НЕ УЧТЁН","НЕ УЧТЁН","НЕ УЧТЁН","НЕ УЧТЁН","НЕ УЧТЁН","НЕ УЧТЁН","НЕ УЧТЁН","НЕ УЧТЁН","НЕ УЧТЁН","НЕ УЧТЁН","НЕ УЧТЁН","НЕ УЧТЁН","НЕ УЧТЁН","НЕ УЧТЁН","НЕ УЧТЁН","НЕ УЧТЁН","НЕ УЧТЁН","НЕ УЧТЁН","НЕ УЧТЁН","НЕ УЧТЁН","НЕ УЧТЁН","НЕ УЧТЁН","НЕ УЧТЁН","НЕ УЧТЁН","НЕ УЧТЁН","НЕ УЧТЁН","НЕ УЧТЁН","НЕ УЧТЁН","НЕ УЧТЁН","НЕ УЧТЁН","НЕ УЧТЁН","НЕ УЧТЁН","НЕ УЧТЁН","НЕ УЧТЁН","НЕ УЧТЁН","НЕ УЧТЁН","НЕ УЧТЁН","НЕ УЧТЁН","НЕ УЧТЁН","НЕ УЧТЁН","НЕ УЧТЁН","НЕ УЧТЁН","НЕ УЧТЁН","НЕ УЧТЁН","НЕ УЧТЁН","НЕ УЧТЁН","НЕ УЧТЁН","НЕ УЧТЁН","НЕ УЧТЁН","НЕ УЧТЁН","НЕ УЧТЁН","НЕ УЧТЁН","НЕ УЧТЁН","НЕ УЧТЁН","НЕ УЧТЁН","НЕ УЧТЁН","НЕ УЧТЁН","НЕ УЧТЁН","НЕ УЧТЁН","НЕ УЧТЁН","НЕ УЧТЁН","НЕ УЧТЁН","НЕ УЧТЁН","НЕ УЧТЁН","НЕ УЧТЁН","НЕ УЧТЁН","НЕ УЧТЁН","НЕ УЧТЁН","НЕ УЧТЁН","НЕ УЧТЁН","НЕ УЧТЁН","НЕ УЧТЁН","НЕ УЧТЁН","НЕ УЧТЁН","НЕ УЧТЁН","НЕ УЧТЁН","НЕ УЧТЁН","НЕ УЧТЁН","НЕ УЧТЁН","НЕ УЧТЁН","НЕ УЧТЁН","НЕ УЧТЁН","НЕ УЧТЁН","НЕ УЧТЁН","НЕ УЧТЁН","НЕ УЧТЁН","НЕ УЧТЁН","НЕ УЧТЁН","НЕ УЧТЁН","НЕ УЧТЁН","НЕ УЧТЁН","НЕ УЧТЁН","НЕ УЧТЁН","НЕ УЧТЁН","НЕ УЧТЁН","НЕ УЧТЁН","НЕ УЧТЁН","НЕ УЧТЁН","НЕ УЧТЁН","НЕ УЧТЁН","НЕ УЧТЁН","НЕ УЧТЁН","НЕ УЧТЁН","НЕ УЧТЁН","НЕ УЧТЁН","НЕ УЧТЁН","НЕ УЧТЁН","НЕ УЧТЁН","НЕ УЧТЁН","НЕ УЧТЁН","НЕ УЧТЁН","НЕ УЧТЁН","НЕ УЧТЁН","НЕ УЧТЁН","НЕ УЧТЁН","НЕ УЧТЁН","НЕ УЧТЁН","НЕ УЧТЁН","НЕ УЧТЁН","НЕ УЧТЁН","НЕ УЧТЁН","НЕ УЧТЁН","НЕ УЧТЁН","НЕ УЧТЁН","НЕ УЧТЁН","НЕ УЧТЁН","НЕ УЧТЁН","НЕ УЧТЁН","НЕ УЧТЁН","НЕ УЧТЁН","НЕ УЧТЁН","НЕ УЧТЁН","НЕ УЧТЁН","НЕ УЧТЁН","НЕ УЧТЁН","НЕ УЧТЁН","НЕ УЧТЁН","НЕ УЧТЁН","НЕ УЧТЁН","НЕ УЧТЁН","НЕ УЧТЁН","НЕ УЧТЁН","НЕ УЧТЁН","НЕ УЧТЁН","НЕ УЧТЁН","НЕ УЧТЁН","НЕ УЧТЁН","НЕ УЧТЁН","НЕ УЧТЁН","НЕ УЧТЁН","НЕ УЧТЁН","НЕ УЧТЁН","НЕ УЧТЁН","НЕ УЧТЁН","НЕ УЧТЁН","НЕ УЧТЁН","НЕ УЧТЁН","НЕ УЧТЁН","НЕ УЧТЁН","НЕ УЧТЁН","НЕ УЧТЁН","НЕ УЧТЁН","НЕ УЧТЁН","НЕ УЧТЁН","НЕ УЧТЁН","НЕ УЧТЁН","НЕ УЧТЁН","НЕ УЧТЁН","НЕ УЧТЁН","НЕ УЧТЁН","НЕ УЧТЁН","НЕ УЧТЁН","НЕ УЧТЁН","НЕ УЧТЁН","НЕ УЧТЁН","НЕ УЧТЁН","НЕ УЧТЁН","НЕ УЧТЁН","НЕ УЧТЁН","НЕ УЧТЁН","НЕ УЧТЁН","НЕ УЧТЁН","НЕ УЧТЁН","НЕ УЧТЁН","НЕ УЧТЁН","НЕ УЧТЁН","НЕ УЧТЁН","НЕ УЧТЁН","НЕ УЧТЁН","НЕ УЧТЁН","НЕ УЧТЁН","НЕ УЧТЁН","НЕ УЧТЁН","НЕ УЧТЁН","НЕ УЧТЁН","НЕ УЧТЁН","НЕ УЧТЁН","НЕ УЧТЁН","НЕ УЧТЁН","НЕ УЧТЁН","НЕ УЧТЁН","НЕ УЧТЁН","НЕ УЧТЁН","НЕ УЧТЁН","НЕ УЧТЁН","НЕ УЧТЁН","НЕ УЧТЁН","НЕ УЧТЁН","НЕ УЧТЁН","НЕ УЧТЁН","НЕ УЧТЁН","НЕ УЧТЁН","НЕ УЧТЁН","НЕ УЧТЁН","НЕ УЧТЁН","НЕ УЧТЁН","НЕ УЧТЁН","НЕ УЧТЁН","НЕ УЧТЁН","НЕ УЧТЁН","НЕ УЧТЁН","НЕ УЧТЁН","НЕ УЧТЁН","НЕ УЧТЁН","НЕ УЧТЁН","НЕ УЧТЁН","НЕ УЧТЁН","НЕ УЧТЁН","НЕ УЧТЁН","НЕ УЧТЁН","НЕ УЧТЁН","НЕ УЧТЁН","НЕ УЧТЁН","НЕ УЧТЁН","НЕ УЧТЁН","НЕ УЧТЁН","НЕ УЧТЁН","НЕ УЧТЁН","НЕ УЧТЁН","НЕ УЧТЁН","НЕ УЧТЁН","НЕ УЧТЁН","НЕ УЧТЁН","НЕ УЧТЁН","НЕ УЧТЁН","НЕ УЧТЁН","НЕ УЧТЁН","НЕ УЧТЁН","НЕ УЧТЁН","НЕ УЧТЁН","НЕ УЧТЁН","НЕ УЧТЁН","НЕ УЧТЁН","НЕ УЧТЁН","НЕ УЧТЁН","НЕ УЧТЁН","НЕ УЧТЁН","НЕ УЧТЁН","НЕ УЧТЁН","НЕ УЧТЁН","НЕ УЧТЁН","НЕ УЧТЁН","НЕ УЧТЁН","НЕ УЧТЁН","НЕ УЧТЁН","НЕ УЧТЁН","НЕ УЧТЁН","НЕ УЧТЁН","НЕ УЧТЁН","НЕ УЧТЁН","НЕ УЧТЁН","НЕ УЧТЁН","НЕ УЧТЁН","НЕ УЧТЁН","НЕ УЧТЁН","НЕ УЧТЁН","НЕ УЧТЁН","НЕ УЧТЁН","НЕ УЧТЁН","НЕ УЧТЁН","НЕ УЧТЁН","НЕ УЧТЁН","НЕ УЧТЁН","НЕ УЧТЁН","НЕ УЧТЁН","НЕ УЧТЁН","НЕ УЧТЁН","НЕ УЧТЁН","НЕ УЧТЁН","НЕ УЧТЁН","НЕ УЧТЁН","НЕ УЧТЁН","НЕ УЧТЁН","НЕ УЧТЁН","НЕ УЧТЁН","НЕ УЧТЁН","НЕ УЧТЁН","НЕ УЧТЁН","НЕ УЧТЁН","НЕ УЧТЁН","НЕ УЧТЁН","НЕ УЧТЁН","НЕ УЧТЁН","НЕ УЧТЁН","НЕ УЧТЁН","НЕ УЧТЁН","НЕ УЧТЁН","НЕ УЧТЁН","НЕ УЧТЁН","НЕ УЧТЁН","НЕ УЧТЁН","НЕ УЧТЁН","НЕ УЧТЁН","НЕ УЧТЁН","НЕ УЧТЁН","НЕ УЧТЁН","НЕ УЧТЁН","НЕ УЧТЁН","НЕ УЧТЁН","НЕ УЧТЁН","НЕ УЧТЁН","НЕ УЧТЁН","НЕ УЧТЁН","НЕ УЧТЁН","НЕ УЧТЁН","НЕ УЧТЁН","НЕ УЧТЁН","НЕ УЧТЁН","НЕ УЧТЁН","НЕ УЧТЁН","НЕ УЧТЁН","НЕ УЧТЁН","НЕ УЧТЁН","НЕ УЧТЁН","НЕ УЧТЁН","НЕ УЧТЁН","НЕ УЧТЁН","НЕ УЧТЁН","НЕ УЧТЁН","НЕ УЧТЁН","НЕ УЧТЁН","НЕ УЧТЁН","НЕ УЧТЁН","НЕ УЧТЁН","НЕ УЧТЁН","НЕ УЧТЁН","НЕ УЧТЁН","НЕ УЧТЁН","НЕ УЧТЁН","НЕ УЧТЁН","НЕ УЧТЁН","НЕ УЧТЁН","НЕ УЧТЁН","НЕ УЧТЁН","НЕ УЧТЁН","НЕ УЧТЁН","НЕ УЧТЁН","НЕ УЧТЁН","НЕ УЧТЁН","НЕ УЧТЁН","НЕ УЧТЁН","НЕ УЧТЁН","НЕ УЧТЁН","НЕ УЧТЁН","НЕ УЧТЁН","НЕ УЧТЁН","НЕ УЧТЁН","НЕ УЧТЁН","НЕ УЧТЁН","НЕ УЧТЁН","НЕ УЧТЁН","НЕ УЧТЁН","НЕ УЧТЁН","НЕ УЧТЁН","НЕ УЧТЁН","НЕ УЧТЁН","НЕ УЧТЁН","НЕ УЧТЁН","НЕ УЧТЁН","НЕ УЧТЁН","НЕ УЧТЁН","НЕ УЧТЁН","НЕ УЧТЁН","НЕ УЧТЁН","НЕ УЧТЁН","НЕ УЧТЁН","НЕ УЧТЁН","НЕ УЧТЁН","НЕ УЧТЁН","НЕ УЧТЁН","НЕ УЧТЁН","НЕ УЧТЁН","НЕ УЧТЁН","НЕ УЧТЁН","НЕ УЧТЁН","НЕ УЧТЁН","НЕ УЧТЁН","НЕ УЧТЁН","НЕ УЧТЁН","НЕ УЧТЁН","НЕ УЧТЁН","НЕ УЧТЁН","НЕ УЧТЁН","НЕ УЧТЁН","НЕ УЧТЁН","НЕ УЧТЁН","НЕ УЧТЁН","НЕ УЧТЁН","НЕ УЧТЁН","НЕ УЧТЁН","НЕ УЧТЁН","НЕ УЧТЁН","НЕ УЧТЁН","НЕ УЧТЁН","НЕ УЧТЁН","НЕ УЧТЁН","НЕ УЧТЁН","НЕ УЧТЁН","НЕ УЧТЁН","НЕ УЧТЁН","НЕ УЧТЁН","НЕ УЧТЁН","НЕ УЧТЁН","НЕ УЧТЁН","НЕ УЧТЁН","НЕ УЧТЁН","НЕ УЧТЁН","НЕ УЧТЁН","НЕ УЧТЁН","НЕ УЧТЁН","НЕ УЧТЁН","НЕ УЧТЁН","НЕ УЧТЁН","НЕ УЧТЁН","НЕ УЧТЁН","НЕ УЧТЁН","НЕ УЧТЁН","НЕ УЧТЁН","НЕ УЧТЁН","НЕ УЧТЁН","НЕ УЧТЁН","НЕ УЧТЁН","НЕ УЧТЁН","НЕ УЧТЁН","НЕ УЧТЁН","НЕ УЧТЁН","НЕ УЧТЁН","НЕ УЧТЁН","НЕ УЧТЁН","НЕ УЧТЁН","НЕ УЧТЁН","НЕ УЧТЁН","НЕ УЧТЁН","НЕ УЧТЁН","НЕ УЧТЁН","НЕ УЧТЁН","НЕ УЧТЁН","НЕ УЧТЁН","НЕ УЧТЁН","НЕ УЧТЁН","НЕ УЧТЁН","НЕ УЧТЁН","НЕ УЧТЁН","НЕ УЧТЁН","НЕ УЧТЁН","НЕ УЧТЁН","НЕ УЧТЁН","НЕ УЧТЁН","НЕ УЧТЁН","НЕ УЧТЁН","НЕ УЧТЁН","НЕ УЧТЁН","НЕ УЧТЁН","НЕ УЧТЁН","НЕ УЧТЁН","НЕ УЧТЁН","НЕ УЧТЁН","НЕ УЧТЁН","НЕ УЧТЁН","НЕ УЧТЁН","НЕ УЧТЁН","НЕ УЧТЁН","НЕ УЧТЁН","НЕ УЧТЁН","НЕ УЧТЁН","НЕ УЧТЁН","НЕ УЧТЁН","НЕ УЧТЁН","НЕ УЧТЁН","НЕ УЧТЁН","НЕ УЧТЁН","НЕ УЧТЁН","НЕ УЧТЁН","НЕ УЧТЁН","НЕ УЧТЁН","НЕ УЧТЁН","НЕ УЧТЁН","НЕ УЧТЁН","НЕ УЧТЁН","НЕ УЧТЁН","НЕ УЧТЁН","НЕ УЧТЁН","НЕ УЧТЁН","НЕ УЧТЁН","НЕ УЧТЁН","НЕ УЧТЁН","НЕ УЧТЁН","НЕ УЧТЁН","НЕ УЧТЁН","НЕ УЧТЁН","НЕ УЧТЁН","НЕ УЧТЁН","НЕ УЧТЁН","НЕ УЧТЁН","НЕ УЧТЁН","НЕ УЧТЁН","НЕ УЧТЁН","НЕ УЧТЁН","НЕ УЧТЁН","НЕ УЧТЁН","НЕ УЧТЁН","НЕ УЧТЁН","НЕ УЧТЁН","НЕ УЧТЁН","НЕ УЧТЁН","НЕ УЧТЁН","НЕ УЧТЁН","НЕ УЧТЁН","НЕ УЧТЁН","НЕ УЧТЁН","НЕ УЧТЁН","НЕ УЧТЁН","НЕ УЧТЁН","НЕ УЧТЁН","НЕ УЧТЁН","НЕ УЧТЁН","НЕ УЧТЁН","НЕ УЧТЁН","НЕ УЧТЁН","НЕ УЧТЁН","НЕ УЧТЁН","НЕ УЧТЁН","НЕ УЧТЁН","НЕ УЧТЁН","НЕ УЧТЁН","НЕ УЧТЁН","НЕ УЧТЁН","НЕ УЧТЁН","НЕ УЧТЁН","НЕ УЧТЁН","НЕ УЧТЁН","НЕ УЧТЁН","НЕ УЧТЁН","НЕ УЧТЁН","НЕ УЧТЁН","НЕ УЧТЁН","НЕ УЧТЁН","НЕ УЧТЁН","НЕ УЧТЁН","НЕ УЧТЁН","НЕ УЧТЁН","НЕ УЧТЁН","НЕ УЧТЁН","НЕ УЧТЁН","НЕ УЧТЁН","НЕ УЧТЁН","НЕ УЧТЁН","НЕ УЧТЁН","НЕ УЧТЁН","НЕ УЧТЁН","НЕ УЧТЁН","НЕ УЧТЁН","НЕ УЧТЁН","НЕ УЧТЁН","НЕ УЧТЁН","НЕ УЧТЁН","НЕ УЧТЁН","НЕ УЧТЁН","НЕ УЧТЁН","НЕ УЧТЁН","НЕ УЧТЁН","НЕ УЧТЁН","НЕ УЧТЁН","НЕ УЧТЁН","НЕ УЧТЁН","НЕ УЧТЁН","НЕ УЧТЁН","НЕ УЧТЁН","НЕ УЧТЁН","НЕ УЧТЁН","НЕ УЧТЁН","НЕ УЧТЁН","НЕ УЧТЁН","НЕ УЧТЁН","НЕ УЧТЁН","НЕ УЧТЁН","НЕ УЧТЁН","НЕ УЧТЁН","НЕ УЧТЁН","НЕ УЧТЁН","НЕ УЧТЁН","НЕ УЧТЁН","НЕ УЧТЁН","НЕ УЧТЁН","НЕ УЧТЁН","НЕ УЧТЁН","НЕ УЧТЁН","НЕ УЧТЁН","НЕ УЧТЁН","НЕ УЧТЁН","НЕ УЧТЁН","НЕ УЧТЁН","НЕ УЧТЁН","НЕ УЧТЁН","НЕ УЧТЁН","НЕ УЧТЁН","НЕ УЧТЁН","НЕ УЧТЁН","НЕ УЧТЁН","НЕ УЧТЁН","НЕ УЧТЁН","НЕ УЧТЁН","НЕ УЧТЁН","НЕ УЧТЁН","НЕ УЧТЁН","НЕ УЧТЁН","НЕ УЧТЁН","НЕ УЧТЁН","НЕ УЧТЁН","НЕ УЧТЁН","НЕ УЧТЁН","НЕ УЧТЁН","НЕ УЧТЁН","НЕ УЧТЁН","НЕ УЧТЁН","НЕ УЧТЁН","НЕ УЧТЁН","НЕ УЧТЁН","НЕ УЧТЁН","НЕ УЧТЁН","НЕ УЧТЁН","НЕ УЧТЁН","НЕ УЧТЁН","НЕ УЧТЁН","НЕ УЧТЁН","НЕ УЧТЁН","НЕ УЧТЁН","НЕ УЧТЁН","НЕ УЧТЁН","НЕ УЧТЁН","НЕ УЧТЁН","НЕ УЧТЁН","НЕ УЧТЁН","НЕ УЧТЁН","НЕ УЧТЁН","НЕ УЧТЁН","НЕ УЧТЁН","НЕ УЧТЁН","НЕ УЧТЁН","НЕ УЧТЁН","НЕ УЧТЁН","НЕ УЧТЁН","НЕ УЧТЁН","НЕ УЧТЁН","НЕ УЧТЁН","НЕ УЧТЁН","НЕ УЧТЁН","НЕ УЧТЁН","НЕ УЧТЁН","НЕ УЧТЁН","НЕ УЧТЁН","НЕ УЧТЁН","НЕ УЧТЁН","НЕ УЧТЁН","НЕ УЧТЁН","НЕ УЧТЁН","НЕ УЧТЁН","НЕ УЧТЁН","НЕ УЧТЁН","НЕ УЧТЁН","НЕ УЧТЁН","НЕ УЧТЁН","НЕ УЧТЁН","НЕ УЧТЁН","НЕ УЧТЁН","НЕ УЧТЁН","НЕ УЧТЁН","НЕ УЧТЁН","НЕ УЧТЁН","НЕ УЧТЁН","НЕ УЧТЁН","НЕ УЧТЁН","НЕ УЧТЁН","НЕ УЧТЁН","НЕ УЧТЁН","НЕ УЧТЁН","НЕ УЧТЁН","НЕ УЧТЁН","НЕ УЧТЁН","НЕ УЧТЁН","НЕ УЧТЁН","НЕ УЧТЁН","НЕ УЧТЁН","НЕ УЧТЁН","НЕ УЧТЁН","НЕ УЧТЁН","НЕ УЧТЁН","НЕ УЧТЁН","НЕ УЧТЁН","НЕ УЧТЁН","НЕ УЧТЁН","НЕ УЧТЁН","НЕ УЧТЁН","НЕ УЧТЁН","НЕ УЧТЁН","НЕ УЧТЁН","НЕ УЧТЁН","НЕ УЧТЁН","НЕ УЧТЁН","НЕ УЧТЁН","НЕ УЧТЁН","НЕ УЧТЁН","НЕ УЧТЁН","НЕ УЧТЁН","НЕ УЧТЁН","НЕ УЧТЁН","НЕ УЧТЁН","НЕ УЧТЁН","НЕ УЧТЁН","НЕ УЧТЁН","НЕ УЧТЁН","НЕ УЧТЁН","НЕ УЧТЁН","НЕ УЧТЁН","НЕ УЧТЁН","НЕ УЧТЁН","НЕ УЧТЁН","НЕ УЧТЁН","НЕ УЧТЁН","НЕ УЧТЁН","НЕ УЧТЁН","НЕ УЧТЁН","НЕ УЧТЁН","НЕ УЧТЁН","НЕ УЧТЁН","НЕ УЧТЁН","НЕ УЧТЁН","НЕ УЧТЁН","НЕ УЧТЁН","НЕ УЧТЁН","НЕ УЧТЁН","НЕ УЧТЁН","НЕ УЧТЁН","НЕ УЧТЁН","НЕ УЧТЁН","НЕ УЧТЁН","НЕ УЧТЁН","НЕ УЧТЁН","НЕ УЧТЁН","НЕ УЧТЁН","НЕ УЧТЁН","НЕ УЧТЁН","НЕ УЧТЁН","НЕ УЧТЁН","НЕ УЧТЁН","НЕ УЧТЁН","НЕ УЧТЁН","НЕ УЧТЁН","НЕ УЧТЁН","НЕ УЧТЁН","НЕ УЧТЁН","НЕ УЧТЁН","НЕ УЧТЁН","НЕ УЧТЁН","НЕ УЧТЁН","НЕ УЧТЁН","НЕ УЧТЁН","НЕ УЧТЁН","НЕ УЧТЁН","НЕ УЧТЁН","НЕ УЧТЁН","НЕ УЧТЁН","НЕ УЧТЁН","НЕ УЧТЁН","НЕ УЧТЁН","НЕ УЧТЁН","НЕ УЧТЁН","НЕ УЧТЁН","НЕ УЧТЁН","НЕ УЧТЁН","НЕ УЧТЁН","НЕ УЧТЁН","НЕ УЧТЁН","НЕ УЧТЁН","НЕ УЧТЁН","НЕ УЧТЁН","НЕ УЧТЁН","НЕ УЧТЁН","НЕ УЧТЁН","НЕ УЧТЁН","НЕ УЧТЁН","НЕ УЧТЁН","НЕ УЧТЁН","НЕ УЧТЁН","НЕ УЧТЁН","НЕ УЧТЁН","НЕ УЧТЁН","НЕ УЧТЁН","НЕ УЧТЁН","НЕ УЧТЁН","НЕ УЧТЁН","НЕ УЧТЁН","НЕ УЧТЁН","НЕ УЧТЁН","НЕ УЧТЁН","НЕ УЧТЁН","НЕ УЧТЁН","НЕ УЧТЁН","НЕ УЧТЁН","НЕ УЧТЁН","НЕ УЧТЁН","НЕ УЧТЁН","НЕ УЧТЁН","НЕ УЧТЁН","НЕ УЧТЁН","НЕ УЧТЁН","НЕ УЧТЁН","НЕ УЧТЁН","НЕ УЧТЁН","НЕ УЧТЁН","НЕ УЧТЁН","НЕ УЧТЁН","НЕ УЧТЁН","НЕ УЧТЁН","НЕ УЧТЁН","НЕ УЧТЁН","НЕ УЧТЁН","НЕ УЧТЁН","НЕ УЧТЁН","НЕ УЧТЁН","НЕ УЧТЁН","НЕ УЧТЁН","НЕ УЧТЁН","НЕ УЧТЁН","НЕ УЧТЁН","НЕ УЧТЁН","НЕ УЧТЁН","НЕ УЧТЁН","НЕ УЧТЁН","НЕ УЧТЁН","НЕ УЧТЁН","НЕ УЧТЁН","НЕ УЧТЁН","НЕ УЧТЁН","НЕ УЧТЁН","НЕ УЧТЁН","НЕ УЧТЁН","НЕ УЧТЁН","НЕ УЧТЁН","НЕ УЧТЁН","НЕ УЧТЁН","НЕ УЧТЁН","НЕ УЧТЁН","НЕ УЧТЁН","НЕ УЧТЁН","НЕ УЧТЁН","НЕ УЧТЁН","НЕ УЧТЁН","НЕ УЧТЁН","НЕ УЧТЁН","НЕ УЧТЁН","НЕ УЧТЁН","НЕ УЧТЁН","НЕ УЧТЁН","НЕ УЧТЁН","НЕ УЧТЁН","НЕ УЧТЁН","НЕ УЧТЁН","НЕ УЧТЁН","НЕ УЧТЁН","НЕ УЧТЁН","НЕ УЧТЁН","НЕ УЧТЁН","НЕ УЧТЁН","НЕ УЧТЁН","НЕ УЧТЁН","НЕ УЧТЁН","НЕ УЧТЁН","НЕ УЧТЁН","НЕ УЧТЁН","НЕ УЧТЁН","НЕ УЧТЁН","НЕ УЧТЁН","НЕ УЧТЁН","НЕ УЧТЁН","НЕ УЧТЁН","НЕ УЧТЁН","НЕ УЧТЁН","НЕ УЧТЁН","НЕ УЧТЁН","НЕ УЧТЁН","НЕ УЧТЁН","НЕ УЧТЁН","НЕ УЧТЁН","НЕ УЧТЁН","НЕ УЧТЁН","НЕ УЧТЁН","НЕ УЧТЁН","НЕ УЧТЁН","НЕ УЧТЁН","НЕ УЧТЁН","НЕ УЧТЁН","НЕ УЧТЁН","НЕ УЧТЁН","НЕ УЧТЁН","НЕ УЧТЁН","НЕ УЧТЁН","НЕ УЧТЁН","НЕ УЧТЁН","НЕ УЧТЁН","НЕ УЧТЁН","НЕ УЧТЁН","НЕ УЧТЁН","НЕ УЧТЁН","НЕ УЧТЁН","НЕ УЧТЁН","НЕ УЧТЁН","НЕ УЧТЁН","НЕ УЧТЁН","НЕ УЧТЁН","НЕ УЧТЁН","НЕ УЧТЁН","НЕ УЧТЁН","НЕ УЧТЁН","НЕ УЧТЁН","НЕ УЧТЁН","НЕ УЧТЁН","НЕ УЧТЁН","НЕ УЧТЁН","НЕ УЧТЁН","НЕ УЧТЁН","НЕ УЧТЁН","НЕ УЧТЁН","НЕ УЧТЁН","НЕ УЧТЁН","НЕ УЧТЁН","НЕ УЧТЁН","НЕ УЧТЁН","НЕ УЧТЁН","НЕ УЧТЁН","НЕ УЧТЁН","НЕ УЧТЁН","НЕ УЧТЁН","НЕ УЧТЁН","НЕ УЧТЁН","НЕ УЧТЁН","НЕ УЧТЁН","НЕ УЧТЁН","НЕ УЧТЁН","НЕ УЧТЁН","НЕ УЧТЁН","НЕ УЧТЁН","НЕ УЧТЁН","НЕ УЧТЁН","НЕ УЧТЁН","НЕ УЧТЁН","НЕ УЧТЁН","НЕ УЧТЁН","НЕ УЧТЁН","НЕ УЧТЁН","НЕ УЧТЁН","НЕ УЧТЁН","НЕ УЧТЁН","НЕ УЧТЁН","НЕ УЧТЁН","НЕ УЧТЁН","НЕ УЧТЁН","НЕ УЧТЁН","НЕ УЧТЁН","НЕ УЧТЁН","НЕ УЧТЁН","НЕ УЧТЁН","НЕ УЧТЁН","НЕ УЧТЁН","НЕ УЧТЁН","НЕ УЧТЁН","НЕ УЧТЁН","НЕ УЧТЁН","НЕ УЧТЁН","НЕ УЧТЁН","НЕ УЧТЁН","НЕ УЧТЁН","НЕ УЧТЁН","НЕ УЧТЁН","НЕ УЧТЁН","НЕ УЧТЁН","НЕ УЧТЁН","НЕ УЧТЁН","НЕ УЧТЁН","НЕ УЧТЁН","НЕ УЧТЁН","НЕ УЧТЁН","НЕ УЧТЁН","НЕ УЧТЁН","НЕ УЧТЁН","НЕ УЧТЁН","НЕ УЧТЁН","НЕ УЧТЁН","НЕ УЧТЁН","НЕ УЧТЁН","НЕ УЧТЁН","НЕ УЧТЁН","НЕ УЧТЁН","НЕ УЧТЁН","НЕ УЧТЁН","НЕ УЧТЁН","НЕ УЧТЁН","НЕ УЧТЁН","НЕ УЧТЁН","НЕ УЧТЁН","НЕ УЧТЁН","НЕ УЧТЁН","НЕ УЧТЁН","НЕ УЧТЁН","НЕ УЧТЁН","НЕ УЧТЁН","НЕ УЧТЁН","НЕ УЧТЁН","НЕ УЧТЁН","НЕ УЧТЁН","НЕ УЧТЁН","НЕ УЧТЁН","НЕ УЧТЁН","НЕ УЧТЁН","НЕ УЧТЁН","НЕ УЧТЁН","НЕ УЧТЁН","НЕ УЧТЁН","НЕ УЧТЁН","НЕ УЧТЁН","НЕ УЧТЁН","НЕ УЧТЁН","НЕ УЧТЁН","НЕ УЧТЁН","НЕ УЧТЁН","НЕ УЧТЁН","НЕ УЧТЁН","НЕ УЧТЁН","НЕ УЧТЁН","НЕ УЧТЁН","НЕ УЧТЁН","НЕ УЧТЁН","НЕ УЧТЁН","НЕ УЧТЁН","НЕ УЧТЁН","НЕ УЧТЁН","НЕ УЧТЁН","НЕ УЧТЁН","НЕ УЧТЁН","НЕ УЧТЁН","НЕ УЧТЁН","НЕ УЧТЁН","НЕ УЧТЁН","НЕ УЧТЁН","НЕ УЧТЁН","НЕ УЧТЁН","НЕ УЧТЁН","НЕ УЧТЁН","НЕ УЧТЁН","НЕ УЧТЁН","НЕ УЧТЁН","НЕ УЧТЁН","НЕ УЧТЁН","НЕ УЧТЁН","НЕ УЧТЁН","НЕ УЧТЁН","НЕ УЧТЁН","НЕ УЧТЁН","НЕ УЧТЁН","НЕ УЧТЁН","НЕ УЧТЁН","НЕ УЧТЁН","НЕ УЧТЁН","НЕ УЧТЁН","НЕ УЧТЁН","НЕ УЧТЁН","НЕ УЧТЁН","НЕ УЧТЁН","НЕ УЧТЁН","НЕ УЧТЁН","НЕ УЧТЁН","НЕ УЧТЁН","НЕ УЧТЁН","НЕ УЧТЁН","НЕ УЧТЁН","НЕ УЧТЁН","НЕ УЧТЁН","НЕ УЧТЁН","НЕ УЧТЁН","НЕ УЧТЁН","НЕ УЧТЁН","НЕ УЧТЁН","НЕ УЧТЁН","НЕ УЧТЁН","НЕ УЧТЁН","НЕ УЧТЁН","НЕ УЧТЁН","НЕ УЧТЁН","НЕ УЧТЁН","НЕ УЧТЁН","НЕ УЧТЁН","НЕ УЧТЁН","НЕ УЧТЁН","НЕ УЧТЁН","НЕ УЧТЁН","НЕ УЧТЁН","НЕ УЧТЁН","НЕ УЧТЁН","НЕ УЧТЁН","НЕ УЧТЁН","НЕ УЧТЁН","НЕ УЧТЁН","НЕ УЧТЁН","НЕ УЧТЁН","НЕ УЧТЁН","НЕ УЧТЁН","НЕ УЧТЁН","НЕ УЧТЁН","НЕ УЧТЁН","НЕ УЧТЁН","НЕ УЧТЁН","НЕ УЧТЁН","НЕ УЧТЁН","НЕ УЧТЁН","НЕ УЧТЁН","НЕ УЧТЁН","НЕ УЧТЁН","НЕ УЧТЁН","НЕ УЧТЁН","НЕ УЧТЁН","НЕ УЧТЁН","НЕ УЧТЁН","НЕ УЧТЁН","НЕ УЧТЁН","НЕ УЧТЁН","НЕ УЧТЁН","НЕ УЧТЁН","НЕ УЧТЁН","НЕ УЧТЁН","НЕ УЧТЁН","НЕ УЧТЁН","НЕ УЧТЁН","НЕ УЧТЁН","НЕ УЧТЁН","НЕ УЧТЁН","НЕ УЧТЁН","НЕ УЧТЁН","НЕ УЧТЁН","НЕ УЧТЁН","НЕ УЧТЁН","НЕ УЧТЁН","НЕ УЧТЁН","НЕ УЧТЁН","НЕ УЧТЁН","НЕ УЧТЁН","НЕ УЧТЁН","НЕ УЧТЁН","НЕ УЧТЁН","НЕ УЧТЁН","НЕ УЧТЁН","НЕ УЧТЁН","НЕ УЧТЁН","НЕ УЧТЁН","НЕ УЧТЁН","НЕ УЧТЁН","НЕ УЧТЁН","НЕ УЧТЁН","НЕ УЧТЁН","НЕ УЧТЁН","НЕ УЧТЁН","НЕ УЧТЁН","НЕ УЧТЁН","НЕ УЧТЁН","НЕ УЧТЁН","НЕ УЧТЁН","НЕ УЧТЁН","НЕ УЧТЁН","НЕ УЧТЁН","НЕ УЧТЁН","НЕ УЧТЁН","НЕ УЧТЁН","НЕ УЧТЁН","НЕ УЧТЁН","НЕ УЧТЁН","НЕ УЧТЁН","НЕ УЧТЁН","НЕ УЧТЁН","НЕ УЧТЁН","НЕ УЧТЁН","НЕ УЧТЁН","НЕ УЧТЁН","НЕ УЧТЁН","НЕ УЧТЁН","НЕ УЧТЁН","НЕ УЧТЁН","НЕ УЧТЁН","НЕ УЧТЁН","НЕ УЧТЁН","НЕ УЧТЁН","НЕ УЧТЁН","НЕ УЧТЁН","НЕ УЧТЁН","НЕ УЧТЁН","НЕ УЧТЁН","НЕ УЧТЁН","НЕ УЧТЁН","НЕ УЧТЁН","НЕ УЧТЁН","НЕ УЧТЁН","НЕ УЧТЁН","НЕ УЧТЁН","НЕ УЧТЁН","НЕ УЧТЁН","НЕ УЧТЁН","НЕ УЧТЁН","НЕ УЧТЁН","НЕ УЧТЁН","НЕ УЧТЁН","НЕ УЧТЁН","НЕ УЧТЁН","НЕ УЧТЁН","НЕ УЧТЁН","НЕ УЧТЁН","НЕ УЧТЁН","НЕ УЧТЁН","НЕ УЧТЁН","НЕ УЧТЁН","НЕ УЧТЁН","НЕ УЧТЁН","НЕ УЧТЁН","НЕ УЧТЁН","НЕ УЧТЁН","НЕ УЧТЁН","НЕ УЧТЁН","НЕ УЧТЁН","НЕ УЧТЁН","НЕ УЧТЁН","НЕ УЧТЁН","НЕ УЧТЁН","НЕ УЧТЁН","НЕ УЧТЁН","НЕ УЧТЁН","НЕ УЧТЁН","НЕ УЧТЁН","НЕ УЧТЁН","НЕ УЧТЁН","НЕ УЧТЁН","НЕ УЧТЁН","НЕ УЧТЁН","НЕ УЧТЁН","НЕ УЧТЁН","НЕ УЧТЁН","НЕ УЧТЁН","НЕ УЧТЁН","НЕ УЧТЁН","НЕ УЧТЁН","НЕ УЧТЁН","НЕ УЧТЁН","НЕ УЧТЁН","НЕ УЧТЁН","НЕ УЧТЁН","НЕ УЧТЁН","НЕ УЧТЁН","НЕ УЧТЁН","НЕ УЧТЁН","НЕ УЧТЁН","НЕ УЧТЁН","НЕ УЧТЁН","НЕ УЧТЁН","НЕ УЧТЁН","НЕ УЧТЁН","НЕ УЧТЁН","НЕ УЧТЁН","НЕ УЧТЁН","НЕ УЧТЁН","НЕ УЧТЁН","НЕ УЧТЁН","НЕ УЧТЁН","НЕ УЧТЁН","НЕ УЧТЁН","НЕ УЧТЁН","НЕ УЧТЁН","НЕ УЧТЁН","НЕ УЧТЁН","НЕ УЧТЁН","НЕ УЧТЁН","НЕ УЧТЁН","НЕ УЧТЁН","НЕ УЧТЁН","НЕ УЧТЁН","НЕ УЧТЁН","НЕ УЧТЁН","НЕ УЧТЁН","НЕ УЧТЁН","НЕ УЧТЁН","НЕ УЧТЁН","НЕ УЧТЁН","НЕ УЧТЁН","НЕ УЧТЁН","НЕ УЧТЁН","НЕ УЧТЁН","НЕ УЧТЁН","НЕ УЧТЁН","НЕ УЧТЁН","НЕ УЧТЁН","НЕ УЧТЁН","НЕ УЧТЁН","НЕ УЧТЁН","НЕ УЧТЁН","НЕ УЧТЁН","НЕ УЧТЁН","НЕ УЧТЁН","НЕ УЧТЁН","НЕ УЧТЁН","НЕ УЧТЁН","НЕ УЧТЁН","НЕ УЧТЁН","НЕ УЧТЁН","НЕ УЧТЁН","НЕ УЧТЁН","НЕ УЧТЁН","НЕ УЧТЁН","НЕ УЧТЁН","НЕ УЧТЁН","НЕ УЧТЁН","НЕ УЧТЁН","НЕ УЧТЁН","НЕ УЧТЁН","НЕ УЧТЁН","НЕ УЧТЁН","НЕ УЧТЁН","НЕ УЧТЁН","НЕ УЧТЁН","НЕ УЧТЁН","НЕ УЧТЁН","НЕ УЧТЁН","НЕ УЧТЁН","НЕ УЧТЁН","НЕ УЧТЁН","НЕ УЧТЁН","НЕ УЧТЁН","НЕ УЧТЁН","НЕ УЧТЁН","НЕ УЧТЁН","НЕ УЧТЁН","НЕ УЧТЁН","НЕ УЧТЁН","НЕ УЧТЁН","НЕ УЧТЁН","НЕ УЧТЁН","НЕ УЧТЁН","НЕ УЧТЁН","НЕ УЧТЁН","НЕ УЧТЁН","НЕ УЧТЁН","НЕ УЧТЁН","НЕ УЧТЁН","НЕ УЧТЁН","НЕ УЧТЁН","НЕ УЧТЁН","НЕ УЧТЁН","НЕ УЧТЁН","НЕ УЧТЁН","НЕ УЧТЁН","НЕ УЧТЁН","НЕ УЧТЁН","НЕ УЧТЁН","НЕ УЧТЁН","НЕ УЧТЁН","НЕ УЧТЁН","НЕ УЧТЁН","НЕ УЧТЁН","НЕ УЧТЁН","НЕ УЧТЁН","НЕ УЧТЁН","НЕ УЧТЁН","НЕ УЧТЁН","НЕ УЧТЁН","НЕ УЧТЁН","НЕ УЧТЁН","НЕ УЧТЁН","НЕ УЧТЁН","НЕ УЧТЁН","НЕ УЧТЁН","НЕ УЧТЁН","НЕ УЧТЁН","НЕ УЧТЁН","НЕ УЧТЁН","НЕ УЧТЁН","НЕ УЧТЁН","НЕ УЧТЁН","НЕ УЧТЁН","НЕ УЧТЁН","НЕ УЧТЁН","НЕ УЧТЁН","НЕ УЧТЁН","НЕ УЧТЁН","НЕ УЧТЁН","НЕ УЧТЁН","НЕ УЧТЁН","НЕ УЧТЁН","НЕ УЧТЁН","НЕ УЧТЁН","НЕ УЧТЁН","НЕ УЧТЁН","НЕ УЧТЁН","НЕ УЧТЁН","НЕ УЧТЁН","НЕ УЧТЁН","НЕ УЧТЁН","НЕ УЧТЁН","НЕ УЧТЁН","НЕ УЧТЁН","НЕ УЧТЁН","НЕ УЧТЁН","НЕ УЧТЁН","НЕ УЧТЁН","НЕ УЧТЁН","НЕ УЧТЁН","НЕ УЧТЁН","НЕ УЧТЁН","НЕ УЧТЁН","НЕ УЧТЁН","НЕ УЧТЁН","НЕ УЧТЁН","НЕ УЧТЁН","НЕ УЧТЁН","НЕ УЧТЁН","НЕ УЧТЁН","НЕ УЧТЁН","НЕ УЧТЁН","НЕ УЧТЁН","НЕ УЧТЁН","НЕ УЧТЁН","НЕ УЧТЁН","НЕ УЧТЁН","НЕ УЧТЁН","НЕ УЧТЁН","НЕ УЧТЁН","НЕ УЧТЁН","НЕ УЧТЁН","НЕ УЧТЁН","НЕ УЧТЁН","НЕ УЧТЁН","НЕ УЧТЁН","НЕ УЧТЁН","НЕ УЧТЁН","НЕ УЧТЁН","НЕ УЧТЁН","НЕ УЧТЁН","НЕ УЧТЁН","НЕ УЧТЁН","НЕ УЧТЁН","НЕ УЧТЁН","НЕ УЧТЁН","НЕ УЧТЁН","НЕ УЧТЁН","НЕ УЧТЁН","НЕ УЧТЁН","НЕ УЧТЁН","НЕ УЧТЁН","НЕ УЧТЁН","НЕ УЧТЁН","НЕ УЧТЁН","НЕ УЧТЁН","НЕ УЧТЁН","НЕ УЧТЁН","НЕ УЧТЁН","НЕ УЧТЁН","НЕ УЧТЁН","НЕ УЧТЁН","НЕ УЧТЁН","НЕ УЧТЁН","НЕ УЧТЁН","НЕ УЧТЁН","НЕ УЧТЁН","НЕ УЧТЁН","НЕ УЧТЁН","НЕ УЧТЁН","НЕ УЧТЁН","НЕ УЧТЁН","НЕ УЧТЁН","НЕ УЧТЁН","НЕ УЧТЁН","НЕ УЧТЁН","НЕ УЧТЁН","НЕ УЧТЁН","НЕ УЧТЁН","НЕ УЧТЁН","НЕ УЧТЁН","НЕ УЧТЁН","НЕ УЧТЁН","НЕ УЧТЁН","НЕ УЧТЁН","НЕ УЧТЁН","НЕ УЧТЁН","НЕ УЧТЁН","НЕ УЧТЁН","НЕ УЧТЁН","НЕ УЧТЁН","НЕ УЧТЁН","НЕ УЧТЁН","НЕ УЧТЁН","НЕ УЧТЁН","НЕ УЧТЁН","НЕ УЧТЁН","НЕ УЧТЁН","НЕ УЧТЁН","НЕ УЧТЁН","НЕ УЧТЁН","НЕ УЧТЁН","НЕ УЧТЁН","НЕ УЧТЁН","НЕ УЧТЁН","НЕ УЧТЁН","НЕ УЧТЁН","НЕ УЧТЁН","НЕ УЧТЁН","НЕ УЧТЁН","НЕ УЧТЁН","НЕ УЧТЁН","НЕ УЧТЁН","НЕ УЧТЁН","НЕ УЧТЁН","НЕ УЧТЁН","НЕ УЧТЁН","НЕ УЧТЁН","НЕ УЧТЁН","НЕ УЧТЁН","НЕ УЧТЁН","НЕ УЧТЁН","НЕ УЧТЁН","НЕ УЧТЁН","НЕ УЧТЁН","НЕ УЧТЁН","НЕ УЧТЁН","НЕ УЧТЁН","НЕ УЧТЁН","НЕ УЧТЁН","НЕ УЧТЁН","НЕ УЧТЁН","НЕ УЧТЁН","НЕ УЧТЁН","НЕ УЧТЁН","НЕ УЧТЁН","НЕ УЧТЁН","НЕ УЧТЁН","НЕ УЧТЁН","НЕ УЧТЁН","НЕ УЧТЁН","НЕ УЧТЁН","НЕ УЧТЁН","НЕ УЧТЁН","НЕ УЧТЁН","НЕ УЧТЁН","НЕ УЧТЁН","НЕ УЧТЁН","НЕ УЧТЁН","НЕ УЧТЁН","НЕ УЧТЁН","НЕ УЧТЁН","НЕ УЧТЁН","НЕ УЧТЁН","НЕ УЧТЁН","НЕ УЧТЁН","НЕ УЧТЁН","НЕ УЧТЁН","НЕ УЧТЁН","НЕ УЧТЁН","НЕ УЧТЁН","НЕ УЧТЁН","НЕ УЧТЁН","НЕ УЧТЁН","НЕ УЧТЁН","НЕ УЧТЁН","НЕ УЧТЁН","НЕ УЧТЁН","НЕ УЧТЁН","НЕ УЧТЁН","НЕ УЧТЁН","НЕ УЧТЁН","НЕ УЧТЁН","НЕ УЧТЁН","НЕ УЧТЁН","НЕ УЧТЁН","НЕ УЧТЁН","НЕ УЧТЁН","НЕ УЧТЁН","НЕ УЧТЁН","НЕ УЧТЁН","НЕ УЧТЁН","НЕ УЧТЁН","НЕ УЧТЁН","НЕ УЧТЁН","НЕ УЧТЁН","НЕ УЧТЁН","НЕ УЧТЁН","НЕ УЧТЁН","НЕ УЧТЁН","НЕ УЧТЁН","НЕ УЧТЁН","НЕ УЧТЁН","НЕ УЧТЁН","НЕ УЧТЁН","НЕ УЧТЁН","НЕ УЧТЁН","НЕ УЧТЁН","НЕ УЧТЁН","НЕ УЧТЁН","НЕ УЧТЁН","НЕ УЧТЁН","НЕ УЧТЁН","НЕ УЧТЁН","НЕ УЧТЁН","НЕ УЧТЁН","НЕ УЧТЁН","НЕ УЧТЁН","НЕ УЧТЁН","НЕ УЧТЁН","НЕ УЧТЁН","НЕ УЧТЁН","НЕ УЧТЁН","НЕ УЧТЁН","НЕ УЧТЁН","НЕ УЧТЁН","НЕ УЧТЁН","НЕ УЧТЁН","НЕ УЧТЁН","НЕ УЧТЁН","НЕ УЧТЁН","НЕ УЧТЁН","НЕ УЧТЁН","НЕ УЧТЁН","НЕ УЧТЁН","НЕ УЧТЁН","НЕ УЧТЁН","НЕ УЧТЁН","НЕ УЧТЁН","НЕ УЧТЁН","НЕ УЧТЁН","НЕ УЧТЁН","НЕ УЧТЁН","НЕ УЧТЁН","НЕ УЧТЁН","НЕ УЧТЁН","НЕ УЧТЁН","НЕ УЧТЁН","НЕ УЧТЁН","НЕ УЧТЁН","НЕ УЧТЁН","НЕ УЧТЁН","НЕ УЧТЁН","НЕ УЧТЁН","НЕ УЧТЁН","НЕ УЧТЁН","НЕ УЧТЁН","НЕ УЧТЁН","НЕ УЧТЁН","НЕ УЧТЁН","НЕ УЧТЁН","НЕ УЧТЁН","НЕ УЧТЁН","НЕ УЧТЁН","НЕ УЧТЁН","НЕ УЧТЁН","НЕ УЧТЁН","НЕ УЧТЁН","НЕ УЧТЁН","НЕ УЧТЁН","НЕ УЧТЁН","НЕ УЧТЁН","НЕ УЧТЁН","НЕ УЧТЁН","НЕ УЧТЁН","НЕ УЧТЁН","НЕ УЧТЁН","НЕ УЧТЁН","НЕ УЧТЁН","НЕ УЧТЁН","НЕ УЧТЁН","НЕ УЧТЁН","НЕ УЧТЁН","НЕ УЧТЁН","НЕ УЧТЁН","НЕ УЧТЁН","НЕ УЧТЁН","НЕ УЧТЁН","НЕ УЧТЁН","НЕ УЧТЁН","НЕ УЧТЁН","НЕ УЧТЁН","НЕ УЧТЁН","НЕ УЧТЁН","НЕ УЧТЁН","НЕ УЧТЁН","НЕ УЧТЁН","НЕ УЧТЁН","НЕ УЧТЁН","НЕ УЧТЁН","НЕ УЧТЁН","НЕ УЧТЁН","НЕ УЧТЁН","НЕ УЧТЁН","НЕ УЧТЁН","НЕ УЧТЁН","НЕ УЧТЁН","НЕ УЧТЁН","НЕ УЧТЁН","НЕ УЧТЁН","НЕ УЧТЁН","НЕ УЧТЁН","НЕ УЧТЁН","НЕ УЧТЁН","НЕ УЧТЁН","НЕ УЧТЁН","НЕ УЧТЁН","НЕ УЧТЁН","НЕ УЧТЁН","НЕ УЧТЁН","НЕ УЧТЁН","НЕ УЧТЁН","НЕ УЧТЁН","НЕ УЧТЁН","НЕ УЧТЁН","НЕ УЧТЁН","НЕ УЧТЁН","НЕ УЧТЁН","НЕ УЧТЁН","НЕ УЧТЁН","НЕ УЧТЁН","НЕ УЧТЁН","НЕ УЧТЁН","НЕ УЧТЁН","НЕ УЧТЁН","НЕ УЧТЁН","НЕ УЧТЁН","НЕ УЧТЁН","НЕ УЧТЁН","НЕ УЧТЁН","НЕ УЧТЁН","НЕ УЧТЁН","НЕ УЧТЁН","НЕ УЧТЁН","НЕ УЧТЁН","НЕ УЧТЁН","НЕ УЧТЁН","НЕ УЧТЁН","НЕ УЧТЁН","НЕ УЧТЁН","НЕ УЧТЁН","НЕ УЧТЁН","НЕ УЧТЁН","НЕ УЧТЁН","НЕ УЧТЁН","НЕ УЧТЁН","НЕ УЧТЁН","НЕ УЧТЁН","НЕ УЧТЁН","НЕ УЧТЁН","НЕ УЧТЁН","НЕ УЧТЁН","НЕ УЧТЁН","НЕ УЧТЁН","НЕ УЧТЁН","НЕ УЧТЁН","НЕ УЧТЁН","НЕ УЧТЁН","НЕ УЧТЁН","НЕ УЧТЁН","НЕ УЧТЁН","НЕ УЧТЁН","НЕ УЧТЁН","НЕ УЧТЁН","НЕ УЧТЁН","НЕ УЧТЁН","НЕ УЧТЁН","НЕ УЧТЁН","НЕ УЧТЁН","НЕ УЧТЁН","НЕ УЧТЁН","НЕ УЧТЁН","НЕ УЧТЁН","НЕ УЧТЁН","НЕ УЧТЁН","НЕ УЧТЁН","НЕ УЧТЁН","НЕ УЧТЁН","НЕ УЧТЁН","НЕ УЧТЁН","НЕ УЧТЁН","НЕ УЧТЁН","НЕ УЧТЁН","НЕ УЧТЁН","НЕ УЧТЁН","НЕ УЧТЁН","НЕ УЧТЁН","НЕ УЧТЁН","НЕ УЧТЁН","НЕ УЧТЁН","НЕ УЧТЁН","НЕ УЧТЁН","НЕ УЧТЁН","НЕ УЧТЁН","НЕ УЧТЁН","НЕ УЧТЁН","НЕ УЧТЁН","НЕ УЧТЁН","НЕ УЧТЁН","НЕ УЧТЁН","НЕ УЧТЁН","НЕ УЧТЁН","НЕ УЧТЁН","НЕ УЧТЁН","НЕ УЧТЁН","НЕ УЧТЁН","НЕ УЧТЁН","НЕ УЧТЁН","НЕ УЧТЁН","НЕ УЧТЁН","НЕ УЧТЁН","НЕ УЧТЁН","НЕ УЧТЁН","НЕ УЧТЁН","НЕ УЧТЁН","НЕ УЧТЁН","НЕ УЧТЁН","НЕ УЧТЁН","НЕ УЧТЁН","НЕ УЧТЁН","НЕ УЧТЁН","НЕ УЧТЁН","НЕ УЧТЁН","НЕ УЧТЁН","НЕ УЧТЁН","НЕ УЧТЁН","НЕ УЧТЁН","НЕ УЧТЁН","НЕ УЧТЁН","НЕ УЧТЁН","НЕ УЧТЁН","НЕ УЧТЁН","НЕ УЧТЁН","НЕ УЧТЁН","НЕ УЧТЁН","НЕ УЧТЁН","НЕ УЧТЁН","НЕ УЧТЁН","НЕ УЧТЁН","НЕ УЧТЁН","НЕ УЧТЁН","НЕ УЧТЁН","НЕ УЧТЁН","НЕ УЧТЁН","НЕ УЧТЁН","НЕ УЧТЁН","НЕ УЧТЁН","НЕ УЧТЁН","НЕ УЧТЁН","НЕ УЧТЁН","НЕ УЧТЁН","НЕ УЧТЁН","НЕ УЧТЁН","НЕ УЧТЁН","НЕ УЧТЁН","НЕ УЧТЁН","НЕ УЧТЁН","НЕ УЧТЁН","НЕ УЧТЁН","НЕ УЧТЁН","НЕ УЧТЁН","НЕ УЧТЁН","НЕ УЧТЁН","НЕ УЧТЁН","НЕ УЧТЁН","НЕ УЧТЁН","НЕ УЧТЁН","НЕ УЧТЁН","НЕ УЧТЁН","НЕ УЧТЁН","НЕ УЧТЁН","НЕ УЧТЁН","НЕ УЧТЁН","НЕ УЧТЁН","НЕ УЧТЁН","НЕ УЧТЁН","НЕ УЧТЁН","НЕ УЧТЁН","НЕ УЧТЁН","НЕ УЧТЁН","НЕ УЧТЁН","НЕ УЧТЁН","НЕ УЧТЁН","НЕ УЧТЁН","НЕ УЧТЁН","НЕ УЧТЁН","НЕ УЧТЁН","НЕ УЧТЁН","НЕ УЧТЁН","НЕ УЧТЁН","НЕ УЧТЁН","НЕ УЧТЁН","НЕ УЧТЁН","НЕ УЧТЁН","НЕ УЧТЁН","НЕ УЧТЁН","НЕ УЧТЁН","НЕ УЧТЁН","НЕ УЧТЁН","НЕ УЧТЁН","НЕ УЧТЁН","НЕ УЧТЁН","НЕ УЧТЁН","НЕ УЧТЁН","НЕ УЧТЁН","НЕ УЧТЁН","НЕ УЧТЁН","НЕ УЧТЁН","НЕ УЧТЁН","НЕ УЧТЁН","НЕ УЧТЁН","НЕ УЧТЁН","НЕ УЧТЁН","НЕ УЧТЁН","НЕ УЧТЁН","НЕ УЧТЁН","НЕ УЧТЁН","НЕ УЧТЁН","НЕ УЧТЁН","НЕ УЧТЁН","НЕ УЧТЁН","НЕ УЧТЁН","НЕ УЧТЁН","НЕ УЧТЁН","НЕ УЧТЁН","НЕ УЧТЁН","НЕ УЧТЁН","НЕ УЧТЁН","НЕ УЧТЁН","НЕ УЧТЁН","НЕ УЧТЁН","НЕ УЧТЁН","НЕ УЧТЁН","НЕ УЧТЁН","НЕ УЧТЁН","НЕ УЧТЁН","НЕ УЧТЁН","НЕ УЧТЁН","НЕ УЧТЁН","НЕ УЧТЁН","НЕ УЧТЁН","НЕ УЧТЁН","НЕ УЧТЁН","НЕ УЧТЁН","НЕ УЧТЁН","НЕ УЧТЁН","НЕ УЧТЁН","НЕ УЧТЁН","НЕ УЧТЁН","НЕ УЧТЁН","НЕ УЧТЁН","НЕ УЧТЁН","НЕ УЧТЁН","НЕ УЧТЁН","НЕ УЧТЁН","НЕ УЧТЁН","НЕ УЧТЁН","НЕ УЧТЁН","НЕ УЧТЁН","НЕ УЧТЁН","НЕ УЧТЁН","НЕ УЧТЁН","НЕ УЧТЁН","НЕ УЧТЁН","НЕ УЧТЁН","НЕ УЧТЁН","НЕ УЧТЁН","НЕ УЧТЁН","НЕ УЧТЁН","НЕ УЧТЁН","НЕ УЧТЁН","НЕ УЧТЁН","НЕ УЧТЁН","НЕ УЧТЁН","НЕ УЧТЁН","НЕ УЧТЁН","НЕ УЧТЁН","НЕ УЧТЁН","НЕ УЧТЁН","НЕ УЧТЁН","НЕ УЧТЁН","НЕ УЧТЁН","НЕ УЧТЁН","НЕ УЧТЁН","НЕ УЧТЁН","НЕ УЧТЁН","НЕ УЧТЁН","НЕ УЧТЁН","НЕ УЧТЁН","НЕ УЧТЁН","НЕ УЧТЁН","НЕ УЧТЁН","НЕ УЧТЁН","НЕ УЧТЁН","НЕ УЧТЁН","НЕ УЧТЁН","НЕ УЧТЁН","НЕ УЧТЁН","НЕ УЧТЁН","НЕ УЧТЁН","НЕ УЧТЁН","НЕ УЧТЁН","НЕ УЧТЁН","НЕ УЧТЁН","НЕ УЧТЁН","НЕ УЧТЁН","НЕ УЧТЁН","НЕ УЧТЁН","НЕ УЧТЁН","НЕ УЧТЁН","НЕ УЧТЁН","НЕ УЧТЁН","НЕ УЧТЁН","НЕ УЧТЁН","НЕ УЧТЁН","НЕ УЧТЁН","НЕ УЧТЁН","НЕ УЧТЁН","НЕ УЧТЁН","НЕ УЧТЁН","НЕ УЧТЁН","НЕ УЧТЁН","НЕ УЧТЁН","НЕ УЧТЁН","НЕ УЧТЁН","НЕ УЧТЁН","НЕ УЧТЁН","НЕ УЧТЁН","НЕ УЧТЁН","НЕ УЧТЁН","НЕ УЧТЁН","НЕ УЧТЁН","НЕ УЧТЁН","НЕ УЧТЁН","НЕ УЧТЁН","НЕ УЧТЁН","НЕ УЧТЁН","НЕ УЧТЁН","НЕ УЧТЁН","НЕ УЧТЁН","НЕ УЧТЁН","НЕ УЧТЁН","НЕ УЧТЁН","НЕ УЧТЁН","НЕ УЧТЁН","НЕ УЧТЁН","НЕ УЧТЁН","НЕ УЧТЁН","НЕ УЧТЁН","НЕ УЧТЁН","НЕ УЧТЁН","НЕ УЧТЁН","НЕ УЧТЁН","НЕ УЧТЁН","НЕ УЧТЁН","НЕ УЧТЁН","НЕ УЧТЁН","НЕ УЧТЁН","НЕ УЧТЁН","НЕ УЧТЁН","НЕ УЧТЁН","НЕ УЧТЁН","НЕ УЧТЁН","НЕ УЧТЁН","НЕ УЧТЁН","НЕ УЧТЁН","НЕ УЧТЁН","НЕ УЧТЁН","НЕ УЧТЁН","НЕ УЧТЁН","НЕ УЧТЁН","НЕ УЧТЁН","НЕ УЧТЁН","НЕ УЧТЁН","НЕ УЧТЁН","НЕ УЧТЁН","НЕ УЧТЁН","НЕ УЧТЁН","НЕ УЧТЁН","НЕ УЧТЁН","НЕ УЧТЁН","НЕ УЧТЁН","НЕ УЧТЁН","НЕ УЧТЁН","НЕ УЧТЁН","НЕ УЧТЁН","НЕ УЧТЁН","НЕ УЧТЁН","НЕ УЧТЁН","НЕ УЧТЁН","НЕ УЧТЁН","НЕ УЧТЁН","НЕ УЧТЁН","НЕ УЧТЁН","НЕ УЧТЁН","НЕ УЧТЁН","НЕ УЧТЁН","НЕ УЧТЁН","НЕ УЧТЁН","НЕ УЧТЁН","НЕ УЧТЁН","НЕ УЧТЁН","НЕ УЧТЁН","НЕ УЧТЁН","НЕ УЧТЁН","НЕ УЧТЁН","НЕ УЧТЁН","НЕ УЧТЁН","НЕ УЧТЁН","НЕ УЧТЁН","НЕ УЧТЁН","НЕ УЧТЁН","НЕ УЧТЁН","НЕ УЧТЁН","НЕ УЧТЁН","НЕ УЧТЁН","НЕ УЧТЁН","НЕ УЧТЁН","НЕ УЧТЁН","НЕ УЧТЁН","НЕ УЧТЁН","НЕ УЧТЁН","НЕ УЧТЁН","НЕ УЧТЁН","НЕ УЧТЁН","НЕ УЧТЁН","НЕ УЧТЁН","НЕ УЧТЁН","НЕ УЧТЁН","НЕ УЧТЁН","НЕ УЧТЁН","НЕ УЧТЁН","НЕ УЧТЁН","НЕ УЧТЁН","НЕ УЧТЁН","НЕ УЧТЁН","НЕ УЧТЁН","НЕ УЧТЁН","НЕ УЧТЁН","НЕ УЧТЁН","НЕ УЧТЁН","НЕ УЧТЁН","НЕ УЧТЁН","НЕ УЧТЁН","НЕ УЧТЁН","НЕ УЧТЁН","НЕ УЧТЁН","НЕ УЧТЁН","НЕ УЧТЁН","НЕ УЧТЁН","НЕ УЧТЁН","НЕ УЧТЁН","НЕ УЧТЁН","НЕ УЧТЁН","НЕ УЧТЁН","НЕ УЧТЁН","НЕ УЧТЁН","НЕ УЧТЁН","НЕ УЧТЁН","НЕ УЧТЁН","НЕ УЧТЁН","НЕ УЧТЁН","НЕ УЧТЁН","НЕ УЧТЁН","НЕ УЧТЁН","НЕ УЧТЁН","НЕ УЧТЁН","НЕ УЧТЁН","НЕ УЧТЁН","НЕ УЧТЁН","НЕ УЧТЁН","НЕ УЧТЁН","НЕ УЧТЁН","НЕ УЧТЁН","НЕ УЧТЁН","НЕ УЧТЁН","НЕ УЧТЁН","НЕ УЧТЁН","НЕ УЧТЁН","НЕ УЧТЁН","НЕ УЧТЁН","НЕ УЧТЁН","НЕ УЧТЁН","НЕ УЧТЁН","НЕ УЧТЁН","НЕ УЧТЁН","НЕ УЧТЁН","НЕ УЧТЁН","НЕ УЧТЁН","НЕ УЧТЁН","НЕ УЧТЁН","НЕ УЧТЁН","НЕ УЧТЁН","НЕ УЧТЁН","НЕ УЧТЁН","НЕ УЧТЁН","НЕ УЧТЁН","НЕ УЧТЁН","НЕ УЧТЁН","НЕ УЧТЁН","НЕ УЧТЁН","НЕ УЧТЁН","НЕ УЧТЁН","НЕ УЧТЁН","НЕ УЧТЁН","НЕ УЧТЁН","НЕ УЧТЁН","НЕ УЧТЁН","НЕ УЧТЁН","НЕ УЧТЁН","НЕ УЧТЁН","НЕ УЧТЁН","НЕ УЧТЁН","НЕ УЧТЁН","НЕ УЧТЁН","НЕ УЧТЁН","НЕ УЧТЁН","НЕ УЧТЁН","НЕ УЧТЁН","НЕ УЧТЁН","НЕ УЧТЁН","НЕ УЧТЁН","НЕ УЧТЁН","НЕ УЧТЁН","НЕ УЧТЁН","НЕ УЧТЁН","НЕ УЧТЁН","НЕ УЧТЁН","НЕ УЧТЁН","НЕ УЧТЁН","НЕ УЧТЁН","НЕ УЧТЁН","НЕ УЧТЁН","НЕ УЧТЁН","НЕ УЧТЁН","НЕ УЧТЁН","НЕ УЧТЁН","НЕ УЧТЁН","НЕ УЧТЁН","НЕ УЧТЁН","НЕ УЧТЁН","НЕ УЧТЁН","НЕ УЧТЁН","НЕ УЧТЁН","НЕ УЧТЁН","НЕ УЧТЁН","НЕ УЧТЁН","НЕ УЧТЁН","НЕ УЧТЁН","НЕ УЧТЁН","НЕ УЧТЁН","НЕ УЧТЁН","НЕ УЧТЁН","НЕ УЧТЁН","НЕ УЧТЁН","НЕ УЧТЁН","НЕ УЧТЁН","НЕ УЧТЁН","НЕ УЧТЁН","НЕ УЧТЁН","НЕ УЧТЁН","НЕ УЧТЁН","НЕ УЧТЁН","НЕ УЧТЁН","НЕ УЧТЁН","НЕ УЧТЁН","НЕ УЧТЁН","НЕ УЧТЁН","НЕ УЧТЁН","НЕ УЧТЁН","НЕ УЧТЁН","НЕ УЧТЁН","НЕ УЧТЁН","НЕ УЧТЁН","НЕ УЧТЁН","НЕ УЧТЁН","НЕ УЧТЁН","НЕ УЧТЁН","НЕ УЧТЁН","НЕ УЧТЁН","НЕ УЧТЁН","НЕ УЧТЁН","НЕ УЧТЁН","НЕ УЧТЁН","НЕ УЧТЁН","НЕ УЧТЁН","НЕ УЧТЁН","НЕ УЧТЁН","НЕ УЧТЁН","НЕ УЧТЁН","НЕ УЧТЁН","НЕ УЧТЁН","НЕ УЧТЁН","НЕ УЧТЁН","НЕ УЧТЁН","НЕ УЧТЁН","НЕ УЧТЁН","НЕ УЧТЁН","НЕ УЧТЁН","НЕ УЧТЁН","НЕ УЧТЁН","НЕ УЧТЁН","НЕ УЧТЁН","НЕ УЧТЁН","НЕ УЧТЁН","НЕ УЧТЁН","НЕ УЧТЁН","НЕ УЧТЁН","НЕ УЧТЁН","НЕ УЧТЁН","НЕ УЧТЁН","НЕ УЧТЁН","НЕ УЧТЁН","НЕ УЧТЁН","НЕ УЧТЁН","НЕ УЧТЁН","НЕ УЧТЁН","НЕ УЧТЁН","НЕ УЧТЁН","НЕ УЧТЁН","НЕ УЧТЁН","НЕ УЧТЁН","НЕ УЧТЁН","НЕ УЧТЁН","НЕ УЧТЁН","НЕ УЧТЁН","НЕ УЧТЁН","НЕ УЧТЁН","НЕ УЧТЁН","НЕ УЧТЁН","НЕ УЧТЁН","НЕ УЧТЁН","НЕ УЧТЁН","НЕ УЧТЁН","НЕ УЧТЁН","НЕ УЧТЁН","НЕ УЧТЁН","НЕ УЧТЁН","НЕ УЧТЁН","НЕ УЧТЁН","НЕ УЧТЁН","НЕ УЧТЁН","НЕ УЧТЁН","НЕ УЧТЁН","НЕ УЧТЁН","НЕ УЧТЁН","НЕ УЧТЁН","НЕ УЧТЁН","НЕ УЧТЁН","НЕ УЧТЁН","НЕ УЧТЁН","НЕ УЧТЁН","НЕ УЧТЁН","НЕ УЧТЁН","НЕ УЧТЁН","НЕ УЧТЁН","НЕ УЧТЁН","НЕ УЧТЁН","НЕ УЧТЁН","НЕ УЧТЁН","НЕ УЧТЁН","НЕ УЧТЁН","НЕ УЧТЁН","НЕ УЧТЁН","НЕ УЧТЁН","НЕ УЧТЁН","НЕ УЧТЁН","НЕ УЧТЁН","НЕ УЧТЁН","НЕ УЧТЁН","НЕ УЧТЁН","НЕ УЧТЁН","НЕ УЧТЁН","НЕ УЧТЁН","НЕ УЧТЁН","НЕ УЧТЁН","НЕ УЧТЁН","НЕ УЧТЁН","НЕ УЧТЁН","НЕ УЧТЁН","НЕ УЧТЁН","НЕ УЧТЁН","НЕ УЧТЁН","НЕ УЧТЁН","НЕ УЧТЁН","НЕ УЧТЁН","НЕ УЧТЁН","НЕ УЧТЁН","НЕ УЧТЁН","НЕ УЧТЁН","НЕ УЧТЁН","НЕ УЧТЁН","НЕ УЧТЁН","НЕ УЧТЁН","НЕ УЧТЁН","НЕ УЧТЁН","НЕ УЧТЁН","НЕ УЧТЁН","НЕ УЧТЁН","НЕ УЧТЁН","НЕ УЧТЁН","НЕ УЧТЁН","НЕ УЧТЁН","НЕ УЧТЁН","НЕ УЧТЁН","НЕ УЧТЁН","НЕ УЧТЁН","НЕ УЧТЁН","НЕ УЧТЁН","НЕ УЧТЁН","НЕ УЧТЁН","НЕ УЧТЁН","НЕ УЧТЁН","НЕ УЧТЁН","НЕ УЧТЁН","НЕ УЧТЁН","НЕ УЧТЁН","НЕ УЧТЁН","НЕ УЧТЁН","НЕ УЧТЁН","НЕ УЧТЁН","НЕ УЧТЁН","НЕ УЧТЁН","НЕ УЧТЁН","НЕ УЧТЁН","НЕ УЧТЁН","НЕ УЧТЁН","НЕ УЧТЁН","НЕ УЧТЁН","НЕ УЧТЁН","НЕ УЧТЁН","НЕ УЧТЁН","НЕ УЧТЁН","НЕ УЧТЁН","НЕ УЧТЁН","НЕ УЧТЁН","НЕ УЧТЁН","НЕ УЧТЁН","НЕ УЧТЁН","НЕ УЧТЁН","НЕ УЧТЁН","НЕ УЧТЁН","НЕ УЧТЁН","НЕ УЧТЁН","НЕ УЧТЁН","НЕ УЧТЁН","НЕ УЧТЁН","НЕ УЧТЁН","НЕ УЧТЁН","НЕ УЧТЁН","НЕ УЧТЁН","НЕ УЧТЁН","НЕ УЧТЁН","НЕ УЧТЁН","НЕ УЧТЁН","НЕ УЧТЁН","НЕ УЧТЁН","НЕ УЧТЁН","НЕ УЧТЁН","НЕ УЧТЁН","НЕ УЧТЁН","НЕ УЧТЁН","НЕ УЧТЁН","НЕ УЧТЁН","НЕ УЧТЁН","НЕ УЧТЁН","НЕ УЧТЁН","НЕ УЧТЁН","НЕ УЧТЁН","НЕ УЧТЁН","НЕ УЧТЁН","НЕ УЧТЁН","НЕ УЧТЁН","НЕ УЧТЁН","НЕ УЧТЁН","НЕ УЧТЁН","НЕ УЧТЁН","НЕ УЧТЁН","НЕ УЧТЁН","НЕ УЧТЁН","НЕ УЧТЁН","НЕ УЧТЁН","НЕ УЧТЁН","НЕ УЧТЁН","НЕ УЧТЁН","НЕ УЧТЁН","НЕ УЧТЁН","НЕ УЧТЁН","НЕ УЧТЁН","НЕ УЧТЁН","НЕ УЧТЁН","НЕ УЧТЁН","НЕ УЧТЁН","НЕ УЧТЁН","НЕ УЧТЁН","НЕ УЧТЁН","НЕ УЧТЁН","НЕ УЧТЁН","НЕ УЧТЁН","НЕ УЧТЁН","НЕ УЧТЁН","НЕ УЧТЁН","НЕ УЧТЁН","НЕ УЧТЁН","НЕ УЧТЁН","НЕ УЧТЁН","НЕ УЧТЁН","НЕ УЧТЁН","НЕ УЧТЁН","НЕ УЧТЁН","НЕ УЧТЁН","НЕ УЧТЁН","НЕ УЧТЁН","НЕ УЧТЁН","НЕ УЧТЁН","НЕ УЧТЁН","НЕ УЧТЁН","НЕ УЧТЁН","НЕ УЧТЁН","НЕ УЧТЁН","НЕ УЧТЁН","НЕ УЧТЁН","НЕ УЧТЁН","НЕ УЧТЁН","НЕ УЧТЁН","НЕ УЧТЁН","НЕ УЧТЁН","НЕ УЧТЁН","НЕ УЧТЁН","НЕ УЧТЁН","НЕ УЧТЁН","НЕ УЧТЁН","НЕ УЧТЁН","НЕ УЧТЁН","НЕ УЧТЁН","НЕ УЧТЁН","НЕ УЧТЁН","НЕ УЧТЁН","НЕ УЧТЁН","НЕ УЧТЁН","НЕ УЧТЁН","НЕ УЧТЁН","НЕ УЧТЁН","НЕ УЧТЁН","НЕ УЧТЁН","НЕ УЧТЁН","НЕ УЧТЁН","НЕ УЧТЁН","НЕ УЧТЁН","НЕ УЧТЁН","НЕ УЧТЁН","НЕ УЧТЁН","НЕ УЧТЁН","НЕ УЧТЁН","НЕ УЧТЁН","НЕ УЧТЁН","НЕ УЧТЁН","НЕ УЧТЁН","НЕ УЧТЁН","НЕ УЧТЁН","НЕ УЧТЁН","НЕ УЧТЁН","НЕ УЧТЁН","НЕ УЧТЁН","НЕ УЧТЁН","НЕ УЧТЁН","НЕ УЧТЁН","НЕ УЧТЁН","НЕ УЧТЁН","НЕ УЧТЁН","НЕ УЧТЁН","НЕ УЧТЁН","НЕ УЧТЁН","НЕ УЧТЁН","НЕ УЧТЁН","НЕ УЧТЁН","НЕ УЧТЁН","НЕ УЧТЁН","НЕ УЧТЁН","НЕ УЧТЁН","НЕ УЧТЁН","НЕ УЧТЁН","НЕ УЧТЁН","НЕ УЧТЁН","НЕ УЧТЁН","НЕ УЧТЁН","НЕ УЧТЁН","НЕ УЧТЁН","НЕ УЧТЁН","НЕ УЧТЁН","НЕ УЧТЁН","НЕ УЧТЁН","НЕ УЧТЁН","НЕ УЧТЁН","НЕ УЧТЁН","НЕ УЧТЁН","НЕ УЧТЁН","НЕ УЧТЁН","НЕ УЧТЁН","НЕ УЧТЁН","НЕ УЧТЁН","НЕ УЧТЁН","НЕ УЧТЁН","НЕ УЧТЁН","НЕ УЧТЁН","НЕ УЧТЁН","НЕ УЧТЁН","НЕ УЧТЁН","НЕ УЧТЁН","НЕ УЧТЁН","НЕ УЧТЁН","НЕ УЧТЁН","НЕ УЧТЁН","НЕ УЧТЁН","НЕ УЧТЁН","НЕ УЧТЁН","НЕ УЧТЁН","НЕ УЧТЁН","НЕ УЧТЁН","НЕ УЧТЁН","НЕ УЧТЁН","НЕ УЧТЁН","НЕ УЧТЁН","НЕ УЧТЁН","НЕ УЧТЁН","НЕ УЧТЁН","НЕ УЧТЁН","НЕ УЧТЁН","НЕ УЧТЁН","НЕ УЧТЁН","НЕ УЧТЁН","НЕ УЧТЁН","НЕ УЧТЁН","НЕ УЧТЁН","НЕ УЧТЁН","НЕ УЧТЁН","НЕ УЧТЁН","НЕ УЧТЁН","НЕ УЧТЁН","НЕ УЧТЁН","НЕ УЧТЁН","НЕ УЧТЁН","НЕ УЧТЁН","НЕ УЧТЁН","НЕ УЧТЁН","НЕ УЧТЁН","НЕ УЧТЁН","НЕ УЧТЁН","НЕ УЧТЁН","НЕ УЧТЁН","НЕ УЧТЁН","НЕ УЧТЁН","НЕ УЧТЁН","НЕ УЧТЁН","НЕ УЧТЁН","НЕ УЧТЁН","НЕ УЧТЁН","НЕ УЧТЁН","НЕ УЧТЁН","НЕ УЧТЁН","НЕ УЧТЁН","НЕ УЧТЁН","НЕ УЧТЁН","НЕ УЧТЁН","НЕ УЧТЁН","НЕ УЧТЁН","НЕ УЧТЁН","НЕ УЧТЁН","НЕ УЧТЁН","НЕ УЧТЁН","НЕ УЧТЁН","НЕ УЧТЁН","НЕ УЧТЁН","НЕ УЧТЁН","НЕ УЧТЁН","НЕ УЧТЁН","НЕ УЧТЁН","НЕ УЧТЁН","НЕ УЧТЁН","НЕ УЧТЁН","НЕ УЧТЁН","НЕ УЧТЁН","НЕ УЧТЁН","НЕ УЧТЁН","НЕ УЧТЁН","НЕ УЧТЁН","НЕ УЧТЁН","НЕ УЧТЁН","НЕ УЧТЁН","НЕ УЧТЁН","НЕ УЧТЁН","НЕ УЧТЁН","НЕ УЧТЁН","НЕ УЧТЁН","НЕ УЧТЁН","НЕ УЧТЁН","НЕ УЧТЁН","НЕ УЧТЁН","НЕ УЧТЁН","НЕ УЧТЁН","НЕ УЧТЁН","НЕ УЧТЁН","НЕ УЧТЁН","НЕ УЧТЁН","НЕ УЧТЁН","НЕ УЧТЁН","НЕ УЧТЁН","НЕ УЧТЁН","НЕ УЧТЁН","НЕ УЧТЁН","НЕ УЧТЁН","НЕ УЧТЁН","НЕ УЧТЁН","НЕ УЧТЁН","НЕ УЧТЁН","НЕ УЧТЁН","НЕ УЧТЁН","НЕ УЧТЁН","НЕ УЧТЁН","НЕ УЧТЁН","НЕ УЧТЁН","НЕ УЧТЁН","НЕ УЧТЁН","НЕ УЧТЁН","НЕ УЧТЁН","НЕ УЧТЁН","НЕ УЧТЁН","НЕ УЧТЁН","НЕ УЧТЁН","НЕ УЧТЁН","НЕ УЧТЁН","НЕ УЧТЁН","НЕ УЧТЁН","НЕ УЧТЁН","НЕ УЧТЁН","НЕ УЧТЁН","НЕ УЧТЁН","НЕ УЧТЁН","НЕ УЧТЁН","НЕ УЧТЁН","НЕ УЧТЁН","НЕ УЧТЁН","НЕ УЧТЁН","НЕ УЧТЁН","НЕ УЧТЁН","НЕ УЧТЁН","НЕ УЧТЁН","НЕ УЧТЁН","НЕ УЧТЁН","НЕ УЧТЁН","НЕ УЧТЁН","НЕ УЧТЁН","НЕ УЧТЁН","НЕ УЧТЁН","НЕ УЧТЁН","НЕ УЧТЁН","НЕ УЧТЁН","НЕ УЧТЁН","НЕ УЧТЁН","НЕ УЧТЁН","НЕ УЧТЁН","НЕ УЧТЁН","НЕ УЧТЁН","НЕ УЧТЁН","НЕ УЧТЁН","НЕ УЧТЁН","НЕ УЧТЁН","НЕ УЧТЁН","НЕ УЧТЁН","НЕ УЧТЁН","НЕ УЧТЁН","НЕ УЧТЁН","НЕ УЧТЁН","НЕ УЧТЁН","НЕ УЧТЁН","НЕ УЧТЁН","НЕ УЧТЁН","НЕ УЧТЁН","НЕ УЧТЁН","НЕ УЧТЁН","НЕ УЧТЁН","НЕ УЧТЁН","НЕ УЧТЁН","НЕ УЧТЁН","НЕ УЧТЁН","НЕ УЧТЁН","НЕ УЧТЁН","НЕ УЧТЁН","НЕ УЧТЁН","НЕ УЧТЁН","НЕ УЧТЁН","НЕ УЧТЁН","НЕ УЧТЁН","НЕ УЧТЁН","НЕ УЧТЁН","НЕ УЧТЁН","НЕ УЧТЁН","НЕ УЧТЁН","НЕ УЧТЁН","НЕ УЧТЁН","НЕ УЧТЁН","НЕ УЧТЁН","НЕ УЧТЁН","НЕ УЧТЁН","НЕ УЧТЁН","НЕ УЧТЁН","НЕ УЧТЁН","НЕ УЧТЁН","НЕ УЧТЁН","НЕ УЧТЁН","НЕ УЧТЁН","НЕ УЧТЁН","НЕ УЧТЁН","НЕ УЧТЁН","НЕ УЧТЁН","НЕ УЧТЁН","НЕ УЧТЁН","НЕ УЧТЁН","НЕ УЧТЁН","НЕ УЧТЁН","НЕ УЧТЁН","НЕ УЧТЁН","НЕ УЧТЁН","НЕ УЧТЁН","НЕ УЧТЁН","НЕ УЧТЁН","НЕ УЧТЁН","НЕ УЧТЁН","НЕ УЧТЁН","НЕ УЧТЁН","НЕ УЧТЁН","НЕ УЧТЁН","НЕ УЧТЁН","НЕ УЧТЁН","НЕ УЧТЁН","НЕ УЧТЁН","НЕ УЧТЁН","НЕ УЧТЁН","НЕ УЧТЁН","НЕ УЧТЁН","НЕ УЧТЁН","НЕ УЧТЁН","НЕ УЧТЁН","НЕ УЧТЁН","НЕ УЧТЁН","НЕ УЧТЁН","НЕ УЧТЁН","НЕ УЧТЁН","НЕ УЧТЁН","НЕ УЧТЁН","НЕ УЧТЁН","НЕ УЧТЁН","НЕ УЧТЁН","НЕ УЧТЁН","НЕ УЧТЁН","НЕ УЧТЁН","НЕ УЧТЁН","НЕ УЧТЁН","НЕ УЧТЁН","НЕ УЧТЁН","НЕ УЧТЁН","НЕ УЧТЁН","НЕ УЧТЁН","НЕ УЧТЁН","НЕ УЧТЁН","НЕ УЧТЁН","НЕ УЧТЁН","НЕ УЧТЁН","НЕ УЧТЁН","НЕ УЧТЁН","НЕ УЧТЁН","НЕ УЧТЁН","НЕ УЧТЁН","НЕ УЧТЁН","НЕ УЧТЁН","НЕ УЧТЁН","НЕ УЧТЁН","НЕ УЧТЁН","НЕ УЧТЁН","НЕ УЧТЁН","НЕ УЧТЁН","НЕ УЧТЁН","НЕ УЧТЁН","НЕ УЧТЁН","НЕ УЧТЁН","НЕ УЧТЁН","НЕ УЧТЁН","НЕ УЧТЁН","НЕ УЧТЁН","НЕ УЧТЁН","НЕ УЧТЁН","НЕ УЧТЁН","НЕ УЧТЁН","НЕ УЧТЁН","НЕ УЧТЁН","НЕ УЧТЁН","НЕ УЧТЁН","НЕ УЧТЁН","НЕ УЧТЁН","НЕ УЧТЁН","НЕ УЧТЁН","НЕ УЧТЁН","НЕ УЧТЁН","НЕ УЧТЁН","НЕ УЧТЁН","НЕ УЧТЁН","НЕ УЧТЁН","НЕ УЧТЁН","НЕ УЧТЁН","НЕ УЧТЁН","НЕ УЧТЁН","НЕ УЧТЁН","НЕ УЧТЁН","НЕ УЧТЁН","НЕ УЧТЁН","НЕ УЧТЁН","НЕ УЧТЁН","НЕ УЧТЁН","НЕ УЧТЁН","НЕ УЧТЁН","НЕ УЧТЁН","НЕ УЧТЁН","НЕ УЧТЁН","НЕ УЧТЁН","НЕ УЧТЁН","НЕ УЧТЁН","НЕ УЧТЁН","НЕ УЧТЁН","НЕ УЧТЁН","НЕ УЧТЁН","НЕ УЧТЁН","НЕ УЧТЁН","НЕ УЧТЁН","НЕ УЧТЁН","НЕ УЧТЁН","НЕ УЧТЁН","НЕ УЧТЁН","НЕ УЧТЁН","НЕ УЧТЁН","НЕ УЧТЁН","НЕ УЧТЁН","НЕ УЧТЁН","НЕ УЧТЁН","НЕ УЧТЁН","НЕ УЧТЁН","НЕ УЧТЁН","НЕ УЧТЁН","НЕ УЧТЁН","НЕ УЧТЁН","НЕ УЧТЁН","НЕ УЧТЁН","НЕ УЧТЁН","НЕ УЧТЁН","НЕ УЧТЁН","НЕ УЧТЁН","НЕ УЧТЁН","НЕ УЧТЁН","НЕ УЧТЁН","НЕ УЧТЁН","НЕ УЧТЁН","НЕ УЧТЁН","НЕ УЧТЁН","НЕ УЧТЁН","НЕ УЧТЁН","НЕ УЧТЁН","НЕ УЧТЁН","НЕ УЧТЁН","НЕ УЧТЁН","НЕ УЧТЁН","НЕ УЧТЁН","НЕ УЧТЁН","НЕ УЧТЁН","НЕ УЧТЁН","НЕ УЧТЁН","НЕ УЧТЁН","НЕ УЧТЁН","НЕ УЧТЁН","НЕ УЧТЁН","НЕ УЧТЁН","НЕ УЧТЁН","НЕ УЧТЁН","НЕ УЧТЁН","НЕ УЧТЁН","НЕ УЧТЁН","НЕ УЧТЁН","НЕ УЧТЁН","НЕ УЧТЁН","НЕ УЧТЁН","НЕ УЧТЁН","НЕ УЧТЁН","НЕ УЧТЁН","НЕ УЧТЁН","НЕ УЧТЁН","НЕ УЧТЁН","НЕ УЧТЁН","НЕ УЧТЁН","НЕ УЧТЁН","НЕ УЧТЁН","НЕ УЧТЁН","НЕ УЧТЁН","НЕ УЧТЁН","НЕ УЧТЁН","НЕ УЧТЁН","НЕ УЧТЁН","НЕ УЧТЁН","НЕ УЧТЁН","НЕ УЧТЁН","НЕ УЧТЁН","НЕ УЧТЁН","НЕ УЧТЁН","НЕ УЧТЁН","НЕ УЧТЁН","НЕ УЧТЁН","НЕ УЧТЁН","НЕ УЧТЁН","НЕ УЧТЁН","НЕ УЧТЁН","НЕ УЧТЁН","НЕ УЧТЁН","НЕ УЧТЁН","НЕ УЧТЁН","НЕ УЧТЁН","НЕ УЧТЁН","НЕ УЧТЁН","НЕ УЧТЁН","НЕ УЧТЁН","НЕ УЧТЁН","НЕ УЧТЁН","НЕ УЧТЁН","НЕ УЧТЁН","НЕ УЧТЁН","НЕ УЧТЁН","НЕ УЧТЁН","НЕ УЧТЁН","НЕ УЧТЁН","НЕ УЧТЁН","НЕ УЧТЁН","НЕ УЧТЁН","НЕ УЧТЁН","НЕ УЧТЁН","НЕ УЧТЁН","НЕ УЧТЁН","НЕ УЧТЁН","НЕ УЧТЁН","НЕ УЧТЁН","НЕ УЧТЁН","НЕ УЧТЁН","НЕ УЧТЁН","НЕ УЧТЁН","НЕ УЧТЁН","НЕ УЧТЁН","НЕ УЧТЁН","НЕ УЧТЁН","НЕ УЧТЁН","НЕ УЧТЁН","НЕ УЧТЁН","НЕ УЧТЁН","НЕ УЧТЁН","НЕ УЧТЁН","НЕ УЧТЁН","НЕ УЧТЁН","НЕ УЧТЁН","НЕ УЧТЁН","НЕ УЧТЁН","НЕ УЧТЁН","НЕ УЧТЁН","НЕ УЧТЁН","НЕ УЧТЁН","НЕ УЧТЁН","НЕ УЧТЁН","НЕ УЧТЁН","НЕ УЧТЁН","НЕ УЧТЁН","НЕ УЧТЁН","НЕ УЧТЁН","НЕ УЧТЁН","НЕ УЧТЁН","НЕ УЧТЁН","НЕ УЧТЁН","НЕ УЧТЁН","НЕ УЧТЁН","НЕ УЧТЁН","НЕ УЧТЁН","НЕ УЧТЁН","НЕ УЧТЁН","НЕ УЧТЁН","НЕ УЧТЁН","НЕ УЧТЁН","НЕ УЧТЁН","НЕ УЧТЁН","НЕ УЧТЁН","НЕ УЧТЁН","НЕ УЧТЁН","НЕ УЧТЁН","НЕ УЧТЁН","НЕ УЧТЁН","НЕ УЧТЁН","НЕ УЧТЁН","НЕ УЧТЁН","НЕ УЧТЁН","НЕ УЧТЁН","НЕ УЧТЁН","НЕ УЧТЁН","НЕ УЧТЁН","НЕ УЧТЁН","НЕ УЧТЁН","НЕ УЧТЁН","НЕ УЧТЁН","НЕ УЧТЁН","НЕ УЧТЁН","НЕ УЧТЁН","НЕ УЧТЁН","НЕ УЧТЁН","НЕ УЧТЁН","НЕ УЧТЁН","НЕ УЧТЁН","НЕ УЧТЁН","НЕ УЧТЁН","НЕ УЧТЁН","НЕ УЧТЁН","НЕ УЧТЁН","НЕ УЧТЁН","НЕ УЧТЁН","НЕ УЧТЁН","НЕ УЧТЁН","НЕ УЧТЁН","НЕ УЧТЁН","НЕ УЧТЁН","НЕ УЧТЁН","НЕ УЧТЁН","НЕ УЧТЁН","НЕ УЧТЁН","НЕ УЧТЁН","НЕ УЧТЁН","НЕ УЧТЁН","НЕ УЧТЁН","НЕ УЧТЁН","НЕ УЧТЁН","НЕ УЧТЁН","НЕ УЧТЁН","НЕ УЧТЁН","НЕ УЧТЁН","НЕ УЧТЁН","НЕ УЧТЁН","НЕ УЧТЁН","НЕ УЧТЁН","НЕ УЧТЁН","НЕ УЧТЁН","НЕ УЧТЁН","НЕ УЧТЁН","НЕ УЧТЁН","НЕ УЧТЁН","НЕ УЧТЁН","НЕ УЧТЁН","НЕ УЧТЁН","НЕ УЧТЁН","НЕ УЧТЁН","НЕ УЧТЁН","НЕ УЧТЁН","НЕ УЧТЁН","НЕ УЧТЁН","НЕ УЧТЁН","НЕ УЧТЁН","НЕ УЧТЁН","НЕ УЧТЁН","НЕ УЧТЁН","НЕ УЧТЁН","НЕ УЧТЁН","НЕ УЧТЁН","НЕ УЧТЁН","НЕ УЧТЁН","НЕ УЧТЁН","НЕ УЧТЁН","НЕ УЧТЁН","НЕ УЧТЁН","НЕ УЧТЁН","НЕ УЧТЁН","НЕ УЧТЁН","НЕ УЧТЁН","НЕ УЧТЁН","НЕ УЧТЁН","НЕ УЧТЁН","НЕ УЧТЁН","НЕ УЧТЁН","НЕ УЧТЁН","НЕ УЧТЁН","НЕ УЧТЁН","НЕ УЧТЁН","НЕ УЧТЁН","НЕ УЧТЁН","НЕ УЧТЁН","НЕ УЧТЁН","НЕ УЧТЁН","НЕ УЧТЁН","НЕ УЧТЁН","НЕ УЧТЁН","НЕ УЧТЁН","НЕ УЧТЁН","НЕ УЧТЁН","НЕ УЧТЁН","НЕ УЧТЁН","НЕ УЧТЁН","НЕ УЧТЁН","НЕ УЧТЁН","НЕ УЧТЁН","НЕ УЧТЁН","НЕ УЧТЁН","НЕ УЧТЁН","НЕ УЧТЁН","НЕ УЧТЁН","НЕ УЧТЁН","НЕ УЧТЁН","НЕ УЧТЁН","НЕ УЧТЁН","НЕ УЧТЁН","НЕ УЧТЁН","НЕ УЧТЁН","НЕ УЧТЁН","НЕ УЧТЁН","НЕ УЧТЁН","НЕ УЧТЁН","НЕ УЧТЁН","НЕ УЧТЁН","НЕ УЧТЁН","НЕ УЧТЁН","НЕ УЧТЁН","НЕ УЧТЁН","НЕ УЧТЁН","НЕ УЧТЁН","НЕ УЧТЁН","НЕ УЧТЁН","НЕ УЧТЁН","НЕ УЧТЁН","НЕ УЧТЁН","НЕ УЧТЁН","НЕ УЧТЁН","НЕ УЧТЁН","НЕ УЧТЁН","НЕ УЧТЁН","НЕ УЧТЁН","НЕ УЧТЁН","НЕ УЧТЁН","НЕ УЧТЁН","НЕ УЧТЁН","НЕ УЧТЁН","НЕ УЧТЁН","НЕ УЧТЁН","НЕ УЧТЁН","НЕ УЧТЁН","НЕ УЧТЁН","НЕ УЧТЁН","НЕ УЧТЁН","НЕ УЧТЁН","НЕ УЧТЁН","НЕ УЧТЁН","НЕ УЧТЁН","НЕ УЧТЁН","НЕ УЧТЁН","НЕ УЧТЁН","НЕ УЧТЁН","НЕ УЧТЁН","НЕ УЧТЁН","НЕ УЧТЁН","НЕ УЧТЁН","НЕ УЧТЁН","НЕ УЧТЁН","НЕ УЧТЁН","НЕ УЧТЁН","НЕ УЧТЁН","НЕ УЧТЁН","НЕ УЧТЁН","НЕ УЧТЁН","НЕ УЧТЁН","НЕ УЧТЁН","НЕ УЧТЁН","НЕ УЧТЁН","НЕ УЧТЁН","НЕ УЧТЁН","НЕ УЧТЁН","НЕ УЧТЁН","НЕ УЧТЁН","НЕ УЧТЁН","НЕ УЧТЁН","НЕ УЧТЁН","НЕ УЧТЁН","НЕ УЧТЁН","НЕ УЧТЁН","НЕ УЧТЁН","НЕ УЧТЁН","НЕ УЧТЁН","НЕ УЧТЁН","НЕ УЧТЁН","НЕ УЧТЁН","НЕ УЧТЁН","НЕ УЧТЁН","НЕ УЧТЁН","НЕ УЧТЁН","НЕ УЧТЁН","НЕ УЧТЁН","НЕ УЧТЁН","НЕ УЧТЁН","НЕ УЧТЁН","НЕ УЧТЁН","НЕ УЧТЁН","НЕ УЧТЁН","НЕ УЧТЁН","НЕ УЧТЁН","НЕ УЧТЁН","НЕ УЧТЁН","НЕ УЧТЁН","НЕ УЧТЁН","НЕ УЧТЁН","НЕ УЧТЁН","НЕ УЧТЁН","НЕ УЧТЁН","НЕ УЧТЁН","НЕ УЧТЁН","НЕ УЧТЁН","НЕ УЧТЁН","НЕ УЧТЁН","НЕ УЧТЁН","НЕ УЧТЁН","НЕ УЧТЁН","НЕ УЧТЁН","НЕ УЧТЁН","НЕ УЧТЁН","НЕ УЧТЁН","НЕ УЧТЁН","НЕ УЧТЁН","НЕ УЧТЁН","НЕ УЧТЁН","НЕ УЧТЁН","НЕ УЧТЁН","НЕ УЧТЁН","НЕ УЧТЁН","НЕ УЧТЁН","НЕ УЧТЁН","НЕ УЧТЁН","НЕ УЧТЁН","НЕ УЧТЁН","НЕ УЧТЁН","НЕ УЧТЁН","НЕ УЧТЁН","НЕ УЧТЁН","НЕ УЧТЁН","НЕ УЧТЁН","НЕ УЧТЁН","НЕ УЧТЁН","НЕ УЧТЁН","НЕ УЧТЁН","НЕ УЧТЁН","НЕ УЧТЁН","НЕ УЧТЁН","НЕ УЧТЁН","НЕ УЧТЁН","НЕ УЧТЁН","НЕ УЧТЁН","НЕ УЧТЁН","НЕ УЧТЁН","НЕ УЧТЁН","НЕ УЧТЁН","НЕ УЧТЁН","НЕ УЧТЁН","НЕ УЧТЁН","НЕ УЧТЁН","НЕ УЧТЁН","НЕ УЧТЁН","НЕ УЧТЁН","НЕ УЧТЁН","НЕ УЧТЁН","НЕ УЧТЁН","НЕ УЧТЁН","НЕ УЧТЁН","НЕ УЧТЁН","НЕ УЧТЁН","НЕ УЧТЁН","НЕ УЧТЁН","НЕ УЧТЁН","НЕ УЧТЁН","НЕ УЧТЁН","НЕ УЧТЁН","НЕ УЧТЁН","НЕ УЧТЁН","НЕ УЧТЁН","НЕ УЧТЁН","НЕ УЧТЁН","НЕ УЧТЁН","НЕ УЧТЁН","НЕ УЧТЁН","НЕ УЧТЁН","НЕ УЧТЁН","НЕ УЧТЁН","НЕ УЧТЁН","НЕ УЧТЁН","НЕ УЧТЁН","НЕ УЧТЁН","НЕ УЧТЁН","НЕ УЧТЁН","НЕ УЧТЁН","НЕ УЧТЁН","НЕ УЧТЁН","НЕ УЧТЁН","НЕ УЧТЁН","НЕ УЧТЁН","НЕ УЧТЁН","НЕ УЧТЁН","НЕ УЧТЁН","НЕ УЧТЁН","НЕ УЧТЁН","НЕ УЧТЁН","НЕ УЧТЁН","НЕ УЧТЁН","НЕ УЧТЁН","НЕ УЧТЁН","НЕ УЧТЁН","НЕ УЧТЁН","НЕ УЧТЁН","НЕ УЧТЁН","НЕ УЧТЁН","НЕ УЧТЁН","НЕ УЧТЁН","НЕ УЧТЁН","НЕ УЧТЁН","НЕ УЧТЁН","НЕ УЧТЁН","НЕ УЧТЁН","НЕ УЧТЁН","НЕ УЧТЁН","НЕ УЧТЁН","НЕ УЧТЁН","НЕ УЧТЁН","НЕ УЧТЁН","НЕ УЧТЁН","НЕ УЧТЁН","НЕ УЧТЁН","НЕ УЧТЁН","НЕ УЧТЁН","НЕ УЧТЁН","НЕ УЧТЁН","НЕ УЧТЁН","НЕ УЧТЁН","НЕ УЧТЁН","НЕ УЧТЁН","НЕ УЧТЁН","НЕ УЧТЁН","НЕ УЧТЁН","НЕ УЧТЁН","НЕ УЧТЁН","НЕ УЧТЁН","НЕ УЧТЁН","НЕ УЧТЁН","НЕ УЧТЁН","НЕ УЧТЁН","НЕ УЧТЁН","НЕ УЧТЁН","НЕ УЧТЁН","НЕ УЧТЁН","НЕ УЧТЁН","НЕ УЧТЁН","НЕ УЧТЁН","НЕ УЧТЁН","НЕ УЧТЁН","НЕ УЧТЁН","НЕ УЧТЁН","НЕ УЧТЁН","НЕ УЧТЁН","НЕ УЧТЁН","НЕ УЧТЁН","НЕ УЧТЁН","НЕ УЧТЁН","НЕ УЧТЁН","НЕ УЧТЁН","НЕ УЧТЁН","НЕ УЧТЁН","НЕ УЧТЁН","НЕ УЧТЁН","НЕ УЧТЁН","НЕ УЧТЁН","НЕ УЧТЁН","НЕ УЧТЁН","НЕ УЧТЁН","НЕ УЧТЁН","НЕ УЧТЁН","НЕ УЧТЁН","НЕ УЧТЁН","НЕ УЧТЁН","НЕ УЧТЁН","НЕ УЧТЁН","НЕ УЧТЁН","НЕ УЧТЁН","НЕ УЧТЁН","НЕ УЧТЁН","НЕ УЧТЁН","НЕ УЧТЁН","НЕ УЧТЁН","НЕ УЧТЁН","НЕ УЧТЁН","НЕ УЧТЁН","НЕ УЧТЁН","НЕ УЧТЁН","НЕ УЧТЁН","НЕ УЧТЁН","НЕ УЧТЁН","НЕ УЧТЁН","НЕ УЧТЁН","НЕ УЧТЁН","НЕ УЧТЁН","НЕ УЧТЁН","НЕ УЧТЁН","НЕ УЧТЁН","НЕ УЧТЁН","НЕ УЧТЁН","НЕ УЧТЁН","НЕ УЧТЁН","НЕ УЧТЁН","НЕ УЧТЁН","НЕ УЧТЁН","НЕ УЧТЁН","НЕ УЧТЁН","НЕ УЧТЁН","НЕ УЧТЁН","НЕ УЧТЁН","НЕ УЧТЁН","НЕ УЧТЁН","НЕ УЧТЁН","НЕ УЧТЁН","НЕ УЧТЁН","НЕ УЧТЁН","НЕ УЧТЁН","НЕ УЧТЁН","НЕ УЧТЁН","НЕ УЧТЁН","НЕ УЧТЁН","НЕ УЧТЁН","НЕ УЧТЁН","НЕ УЧТЁН","НЕ УЧТЁН","НЕ УЧТЁН","НЕ УЧТЁН","НЕ УЧТЁН","НЕ УЧТЁН","НЕ УЧТЁН","НЕ УЧТЁН","НЕ УЧТЁН","НЕ УЧТЁН","НЕ УЧТЁН","НЕ УЧТЁН","НЕ УЧТЁН","НЕ УЧТЁН","НЕ УЧТЁН","НЕ УЧТЁН","НЕ УЧТЁН","НЕ УЧТЁН","НЕ УЧТЁН","НЕ УЧТЁН","НЕ УЧТЁН","НЕ УЧТЁН","НЕ УЧТЁН","НЕ УЧТЁН","НЕ УЧТЁН","НЕ УЧТЁН","НЕ УЧТЁН","НЕ УЧТЁН","НЕ УЧТЁН","НЕ УЧТЁН","НЕ УЧТЁН","НЕ УЧТЁН","НЕ УЧТЁН","НЕ УЧТЁН","НЕ УЧТЁН","НЕ УЧТЁН","НЕ УЧТЁН","НЕ УЧТЁН","НЕ УЧТЁН","НЕ УЧТЁН","НЕ УЧТЁН","НЕ УЧТЁН","НЕ УЧТЁН","НЕ УЧТЁН","НЕ УЧТЁН","НЕ УЧТЁН","НЕ УЧТЁН","НЕ УЧТЁН","НЕ УЧТЁН","НЕ УЧТЁН","НЕ УЧТЁН","НЕ УЧТЁН","НЕ УЧТЁН","НЕ УЧТЁН","НЕ УЧТЁН","НЕ УЧТЁН","НЕ УЧТЁН","НЕ УЧТЁН","НЕ УЧТЁН","НЕ УЧТЁН","НЕ УЧТЁН","НЕ УЧТЁН","НЕ УЧТЁН","НЕ УЧТЁН","НЕ УЧТЁН","НЕ УЧТЁН","НЕ УЧТЁН","НЕ УЧТЁН","НЕ УЧТЁН","НЕ УЧТЁН","НЕ УЧТЁН","НЕ УЧТЁН","НЕ УЧТЁН","НЕ УЧТЁН","НЕ УЧТЁН","НЕ УЧТЁН","НЕ УЧТЁН","НЕ УЧТЁН","НЕ УЧТЁН","НЕ УЧТЁН","НЕ УЧТЁН","НЕ УЧТЁН","НЕ УЧТЁН","НЕ УЧТЁН","НЕ УЧТЁН","НЕ УЧТЁН","НЕ УЧТЁН","НЕ УЧТЁН","НЕ УЧТЁН","НЕ УЧТЁН","НЕ УЧТЁН","НЕ УЧТЁН","НЕ УЧТЁН","НЕ УЧТЁН","НЕ УЧТЁН","НЕ УЧТЁН","НЕ УЧТЁН","НЕ УЧТЁН","НЕ УЧТЁН","НЕ УЧТЁН","НЕ УЧТЁН","НЕ УЧТЁН","НЕ УЧТЁН","НЕ УЧТЁН","НЕ УЧТЁН","НЕ УЧТЁН","НЕ УЧТЁН","НЕ УЧТЁН","НЕ УЧТЁН","НЕ УЧТЁН","НЕ УЧТЁН","НЕ УЧТЁН","НЕ УЧТЁН","НЕ УЧТЁН","НЕ УЧТЁН","НЕ УЧТЁН","НЕ УЧТЁН","НЕ УЧТЁН","НЕ УЧТЁН","НЕ УЧТЁН","НЕ УЧТЁН","НЕ УЧТЁН","НЕ УЧТЁН","НЕ УЧТЁН","НЕ УЧТЁН","НЕ УЧТЁН","НЕ УЧТЁН","НЕ УЧТЁН","НЕ УЧТЁН","НЕ УЧТЁН","НЕ УЧТЁН","НЕ УЧТЁН","НЕ УЧТЁН","НЕ УЧТЁН","НЕ УЧТЁН","НЕ УЧТЁН","НЕ УЧТЁН","НЕ УЧТЁН","НЕ УЧТЁН","НЕ УЧТЁН","НЕ УЧТЁН","НЕ УЧТЁН","НЕ УЧТЁН","НЕ УЧТЁН","НЕ УЧТЁН","НЕ УЧТЁН","НЕ УЧТЁН","НЕ УЧТЁН","НЕ УЧТЁН","НЕ УЧТЁН","НЕ УЧТЁН","НЕ УЧТЁН","НЕ УЧТЁН","НЕ УЧТЁН","НЕ УЧТЁН","НЕ УЧТЁН","НЕ УЧТЁН","НЕ УЧТЁН","НЕ УЧТЁН","НЕ УЧТЁН","НЕ УЧТЁН","НЕ УЧТЁН","НЕ УЧТЁН","НЕ УЧТЁН","НЕ УЧТЁН","НЕ УЧТЁН","НЕ УЧТЁН","НЕ УЧТЁН","НЕ УЧТЁН","НЕ УЧТЁН","НЕ УЧТЁН","НЕ УЧТЁН","НЕ УЧТЁН","НЕ УЧТЁН","НЕ УЧТЁН","НЕ УЧТЁН","НЕ УЧТЁН","НЕ УЧТЁН","НЕ УЧТЁН","НЕ УЧТЁН","НЕ УЧТЁН","НЕ УЧТЁН","НЕ УЧТЁН","НЕ УЧТЁН","НЕ УЧТЁН","НЕ УЧТЁН","НЕ УЧТЁН","НЕ УЧТЁН","НЕ УЧТЁН","НЕ УЧТЁН","НЕ УЧТЁН","НЕ УЧТЁН","НЕ УЧТЁН","НЕ УЧТЁН","НЕ УЧТЁН","НЕ УЧТЁН","НЕ УЧТЁН","НЕ УЧТЁН","НЕ УЧТЁН","НЕ УЧТЁН","НЕ УЧТЁН","НЕ УЧТЁН","НЕ УЧТЁН","НЕ УЧТЁН","НЕ УЧТЁН","НЕ УЧТЁН","НЕ УЧТЁН","НЕ УЧТЁН","НЕ УЧТЁН","НЕ УЧТЁН","НЕ УЧТЁН","НЕ УЧТЁН","НЕ УЧТЁН","НЕ УЧТЁН","НЕ УЧТЁН","НЕ УЧТЁН","НЕ УЧТЁН","НЕ УЧТЁН","НЕ УЧТЁН","НЕ УЧТЁН","НЕ УЧТЁН","НЕ УЧТЁН","НЕ УЧТЁН","НЕ УЧТЁН","НЕ УЧТЁН","НЕ УЧТЁН","НЕ УЧТЁН","НЕ УЧТЁН","НЕ УЧТЁН","НЕ УЧТЁН","НЕ УЧТЁН","НЕ УЧТЁН","НЕ УЧТЁН","НЕ УЧТЁН","НЕ УЧТЁН","НЕ УЧТЁН","НЕ УЧТЁН","НЕ УЧТЁН","НЕ УЧТЁН","НЕ УЧТЁН","НЕ УЧТЁН","НЕ УЧТЁН","НЕ УЧТЁН","НЕ УЧТЁН","НЕ УЧТЁН","НЕ УЧТЁН","НЕ УЧТЁН","НЕ УЧТЁН","НЕ УЧТЁН","НЕ УЧТЁН","НЕ УЧТЁН","НЕ УЧТЁН","НЕ УЧТЁН","НЕ УЧТЁН","НЕ УЧТЁН","НЕ УЧТЁН","НЕ УЧТЁН","НЕ УЧТЁН","НЕ УЧТЁН","НЕ УЧТЁН","НЕ УЧТЁН","НЕ УЧТЁН","НЕ УЧТЁН","НЕ УЧТЁН","НЕ УЧТЁН","НЕ УЧТЁН","НЕ УЧТЁН","НЕ УЧТЁН","НЕ УЧТЁН","НЕ УЧТЁН","НЕ УЧТЁН","НЕ УЧТЁН","НЕ УЧТЁН","НЕ УЧТЁН","НЕ УЧТЁН","НЕ УЧТЁН","НЕ УЧТЁН","НЕ УЧТЁН","НЕ УЧТЁН","НЕ УЧТЁН","НЕ УЧТЁН","НЕ УЧТЁН","НЕ УЧТЁН","НЕ УЧТЁН","НЕ УЧТЁН","НЕ УЧТЁН","НЕ УЧТЁН","НЕ УЧТЁН","НЕ УЧТЁН","НЕ УЧТЁН","НЕ УЧТЁН","НЕ УЧТЁН","НЕ УЧТЁН","НЕ УЧТЁН","НЕ УЧТЁН","НЕ УЧТЁН","НЕ УЧТЁН","НЕ УЧТЁН","НЕ УЧТЁН","НЕ УЧТЁН","НЕ УЧТЁН","НЕ УЧТЁН","НЕ УЧТЁН","НЕ УЧТЁН","НЕ УЧТЁН","НЕ УЧТЁН","НЕ УЧТЁН","НЕ УЧТЁН","НЕ УЧТЁН","НЕ УЧТЁН","НЕ УЧТЁН","НЕ УЧТЁН","НЕ УЧТЁН","НЕ УЧТЁН","НЕ УЧТЁН","НЕ УЧТЁН","НЕ УЧТЁН","НЕ УЧТЁН","НЕ УЧТЁН","НЕ УЧТЁН","НЕ УЧТЁН","НЕ УЧТЁН","НЕ УЧТЁН","НЕ УЧТЁН","НЕ УЧТЁН","НЕ УЧТЁН","НЕ УЧТЁН","НЕ УЧТЁН","НЕ УЧТЁН","НЕ УЧТЁН","НЕ УЧТЁН","НЕ УЧТЁН","НЕ УЧТЁН","НЕ УЧТЁН","НЕ УЧТЁН","НЕ УЧТЁН","НЕ УЧТЁН","НЕ УЧТЁН","НЕ УЧТЁН","НЕ УЧТЁН","НЕ УЧТЁН","НЕ УЧТЁН","НЕ УЧТЁН","НЕ УЧТЁН","НЕ УЧТЁН","НЕ УЧТЁН","НЕ УЧТЁН","НЕ УЧТЁН","НЕ УЧТЁН","НЕ УЧТЁН","НЕ УЧТЁН","НЕ УЧТЁН","НЕ УЧТЁН","НЕ УЧТЁН","НЕ УЧТЁН","НЕ УЧТЁН","НЕ УЧТЁН","НЕ УЧТЁН","НЕ УЧТЁН","НЕ УЧТЁН","НЕ УЧТЁН","НЕ УЧТЁН","НЕ УЧТЁН","НЕ УЧТЁН","НЕ УЧТЁН","НЕ УЧТЁН","НЕ УЧТЁН","НЕ УЧТЁН","НЕ УЧТЁН","НЕ УЧТЁН","НЕ УЧТЁН","НЕ УЧТЁН","НЕ УЧТЁН","НЕ УЧТЁН","НЕ УЧТЁН","НЕ УЧТЁН","НЕ УЧТЁН","НЕ УЧТЁН","НЕ УЧТЁН","НЕ УЧТЁН","НЕ УЧТЁН","НЕ УЧТЁН","НЕ УЧТЁН","НЕ УЧТЁН","НЕ УЧТЁН","НЕ УЧТЁН","НЕ УЧТЁН","НЕ УЧТЁН","НЕ УЧТЁН","НЕ УЧТЁН","НЕ УЧТЁН","НЕ УЧТЁН","НЕ УЧТЁН","НЕ УЧТЁН","НЕ УЧТЁН","НЕ УЧТЁН","НЕ УЧТЁН","НЕ УЧТЁН","НЕ УЧТЁН","НЕ УЧТЁН","НЕ УЧТЁН","НЕ УЧТЁН","НЕ УЧТЁН","НЕ УЧТЁН","НЕ УЧТЁН","НЕ УЧТЁН","НЕ УЧТЁН","НЕ УЧТЁН","НЕ УЧТЁН","НЕ УЧТЁН","НЕ УЧТЁН","НЕ УЧТЁН","НЕ УЧТЁН","НЕ УЧТЁН","НЕ УЧТЁН","НЕ УЧТЁН","НЕ УЧТЁН","НЕ УЧТЁН","НЕ УЧТЁН","НЕ УЧТЁН","НЕ УЧТЁН","НЕ УЧТЁН","НЕ УЧТЁН","НЕ УЧТЁН","НЕ УЧТЁН","НЕ УЧТЁН","НЕ УЧТЁН","НЕ УЧТЁН","НЕ УЧТЁН","НЕ УЧТЁН","НЕ УЧТЁН","НЕ УЧТЁН","НЕ УЧТЁН","НЕ УЧТЁН","НЕ УЧТЁН","НЕ УЧТЁН","НЕ УЧТЁН","НЕ УЧТЁН","НЕ УЧТЁН","НЕ УЧТЁН","НЕ УЧТЁН","НЕ УЧТЁН","НЕ УЧТЁН","НЕ УЧТЁН","НЕ УЧТЁН","НЕ УЧТЁН","НЕ УЧТЁН","НЕ УЧТЁН","НЕ УЧТЁН","НЕ УЧТЁН","НЕ УЧТЁН","НЕ УЧТЁН","НЕ УЧТЁН","НЕ УЧТЁН","НЕ УЧТЁН","НЕ УЧТЁН","НЕ УЧТЁН","НЕ УЧТЁН","НЕ УЧТЁН","НЕ УЧТЁН","НЕ УЧТЁН","НЕ УЧТЁН","НЕ УЧТЁН","НЕ УЧТЁН","НЕ УЧТЁН","НЕ УЧТЁН","НЕ УЧТЁН","НЕ УЧТЁН","НЕ УЧТЁН","НЕ УЧТЁН","НЕ УЧТЁН","НЕ УЧТЁН","НЕ УЧТЁН","НЕ УЧТЁН","НЕ УЧТЁН","НЕ УЧТЁН","НЕ УЧТЁН","НЕ УЧТЁН","НЕ УЧТЁН","НЕ УЧТЁН","НЕ УЧТЁН","НЕ УЧТЁН","НЕ УЧТЁН","НЕ УЧТЁН","НЕ УЧТЁН","НЕ УЧТЁН","НЕ УЧТЁН","НЕ УЧТЁН","НЕ УЧТЁН","НЕ УЧТЁН","НЕ УЧТЁН","НЕ УЧТЁН","НЕ УЧТЁН","НЕ УЧТЁН","НЕ УЧТЁН","НЕ УЧТЁН","НЕ УЧТЁН","НЕ УЧТЁН","НЕ УЧТЁН","НЕ УЧТЁН","НЕ УЧТЁН","НЕ УЧТЁН","НЕ УЧТЁН","НЕ УЧТЁН","НЕ УЧТЁН","НЕ УЧТЁН","НЕ УЧТЁН","НЕ УЧТЁН","НЕ УЧТЁН","НЕ УЧТЁН","НЕ УЧТЁН","НЕ УЧТЁН","НЕ УЧТЁН","НЕ УЧТЁН","НЕ УЧТЁН","НЕ УЧТЁН","НЕ УЧТЁН","НЕ УЧТЁН","НЕ УЧТЁН","НЕ УЧТЁН","НЕ УЧТЁН","НЕ УЧТЁН","НЕ УЧТЁН","НЕ УЧТЁН","НЕ УЧТЁН","НЕ УЧТЁН","НЕ УЧТЁН","НЕ УЧТЁН","НЕ УЧТЁН","НЕ УЧТЁН","НЕ УЧТЁН","НЕ УЧТЁН","НЕ УЧТЁН","НЕ УЧТЁН","НЕ УЧТЁН","НЕ УЧТЁН","НЕ УЧТЁН","НЕ УЧТЁН","НЕ УЧТЁН","НЕ УЧТЁН","НЕ УЧТЁН","НЕ УЧТЁН","НЕ УЧТЁН","НЕ УЧТЁН","НЕ УЧТЁН","НЕ УЧТЁН","НЕ УЧТЁН","НЕ УЧТЁН","НЕ УЧТЁН","НЕ УЧТЁН","НЕ УЧТЁН","НЕ УЧТЁН","НЕ УЧТЁН","НЕ УЧТЁН","НЕ УЧТЁН","НЕ УЧТЁН","НЕ УЧТЁН","НЕ УЧТЁН","НЕ УЧТЁН","НЕ УЧТЁН","НЕ УЧТЁН","НЕ УЧТЁН","НЕ УЧТЁН","НЕ УЧТЁН","НЕ УЧТЁН","НЕ УЧТЁН","НЕ УЧТЁН","НЕ УЧТЁН","НЕ УЧТЁН","НЕ УЧТЁН","НЕ УЧТЁН","НЕ УЧТЁН","НЕ УЧТЁН","НЕ УЧТЁН","НЕ УЧТЁН","НЕ УЧТЁН","НЕ УЧТЁН","НЕ УЧТЁН","НЕ УЧТЁН","НЕ УЧТЁН","НЕ УЧТЁН","НЕ УЧТЁН","НЕ УЧТЁН","НЕ УЧТЁН","НЕ УЧТЁН","НЕ УЧТЁН","НЕ УЧТЁН","НЕ УЧТЁН","НЕ УЧТЁН","НЕ УЧТЁН","НЕ УЧТЁН","НЕ УЧТЁН","НЕ УЧТЁН","НЕ УЧТЁН","НЕ УЧТЁН","НЕ УЧТЁН","НЕ УЧТЁН","НЕ УЧТЁН","НЕ УЧТЁН","НЕ УЧТЁН","НЕ УЧТЁН","НЕ УЧТЁН","НЕ УЧТЁН","НЕ УЧТЁН","НЕ УЧТЁН","НЕ УЧТЁН","НЕ УЧТЁН","НЕ УЧТЁН","НЕ УЧТЁН","НЕ УЧТЁН","НЕ УЧТЁН","НЕ УЧТЁН","НЕ УЧТЁН","НЕ УЧТЁН","НЕ УЧТЁН","НЕ УЧТЁН","НЕ УЧТЁН","НЕ УЧТЁН","НЕ УЧТЁН","НЕ УЧТЁН","НЕ УЧТЁН","НЕ УЧТЁН","НЕ УЧТЁН","НЕ УЧТЁН","НЕ УЧТЁН","НЕ УЧТЁН","НЕ УЧТЁН","НЕ УЧТЁН","НЕ УЧТЁН","НЕ УЧТЁН","НЕ УЧТЁН","НЕ УЧТЁН","НЕ УЧТЁН","НЕ УЧТЁН","НЕ УЧТЁН","НЕ УЧТЁН","НЕ УЧТЁН","НЕ УЧТЁН","НЕ УЧТЁН","НЕ УЧТЁН","НЕ УЧТЁН","НЕ УЧТЁН","НЕ УЧТЁН","НЕ УЧТЁН","НЕ УЧТЁН","НЕ УЧТЁН","НЕ УЧТЁН","НЕ УЧТЁН","НЕ УЧТЁН","НЕ УЧТЁН","НЕ УЧТЁН","НЕ УЧТЁН","НЕ УЧТЁН","НЕ УЧТЁН","НЕ УЧТЁН","НЕ УЧТЁН","НЕ УЧТЁН","НЕ УЧТЁН","НЕ УЧТЁН","НЕ УЧТЁН","НЕ УЧТЁН","НЕ УЧТЁН","НЕ УЧТЁН","НЕ УЧТЁН","НЕ УЧТЁН","НЕ УЧТЁН","НЕ УЧТЁН","НЕ УЧТЁН","НЕ УЧТЁН","НЕ УЧТЁН","НЕ УЧТЁН","НЕ УЧТЁН","НЕ УЧТЁН","НЕ УЧТЁН","НЕ УЧТЁН","НЕ УЧТЁН","НЕ УЧТЁН","НЕ УЧТЁН","НЕ УЧТЁН","НЕ УЧТЁН","НЕ УЧТЁН","НЕ УЧТЁН","НЕ УЧТЁН","НЕ УЧТЁН","НЕ УЧТЁН","НЕ УЧТЁН","НЕ УЧТЁН","НЕ УЧТЁН","НЕ УЧТЁН","НЕ УЧТЁН","НЕ УЧТЁН","НЕ УЧТЁН","НЕ УЧТЁН","НЕ УЧТЁН","НЕ УЧТЁН","НЕ УЧТЁН","НЕ УЧТЁН","НЕ УЧТЁН","НЕ УЧТЁН","НЕ УЧТЁН","НЕ УЧТЁН","НЕ УЧТЁН","НЕ УЧТЁН","НЕ УЧТЁН","НЕ УЧТЁН","НЕ УЧТЁН","НЕ УЧТЁН","НЕ УЧТЁН","НЕ УЧТЁН","НЕ УЧТЁН","НЕ УЧТЁН","НЕ УЧТЁН","НЕ УЧТЁН","НЕ УЧТЁН","НЕ УЧТЁН","НЕ УЧТЁН","НЕ УЧТЁН","НЕ УЧТЁН","НЕ УЧТЁН","НЕ УЧТЁН","НЕ УЧТЁН","НЕ УЧТЁН","НЕ УЧТЁН","НЕ УЧТЁН","НЕ УЧТЁН","НЕ УЧТЁН","НЕ УЧТЁН","НЕ УЧТЁН","НЕ УЧТЁН","НЕ УЧТЁН","НЕ УЧТЁН","НЕ УЧТЁН","НЕ УЧТЁН","НЕ УЧТЁН","НЕ УЧТЁН","НЕ УЧТЁН","НЕ УЧТЁН","НЕ УЧТЁН","НЕ УЧТЁН","НЕ УЧТЁН","НЕ УЧТЁН","НЕ УЧТЁН","НЕ УЧТЁН","НЕ УЧТЁН","НЕ УЧТЁН","НЕ УЧТЁН","НЕ УЧТЁН","НЕ УЧТЁН","НЕ УЧТЁН","НЕ УЧТЁН","НЕ УЧТЁН","НЕ УЧТЁН","НЕ УЧТЁН","НЕ УЧТЁН","НЕ УЧТЁН","НЕ УЧТЁН","НЕ УЧТЁН","НЕ УЧТЁН","НЕ УЧТЁН","НЕ УЧТЁН","НЕ УЧТЁН","НЕ УЧТЁН","НЕ УЧТЁН","НЕ УЧТЁН","НЕ УЧТЁН","НЕ УЧТЁН","НЕ УЧТЁН","НЕ УЧТЁН","НЕ УЧТЁН","НЕ УЧТЁН","НЕ УЧТЁН","НЕ УЧТЁН","НЕ УЧТЁН","НЕ УЧТЁН","НЕ УЧТЁН","НЕ УЧТЁН","НЕ УЧТЁН","НЕ УЧТЁН","НЕ УЧТЁН","НЕ УЧТЁН","НЕ УЧТЁН","НЕ УЧТЁН","НЕ УЧТЁН","НЕ УЧТЁН","НЕ УЧТЁН","НЕ УЧТЁН","НЕ УЧТЁН","НЕ УЧТЁН","НЕ УЧТЁН","НЕ УЧТЁН","НЕ УЧТЁН","НЕ УЧТЁН","НЕ УЧТЁН","НЕ УЧТЁН","НЕ УЧТЁН","НЕ УЧТЁН","НЕ УЧТЁН","НЕ УЧТЁН","НЕ УЧТЁН","НЕ УЧТЁН","НЕ УЧТЁН","НЕ УЧТЁН","НЕ УЧТЁН","НЕ УЧТЁН","НЕ УЧТЁН","НЕ УЧТЁН","НЕ УЧТЁН","НЕ УЧТЁН","НЕ УЧТЁН","НЕ УЧТЁН","НЕ УЧТЁН","НЕ УЧТЁН","НЕ УЧТЁН","НЕ УЧТЁН","НЕ УЧТЁН","НЕ УЧТЁН","НЕ УЧТЁН","НЕ УЧТЁН","НЕ УЧТЁН","НЕ УЧТЁН","НЕ УЧТЁН","НЕ УЧТЁН","НЕ УЧТЁН","НЕ УЧТЁН","НЕ УЧТЁН","НЕ УЧТЁН","НЕ УЧТЁН","НЕ УЧТЁН","НЕ УЧТЁН","НЕ УЧТЁН","НЕ УЧТЁН","НЕ УЧТЁН","НЕ УЧТЁН","НЕ УЧТЁН","НЕ УЧТЁН","НЕ УЧТЁН","НЕ УЧТЁН","НЕ УЧТЁН","НЕ УЧТЁН","НЕ УЧТЁН","НЕ УЧТЁН","НЕ УЧТЁН","НЕ УЧТЁН","НЕ УЧТЁН","НЕ УЧТЁН","НЕ УЧТЁН","НЕ УЧТЁН","НЕ УЧТЁН","НЕ УЧТЁН","НЕ УЧТЁН","НЕ УЧТЁН","НЕ УЧТЁН","НЕ УЧТЁН","НЕ УЧТЁН","НЕ УЧТЁН","НЕ УЧТЁН","НЕ УЧТЁН","НЕ УЧТЁН","НЕ УЧТЁН","НЕ УЧТЁН","НЕ УЧТЁН","НЕ УЧТЁН","НЕ УЧТЁН","НЕ УЧТЁН","НЕ УЧТЁН","НЕ УЧТЁН","НЕ УЧТЁН","НЕ УЧТЁН","НЕ УЧТЁН","НЕ УЧТЁН","НЕ УЧТЁН","НЕ УЧТЁН","НЕ УЧТЁН","НЕ УЧТЁН","НЕ УЧТЁН","НЕ УЧТЁН","НЕ УЧТЁН","НЕ УЧТЁН","НЕ УЧТЁН","НЕ УЧТЁН","НЕ УЧТЁН","НЕ УЧТЁН","НЕ УЧТЁН","НЕ УЧТЁН","НЕ УЧТЁН","НЕ УЧТЁН","НЕ УЧТЁН","НЕ УЧТЁН","НЕ УЧТЁН","НЕ УЧТЁН","НЕ УЧТЁН","НЕ УЧТЁН","НЕ УЧТЁН","НЕ УЧТЁН","НЕ УЧТЁН","НЕ УЧТЁН","НЕ УЧТЁН","НЕ УЧТЁН","НЕ УЧТЁН","НЕ УЧТЁН","НЕ УЧТЁН","НЕ УЧТЁН","НЕ УЧТЁН","НЕ УЧТЁН","НЕ УЧТЁН","НЕ УЧТЁН","НЕ УЧТЁН","НЕ УЧТЁН","НЕ УЧТЁН","НЕ УЧТЁН","НЕ УЧТЁН","НЕ УЧТЁН","НЕ УЧТЁН","НЕ УЧТЁН","НЕ УЧТЁН","НЕ УЧТЁН","НЕ УЧТЁН","НЕ УЧТЁН","НЕ УЧТЁН","НЕ УЧТЁН","НЕ УЧТЁН","НЕ УЧТЁН","НЕ УЧТЁН","НЕ УЧТЁН","НЕ УЧТЁН","НЕ УЧТЁН","НЕ УЧТЁН","НЕ УЧТЁН","НЕ УЧТЁН","НЕ УЧТЁН","НЕ УЧТЁН","НЕ УЧТЁН","НЕ УЧТЁН","НЕ УЧТЁН","НЕ УЧТЁН","НЕ УЧТЁН","НЕ УЧТЁН","НЕ УЧТЁН","НЕ УЧТЁН","НЕ УЧТЁН","НЕ УЧТЁН","НЕ УЧТЁН","НЕ УЧТЁН","НЕ УЧТЁН","НЕ УЧТЁН","НЕ УЧТЁН","НЕ УЧТЁН","НЕ УЧТЁН","НЕ УЧТЁН","НЕ УЧТЁН","НЕ УЧТЁН","НЕ УЧТЁН","НЕ УЧТЁН","НЕ УЧТЁН","НЕ УЧТЁН","НЕ УЧТЁН","НЕ УЧТЁН","НЕ УЧТЁН","НЕ УЧТЁН","НЕ УЧТЁН","НЕ УЧТЁН","НЕ УЧТЁН","НЕ УЧТЁН","НЕ УЧТЁН","НЕ УЧТЁН","НЕ УЧТЁН","НЕ УЧТЁН","НЕ УЧТЁН","НЕ УЧТЁН","НЕ УЧТЁН","НЕ УЧТЁН","НЕ УЧТЁН","НЕ УЧТЁН","НЕ УЧТЁН","НЕ УЧТЁН","НЕ УЧТЁН","НЕ УЧТЁН","НЕ УЧТЁН","НЕ УЧТЁН","НЕ УЧТЁН","НЕ УЧТЁН","НЕ УЧТЁН","НЕ УЧТЁН","НЕ УЧТЁН","НЕ УЧТЁН","НЕ УЧТЁН","НЕ УЧТЁН","НЕ УЧТЁН","НЕ УЧТЁН","НЕ УЧТЁН","НЕ УЧТЁН","НЕ УЧТЁН","НЕ УЧТЁН","НЕ УЧТЁН","НЕ УЧТЁН","НЕ УЧТЁН","НЕ УЧТЁН","НЕ УЧТЁН","НЕ УЧТЁН","НЕ УЧТЁН","НЕ УЧТЁН","НЕ УЧТЁН","НЕ УЧТЁН","НЕ УЧТЁН","НЕ УЧТЁН","НЕ УЧТЁН","НЕ УЧТЁН","НЕ УЧТЁН","НЕ УЧТЁН","НЕ УЧТЁН","НЕ УЧТЁН","НЕ УЧТЁН","НЕ УЧТЁН","НЕ УЧТЁН","НЕ УЧТЁН","НЕ УЧТЁН","НЕ УЧТЁН","НЕ УЧТЁН","НЕ УЧТЁН","НЕ УЧТЁН","НЕ УЧТЁН","НЕ УЧТЁН","НЕ УЧТЁН","НЕ УЧТЁН","НЕ УЧТЁН","НЕ УЧТЁН","НЕ УЧТЁН","НЕ УЧТЁН","НЕ УЧТЁН","НЕ УЧТЁН","НЕ УЧТЁН","НЕ УЧТЁН","НЕ УЧТЁН","НЕ УЧТЁН","НЕ УЧТЁН","НЕ УЧТЁН","НЕ УЧТЁН","НЕ УЧТЁН","НЕ УЧТЁН","НЕ УЧТЁН","НЕ УЧТЁН","НЕ УЧТЁН","НЕ УЧТЁН","НЕ УЧТЁН","НЕ УЧТЁН","НЕ УЧТЁН","НЕ УЧТЁН","НЕ УЧТЁН","НЕ УЧТЁН","НЕ УЧТЁН","НЕ УЧТЁН","НЕ УЧТЁН","НЕ УЧТЁН","НЕ УЧТЁН","НЕ УЧТЁН","НЕ УЧТЁН","НЕ УЧТЁН","НЕ УЧТЁН","НЕ УЧТЁН","НЕ УЧТЁН","НЕ УЧТЁН","НЕ УЧТЁН","НЕ УЧТЁН","НЕ УЧТЁН","НЕ УЧТЁН","НЕ УЧТЁН","НЕ УЧТЁН","НЕ УЧТЁН","НЕ УЧТЁН","НЕ УЧТЁН","НЕ УЧТЁН","НЕ УЧТЁН","НЕ УЧТЁН","НЕ УЧТЁН","НЕ УЧТЁН","НЕ УЧТЁН","НЕ УЧТЁН","НЕ УЧТЁН","НЕ УЧТЁН","НЕ УЧТЁН","НЕ УЧТЁН","НЕ УЧТЁН","НЕ УЧТЁН","НЕ УЧТЁН","НЕ УЧТЁН","НЕ УЧТЁН","НЕ УЧТЁН","НЕ УЧТЁН","НЕ УЧТЁН","НЕ УЧТЁН","НЕ УЧТЁН","НЕ УЧТЁН","НЕ УЧТЁН","НЕ УЧТЁН","НЕ УЧТЁН","НЕ УЧТЁН","НЕ УЧТЁН","НЕ УЧТЁН","НЕ УЧТЁН","НЕ УЧТЁН","НЕ УЧТЁН","НЕ УЧТЁН","НЕ УЧТЁН","НЕ УЧТЁН","НЕ УЧТЁН","НЕ УЧТЁН","НЕ УЧТЁН","НЕ УЧТЁН","НЕ УЧТЁН","НЕ УЧТЁН","НЕ УЧТЁН","НЕ УЧТЁН","НЕ УЧТЁН","НЕ УЧТЁН","НЕ УЧТЁН","НЕ УЧТЁН","НЕ УЧТЁН","НЕ УЧТЁН","НЕ УЧТЁН","НЕ УЧТЁН","НЕ УЧТЁН","НЕ УЧТЁН","НЕ УЧТЁН","НЕ УЧТЁН","НЕ УЧТЁН","НЕ УЧТЁН","НЕ УЧТЁН","НЕ УЧТЁН","НЕ УЧТЁН","НЕ УЧТЁН","НЕ УЧТЁН","НЕ УЧТЁН","НЕ УЧТЁН","НЕ УЧТЁН","НЕ УЧТЁН","НЕ УЧТЁН","НЕ УЧТЁН","НЕ УЧТЁН","НЕ УЧТЁН","НЕ УЧТЁН","НЕ УЧТЁН","НЕ УЧТЁН","НЕ УЧТЁН","НЕ УЧТЁН","НЕ УЧТЁН","НЕ УЧТЁН","НЕ УЧТЁН","НЕ УЧТЁН","НЕ УЧТЁН","НЕ УЧТЁН","НЕ УЧТЁН","НЕ УЧТЁН","НЕ УЧТЁН","НЕ УЧТЁН","НЕ УЧТЁН","НЕ УЧТЁН","НЕ УЧТЁН","НЕ УЧТЁН","НЕ УЧТЁН","НЕ УЧТЁН","НЕ УЧТЁН","НЕ УЧТЁН","НЕ УЧТЁН","НЕ УЧТЁН","НЕ УЧТЁН","НЕ УЧТЁН","НЕ УЧТЁН","НЕ УЧТЁН","НЕ УЧТЁН","НЕ УЧТЁН","НЕ УЧТЁН","НЕ УЧТЁН","НЕ УЧТЁН","НЕ УЧТЁН","НЕ УЧТЁН","НЕ УЧТЁН","НЕ УЧТЁН","НЕ УЧТЁН","НЕ УЧТЁН","НЕ УЧТЁН","НЕ УЧТЁН","НЕ УЧТЁН","НЕ УЧТЁН","НЕ УЧТЁН","НЕ УЧТЁН","НЕ УЧТЁН","НЕ УЧТЁН","НЕ УЧТЁН","НЕ УЧТЁН","НЕ УЧТЁН","НЕ УЧТЁН","НЕ УЧТЁН","НЕ УЧТЁН","НЕ УЧТЁН","НЕ УЧТЁН","НЕ УЧТЁН","НЕ УЧТЁН","НЕ УЧТЁН","НЕ УЧТЁН","НЕ УЧТЁН","НЕ УЧТЁН","НЕ УЧТЁН","НЕ УЧТЁН","НЕ УЧТЁН","НЕ УЧТЁН","НЕ УЧТЁН","НЕ УЧТЁН","НЕ УЧТЁН","НЕ УЧТЁН","НЕ УЧТЁН","НЕ УЧТЁН","НЕ УЧТЁН","НЕ УЧТЁН","НЕ УЧТЁН","НЕ УЧТЁН","НЕ УЧТЁН","НЕ УЧТЁН","НЕ УЧТЁН","НЕ УЧТЁН","НЕ УЧТЁН","НЕ УЧТЁН","НЕ УЧТЁН","НЕ УЧТЁН","НЕ УЧТЁН","НЕ УЧТЁН","НЕ УЧТЁН","НЕ УЧТЁН","НЕ УЧТЁН","НЕ УЧТЁН","НЕ УЧТЁН","НЕ УЧТЁН","НЕ УЧТЁН","НЕ УЧТЁН","НЕ УЧТЁН","НЕ УЧТЁН","НЕ УЧТЁН","НЕ УЧТЁН","НЕ УЧТЁН","НЕ УЧТЁН","НЕ УЧТЁН","НЕ УЧТЁН","НЕ УЧТЁН","НЕ УЧТЁН","НЕ УЧТЁН","НЕ УЧТЁН","НЕ УЧТЁН","НЕ УЧТЁН","НЕ УЧТЁН","НЕ УЧТЁН","НЕ УЧТЁН","НЕ УЧТЁН","НЕ УЧТЁН","НЕ УЧТЁН","НЕ УЧТЁН","НЕ УЧТЁН","НЕ УЧТЁН","НЕ УЧТЁН","НЕ УЧТЁН","НЕ УЧТЁН","НЕ УЧТЁН","НЕ УЧТЁН","НЕ УЧТЁН","НЕ УЧТЁН","НЕ УЧТЁН","НЕ УЧТЁН","НЕ УЧТЁН","НЕ УЧТЁН","НЕ УЧТЁН","НЕ УЧТЁН","НЕ УЧТЁН","НЕ УЧТЁН","НЕ УЧТЁН","НЕ УЧТЁН","НЕ УЧТЁН","НЕ УЧТЁН","НЕ УЧТЁН","НЕ УЧТЁН","НЕ УЧТЁН","НЕ УЧТЁН","НЕ УЧТЁН","НЕ УЧТЁН","НЕ УЧТЁН","НЕ УЧТЁН","НЕ УЧТЁН","НЕ УЧТЁН","НЕ УЧТЁН","НЕ УЧТЁН","НЕ УЧТЁН","НЕ УЧТЁН","НЕ УЧТЁН","НЕ УЧТЁН","НЕ УЧТЁН","НЕ УЧТЁН","НЕ УЧТЁН","НЕ УЧТЁН","НЕ УЧТЁН","НЕ УЧТЁН","НЕ УЧТЁН","НЕ УЧТЁН","НЕ УЧТЁН","НЕ УЧТЁН","НЕ УЧТЁН","НЕ УЧТЁН","НЕ УЧТЁН","НЕ УЧТЁН","НЕ УЧТЁН","НЕ УЧТЁН","НЕ УЧТЁН","НЕ УЧТЁН","НЕ УЧТЁН","НЕ УЧТЁН","НЕ УЧТЁН","НЕ УЧТЁН","НЕ УЧТЁН","НЕ УЧТЁН","НЕ УЧТЁН","НЕ УЧТЁН","НЕ УЧТЁН","НЕ УЧТЁН","НЕ УЧТЁН","НЕ УЧТЁН","НЕ УЧТЁН","НЕ УЧТЁН","НЕ УЧТЁН","НЕ УЧТЁН","НЕ УЧТЁН","НЕ УЧТЁН","НЕ УЧТЁН","НЕ УЧТЁН","НЕ УЧТЁН","НЕ УЧТЁН","НЕ УЧТЁН","НЕ УЧТЁН","НЕ УЧТЁН","НЕ УЧТЁН","НЕ УЧТЁН","НЕ УЧТЁН","НЕ УЧТЁН","НЕ УЧТЁН","НЕ УЧТЁН","НЕ УЧТЁН","НЕ УЧТЁН","НЕ УЧТЁН","НЕ УЧТЁН","НЕ УЧТЁН","НЕ УЧТЁН","НЕ УЧТЁН","НЕ УЧТЁН","НЕ УЧТЁН","НЕ УЧТЁН","НЕ УЧТЁН","НЕ УЧТЁН","НЕ УЧТЁН","НЕ УЧТЁН","НЕ УЧТЁН","НЕ УЧТЁН","НЕ УЧТЁН","НЕ УЧТЁН","НЕ УЧТЁН","НЕ УЧТЁН","НЕ УЧТЁН","НЕ УЧТЁН","НЕ УЧТЁН","НЕ УЧТЁН","НЕ УЧТЁН","НЕ УЧТЁН","НЕ УЧТЁН","НЕ УЧТЁН","НЕ УЧТЁН","НЕ УЧТЁН","НЕ УЧТЁН","НЕ УЧТЁН","НЕ УЧТЁН","НЕ УЧТЁН","НЕ УЧТЁН","НЕ УЧТЁН","НЕ УЧТЁН","НЕ УЧТЁН","НЕ УЧТЁН","НЕ УЧТЁН","НЕ УЧТЁН","НЕ УЧТЁН","НЕ УЧТЁН","НЕ УЧТЁН","НЕ УЧТЁН","НЕ УЧТЁН","НЕ УЧТЁН","НЕ УЧТЁН","НЕ УЧТЁН","НЕ УЧТЁН","НЕ УЧТЁН","НЕ УЧТЁН","НЕ УЧТЁН","НЕ УЧТЁН","НЕ УЧТЁН","НЕ УЧТЁН","НЕ УЧТЁН","НЕ УЧТЁН","НЕ УЧТЁН","НЕ УЧТЁН","НЕ УЧТЁН","НЕ УЧТЁН","НЕ УЧТЁН","НЕ УЧТЁН","НЕ УЧТЁН","НЕ УЧТЁН","НЕ УЧТЁН","НЕ УЧТЁН","НЕ УЧТЁН","НЕ УЧТЁН","НЕ УЧТЁН","НЕ УЧТЁН","НЕ УЧТЁН","НЕ УЧТЁН","НЕ УЧТЁН","НЕ УЧТЁН","НЕ УЧТЁН","НЕ УЧТЁН","НЕ УЧТЁН","НЕ УЧТЁН","НЕ УЧТЁН","НЕ УЧТЁН","НЕ УЧТЁН","НЕ УЧТЁН","НЕ УЧТЁН","НЕ УЧТЁН","НЕ УЧТЁН","НЕ УЧТЁН","НЕ УЧТЁН","НЕ УЧТЁН","НЕ УЧТЁН","НЕ УЧТЁН","НЕ УЧТЁН","НЕ УЧТЁН","НЕ УЧТЁН","НЕ УЧТЁН","НЕ УЧТЁН","НЕ УЧТЁН","НЕ УЧТЁН","НЕ УЧТЁН","НЕ УЧТЁН","НЕ УЧТЁН","НЕ УЧТЁН","НЕ УЧТЁН","НЕ УЧТЁН","НЕ УЧТЁН","НЕ УЧТЁН","НЕ УЧТЁН","НЕ УЧТЁН","НЕ УЧТЁН","НЕ УЧТЁН","НЕ УЧТЁН","НЕ УЧТЁН","НЕ УЧТЁН","НЕ УЧТЁН","НЕ УЧТЁН","НЕ УЧТЁН","НЕ УЧТЁН","НЕ УЧТЁН","НЕ УЧТЁН","НЕ УЧТЁН","НЕ УЧТЁН","НЕ УЧТЁН","НЕ УЧТЁН","НЕ УЧТЁН","НЕ УЧТЁН","НЕ УЧТЁН","НЕ УЧТЁН","НЕ УЧТЁН","НЕ УЧТЁН","НЕ УЧТЁН","НЕ УЧТЁН","НЕ УЧТЁН","НЕ УЧТЁН","НЕ УЧТЁН","НЕ УЧТЁН","НЕ УЧТЁН","НЕ УЧТЁН","НЕ УЧТЁН","НЕ УЧТЁН","НЕ УЧТЁН","НЕ УЧТЁН","НЕ УЧТЁН","НЕ УЧТЁН","НЕ УЧТЁН","НЕ УЧТЁН","НЕ УЧТЁН","НЕ УЧТЁН","НЕ УЧТЁН","НЕ УЧТЁН","НЕ УЧТЁН","НЕ УЧТЁН","НЕ УЧТЁН","НЕ УЧТЁН","НЕ УЧТЁН","НЕ УЧТЁН","НЕ УЧТЁН","НЕ УЧТЁН","НЕ УЧТЁН","НЕ УЧТЁН","НЕ УЧТЁН","НЕ УЧТЁН","НЕ УЧТЁН","НЕ УЧТЁН","НЕ УЧТЁН","НЕ УЧТЁН","НЕ УЧТЁН","НЕ УЧТЁН","НЕ УЧТЁН","НЕ УЧТЁН","НЕ УЧТЁН","НЕ УЧТЁН","НЕ УЧТЁН","НЕ УЧТЁН","НЕ УЧТЁН","НЕ УЧТЁН","НЕ УЧТЁН","НЕ УЧТЁН","НЕ УЧТЁН","НЕ УЧТЁН","НЕ УЧТЁН","НЕ УЧТЁН","НЕ УЧТЁН","НЕ УЧТЁН","НЕ УЧТЁН","НЕ УЧТЁН","НЕ УЧТЁН","НЕ УЧТЁН","НЕ УЧТЁН","НЕ УЧТЁН","НЕ УЧТЁН","НЕ УЧТЁН","НЕ УЧТЁН","НЕ УЧТЁН","НЕ УЧТЁН","НЕ УЧТЁН","НЕ УЧТЁН","НЕ УЧТЁН","НЕ УЧТЁН","НЕ УЧТЁН","НЕ УЧТЁН","НЕ УЧТЁН","НЕ УЧТЁН","НЕ УЧТЁН","НЕ УЧТЁН","НЕ УЧТЁН","НЕ УЧТЁН","НЕ УЧТЁН","НЕ УЧТЁН","НЕ УЧТЁН","НЕ УЧТЁН","НЕ УЧТЁН","НЕ УЧТЁН","НЕ УЧТЁН","НЕ УЧТЁН","НЕ УЧТЁН","НЕ УЧТЁН","НЕ УЧТЁН","НЕ УЧТЁН","НЕ УЧТЁН","НЕ УЧТЁН","НЕ УЧТЁН","НЕ УЧТЁН","НЕ УЧТЁН","НЕ УЧТЁН","НЕ УЧТЁН","НЕ УЧТЁН","НЕ УЧТЁН","НЕ УЧТЁН","НЕ УЧТЁН","НЕ УЧТЁН","НЕ УЧТЁН","НЕ УЧТЁН","НЕ УЧТЁН","НЕ УЧТЁН","НЕ УЧТЁН","НЕ УЧТЁН","НЕ УЧТЁН","НЕ УЧТЁН","НЕ УЧТЁН","НЕ УЧТЁН","НЕ УЧТЁН","НЕ УЧТЁН","НЕ УЧТЁН","НЕ УЧТЁН","НЕ УЧТЁН","НЕ УЧТЁН","НЕ УЧТЁН","НЕ УЧТЁН","НЕ УЧТЁН","НЕ УЧТЁН","НЕ УЧТЁН","НЕ УЧТЁН","НЕ УЧТЁН","НЕ УЧТЁН","НЕ УЧТЁН","НЕ УЧТЁН","НЕ УЧТЁН","НЕ УЧТЁН","НЕ УЧТЁН","НЕ УЧТЁН","НЕ УЧТЁН","НЕ УЧТЁН","НЕ УЧТЁН","НЕ УЧТЁН","НЕ УЧТЁН","НЕ УЧТЁН","НЕ УЧТЁН","НЕ УЧТЁН","НЕ УЧТЁН","НЕ УЧТЁН","НЕ УЧТЁН","НЕ УЧТЁН","НЕ УЧТЁН","НЕ УЧТЁН","НЕ УЧТЁН","НЕ УЧТЁН","НЕ УЧТЁН","НЕ УЧТЁН","НЕ УЧТЁН","НЕ УЧТЁН","НЕ УЧТЁН","НЕ УЧТЁН","НЕ УЧТЁН","НЕ УЧТЁН","НЕ УЧТЁН","НЕ УЧТЁН","НЕ УЧТЁН","НЕ УЧТЁН","НЕ УЧТЁН","НЕ УЧТЁН","НЕ УЧТЁН","НЕ УЧТЁН","НЕ УЧТЁН","НЕ УЧТЁН","НЕ УЧТЁН","НЕ УЧТЁН","НЕ УЧТЁН","НЕ УЧТЁН","НЕ УЧТЁН","НЕ УЧТЁН","НЕ УЧТЁН","НЕ УЧТЁН","НЕ УЧТЁН","НЕ УЧТЁН","НЕ УЧТЁН","НЕ УЧТЁН","НЕ УЧТЁН","НЕ УЧТЁН","НЕ УЧТЁН","НЕ УЧТЁН","НЕ УЧТЁН","НЕ УЧТЁН","НЕ УЧТЁН","НЕ УЧТЁН","НЕ УЧТЁН","НЕ УЧТЁН","НЕ УЧТЁН","НЕ УЧТЁН","НЕ УЧТЁН","НЕ УЧТЁН","НЕ УЧТЁН","НЕ УЧТЁН","НЕ УЧТЁН","НЕ УЧТЁН","НЕ УЧТЁН","НЕ УЧТЁН","НЕ УЧТЁН","НЕ УЧТЁН","НЕ УЧТЁН","НЕ УЧТЁН","НЕ УЧТЁН","НЕ УЧТЁН","НЕ УЧТЁН","НЕ УЧТЁН","НЕ УЧТЁН","НЕ УЧТЁН","НЕ УЧТЁН","НЕ УЧТЁН","НЕ УЧТЁН","НЕ УЧТЁН","НЕ УЧТЁН","НЕ УЧТЁН","НЕ УЧТЁН","НЕ УЧТЁН","НЕ УЧТЁН","НЕ УЧТЁН","НЕ УЧТЁН","НЕ УЧТЁН","НЕ УЧТЁН","НЕ УЧТЁН","НЕ УЧТЁН","НЕ УЧТЁН","НЕ УЧТЁН","НЕ УЧТЁН","НЕ УЧТЁН","НЕ УЧТЁН","НЕ УЧТЁН","НЕ УЧТЁН","НЕ УЧТЁН","НЕ УЧТЁН","НЕ УЧТЁН","НЕ УЧТЁН","НЕ УЧТЁН","НЕ УЧТЁН","НЕ УЧТЁН","НЕ УЧТЁН","НЕ УЧТЁН","НЕ УЧТЁН","НЕ УЧТЁН","НЕ УЧТЁН","НЕ УЧТЁН","НЕ УЧТЁН","НЕ УЧТЁН","НЕ УЧТЁН","НЕ УЧТЁН","НЕ УЧТЁН","НЕ УЧТЁН","НЕ УЧТЁН","НЕ УЧТЁН","НЕ УЧТЁН","НЕ УЧТЁН","НЕ УЧТЁН","НЕ УЧТЁН","НЕ УЧТЁН","НЕ УЧТЁН","НЕ УЧТЁН","НЕ УЧТЁН","НЕ УЧТЁН","НЕ УЧТЁН","НЕ УЧТЁН","НЕ УЧТЁН","НЕ УЧТЁН","НЕ УЧТЁН","НЕ УЧТЁН","НЕ УЧТЁН","НЕ УЧТЁН","НЕ УЧТЁН","НЕ УЧТЁН","НЕ УЧТЁН","НЕ УЧТЁН","НЕ УЧТЁН","НЕ УЧТЁН","НЕ УЧТЁН","НЕ УЧТЁН","НЕ УЧТЁН","НЕ УЧТЁН","НЕ УЧТЁН","НЕ УЧТЁН","НЕ УЧТЁН","НЕ УЧТЁН","НЕ УЧТЁН","НЕ УЧТЁН","НЕ УЧТЁН","НЕ УЧТЁН","НЕ УЧТЁН","НЕ УЧТЁН","НЕ УЧТЁН","НЕ УЧТЁН","НЕ УЧТЁН","НЕ УЧТЁН","НЕ УЧТЁН","НЕ УЧТЁН","НЕ УЧТЁН","НЕ УЧТЁН","НЕ УЧТЁН","НЕ УЧТЁН","НЕ УЧТЁН","НЕ УЧТЁН","НЕ УЧТЁН","НЕ УЧТЁН","НЕ УЧТЁН","НЕ УЧТЁН","НЕ УЧТЁН","НЕ УЧТЁН","НЕ УЧТЁН","НЕ УЧТЁН","НЕ УЧТЁН","НЕ УЧТЁН","НЕ УЧТЁН","НЕ УЧТЁН","НЕ УЧТЁН","НЕ УЧТЁН","НЕ УЧТЁН","НЕ УЧТЁН","НЕ УЧТЁН","НЕ УЧТЁН","НЕ УЧТЁН","НЕ УЧТЁН","НЕ УЧТЁН","НЕ УЧТЁН","НЕ УЧТЁН","НЕ УЧТЁН","НЕ УЧТЁН","НЕ УЧТЁН","НЕ УЧТЁН","НЕ УЧТЁН","НЕ УЧТЁН","НЕ УЧТЁН","НЕ УЧТЁН","НЕ УЧТЁН","НЕ УЧТЁН","НЕ УЧТЁН","НЕ УЧТЁН","НЕ УЧТЁН","НЕ УЧТЁН","НЕ УЧТЁН","НЕ УЧТЁН","НЕ УЧТЁН","НЕ УЧТЁН","НЕ УЧТЁН","НЕ УЧТЁН","НЕ УЧТЁН","НЕ УЧТЁН","НЕ УЧТЁН","НЕ УЧТЁН","НЕ УЧТЁН","НЕ УЧТЁН","НЕ УЧТЁН","НЕ УЧТЁН","НЕ УЧТЁН","НЕ УЧТЁН","НЕ УЧТЁН","НЕ УЧТЁН","НЕ УЧТЁН","НЕ УЧТЁН","НЕ УЧТЁН","НЕ УЧТЁН","НЕ УЧТЁН","НЕ УЧТЁН","НЕ УЧТЁН","НЕ УЧТЁН","НЕ УЧТЁН","НЕ УЧТЁН","НЕ УЧТЁН","НЕ УЧТЁН","НЕ УЧТЁН","НЕ УЧТЁН","НЕ УЧТЁН","НЕ УЧТЁН","НЕ УЧТЁН","НЕ УЧТЁН","НЕ УЧТЁН","НЕ УЧТЁН","НЕ УЧТЁН","НЕ УЧТЁН","НЕ УЧТЁН","НЕ УЧТЁН","НЕ УЧТЁН","НЕ УЧТЁН","НЕ УЧТЁН","НЕ УЧТЁН","НЕ УЧТЁН","НЕ УЧТЁН","НЕ УЧТЁН","НЕ УЧТЁН","НЕ УЧТЁН","НЕ УЧТЁН","НЕ УЧТЁН","НЕ УЧТЁН","НЕ УЧТЁН","НЕ УЧТЁН","НЕ УЧТЁН","НЕ УЧТЁН","НЕ УЧТЁН","НЕ УЧТЁН","НЕ УЧТЁН","НЕ УЧТЁН","НЕ УЧТЁН","НЕ УЧТЁН","НЕ УЧТЁН","НЕ УЧТЁН","НЕ УЧТЁН","НЕ УЧТЁН","НЕ УЧТЁН","НЕ УЧТЁН","НЕ УЧТЁН","НЕ УЧТЁН","НЕ УЧТЁН","НЕ УЧТЁН","НЕ УЧТЁН","НЕ УЧТЁН","НЕ УЧТЁН","НЕ УЧТЁН","НЕ УЧТЁН","НЕ УЧТЁН","НЕ УЧТЁН","НЕ УЧТЁН","НЕ УЧТЁН","НЕ УЧТЁН","НЕ УЧТЁН","НЕ УЧТЁН","НЕ УЧТЁН","НЕ УЧТЁН","НЕ УЧТЁН","НЕ УЧТЁН","НЕ УЧТЁН","НЕ УЧТЁН","НЕ УЧТЁН","НЕ УЧТЁН","НЕ УЧТЁН","НЕ УЧТЁН","НЕ УЧТЁН","НЕ УЧТЁН","НЕ УЧТЁН","НЕ УЧТЁН","НЕ УЧТЁН","НЕ УЧТЁН","НЕ УЧТЁН","НЕ УЧТЁН","НЕ УЧТЁН","НЕ УЧТЁН","НЕ УЧТЁН","НЕ УЧТЁН","НЕ УЧТЁН","НЕ УЧТЁН","НЕ УЧТЁН","НЕ УЧТЁН","НЕ УЧТЁН","НЕ УЧТЁН","НЕ УЧТЁН","НЕ УЧТЁН","НЕ УЧТЁН","НЕ УЧТЁН","НЕ УЧТЁН","НЕ УЧТЁН","НЕ УЧТЁН","НЕ УЧТЁН","НЕ УЧТЁН","НЕ УЧТЁН","НЕ УЧТЁН","НЕ УЧТЁН","НЕ УЧТЁН","НЕ УЧТЁН","НЕ УЧТЁН","НЕ УЧТЁН","НЕ УЧТЁН","НЕ УЧТЁН","НЕ УЧТЁН","НЕ УЧТЁН","НЕ УЧТЁН","НЕ УЧТЁН","НЕ УЧТЁН","НЕ УЧТЁН","НЕ УЧТЁН","НЕ УЧТЁН","НЕ УЧТЁН","НЕ УЧТЁН","НЕ УЧТЁН","НЕ УЧТЁН","НЕ УЧТЁН","НЕ УЧТЁН","НЕ УЧТЁН","НЕ УЧТЁН","НЕ УЧТЁН","НЕ УЧТЁН","НЕ УЧТЁН","НЕ УЧТЁН","НЕ УЧТЁН","НЕ УЧТЁН","НЕ УЧТЁН","НЕ УЧТЁН","НЕ УЧТЁН","НЕ УЧТЁН","НЕ УЧТЁН","НЕ УЧТЁН","НЕ УЧТЁН","НЕ УЧТЁН","НЕ УЧТЁН","НЕ УЧТЁН","НЕ УЧТЁН","НЕ УЧТЁН","НЕ УЧТЁН","НЕ УЧТЁН","НЕ УЧТЁН","НЕ УЧТЁН","НЕ УЧТЁН","НЕ УЧТЁН","НЕ УЧТЁН","НЕ УЧТЁН","НЕ УЧТЁН","НЕ УЧТЁН","НЕ УЧТЁН","НЕ УЧТЁН","НЕ УЧТЁН","НЕ УЧТЁН","НЕ УЧТЁН","НЕ УЧТЁН","НЕ УЧТЁН","НЕ УЧТЁН","НЕ УЧТЁН","НЕ УЧТЁН","НЕ УЧТЁН","НЕ УЧТЁН","НЕ УЧТЁН","НЕ УЧТЁН","НЕ УЧТЁН","НЕ УЧТЁН","НЕ УЧТЁН","НЕ УЧТЁН","НЕ УЧТЁН","НЕ УЧТЁН","НЕ УЧТЁН","НЕ УЧТЁН","НЕ УЧТЁН","НЕ УЧТЁН","НЕ УЧТЁН","НЕ УЧТЁН","НЕ УЧТЁН","НЕ УЧТЁН","НЕ УЧТЁН","НЕ УЧТЁН","НЕ УЧТЁН","НЕ УЧТЁН","НЕ УЧТЁН","НЕ УЧТЁН","НЕ УЧТЁН","НЕ УЧТЁН","НЕ УЧТЁН","НЕ УЧТЁН","НЕ УЧТЁН","НЕ УЧТЁН","НЕ УЧТЁН","НЕ УЧТЁН","НЕ УЧТЁН","НЕ УЧТЁН","НЕ УЧТЁН","НЕ УЧТЁН","НЕ УЧТЁН","НЕ УЧТЁН","НЕ УЧТЁН","НЕ УЧТЁН","НЕ УЧТЁН","НЕ УЧТЁН","НЕ УЧТЁН","НЕ УЧТЁН","НЕ УЧТЁН","НЕ УЧТЁН","НЕ УЧТЁН","НЕ УЧТЁН","НЕ УЧТЁН","НЕ УЧТЁН","НЕ УЧТЁН","НЕ УЧТЁН","НЕ УЧТЁН","НЕ УЧТЁН","НЕ УЧТЁН","НЕ УЧТЁН","НЕ УЧТЁН","НЕ УЧТЁН","НЕ УЧТЁН","НЕ УЧТЁН","НЕ УЧТЁН","НЕ УЧТЁН","НЕ УЧТЁН","НЕ УЧТЁН","НЕ УЧТЁН","НЕ УЧТЁН","НЕ УЧТЁН","НЕ УЧТЁН","НЕ УЧТЁН","НЕ УЧТЁН","НЕ УЧТЁН","НЕ УЧТЁН","НЕ УЧТЁН","НЕ УЧТЁН","НЕ УЧТЁН","НЕ УЧТЁН","НЕ УЧТЁН","НЕ УЧТЁН","НЕ УЧТЁН","НЕ УЧТЁН","НЕ УЧТЁН","НЕ УЧТЁН","НЕ УЧТЁН","НЕ УЧТЁН","НЕ УЧТЁН","НЕ УЧТЁН","НЕ УЧТЁН","НЕ УЧТЁН","НЕ УЧТЁН","НЕ УЧТЁН","НЕ УЧТЁН","НЕ УЧТЁН","НЕ УЧТЁН","НЕ УЧТЁН","НЕ УЧТЁН","НЕ УЧТЁН","НЕ УЧТЁН","НЕ УЧТЁН","НЕ УЧТЁН","НЕ УЧТЁН","НЕ УЧТЁН","НЕ УЧТЁН","НЕ УЧТЁН","НЕ УЧТЁН","НЕ УЧТЁН","НЕ УЧТЁН","НЕ УЧТЁН","НЕ УЧТЁН","НЕ УЧТЁН","НЕ УЧТЁН","НЕ УЧТЁН","НЕ УЧТЁН","НЕ УЧТЁН","НЕ УЧТЁН","НЕ УЧТЁН","НЕ УЧТЁН","НЕ УЧТЁН","НЕ УЧТЁН","НЕ УЧТЁН","НЕ УЧТЁН","НЕ УЧТЁН","НЕ УЧТЁН","НЕ УЧТЁН","НЕ УЧТЁН","НЕ УЧТЁН","НЕ УЧТЁН","НЕ УЧТЁН","НЕ УЧТЁН","НЕ УЧТЁН","НЕ УЧТЁН","НЕ УЧТЁН","НЕ УЧТЁН","НЕ УЧТЁН","НЕ УЧТЁН","НЕ УЧТЁН","НЕ УЧТЁН","НЕ УЧТЁН","НЕ УЧТЁН","НЕ УЧТЁН","НЕ УЧТЁН","НЕ УЧТЁН","НЕ УЧТЁН","НЕ УЧТЁН","НЕ УЧТЁН","НЕ УЧТЁН","НЕ УЧТЁН","НЕ УЧТЁН","НЕ УЧТЁН","НЕ УЧТЁН","НЕ УЧТЁН","НЕ УЧТЁН","НЕ УЧТЁН","НЕ УЧТЁН","НЕ УЧТЁН","НЕ УЧТЁН","НЕ УЧТЁН","НЕ УЧТЁН","НЕ УЧТЁН","НЕ УЧТЁН","НЕ УЧТЁН","НЕ УЧТЁН","НЕ УЧТЁН","НЕ УЧТЁН","НЕ УЧТЁН","НЕ УЧТЁН","НЕ УЧТЁН","НЕ УЧТЁН","НЕ УЧТЁН","НЕ УЧТЁН","НЕ УЧТЁН","НЕ УЧТЁН","НЕ УЧТЁН","НЕ УЧТЁН","НЕ УЧТЁН","НЕ УЧТЁН","НЕ УЧТЁН","НЕ УЧТЁН","НЕ УЧТЁН","НЕ УЧТЁН","НЕ УЧТЁН","НЕ УЧТЁН","НЕ УЧТЁН","НЕ УЧТЁН","НЕ УЧТЁН","НЕ УЧТЁН","НЕ УЧТЁН","НЕ УЧТЁН","НЕ УЧТЁН","НЕ УЧТЁН","НЕ УЧТЁН","НЕ УЧТЁН","НЕ УЧТЁН","НЕ УЧТЁН","НЕ УЧТЁН","НЕ УЧТЁН","НЕ УЧТЁН","НЕ УЧТЁН","НЕ УЧТЁН","НЕ УЧТЁН","НЕ УЧТЁН","НЕ УЧТЁН","НЕ УЧТЁН","НЕ УЧТЁН","НЕ УЧТЁН","НЕ УЧТЁН","НЕ УЧТЁН","НЕ УЧТЁН","НЕ УЧТЁН","НЕ УЧТЁН","НЕ УЧТЁН","НЕ УЧТЁН","НЕ УЧТЁН","НЕ УЧТЁН","НЕ УЧТЁН","НЕ УЧТЁН","НЕ УЧТЁН","НЕ УЧТЁН","НЕ УЧТЁН","НЕ УЧТЁН","НЕ УЧТЁН","НЕ УЧТЁН","НЕ УЧТЁН","НЕ УЧТЁН","НЕ УЧТЁН","НЕ УЧТЁН","НЕ УЧТЁН","НЕ УЧТЁН","НЕ УЧТЁН","НЕ УЧТЁН","НЕ УЧТЁН","НЕ УЧТЁН","НЕ УЧТЁН","НЕ УЧТЁН","НЕ УЧТЁН","НЕ УЧТЁН","НЕ УЧТЁН","НЕ УЧТЁН","НЕ УЧТЁН","НЕ УЧТЁН","НЕ УЧТЁН","НЕ УЧТЁН","НЕ УЧТЁН","НЕ УЧТЁН","НЕ УЧТЁН","НЕ УЧТЁН","НЕ УЧТЁН","НЕ УЧТЁН","НЕ УЧТЁН","НЕ УЧТЁН","НЕ УЧТЁН","НЕ УЧТЁН","НЕ УЧТЁН","НЕ УЧТЁН","НЕ УЧТЁН","НЕ УЧТЁН","НЕ УЧТЁН","НЕ УЧТЁН","НЕ УЧТЁН","НЕ УЧТЁН","НЕ УЧТЁН","НЕ УЧТЁН","НЕ УЧТЁН","НЕ УЧТЁН","НЕ УЧТЁН","НЕ УЧТЁН","НЕ УЧТЁН","НЕ УЧТЁН","НЕ УЧТЁН","НЕ УЧТЁН","НЕ УЧТЁН","НЕ УЧТЁН","НЕ УЧТЁН","НЕ УЧТЁН","НЕ УЧТЁН","НЕ УЧТЁН","НЕ УЧТЁН","НЕ УЧТЁН","НЕ УЧТЁН","НЕ УЧТЁН","НЕ УЧТЁН","НЕ УЧТЁН","НЕ УЧТЁН","НЕ УЧТЁН","НЕ УЧТЁН","НЕ УЧТЁН","НЕ УЧТЁН","НЕ УЧТЁН","НЕ УЧТЁН","НЕ УЧТЁН","НЕ УЧТЁН","НЕ УЧТЁН","НЕ УЧТЁН","НЕ УЧТЁН","НЕ УЧТЁН","НЕ УЧТЁН","НЕ УЧТЁН","НЕ УЧТЁН","НЕ УЧТЁН","НЕ УЧТЁН","НЕ УЧТЁН","НЕ УЧТЁН","НЕ УЧТЁН","НЕ УЧТЁН","НЕ УЧТЁН","НЕ УЧТЁН","НЕ УЧТЁН","НЕ УЧТЁН","НЕ УЧТЁН","НЕ УЧТЁН","НЕ УЧТЁН","НЕ УЧТЁН","НЕ УЧТЁН","НЕ УЧТЁН","НЕ УЧТЁН","НЕ УЧТЁН","НЕ УЧТЁН","НЕ УЧТЁН","НЕ УЧТЁН","НЕ УЧТЁН","НЕ УЧТЁН","НЕ УЧТЁН","НЕ УЧТЁН","НЕ УЧТЁН","НЕ УЧТЁН","НЕ УЧТЁН","НЕ УЧТЁН","НЕ УЧТЁН","НЕ УЧТЁН","НЕ УЧТЁН","НЕ УЧТЁН","НЕ УЧТЁН","НЕ УЧТЁН","НЕ УЧТЁН","НЕ УЧТЁН","НЕ УЧТЁН","НЕ УЧТЁН","НЕ УЧТЁН","НЕ УЧТЁН","НЕ УЧТЁН","НЕ УЧТЁН","НЕ УЧТЁН","НЕ УЧТЁН","НЕ УЧТЁН","НЕ УЧТЁН","НЕ УЧТЁН","НЕ УЧТЁН","НЕ УЧТЁН","НЕ УЧТЁН","НЕ УЧТЁН","НЕ УЧТЁН","НЕ УЧТЁН","НЕ УЧТЁН","НЕ УЧТЁН","НЕ УЧТЁН","НЕ УЧТЁН","НЕ УЧТЁН","НЕ УЧТЁН","НЕ УЧТЁН","НЕ УЧТЁН","НЕ УЧТЁН","НЕ УЧТЁН","НЕ УЧТЁН","НЕ УЧТЁН","НЕ УЧТЁН","НЕ УЧТЁН","НЕ УЧТЁН","НЕ УЧТЁН","НЕ УЧТЁН","НЕ УЧТЁН","НЕ УЧТЁН","НЕ УЧТЁН","НЕ УЧТЁН","НЕ УЧТЁН","НЕ УЧТЁН","НЕ УЧТЁН","НЕ УЧТЁН","НЕ УЧТЁН","НЕ УЧТЁН","НЕ УЧТЁН","НЕ УЧТЁН","НЕ УЧТЁН","НЕ УЧТЁН","НЕ УЧТЁН","НЕ УЧТЁН","НЕ УЧТЁН","НЕ УЧТЁН","НЕ УЧТЁН","НЕ УЧТЁН","НЕ УЧТЁН","НЕ УЧТЁН","НЕ УЧТЁН","НЕ УЧТЁН","НЕ УЧТЁН","НЕ УЧТЁН","НЕ УЧТЁН","НЕ УЧТЁН","НЕ УЧТЁН","НЕ УЧТЁН","НЕ УЧТЁН","НЕ УЧТЁН","НЕ УЧТЁН","НЕ УЧТЁН","НЕ УЧТЁН","НЕ УЧТЁН","НЕ УЧТЁН","НЕ УЧТЁН","НЕ УЧТЁН","НЕ УЧТЁН","НЕ УЧТЁН","НЕ УЧТЁН","НЕ УЧТЁН","НЕ УЧТЁН","НЕ УЧТЁН","НЕ УЧТЁН","НЕ УЧТЁН","НЕ УЧТЁН","НЕ УЧТЁН","НЕ УЧТЁН","НЕ УЧТЁН","НЕ УЧТЁН","НЕ УЧТЁН","НЕ УЧТЁН","НЕ УЧТЁН","НЕ УЧТЁН","НЕ УЧТЁН","НЕ УЧТЁН","НЕ УЧТЁН","НЕ УЧТЁН","НЕ УЧТЁН","НЕ УЧТЁН","НЕ УЧТЁН","НЕ УЧТЁН","НЕ УЧТЁН","НЕ УЧТЁН","НЕ УЧТЁН","НЕ УЧТЁН","НЕ УЧТЁН","НЕ УЧТЁН","НЕ УЧТЁН","НЕ УЧТЁН","НЕ УЧТЁН","НЕ УЧТЁН","НЕ УЧТЁН","НЕ УЧТЁН","НЕ УЧТЁН","НЕ УЧТЁН","НЕ УЧТЁН","НЕ УЧТЁН","НЕ УЧТЁН","НЕ УЧТЁН","НЕ УЧТЁН","НЕ УЧТЁН","НЕ УЧТЁН","НЕ УЧТЁН","НЕ УЧТЁН","НЕ УЧТЁН","НЕ УЧТЁН","НЕ УЧТЁН","НЕ УЧТЁН","НЕ УЧТЁН","НЕ УЧТЁН","НЕ УЧТЁН","НЕ УЧТЁН","НЕ УЧТЁН","НЕ УЧТЁН","НЕ УЧТЁН","НЕ УЧТЁН","НЕ УЧТЁН","НЕ УЧТЁН","НЕ УЧТЁН","НЕ УЧТЁН","НЕ УЧТЁН","НЕ УЧТЁН","НЕ УЧТЁН","НЕ УЧТЁН","НЕ УЧТЁН","НЕ УЧТЁН","НЕ УЧТЁН","НЕ УЧТЁН","НЕ УЧТЁН","НЕ УЧТЁН","НЕ УЧТЁН","НЕ УЧТЁН","НЕ УЧТЁН","НЕ УЧТЁН","НЕ УЧТЁН","НЕ УЧТЁН","НЕ УЧТЁН","НЕ УЧТЁН","НЕ УЧТЁН","НЕ УЧТЁН","НЕ УЧТЁН","НЕ УЧТЁН","НЕ УЧТЁН","НЕ УЧТЁН","НЕ УЧТЁН","НЕ УЧТЁН","НЕ УЧТЁН","НЕ УЧТЁН","НЕ УЧТЁН","НЕ УЧТЁН","НЕ УЧТЁН","НЕ УЧТЁН","НЕ УЧТЁН","НЕ УЧТЁН","НЕ УЧТЁН","НЕ УЧТЁН","НЕ УЧТЁН","НЕ УЧТЁН","НЕ УЧТЁН","НЕ УЧТЁН","НЕ УЧТЁН","НЕ УЧТЁН","НЕ УЧТЁН","НЕ УЧТЁН","НЕ УЧТЁН","НЕ УЧТЁН","НЕ УЧТЁН","НЕ УЧТЁН","НЕ УЧТЁН","НЕ УЧТЁН","НЕ УЧТЁН","НЕ УЧТЁН","НЕ УЧТЁН","НЕ УЧТЁН","НЕ УЧТЁН","НЕ УЧТЁН","НЕ УЧТЁН","НЕ УЧТЁН","НЕ УЧТЁН","НЕ УЧТЁН","НЕ УЧТЁН","НЕ УЧТЁН","НЕ УЧТЁН","НЕ УЧТЁН","НЕ УЧТЁН","НЕ УЧТЁН","НЕ УЧТЁН","НЕ УЧТЁН","НЕ УЧТЁН","НЕ УЧТЁН","НЕ УЧТЁН","НЕ УЧТЁН","НЕ УЧТЁН","НЕ УЧТЁН","НЕ УЧТЁН","НЕ УЧТЁН","НЕ УЧТЁН","НЕ УЧТЁН","НЕ УЧТЁН","НЕ УЧТЁН","НЕ УЧТЁН","НЕ УЧТЁН","НЕ УЧТЁН","НЕ УЧТЁН","НЕ УЧТЁН","НЕ УЧТЁН","НЕ УЧТЁН","НЕ УЧТЁН","НЕ УЧТЁН","НЕ УЧТЁН","НЕ УЧТЁН","НЕ УЧТЁН","НЕ УЧТЁН","НЕ УЧТЁН","НЕ УЧТЁН","НЕ УЧТЁН","НЕ УЧТЁН","НЕ УЧТЁН","НЕ УЧТЁН","НЕ УЧТЁН","НЕ УЧТЁН","НЕ УЧТЁН","НЕ УЧТЁН","НЕ УЧТЁН","НЕ УЧТЁН","НЕ УЧТЁН","НЕ УЧТЁН","НЕ УЧТЁН","НЕ УЧТЁН","НЕ УЧТЁН","НЕ УЧТЁН","НЕ УЧТЁН","НЕ УЧТЁН","НЕ УЧТЁН","НЕ УЧТЁН","НЕ УЧТЁН","НЕ УЧТЁН","НЕ УЧТЁН","НЕ УЧТЁН","НЕ УЧТЁН","НЕ УЧТЁН","НЕ УЧТЁН","НЕ УЧТЁН","НЕ УЧТЁН","НЕ УЧТЁН","НЕ УЧТЁН","НЕ УЧТЁН","НЕ УЧТЁН","НЕ УЧТЁН","НЕ УЧТЁН","НЕ УЧТЁН","НЕ УЧТЁН","НЕ УЧТЁН","НЕ УЧТЁН","НЕ УЧТЁН","НЕ УЧТЁН","НЕ УЧТЁН","НЕ УЧТЁН","НЕ УЧТЁН","НЕ УЧТЁН","НЕ УЧТЁН","НЕ УЧТЁН","НЕ УЧТЁН","НЕ УЧТЁН","НЕ УЧТЁН","НЕ УЧТЁН","НЕ УЧТЁН","НЕ УЧТЁН","НЕ УЧТЁН","НЕ УЧТЁН","НЕ УЧТЁН","НЕ УЧТЁН","НЕ УЧТЁН","НЕ УЧТЁН","НЕ УЧТЁН","НЕ УЧТЁН","НЕ УЧТЁН","НЕ УЧТЁН","НЕ УЧТЁН","НЕ УЧТЁН","НЕ УЧТЁН","НЕ УЧТЁН","НЕ УЧТЁН","НЕ УЧТЁН","НЕ УЧТЁН","НЕ УЧТЁН","НЕ УЧТЁН","НЕ УЧТЁН","НЕ УЧТЁН","НЕ УЧТЁН","НЕ УЧТЁН","НЕ УЧТЁН","НЕ УЧТЁН","НЕ УЧТЁН","НЕ УЧТЁН","НЕ УЧТЁН","НЕ УЧТЁН","НЕ УЧТЁН","НЕ УЧТЁН","НЕ УЧТЁН","НЕ УЧТЁН","НЕ УЧТЁН","НЕ УЧТЁН","НЕ УЧТЁН","НЕ УЧТЁН","НЕ УЧТЁН","НЕ УЧТЁН","НЕ УЧТЁН","НЕ УЧТЁН","НЕ УЧТЁН","НЕ УЧТЁН","НЕ УЧТЁН","НЕ УЧТЁН","НЕ УЧТЁН","НЕ УЧТЁН","НЕ УЧТЁН","НЕ УЧТЁН","НЕ УЧТЁН","НЕ УЧТЁН","НЕ УЧТЁН","НЕ УЧТЁН","НЕ УЧТЁН","НЕ УЧТЁН","НЕ УЧТЁН","НЕ УЧТЁН","НЕ УЧТЁН","НЕ УЧТЁН","НЕ УЧТЁН","НЕ УЧТЁН","НЕ УЧТЁН","НЕ УЧТЁН","НЕ УЧТЁН","НЕ УЧТЁН","НЕ УЧТЁН","НЕ УЧТЁН","НЕ УЧТЁН","НЕ УЧТЁН","НЕ УЧТЁН","НЕ УЧТЁН","НЕ УЧТЁН","НЕ УЧТЁН","НЕ УЧТЁН","НЕ УЧТЁН","НЕ УЧТЁН","НЕ УЧТЁН","НЕ УЧТЁН","НЕ УЧТЁН","НЕ УЧТЁН","НЕ УЧТЁН","НЕ УЧТЁН","НЕ УЧТЁН","НЕ УЧТЁН","НЕ УЧТЁН","НЕ УЧТЁН","НЕ УЧТЁН","НЕ УЧТЁН","НЕ УЧТЁН","НЕ УЧТЁН","НЕ УЧТЁН","НЕ УЧТЁН","НЕ УЧТЁН","НЕ УЧТЁН","НЕ УЧТЁН","НЕ УЧТЁН","НЕ УЧТЁН","НЕ УЧТЁН","НЕ УЧТЁН","НЕ УЧТЁН","НЕ УЧТЁН","НЕ УЧТЁН","НЕ УЧТЁН","НЕ УЧТЁН","НЕ УЧТЁН","НЕ УЧТЁН","НЕ УЧТЁН","НЕ УЧТЁН","НЕ УЧТЁН","НЕ УЧТЁН","НЕ УЧТЁН","НЕ УЧТЁН","НЕ УЧТЁН","НЕ УЧТЁН","НЕ УЧТЁН","НЕ УЧТЁН","НЕ УЧТЁН","НЕ УЧТЁН","НЕ УЧТЁН","НЕ УЧТЁН","НЕ УЧТЁН","НЕ УЧТЁН","НЕ УЧТЁН","НЕ УЧТЁН","НЕ УЧТЁН","НЕ УЧТЁН","НЕ УЧТЁН","НЕ УЧТЁН","НЕ УЧТЁН","НЕ УЧТЁН","НЕ УЧТЁН","НЕ УЧТЁН","НЕ УЧТЁН","НЕ УЧТЁН","НЕ УЧТЁН","НЕ УЧТЁН","НЕ УЧТЁН","НЕ УЧТЁН","НЕ УЧТЁН","НЕ УЧТЁН","НЕ УЧТЁН","НЕ УЧТЁН","НЕ УЧТЁН","НЕ УЧТЁН","НЕ УЧТЁН","НЕ УЧТЁН","НЕ УЧТЁН","НЕ УЧТЁН","НЕ УЧТЁН","НЕ УЧТЁН","НЕ УЧТЁН","НЕ УЧТЁН","НЕ УЧТЁН","НЕ УЧТЁН","НЕ УЧТЁН","НЕ УЧТЁН","НЕ УЧТЁН","НЕ УЧТЁН","НЕ УЧТЁН","НЕ УЧТЁН","НЕ УЧТЁН","НЕ УЧТЁН","НЕ УЧТЁН","НЕ УЧТЁН","НЕ УЧТЁН","НЕ УЧТЁН","НЕ УЧТЁН","НЕ УЧТЁН","НЕ УЧТЁН","НЕ УЧТЁН","НЕ УЧТЁН","НЕ УЧТЁН","НЕ УЧТЁН","НЕ УЧТЁН","НЕ УЧТЁН","НЕ УЧТЁН","НЕ УЧТЁН","НЕ УЧТЁН","НЕ УЧТЁН","НЕ УЧТЁН","НЕ УЧТЁН","НЕ УЧТЁН","НЕ УЧТЁН","НЕ УЧТЁН","НЕ УЧТЁН","НЕ УЧТЁН","НЕ УЧТЁН","НЕ УЧТЁН","НЕ УЧТЁН","НЕ УЧТЁН","НЕ УЧТЁН","НЕ УЧТЁН","НЕ УЧТЁН","НЕ УЧТЁН","НЕ УЧТЁН","НЕ УЧТЁН","НЕ УЧТЁН","НЕ УЧТЁН","НЕ УЧТЁН","НЕ УЧТЁН","НЕ УЧТЁН","НЕ УЧТЁН","НЕ УЧТЁН","НЕ УЧТЁН","НЕ УЧТЁН","НЕ УЧТЁН","НЕ УЧТЁН","НЕ УЧТЁН","НЕ УЧТЁН","НЕ УЧТЁН","НЕ УЧТЁН","НЕ УЧТЁН","НЕ УЧТЁН","НЕ УЧТЁН","НЕ УЧТЁН","НЕ УЧТЁН","НЕ УЧТЁН","НЕ УЧТЁН","НЕ УЧТЁН","НЕ УЧТЁН","НЕ УЧТЁН","НЕ УЧТЁН","НЕ УЧТЁН","НЕ УЧТЁН","НЕ УЧТЁН","НЕ УЧТЁН","НЕ УЧТЁН","НЕ УЧТЁН","НЕ УЧТЁН","НЕ УЧТЁН","НЕ УЧТЁН","НЕ УЧТЁН","НЕ УЧТЁН","НЕ УЧТЁН","НЕ УЧТЁН","НЕ УЧТЁН","НЕ УЧТЁН","НЕ УЧТЁН","НЕ УЧТЁН","НЕ УЧТЁН","НЕ УЧТЁН","НЕ УЧТЁН","НЕ УЧТЁН","НЕ УЧТЁН","НЕ УЧТЁН","НЕ УЧТЁН","НЕ УЧТЁН","НЕ УЧТЁН","НЕ УЧТЁН","НЕ УЧТЁН","НЕ УЧТЁН","НЕ УЧТЁН","НЕ УЧТЁН","НЕ УЧТЁН","НЕ УЧТЁН","НЕ УЧТЁН","НЕ УЧТЁН","НЕ УЧТЁН","НЕ УЧТЁН","НЕ УЧТЁН","НЕ УЧТЁН","НЕ УЧТЁН","НЕ УЧТЁН","НЕ УЧТЁН","НЕ УЧТЁН","НЕ УЧТЁН","НЕ УЧТЁН","НЕ УЧТЁН","НЕ УЧТЁН","НЕ УЧТЁН","НЕ УЧТЁН","НЕ УЧТЁН","НЕ УЧТЁН","НЕ УЧТЁН","НЕ УЧТЁН","НЕ УЧТЁН","НЕ УЧТЁН","НЕ УЧТЁН","НЕ УЧТЁН","НЕ УЧТЁН","НЕ УЧТЁН","НЕ УЧТЁН","НЕ УЧТЁН","НЕ УЧТЁН","НЕ УЧТЁН","НЕ УЧТЁН","НЕ УЧТЁН","НЕ УЧТЁН","НЕ УЧТЁН","НЕ УЧТЁН","НЕ УЧТЁН","НЕ УЧТЁН","НЕ УЧТЁН","НЕ УЧТЁН","НЕ УЧТЁН","НЕ УЧТЁН","НЕ УЧТЁН","НЕ УЧТЁН","НЕ УЧТЁН","НЕ УЧТЁН","НЕ УЧТЁН","НЕ УЧТЁН","НЕ УЧТЁН","НЕ УЧТЁН","НЕ УЧТЁН","НЕ УЧТЁН","НЕ УЧТЁН","НЕ УЧТЁН","НЕ УЧТЁН","НЕ УЧТЁН","НЕ УЧТЁН","НЕ УЧТЁН","НЕ УЧТЁН","НЕ УЧТЁН","НЕ УЧТЁН","НЕ УЧТЁН","НЕ УЧТЁН","НЕ УЧТЁН","НЕ УЧТЁН","НЕ УЧТЁН","НЕ УЧТЁН","НЕ УЧТЁН","НЕ УЧТЁН","НЕ УЧТЁН","НЕ УЧТЁН","НЕ УЧТЁН","НЕ УЧТЁН","НЕ УЧТЁН","НЕ УЧТЁН","НЕ УЧТЁН","НЕ УЧТЁН","НЕ УЧТЁН","НЕ УЧТЁН","НЕ УЧТЁН","НЕ УЧТЁН","НЕ УЧТЁН","НЕ УЧТЁН","НЕ УЧТЁН","НЕ УЧТЁН","НЕ УЧТЁН","НЕ УЧТЁН","НЕ УЧТЁН","НЕ УЧТЁН","НЕ УЧТЁН","НЕ УЧТЁН","НЕ УЧТЁН","НЕ УЧТЁН","НЕ УЧТЁН","НЕ УЧТЁН","НЕ УЧТЁН","НЕ УЧТЁН","НЕ УЧТЁН","НЕ УЧТЁН","НЕ УЧТЁН","НЕ УЧТЁН","НЕ УЧТЁН","НЕ УЧТЁН","НЕ УЧТЁН","НЕ УЧТЁН","НЕ УЧТЁН","НЕ УЧТЁН","НЕ УЧТЁН","НЕ УЧТЁН","НЕ УЧТЁН","НЕ УЧТЁН","НЕ УЧТЁН","НЕ УЧТЁН","НЕ УЧТЁН","НЕ УЧТЁН","НЕ УЧТЁН","НЕ УЧТЁН","НЕ УЧТЁН","НЕ УЧТЁН","НЕ УЧТЁН","НЕ УЧТЁН","НЕ УЧТЁН","НЕ УЧТЁН","НЕ УЧТЁН","НЕ УЧТЁН","НЕ УЧТЁН","НЕ УЧТЁН","НЕ УЧТЁН","НЕ УЧТЁН","НЕ УЧТЁН","НЕ УЧТЁН","НЕ УЧТЁН","НЕ УЧТЁН","НЕ УЧТЁН","НЕ УЧТЁН","НЕ УЧТЁН","НЕ УЧТЁН","НЕ УЧТЁН","НЕ УЧТЁН","НЕ УЧТЁН","НЕ УЧТЁН","НЕ УЧТЁН","НЕ УЧТЁН","НЕ УЧТЁН","НЕ УЧТЁН","НЕ УЧТЁН","НЕ УЧТЁН","НЕ УЧТЁН","НЕ УЧТЁН","НЕ УЧТЁН","НЕ УЧТЁН","НЕ УЧТЁН","НЕ УЧТЁН","НЕ УЧТЁН","НЕ УЧТЁН","НЕ УЧТЁН","НЕ УЧТЁН","НЕ УЧТЁН","НЕ УЧТЁН","НЕ УЧТЁН","НЕ УЧТЁН","НЕ УЧТЁН","НЕ УЧТЁН","НЕ УЧТЁН","НЕ УЧТЁН","НЕ УЧТЁН","НЕ УЧТЁН","НЕ УЧТЁН","НЕ УЧТЁН","НЕ УЧТЁН","НЕ УЧТЁН","НЕ УЧТЁН","НЕ УЧТЁН","НЕ УЧТЁН","НЕ УЧТЁН","НЕ УЧТЁН","НЕ УЧТЁН","НЕ УЧТЁН","НЕ УЧТЁН","НЕ УЧТЁН","НЕ УЧТЁН","НЕ УЧТЁН","НЕ УЧТЁН","НЕ УЧТЁН","НЕ УЧТЁН","НЕ УЧТЁН","НЕ УЧТЁН","НЕ УЧТЁН","НЕ УЧТЁН","НЕ УЧТЁН","НЕ УЧТЁН","НЕ УЧТЁН","НЕ УЧТЁН","НЕ УЧТЁН","НЕ УЧТЁН","НЕ УЧТЁН","НЕ УЧТЁН","НЕ УЧТЁН","НЕ УЧТЁН","НЕ УЧТЁН","НЕ УЧТЁН","НЕ УЧТЁН","НЕ УЧТЁН","НЕ УЧТЁН","НЕ УЧТЁН","НЕ УЧТЁН","НЕ УЧТЁН","НЕ УЧТЁН","НЕ УЧТЁН","НЕ УЧТЁН","НЕ УЧТЁН","НЕ УЧТЁН","НЕ УЧТЁН","НЕ УЧТЁН","НЕ УЧТЁН","НЕ УЧТЁН","НЕ УЧТЁН","НЕ УЧТЁН","НЕ УЧТЁН","НЕ УЧТЁН","НЕ УЧТЁН","НЕ УЧТЁН","НЕ УЧТЁН","НЕ УЧТЁН","НЕ УЧТЁН","НЕ УЧТЁН","НЕ УЧТЁН","НЕ УЧТЁН","НЕ УЧТЁН","НЕ УЧТЁН","НЕ УЧТЁН","НЕ УЧТЁН","НЕ УЧТЁН","НЕ УЧТЁН","НЕ УЧТЁН","НЕ УЧТЁН","НЕ УЧТЁН","НЕ УЧТЁН","НЕ УЧТЁН","НЕ УЧТЁН","НЕ УЧТЁН","НЕ УЧТЁН","НЕ УЧТЁН","НЕ УЧТЁН","НЕ УЧТЁН","НЕ УЧТЁН","НЕ УЧТЁН","НЕ УЧТЁН","НЕ УЧТЁН","НЕ УЧТЁН","НЕ УЧТЁН","НЕ УЧТЁН","НЕ УЧТЁН","НЕ УЧТЁН","НЕ УЧТЁН","НЕ УЧТЁН","НЕ УЧТЁН","НЕ УЧТЁН","НЕ УЧТЁН","НЕ УЧТЁН","НЕ УЧТЁН","НЕ УЧТЁН","НЕ УЧТЁН","НЕ УЧТЁН","НЕ УЧТЁН","НЕ УЧТЁН","НЕ УЧТЁН","НЕ УЧТЁН","НЕ УЧТЁН","НЕ УЧТЁН","НЕ УЧТЁН","НЕ УЧТЁН","НЕ УЧТЁН","НЕ УЧТЁН","НЕ УЧТЁН","НЕ УЧТЁН","НЕ УЧТЁН","НЕ УЧТЁН","НЕ УЧТЁН","НЕ УЧТЁН","НЕ УЧТЁН","НЕ УЧТЁН","НЕ УЧТЁН","НЕ УЧТЁН","НЕ УЧТЁН","НЕ УЧТЁН","НЕ УЧТЁН","НЕ УЧТЁН","НЕ УЧТЁН","НЕ УЧТЁН","НЕ УЧТЁН","НЕ УЧТЁН","НЕ УЧТЁН","НЕ УЧТЁН","НЕ УЧТЁН","НЕ УЧТЁН","НЕ УЧТЁН","НЕ УЧТЁН","НЕ УЧТЁН","НЕ УЧТЁН","НЕ УЧТЁН","НЕ УЧТЁН","НЕ УЧТЁН","НЕ УЧТЁН","НЕ УЧТЁН","НЕ УЧТЁН","НЕ УЧТЁН","НЕ УЧТЁН","НЕ УЧТЁН","НЕ УЧТЁН","НЕ УЧТЁН","НЕ УЧТЁН","НЕ УЧТЁН","НЕ УЧТЁН","НЕ УЧТЁН","НЕ УЧТЁН","НЕ УЧТЁН","НЕ УЧТЁН","НЕ УЧТЁН","НЕ УЧТЁН","НЕ УЧТЁН","НЕ УЧТЁН","НЕ УЧТЁН","НЕ УЧТЁН","НЕ УЧТЁН","НЕ УЧТЁН","НЕ УЧТЁН","НЕ УЧТЁН","НЕ УЧТЁН","НЕ УЧТЁН","НЕ УЧТЁН","НЕ УЧТЁН","НЕ УЧТЁН","НЕ УЧТЁН","НЕ УЧТЁН","НЕ УЧТЁН","НЕ УЧТЁН","НЕ УЧТЁН","НЕ УЧТЁН","НЕ УЧТЁН","НЕ УЧТЁН","НЕ УЧТЁН","НЕ УЧТЁН","НЕ УЧТЁН","НЕ УЧТЁН","НЕ УЧТЁН","НЕ УЧТЁН","НЕ УЧТЁН","НЕ УЧТЁН","НЕ УЧТЁН","НЕ УЧТЁН","НЕ УЧТЁН","НЕ УЧТЁН","НЕ УЧТЁН","НЕ УЧТЁН","НЕ УЧТЁН","НЕ УЧТЁН","НЕ УЧТЁН","НЕ УЧТЁН","НЕ УЧТЁН","НЕ УЧТЁН","НЕ УЧТЁН","НЕ УЧТЁН","НЕ УЧТЁН","НЕ УЧТЁН","НЕ УЧТЁН","НЕ УЧТЁН","НЕ УЧТЁН","НЕ УЧТЁН","НЕ УЧТЁН","НЕ УЧТЁН","НЕ УЧТЁН","НЕ УЧТЁН","НЕ УЧТЁН","НЕ УЧТЁН","НЕ УЧТЁН","НЕ УЧТЁН","НЕ УЧТЁН","НЕ УЧТЁН","НЕ УЧТЁН","НЕ УЧТЁН","НЕ УЧТЁН","НЕ УЧТЁН","НЕ УЧТЁН","НЕ УЧТЁН","НЕ УЧТЁН","НЕ УЧТЁН","НЕ УЧТЁН","НЕ УЧТЁН","НЕ УЧТЁН","НЕ УЧТЁН","НЕ УЧТЁН","НЕ УЧТЁН","НЕ УЧТЁН","НЕ УЧТЁН","НЕ УЧТЁН","НЕ УЧТЁН","НЕ УЧТЁН","НЕ УЧТЁН","НЕ УЧТЁН","НЕ УЧТЁН","НЕ УЧТЁН","НЕ УЧТЁН","НЕ УЧТЁН","НЕ УЧТЁН","НЕ УЧТЁН","НЕ УЧТЁН","НЕ УЧТЁН","НЕ УЧТЁН","НЕ УЧТЁН","НЕ УЧТЁН","НЕ УЧТЁН","НЕ УЧТЁН","НЕ УЧТЁН","НЕ УЧТЁН","НЕ УЧТЁН","НЕ УЧТЁН","НЕ УЧТЁН","НЕ УЧТЁН","НЕ УЧТЁН","НЕ УЧТЁН","НЕ УЧТЁН","НЕ УЧТЁН","НЕ УЧТЁН","НЕ УЧТЁН","НЕ УЧТЁН","НЕ УЧТЁН","НЕ УЧТЁН","НЕ УЧТЁН","НЕ УЧТЁН","НЕ УЧТЁН","НЕ УЧТЁН","НЕ УЧТЁН","НЕ УЧТЁН","НЕ УЧТЁН","НЕ УЧТЁН","НЕ УЧТЁН","НЕ УЧТЁН","НЕ УЧТЁН","НЕ УЧТЁН","НЕ УЧТЁН","НЕ УЧТЁН","НЕ УЧТЁН","НЕ УЧТЁН","НЕ УЧТЁН","НЕ УЧТЁН","НЕ УЧТЁН","НЕ УЧТЁН","НЕ УЧТЁН","НЕ УЧТЁН","НЕ УЧТЁН","НЕ УЧТЁН","НЕ УЧТЁН","НЕ УЧТЁН","НЕ УЧТЁН","НЕ УЧТЁН","НЕ УЧТЁН","НЕ УЧТЁН","НЕ УЧТЁН","НЕ УЧТЁН","НЕ УЧТЁН","НЕ УЧТЁН","НЕ УЧТЁН","НЕ УЧТЁН","НЕ УЧТЁН","НЕ УЧТЁН","НЕ УЧТЁН","НЕ УЧТЁН","НЕ УЧТЁН","НЕ УЧТЁН","НЕ УЧТЁН","НЕ УЧТЁН","НЕ УЧТЁН","НЕ УЧТЁН","НЕ УЧТЁН","НЕ УЧТЁН","НЕ УЧТЁН","НЕ УЧТЁН","НЕ УЧТЁН","НЕ УЧТЁН","НЕ УЧТЁН","НЕ УЧТЁН","НЕ УЧТЁН","НЕ УЧТЁН","НЕ УЧТЁН","НЕ УЧТЁН","НЕ УЧТЁН","НЕ УЧТЁН","НЕ УЧТЁН","НЕ УЧТЁН","НЕ УЧТЁН","НЕ УЧТЁН","НЕ УЧТЁН","НЕ УЧТЁН","НЕ УЧТЁН","НЕ УЧТЁН","НЕ УЧТЁН","НЕ УЧТЁН","НЕ УЧТЁН","НЕ УЧТЁН","НЕ УЧТЁН","НЕ УЧТЁН","НЕ УЧТЁН","НЕ УЧТЁН","НЕ УЧТЁН","НЕ УЧТЁН","НЕ УЧТЁН","НЕ УЧТЁН","НЕ УЧТЁН","НЕ УЧТЁН","НЕ УЧТЁН","НЕ УЧТЁН","НЕ УЧТЁН","НЕ УЧТЁН","НЕ УЧТЁН","НЕ УЧТЁН","НЕ УЧТЁН","НЕ УЧТЁН","НЕ УЧТЁН","НЕ УЧТЁН","НЕ УЧТЁН","НЕ УЧТЁН","НЕ УЧТЁН","НЕ УЧТЁН","НЕ УЧТЁН","НЕ УЧТЁН","НЕ УЧТЁН","НЕ УЧТЁН","НЕ УЧТЁН","НЕ УЧТЁН","НЕ УЧТЁН","НЕ УЧТЁН","НЕ УЧТЁН","НЕ УЧТЁН","НЕ УЧТЁН","НЕ УЧТЁН","НЕ УЧТЁН","НЕ УЧТЁН","НЕ УЧТЁН","НЕ УЧТЁН","НЕ УЧТЁН","НЕ УЧТЁН","НЕ УЧТЁН","НЕ УЧТЁН","НЕ УЧТЁН","НЕ УЧТЁН","НЕ УЧТЁН","НЕ УЧТЁН","НЕ УЧТЁН","НЕ УЧТЁН","НЕ УЧТЁН","НЕ УЧТЁН","НЕ УЧТЁН","НЕ УЧТЁН","НЕ УЧТЁН","НЕ УЧТЁН","НЕ УЧТЁН","НЕ УЧТЁН","НЕ УЧТЁН","НЕ УЧТЁН","НЕ УЧТЁН","НЕ УЧТЁН","НЕ УЧТЁН","НЕ УЧТЁН","НЕ УЧТЁН","НЕ УЧТЁН","НЕ УЧТЁН","НЕ УЧТЁН","НЕ УЧТЁН","НЕ УЧТЁН","НЕ УЧТЁН","НЕ УЧТЁН","НЕ УЧТЁН","НЕ УЧТЁН","НЕ УЧТЁН","НЕ УЧТЁН","НЕ УЧТЁН","НЕ УЧТЁН","НЕ УЧТЁН","НЕ УЧТЁН","НЕ УЧТЁН","НЕ УЧТЁН","НЕ УЧТЁН","НЕ УЧТЁН","НЕ УЧТЁН","НЕ УЧТЁН","НЕ УЧТЁН","НЕ УЧТЁН","НЕ УЧТЁН","НЕ УЧТЁН","НЕ УЧТЁН","НЕ УЧТЁН","НЕ УЧТЁН","НЕ УЧТЁН","НЕ УЧТЁН","НЕ УЧТЁН","НЕ УЧТЁН","НЕ УЧТЁН","НЕ УЧТЁН","НЕ УЧТЁН","НЕ УЧТЁН","НЕ УЧТЁН","НЕ УЧТЁН","НЕ УЧТЁН","НЕ УЧТЁН","НЕ УЧТЁН","НЕ УЧТЁН","НЕ УЧТЁН","НЕ УЧТЁН","НЕ УЧТЁН","НЕ УЧТЁН","НЕ УЧТЁН","НЕ УЧТЁН","НЕ УЧТЁН","НЕ УЧТЁН","НЕ УЧТЁН","НЕ УЧТЁН","НЕ УЧТЁН","НЕ УЧТЁН","НЕ УЧТЁН","НЕ УЧТЁН","НЕ УЧТЁН","НЕ УЧТЁН","НЕ УЧТЁН","НЕ УЧТЁН","НЕ УЧТЁН","НЕ УЧТЁН","НЕ УЧТЁН","НЕ УЧТЁН","НЕ УЧТЁН","НЕ УЧТЁН","НЕ УЧТЁН","НЕ УЧТЁН","НЕ УЧТЁН","НЕ УЧТЁН","НЕ УЧТЁН","НЕ УЧТЁН","НЕ УЧТЁН","НЕ УЧТЁН","НЕ УЧТЁН","НЕ УЧТЁН","НЕ УЧТЁН","НЕ УЧТЁН","НЕ УЧТЁН","НЕ УЧТЁН","НЕ УЧТЁН","НЕ УЧТЁН","НЕ УЧТЁН","НЕ УЧТЁН","НЕ УЧТЁН","НЕ УЧТЁН","НЕ УЧТЁН","НЕ УЧТЁН","НЕ УЧТЁН","НЕ УЧТЁН","НЕ УЧТЁН","НЕ УЧТЁН","НЕ УЧТЁН","НЕ УЧТЁН","НЕ УЧТЁН","НЕ УЧТЁН","НЕ УЧТЁН","НЕ УЧТЁН","НЕ УЧТЁН","НЕ УЧТЁН","НЕ УЧТЁН","НЕ УЧТЁН","НЕ УЧТЁН","НЕ УЧТЁН","НЕ УЧТЁН","НЕ УЧТЁН","НЕ УЧТЁН","НЕ УЧТЁН","НЕ УЧТЁН","НЕ УЧТЁН","НЕ УЧТЁН","НЕ УЧТЁН","НЕ УЧТЁН","НЕ УЧТЁН","НЕ УЧТЁН","НЕ УЧТЁН","НЕ УЧТЁН","НЕ УЧТЁН","НЕ УЧТЁН","НЕ УЧТЁН","НЕ УЧТЁН","НЕ УЧТЁН","НЕ УЧТЁН","НЕ УЧТЁН","НЕ УЧТЁН","НЕ УЧТЁН","НЕ УЧТЁН","НЕ УЧТЁН","НЕ УЧТЁН","НЕ УЧТЁН","НЕ УЧТЁН","НЕ УЧТЁН","НЕ УЧТЁН","НЕ УЧТЁН","НЕ УЧТЁН","НЕ УЧТЁН","НЕ УЧТЁН","НЕ УЧТЁН","НЕ УЧТЁН","НЕ УЧТЁН","НЕ УЧТЁН","НЕ УЧТЁН","НЕ УЧТЁН","НЕ УЧТЁН","НЕ УЧТЁН","НЕ УЧТЁН","НЕ УЧТЁН","НЕ УЧТЁН","НЕ УЧТЁН","НЕ УЧТЁН","НЕ УЧТЁН","НЕ УЧТЁН","НЕ УЧТЁН","НЕ УЧТЁН","НЕ УЧТЁН","НЕ УЧТЁН","НЕ УЧТЁН","НЕ УЧТЁН","НЕ УЧТЁН","НЕ УЧТЁН","НЕ УЧТЁН","НЕ УЧТЁН","НЕ УЧТЁН","НЕ УЧТЁН","НЕ УЧТЁН","НЕ УЧТЁН","НЕ УЧТЁН","НЕ УЧТЁН","НЕ УЧТЁН","НЕ УЧТЁН","НЕ УЧТЁН","НЕ УЧТЁН","НЕ УЧТЁН","НЕ УЧТЁН","НЕ УЧТЁН","НЕ УЧТЁН","НЕ УЧТЁН","НЕ УЧТЁН","НЕ УЧТЁН","НЕ УЧТЁН","НЕ УЧТЁН","НЕ УЧТЁН","НЕ УЧТЁН","НЕ УЧТЁН","НЕ УЧТЁН","НЕ УЧТЁН","НЕ УЧТЁН","НЕ УЧТЁН","НЕ УЧТЁН","НЕ УЧТЁН","НЕ УЧТЁН","НЕ УЧТЁН","НЕ УЧТЁН","НЕ УЧТЁН","НЕ УЧТЁН","НЕ УЧТЁН","НЕ УЧТЁН","НЕ УЧТЁН","НЕ УЧТЁН","НЕ УЧТЁН","НЕ УЧТЁН","НЕ УЧТЁН","НЕ УЧТЁН","НЕ УЧТЁН","НЕ УЧТЁН","НЕ УЧТЁН","НЕ УЧТЁН","НЕ УЧТЁН","НЕ УЧТЁН","НЕ УЧТЁН","НЕ УЧТЁН","НЕ УЧТЁН","НЕ УЧТЁН","НЕ УЧТЁН","НЕ УЧТЁН","НЕ УЧТЁН","НЕ УЧТЁН","НЕ УЧТЁН","НЕ УЧТЁН","НЕ УЧТЁН","НЕ УЧТЁН","НЕ УЧТЁН","НЕ УЧТЁН","НЕ УЧТЁН","НЕ УЧТЁН","НЕ УЧТЁН","НЕ УЧТЁН","НЕ УЧТЁН","НЕ УЧТЁН","НЕ УЧТЁН","НЕ УЧТЁН","НЕ УЧТЁН","НЕ УЧТЁН","НЕ УЧТЁН","НЕ УЧТЁН","НЕ УЧТЁН","НЕ УЧТЁН","НЕ УЧТЁН","НЕ УЧТЁН","НЕ УЧТЁН","НЕ УЧТЁН","НЕ УЧТЁН","НЕ УЧТЁН","НЕ УЧТЁН","НЕ УЧТЁН","НЕ УЧТЁН","НЕ УЧТЁН","НЕ УЧТЁН","НЕ УЧТЁН","НЕ УЧТЁН","НЕ УЧТЁН","НЕ УЧТЁН","НЕ УЧТЁН","НЕ УЧТЁН","НЕ УЧТЁН","НЕ УЧТЁН","НЕ УЧТЁН","НЕ УЧТЁН","НЕ УЧТЁН","НЕ УЧТЁН","НЕ УЧТЁН","НЕ УЧТЁН","НЕ УЧТЁН","НЕ УЧТЁН","НЕ УЧТЁН","НЕ УЧТЁН","НЕ УЧТЁН","НЕ УЧТЁН","НЕ УЧТЁН","НЕ УЧТЁН","НЕ УЧТЁН","НЕ УЧТЁН","НЕ УЧТЁН","НЕ УЧТЁН","НЕ УЧТЁН","НЕ УЧТЁН","НЕ УЧТЁН","НЕ УЧТЁН","НЕ УЧТЁН","НЕ УЧТЁН","НЕ УЧТЁН","НЕ УЧТЁН","НЕ УЧТЁН","НЕ УЧТЁН","НЕ УЧТЁН","НЕ УЧТЁН","НЕ УЧТЁН","НЕ УЧТЁН","НЕ УЧТЁН","НЕ УЧТЁН","НЕ УЧТЁН","НЕ УЧТЁН","НЕ УЧТЁН","НЕ УЧТЁН","НЕ УЧТЁН","НЕ УЧТЁН","НЕ УЧТЁН","НЕ УЧТЁН","НЕ УЧТЁН","НЕ УЧТЁН","НЕ УЧТЁН","НЕ УЧТЁН","НЕ УЧТЁН","НЕ УЧТЁН","НЕ УЧТЁН","НЕ УЧТЁН","НЕ УЧТЁН","НЕ УЧТЁН","НЕ УЧТЁН","НЕ УЧТЁН","НЕ УЧТЁН","НЕ УЧТЁН","НЕ УЧТЁН","НЕ УЧТЁН","НЕ УЧТЁН","НЕ УЧТЁН","НЕ УЧТЁН","НЕ УЧТЁН","НЕ УЧТЁН","НЕ УЧТЁН","НЕ УЧТЁН","НЕ УЧТЁН","НЕ УЧТЁН","НЕ УЧТЁН","НЕ УЧТЁН","НЕ УЧТЁН","НЕ УЧТЁН","НЕ УЧТЁН","НЕ УЧТЁН","НЕ УЧТЁН","НЕ УЧТЁН","НЕ УЧТЁН","НЕ УЧТЁН","НЕ УЧТЁН","НЕ УЧТЁН","НЕ УЧТЁН","НЕ УЧТЁН","НЕ УЧТЁН","НЕ УЧТЁН","НЕ УЧТЁН","НЕ УЧТЁН","НЕ УЧТЁН","НЕ УЧТЁН","НЕ УЧТЁН","НЕ УЧТЁН","НЕ УЧТЁН","НЕ УЧТЁН","НЕ УЧТЁН","НЕ УЧТЁН","НЕ УЧТЁН","НЕ УЧТЁН","НЕ УЧТЁН","НЕ УЧТЁН","НЕ УЧТЁН","НЕ УЧТЁН","НЕ УЧТЁН","НЕ УЧТЁН","НЕ УЧТЁН","НЕ УЧТЁН","НЕ УЧТЁН","НЕ УЧТЁН","НЕ УЧТЁН","НЕ УЧТЁН","НЕ УЧТЁН","НЕ УЧТЁН","НЕ УЧТЁН","НЕ УЧТЁН","НЕ УЧТЁН","НЕ УЧТЁН","НЕ УЧТЁН","НЕ УЧТЁН","НЕ УЧТЁН","НЕ УЧТЁН","НЕ УЧТЁН","НЕ УЧТЁН","НЕ УЧТЁН","НЕ УЧТЁН","НЕ УЧТЁН","НЕ УЧТЁН","НЕ УЧТЁН","НЕ УЧТЁН","НЕ УЧТЁН","НЕ УЧТЁН","НЕ УЧТЁН","НЕ УЧТЁН","НЕ УЧТЁН","НЕ УЧТЁН","НЕ УЧТЁН","НЕ УЧТЁН","НЕ УЧТЁН","НЕ УЧТЁН","НЕ УЧТЁН","НЕ УЧТЁН","НЕ УЧТЁН","НЕ УЧТЁН","НЕ УЧТЁН","НЕ УЧТЁН","НЕ УЧТЁН","НЕ УЧТЁН","НЕ УЧТЁН","НЕ УЧТЁН","НЕ УЧТЁН","НЕ УЧТЁН","НЕ УЧТЁН","НЕ УЧТЁН","НЕ УЧТЁН","НЕ УЧТЁН","НЕ УЧТЁН","НЕ УЧТЁН","НЕ УЧТЁН","НЕ УЧТЁН","НЕ УЧТЁН","НЕ УЧТЁН","НЕ УЧТЁН","НЕ УЧТЁН","НЕ УЧТЁН","НЕ УЧТЁН","НЕ УЧТЁН","НЕ УЧТЁН","НЕ УЧТЁН","НЕ УЧТЁН","НЕ УЧТЁН","НЕ УЧТЁН","НЕ УЧТЁН","НЕ УЧТЁН","НЕ УЧТЁН","НЕ УЧТЁН","НЕ УЧТЁН","НЕ УЧТЁН","НЕ УЧТЁН","НЕ УЧТЁН","НЕ УЧТЁН","НЕ УЧТЁН","НЕ УЧТЁН","НЕ УЧТЁН","НЕ УЧТЁН","НЕ УЧТЁН","НЕ УЧТЁН","НЕ УЧТЁН","НЕ УЧТЁН","НЕ УЧТЁН","НЕ УЧТЁН","НЕ УЧТЁН","НЕ УЧТЁН","НЕ УЧТЁН","НЕ УЧТЁН","НЕ УЧТЁН","НЕ УЧТЁН","НЕ УЧТЁН","НЕ УЧТЁН","НЕ УЧТЁН","НЕ УЧТЁН","НЕ УЧТЁН","НЕ УЧТЁН","НЕ УЧТЁН","НЕ УЧТЁН","НЕ УЧТЁН","НЕ УЧТЁН","НЕ УЧТЁН","НЕ УЧТЁН","НЕ УЧТЁН","НЕ УЧТЁН","НЕ УЧТЁН","НЕ УЧТЁН","НЕ УЧТЁН","НЕ УЧТЁН","НЕ УЧТЁН","НЕ УЧТЁН","НЕ УЧТЁН","НЕ УЧТЁН","НЕ УЧТЁН","НЕ УЧТЁН","НЕ УЧТЁН","НЕ УЧТЁН","НЕ УЧТЁН","НЕ УЧТЁН","НЕ УЧТЁН","НЕ УЧТЁН","НЕ УЧТЁН","НЕ УЧТЁН","НЕ УЧТЁН","НЕ УЧТЁН","НЕ УЧТЁН","НЕ УЧТЁН","НЕ УЧТЁН","НЕ УЧТЁН","НЕ УЧТЁН","НЕ УЧТЁН","НЕ УЧТЁН","НЕ УЧТЁН","НЕ УЧТЁН","НЕ УЧТЁН","НЕ УЧТЁН","НЕ УЧТЁН","НЕ УЧТЁН","НЕ УЧТЁН","НЕ УЧТЁН","НЕ УЧТЁН","НЕ УЧТЁН","НЕ УЧТЁН","НЕ УЧТЁН","НЕ УЧТЁН","НЕ УЧТЁН","НЕ УЧТЁН","НЕ УЧТЁН","НЕ УЧТЁН","НЕ УЧТЁН","НЕ УЧТЁН","НЕ УЧТЁН","НЕ УЧТЁН","НЕ УЧТЁН","НЕ УЧТЁН","НЕ УЧТЁН","НЕ УЧТЁН","НЕ УЧТЁН","НЕ УЧТЁН","НЕ УЧТЁН","НЕ УЧТЁН","НЕ УЧТЁН","НЕ УЧТЁН","НЕ УЧТЁН","НЕ УЧТЁН","НЕ УЧТЁН","НЕ УЧТЁН","НЕ УЧТЁН","НЕ УЧТЁН","НЕ УЧТЁН","НЕ УЧТЁН","НЕ УЧТЁН","НЕ УЧТЁН","НЕ УЧТЁН","НЕ УЧТЁН","НЕ УЧТЁН","НЕ УЧТЁН","НЕ УЧТЁН","НЕ УЧТЁН","НЕ УЧТЁН","НЕ УЧТЁН","НЕ УЧТЁН","НЕ УЧТЁН","НЕ УЧТЁН","НЕ УЧТЁН","НЕ УЧТЁН","НЕ УЧТЁН","НЕ УЧТЁН","НЕ УЧТЁН","НЕ УЧТЁН","НЕ УЧТЁН","НЕ УЧТЁН","НЕ УЧТЁН","НЕ УЧТЁН","НЕ УЧТЁН","НЕ УЧТЁН","НЕ УЧТЁН","НЕ УЧТЁН","НЕ УЧТЁН","НЕ УЧТЁН","НЕ УЧТЁН","НЕ УЧТЁН","НЕ УЧТЁН","НЕ УЧТЁН","НЕ УЧТЁН","НЕ УЧТЁН","НЕ УЧТЁН","НЕ УЧТЁН","НЕ УЧТЁН","НЕ УЧТЁН","НЕ УЧТЁН","НЕ УЧТЁН","НЕ УЧТЁН","НЕ УЧТЁН","НЕ УЧТЁН","НЕ УЧТЁН","НЕ УЧТЁН","НЕ УЧТЁН","НЕ УЧТЁН","НЕ УЧТЁН","НЕ УЧТЁН","НЕ УЧТЁН","НЕ УЧТЁН","НЕ УЧТЁН","НЕ УЧТЁН","НЕ УЧТЁН","НЕ УЧТЁН","НЕ УЧТЁН","НЕ УЧТЁН","НЕ УЧТЁН","НЕ УЧТЁН","НЕ УЧТЁН","НЕ УЧТЁН","НЕ УЧТЁН","НЕ УЧТЁН","НЕ УЧТЁН","НЕ УЧТЁН","НЕ УЧТЁН","НЕ УЧТЁН","НЕ УЧТЁН","НЕ УЧТЁН","НЕ УЧТЁН","НЕ УЧТЁН","НЕ УЧТЁН","НЕ УЧТЁН","НЕ УЧТЁН","НЕ УЧТЁН","НЕ УЧТЁН","НЕ УЧТЁН","НЕ УЧТЁН","НЕ УЧТЁН","НЕ УЧТЁН","НЕ УЧТЁН","НЕ УЧТЁН","НЕ УЧТЁН","НЕ УЧТЁН","НЕ УЧТЁН","НЕ УЧТЁН","НЕ УЧТЁН","НЕ УЧТЁН","НЕ УЧТЁН","НЕ УЧТЁН","НЕ УЧТЁН","НЕ УЧТЁН","НЕ УЧТЁН","НЕ УЧТЁН","НЕ УЧТЁН","НЕ УЧТЁН","НЕ УЧТЁН","НЕ УЧТЁН","НЕ УЧТЁН","НЕ УЧТЁН","НЕ УЧТЁН","НЕ УЧТЁН","НЕ УЧТЁН","НЕ УЧТЁН","НЕ УЧТЁН","НЕ УЧТЁН","НЕ УЧТЁН","НЕ УЧТЁН","НЕ УЧТЁН","НЕ УЧТЁН","НЕ УЧТЁН","НЕ УЧТЁН","НЕ УЧТЁН","НЕ УЧТЁН","НЕ УЧТЁН","НЕ УЧТЁН","НЕ УЧТЁН","НЕ УЧТЁН","НЕ УЧТЁН","НЕ УЧТЁН","НЕ УЧТЁН","НЕ УЧТЁН","НЕ УЧТЁН","НЕ УЧТЁН","НЕ УЧТЁН","НЕ УЧТЁН","НЕ УЧТЁН","НЕ УЧТЁН","НЕ УЧТЁН","НЕ УЧТЁН","НЕ УЧТЁН","НЕ УЧТЁН","НЕ УЧТЁН","НЕ УЧТЁН","НЕ УЧТЁН","НЕ УЧТЁН","НЕ УЧТЁН","НЕ УЧТЁН","НЕ УЧТЁН","НЕ УЧТЁН","НЕ УЧТЁН","НЕ УЧТЁН","НЕ УЧТЁН","НЕ УЧТЁН","НЕ УЧТЁН","НЕ УЧТЁН","НЕ УЧТЁН","НЕ УЧТЁН","НЕ УЧТЁН","НЕ УЧТЁН","НЕ УЧТЁН","НЕ УЧТЁН","НЕ УЧТЁН","НЕ УЧТЁН","НЕ УЧТЁН","НЕ УЧТЁН","НЕ УЧТЁН","НЕ УЧТЁН","НЕ УЧТЁН","НЕ УЧТЁН","НЕ УЧТЁН","НЕ УЧТЁН","НЕ УЧТЁН","НЕ УЧТЁН","НЕ УЧТЁН","НЕ УЧТЁН","НЕ УЧТЁН","НЕ УЧТЁН","НЕ УЧТЁН","НЕ УЧТЁН","НЕ УЧТЁН","НЕ УЧТЁН","НЕ УЧТЁН","НЕ УЧТЁН","НЕ УЧТЁН","НЕ УЧТЁН","НЕ УЧТЁН","НЕ УЧТЁН","НЕ УЧТЁН","НЕ УЧТЁН","НЕ УЧТЁН","НЕ УЧТЁН","НЕ УЧТЁН","НЕ УЧТЁН","НЕ УЧТЁН","НЕ УЧТЁН","НЕ УЧТЁН","НЕ УЧТЁН","НЕ УЧТЁН","НЕ УЧТЁН","НЕ УЧТЁН","НЕ УЧТЁН","НЕ УЧТЁН","НЕ УЧТЁН","НЕ УЧТЁН","НЕ УЧТЁН","НЕ УЧТЁН","НЕ УЧТЁН","НЕ УЧТЁН","НЕ УЧТЁН","НЕ УЧТЁН","НЕ УЧТЁН","НЕ УЧТЁН","НЕ УЧТЁН","НЕ УЧТЁН","НЕ УЧТЁН","НЕ УЧТЁН","НЕ УЧТЁН","НЕ УЧТЁН","НЕ УЧТЁН","НЕ УЧТЁН","НЕ УЧТЁН","НЕ УЧТЁН","НЕ УЧТЁН","НЕ УЧТЁН","НЕ УЧТЁН","НЕ УЧТЁН","НЕ УЧТЁН","НЕ УЧТЁН","НЕ УЧТЁН","НЕ УЧТЁН","НЕ УЧТЁН","НЕ УЧТЁН","НЕ УЧТЁН","НЕ УЧТЁН","НЕ УЧТЁН","НЕ УЧТЁН","НЕ УЧТЁН","НЕ УЧТЁН","НЕ УЧТЁН","НЕ УЧТЁН","НЕ УЧТЁН","НЕ УЧТЁН","НЕ УЧТЁН","НЕ УЧТЁН","НЕ УЧТЁН","НЕ УЧТЁН","НЕ УЧТЁН","НЕ УЧТЁН","НЕ УЧТЁН","НЕ УЧТЁН","НЕ УЧТЁН","НЕ УЧТЁН","НЕ УЧТЁН","НЕ УЧТЁН","НЕ УЧТЁН","НЕ УЧТЁН","НЕ УЧТЁН","НЕ УЧТЁН","НЕ УЧТЁН","НЕ УЧТЁН","НЕ УЧТЁН","НЕ УЧТЁН","НЕ УЧТЁН","НЕ УЧТЁН","НЕ УЧТЁН","НЕ УЧТЁН","НЕ УЧТЁН","НЕ УЧТЁН","НЕ УЧТЁН","НЕ УЧТЁН","НЕ УЧТЁН","НЕ УЧТЁН","НЕ УЧТЁН","НЕ УЧТЁН","НЕ УЧТЁН","НЕ УЧТЁН","НЕ УЧТЁН","НЕ УЧТЁН","НЕ УЧТЁН","НЕ УЧТЁН","НЕ УЧТЁН","НЕ УЧТЁН","НЕ УЧТЁН","НЕ УЧТЁН","НЕ УЧТЁН","НЕ УЧТЁН","НЕ УЧТЁН","НЕ УЧТЁН","НЕ УЧТЁН","НЕ УЧТЁН","НЕ УЧТЁН","НЕ УЧТЁН","НЕ УЧТЁН","НЕ УЧТЁН","НЕ УЧТЁН","НЕ УЧТЁН","НЕ УЧТЁН","НЕ УЧТЁН","НЕ УЧТЁН","НЕ УЧТЁН","НЕ УЧТЁН","НЕ УЧТЁН","НЕ УЧТЁН","НЕ УЧТЁН","НЕ УЧТЁН","НЕ УЧТЁН","НЕ УЧТЁН","НЕ УЧТЁН","НЕ УЧТЁН","НЕ УЧТЁН","НЕ УЧТЁН","НЕ УЧТЁН","НЕ УЧТЁН","НЕ УЧТЁН","НЕ УЧТЁН","НЕ УЧТЁН","НЕ УЧТЁН","НЕ УЧТЁН","НЕ УЧТЁН","НЕ УЧТЁН","НЕ УЧТЁН","НЕ УЧТЁН","НЕ УЧТЁН","НЕ УЧТЁН","НЕ УЧТЁН","НЕ УЧТЁН","НЕ УЧТЁН","НЕ УЧТЁН","НЕ УЧТЁН","НЕ УЧТЁН","НЕ УЧТЁН","НЕ УЧТЁН","НЕ УЧТЁН","НЕ УЧТЁН","НЕ УЧТЁН","НЕ УЧТЁН","НЕ УЧТЁН","НЕ УЧТЁН","НЕ УЧТЁН","НЕ УЧТЁН","НЕ УЧТЁН","НЕ УЧТЁН","НЕ УЧТЁН","НЕ УЧТЁН","НЕ УЧТЁН","НЕ УЧТЁН","НЕ УЧТЁН","НЕ УЧТЁН","НЕ УЧТЁН","НЕ УЧТЁН","НЕ УЧТЁН","НЕ УЧТЁН","НЕ УЧТЁН","НЕ УЧТЁН","НЕ УЧТЁН","НЕ УЧТЁН","НЕ УЧТЁН","НЕ УЧТЁН","НЕ УЧТЁН","НЕ УЧТЁН","НЕ УЧТЁН","НЕ УЧТЁН","НЕ УЧТЁН","НЕ УЧТЁН","НЕ УЧТЁН","НЕ УЧТЁН","НЕ УЧТЁН","НЕ УЧТЁН","НЕ УЧТЁН","НЕ УЧТЁН","НЕ УЧТЁН","НЕ УЧТЁН","НЕ УЧТЁН","НЕ УЧТЁН","НЕ УЧТЁН","НЕ УЧТЁН","НЕ УЧТЁН","НЕ УЧТЁН","НЕ УЧТЁН","НЕ УЧТЁН","НЕ УЧТЁН","НЕ УЧТЁН","НЕ УЧТЁН","НЕ УЧТЁН","НЕ УЧТЁН","НЕ УЧТЁН","НЕ УЧТЁН","НЕ УЧТЁН","НЕ УЧТЁН","НЕ УЧТЁН","НЕ УЧТЁН","НЕ УЧТЁН","НЕ УЧТЁН","НЕ УЧТЁН","НЕ УЧТЁН","НЕ УЧТЁН","НЕ УЧТЁН","НЕ УЧТЁН","НЕ УЧТЁН","НЕ УЧТЁН","НЕ УЧТЁН","НЕ УЧТЁН","НЕ УЧТЁН","НЕ УЧТЁН","НЕ УЧТЁН","НЕ УЧТЁН","НЕ УЧТЁН","НЕ УЧТЁН","НЕ УЧТЁН","НЕ УЧТЁН","НЕ УЧТЁН","НЕ УЧТЁН","НЕ УЧТЁН","НЕ УЧТЁН","НЕ УЧТЁН","НЕ УЧТЁН","НЕ УЧТЁН","НЕ УЧТЁН","НЕ УЧТЁН","НЕ УЧТЁН","НЕ УЧТЁН","НЕ УЧТЁН","НЕ УЧТЁН","НЕ УЧТЁН","НЕ УЧТЁН","НЕ УЧТЁН","НЕ УЧТЁН","НЕ УЧТЁН","НЕ УЧТЁН","НЕ УЧТЁН","НЕ УЧТЁН","НЕ УЧТЁН","НЕ УЧТЁН","НЕ УЧТЁН","НЕ УЧТЁН","НЕ УЧТЁН","НЕ УЧТЁН","НЕ УЧТЁН","НЕ УЧТЁН","НЕ УЧТЁН","НЕ УЧТЁН","НЕ УЧТЁН","НЕ УЧТЁН","НЕ УЧТЁН","НЕ УЧТЁН","НЕ УЧТЁН","НЕ УЧТЁН","НЕ УЧТЁН","НЕ УЧТЁН","НЕ УЧТЁН","НЕ УЧТЁН","НЕ УЧТЁН","НЕ УЧТЁН","НЕ УЧТЁН","НЕ УЧТЁН","НЕ УЧТЁН","НЕ УЧТЁН","НЕ УЧТЁН","НЕ УЧТЁН","НЕ УЧТЁН","НЕ УЧТЁН","НЕ УЧТЁН","НЕ УЧТЁН","НЕ УЧТЁН","НЕ УЧТЁН","НЕ УЧТЁН","НЕ УЧТЁН","НЕ УЧТЁН","НЕ УЧТЁН","НЕ УЧТЁН","НЕ УЧТЁН","НЕ УЧТЁН","НЕ УЧТЁН","НЕ УЧТЁН","НЕ УЧТЁН","НЕ УЧТЁН","НЕ УЧТЁН","НЕ УЧТЁН","НЕ УЧТЁН","НЕ УЧТЁН","НЕ УЧТЁН","НЕ УЧТЁН","НЕ УЧТЁН","НЕ УЧТЁН","НЕ УЧТЁН","НЕ УЧТЁН","НЕ УЧТЁН","НЕ УЧТЁН","НЕ УЧТЁН","НЕ УЧТЁН","НЕ УЧТЁН","НЕ УЧТЁН","НЕ УЧТЁН","НЕ УЧТЁН","НЕ УЧТЁН","НЕ УЧТЁН","НЕ УЧТЁН","НЕ УЧТЁН","НЕ УЧТЁН","НЕ УЧТЁН","НЕ УЧТЁН","НЕ УЧТЁН","НЕ УЧТЁН","НЕ УЧТЁН","НЕ УЧТЁН","НЕ УЧТЁН","НЕ УЧТЁН","НЕ УЧТЁН","НЕ УЧТЁН","НЕ УЧТЁН","НЕ УЧТЁН","НЕ УЧТЁН","НЕ УЧТЁН","НЕ УЧТЁН","НЕ УЧТЁН","НЕ УЧТЁН","НЕ УЧТЁН","НЕ УЧТЁН","НЕ УЧТЁН","НЕ УЧТЁН","НЕ УЧТЁН","НЕ УЧТЁН","НЕ УЧТЁН","НЕ УЧТЁН","НЕ УЧТЁН","НЕ УЧТЁН","НЕ УЧТЁН","НЕ УЧТЁН","НЕ УЧТЁН","НЕ УЧТЁН","НЕ УЧТЁН","НЕ УЧТЁН","НЕ УЧТЁН","НЕ УЧТЁН","НЕ УЧТЁН","НЕ УЧТЁН","НЕ УЧТЁН","НЕ УЧТЁН","НЕ УЧТЁН","НЕ УЧТЁН","НЕ УЧТЁН","НЕ УЧТЁН","НЕ УЧТЁН","НЕ УЧТЁН","НЕ УЧТЁН","НЕ УЧТЁН","НЕ УЧТЁН","НЕ УЧТЁН","НЕ УЧТЁН","НЕ УЧТЁН","НЕ УЧТЁН","НЕ УЧТЁН","НЕ УЧТЁН","НЕ УЧТЁН","НЕ УЧТЁН","НЕ УЧТЁН","НЕ УЧТЁН","НЕ УЧТЁН","НЕ УЧТЁН","НЕ УЧТЁН","НЕ УЧТЁН","НЕ УЧТЁН","НЕ УЧТЁН","НЕ УЧТЁН","НЕ УЧТЁН","НЕ УЧТЁН","НЕ УЧТЁН","НЕ УЧТЁН","НЕ УЧТЁН","НЕ УЧТЁН","НЕ УЧТЁН","НЕ УЧТЁН","НЕ УЧТЁН","НЕ УЧТЁН","НЕ УЧТЁН","НЕ УЧТЁН","НЕ УЧТЁН","НЕ УЧТЁН","НЕ УЧТЁН","НЕ УЧТЁН","НЕ УЧТЁН","НЕ УЧТЁН","НЕ УЧТЁН","НЕ УЧТЁН","НЕ УЧТЁН","НЕ УЧТЁН","НЕ УЧТЁН","НЕ УЧТЁН","НЕ УЧТЁН","НЕ УЧТЁН","НЕ УЧТЁН","НЕ УЧТЁН","НЕ УЧТЁН","НЕ УЧТЁН","НЕ УЧТЁН","НЕ УЧТЁН","НЕ УЧТЁН","НЕ УЧТЁН","НЕ УЧТЁН","НЕ УЧТЁН","НЕ УЧТЁН","НЕ УЧТЁН","НЕ УЧТЁН","НЕ УЧТЁН","НЕ УЧТЁН","НЕ УЧТЁН","НЕ УЧТЁН","НЕ УЧТЁН","НЕ УЧТЁН","НЕ УЧТЁН","НЕ УЧТЁН","НЕ УЧТЁН","НЕ УЧТЁН","НЕ УЧТЁН","НЕ УЧТЁН","НЕ УЧТЁН","НЕ УЧТЁН","НЕ УЧТЁН","НЕ УЧТЁН","НЕ УЧТЁН","НЕ УЧТЁН","НЕ УЧТЁН","НЕ УЧТЁН","НЕ УЧТЁН","НЕ УЧТЁН","НЕ УЧТЁН","НЕ УЧТЁН","НЕ УЧТЁН","НЕ УЧТЁН","НЕ УЧТЁН","НЕ УЧТЁН","НЕ УЧТЁН","НЕ УЧТЁН","НЕ УЧТЁН","НЕ УЧТЁН","НЕ УЧТЁН","НЕ УЧТЁН","НЕ УЧТЁН","НЕ УЧТЁН","НЕ УЧТЁН","НЕ УЧТЁН","НЕ УЧТЁН","НЕ УЧТЁН","НЕ УЧТЁН","НЕ УЧТЁН","НЕ УЧТЁН","НЕ УЧТЁН","НЕ УЧТЁН","НЕ УЧТЁН","НЕ УЧТЁН","НЕ УЧТЁН","НЕ УЧТЁН","НЕ УЧТЁН","НЕ УЧТЁН","НЕ УЧТЁН","НЕ УЧТЁН","НЕ УЧТЁН","НЕ УЧТЁН","НЕ УЧТЁН","НЕ УЧТЁН","НЕ УЧТЁН","НЕ УЧТЁН","НЕ УЧТЁН","НЕ УЧТЁН","НЕ УЧТЁН","НЕ УЧТЁН","НЕ УЧТЁН","НЕ УЧТЁН","НЕ УЧТЁН","НЕ УЧТЁН","НЕ УЧТЁН","НЕ УЧТЁН","НЕ УЧТЁН","НЕ УЧТЁН","НЕ УЧТЁН","НЕ УЧТЁН","НЕ УЧТЁН","НЕ УЧТЁН","НЕ УЧТЁН","НЕ УЧТЁН","НЕ УЧТЁН","НЕ УЧТЁН","НЕ УЧТЁН","НЕ УЧТЁН","НЕ УЧТЁН","НЕ УЧТЁН","НЕ УЧТЁН","НЕ УЧТЁН","НЕ УЧТЁН","НЕ УЧТЁН","НЕ УЧТЁН","НЕ УЧТЁН","НЕ УЧТЁН","НЕ УЧТЁН","НЕ УЧТЁН","НЕ УЧТЁН","НЕ УЧТЁН","НЕ УЧТЁН","НЕ УЧТЁН","НЕ УЧТЁН","НЕ УЧТЁН","НЕ УЧТЁН","НЕ УЧТЁН","НЕ УЧТЁН","НЕ УЧТЁН","НЕ УЧТЁН","НЕ УЧТЁН","НЕ УЧТЁН","НЕ УЧТЁН","НЕ УЧТЁН","НЕ УЧТЁН","НЕ УЧТЁН","НЕ УЧТЁН","НЕ УЧТЁН","НЕ УЧТЁН","НЕ УЧТЁН","НЕ УЧТЁН","НЕ УЧТЁН","НЕ УЧТЁН","НЕ УЧТЁН","НЕ УЧТЁН","НЕ УЧТЁН","НЕ УЧТЁН","НЕ УЧТЁН","НЕ УЧТЁН","НЕ УЧТЁН","НЕ УЧТЁН","НЕ УЧТЁН","НЕ УЧТЁН","НЕ УЧТЁН","НЕ УЧТЁН","НЕ УЧТЁН","НЕ УЧТЁН","НЕ УЧТЁН","НЕ УЧТЁН","НЕ УЧТЁН","НЕ УЧТЁН","НЕ УЧТЁН","НЕ УЧТЁН","НЕ УЧТЁН","НЕ УЧТЁН","НЕ УЧТЁН","НЕ УЧТЁН","НЕ УЧТЁН","НЕ УЧТЁН","НЕ УЧТЁН","НЕ УЧТЁН","НЕ УЧТЁН","НЕ УЧТЁН","НЕ УЧТЁН","НЕ УЧТЁН","НЕ УЧТЁН","НЕ УЧТЁН","НЕ УЧТЁН","НЕ УЧТЁН","НЕ УЧТЁН","НЕ УЧТЁН","НЕ УЧТЁН","НЕ УЧТЁН","НЕ УЧТЁН","НЕ УЧТЁН","НЕ УЧТЁН","НЕ УЧТЁН","НЕ УЧТЁН","НЕ УЧТЁН","НЕ УЧТЁН","НЕ УЧТЁН","НЕ УЧТЁН","НЕ УЧТЁН","НЕ УЧТЁН","НЕ УЧТЁН","НЕ УЧТЁН","НЕ УЧТЁН","НЕ УЧТЁН","НЕ УЧТЁН","НЕ УЧТЁН","НЕ УЧТЁН","НЕ УЧТЁН","НЕ УЧТЁН","НЕ УЧТЁН","НЕ УЧТЁН","НЕ УЧТЁН","НЕ УЧТЁН","НЕ УЧТЁН","НЕ УЧТЁН","НЕ УЧТЁН","НЕ УЧТЁН","НЕ УЧТЁН","НЕ УЧТЁН","НЕ УЧТЁН","НЕ УЧТЁН","НЕ УЧТЁН","НЕ УЧТЁН","НЕ УЧТЁН","НЕ УЧТЁН","НЕ УЧТЁН","НЕ УЧТЁН","НЕ УЧТЁН","НЕ УЧТЁН","НЕ УЧТЁН","НЕ УЧТЁН","НЕ УЧТЁН","НЕ УЧТЁН","НЕ УЧТЁН","НЕ УЧТЁН","НЕ УЧТЁН","НЕ УЧТЁН","НЕ УЧТЁН","НЕ УЧТЁН","НЕ УЧТЁН","НЕ УЧТЁН","НЕ УЧТЁН","НЕ УЧТЁН","НЕ УЧТЁН","НЕ УЧТЁН","НЕ УЧТЁН","НЕ УЧТЁН","НЕ УЧТЁН","НЕ УЧТЁН","НЕ УЧТЁН","НЕ УЧТЁН","НЕ УЧТЁН","НЕ УЧТЁН","НЕ УЧТЁН","НЕ УЧТЁН","НЕ УЧТЁН","НЕ УЧТЁН","НЕ УЧТЁН","НЕ УЧТЁН","НЕ УЧТЁН","НЕ УЧТЁН","НЕ УЧТЁН","НЕ УЧТЁН","НЕ УЧТЁН","НЕ УЧТЁН","НЕ УЧТЁН","НЕ УЧТЁН","НЕ УЧТЁН","НЕ УЧТЁН","НЕ УЧТЁН","НЕ УЧТЁН","НЕ УЧТЁН","НЕ УЧТЁН","НЕ УЧТЁН","НЕ УЧТЁН","НЕ УЧТЁН","НЕ УЧТЁН","НЕ УЧТЁН","НЕ УЧТЁН","НЕ УЧТЁН","НЕ УЧТЁН","НЕ УЧТЁН","НЕ УЧТЁН","НЕ УЧТЁН","НЕ УЧТЁН","НЕ УЧТЁН","НЕ УЧТЁН","НЕ УЧТЁН","НЕ УЧТЁН","НЕ УЧТЁН","НЕ УЧТЁН","НЕ УЧТЁН","НЕ УЧТЁН","НЕ УЧТЁН","НЕ УЧТЁН","НЕ УЧТЁН","НЕ УЧТЁН","НЕ УЧТЁН","НЕ УЧТЁН","НЕ УЧТЁН","НЕ УЧТЁН","НЕ УЧТЁН","НЕ УЧТЁН","НЕ УЧТЁН","НЕ УЧТЁН","НЕ УЧТЁН","НЕ УЧТЁН","НЕ УЧТЁН","НЕ УЧТЁН","НЕ УЧТЁН","НЕ УЧТЁН","НЕ УЧТЁН","НЕ УЧТЁН","НЕ УЧТЁН","НЕ УЧТЁН","НЕ УЧТЁН","НЕ УЧТЁН","НЕ УЧТЁН","НЕ УЧТЁН","НЕ УЧТЁН","НЕ УЧТЁН","НЕ УЧТЁН","НЕ УЧТЁН","НЕ УЧТЁН","НЕ УЧТЁН","НЕ УЧТЁН","НЕ УЧТЁН","НЕ УЧТЁН","НЕ УЧТЁН","НЕ УЧТЁН","НЕ УЧТЁН","НЕ УЧТЁН","НЕ УЧТЁН","НЕ УЧТЁН","НЕ УЧТЁН","НЕ УЧТЁН","НЕ УЧТЁН","НЕ УЧТЁН","НЕ УЧТЁН","НЕ УЧТЁН","НЕ УЧТЁН","НЕ УЧТЁН","НЕ УЧТЁН","НЕ УЧТЁН","НЕ УЧТЁН","НЕ УЧТЁН","НЕ УЧТЁН","НЕ УЧТЁН","НЕ УЧТЁН","НЕ УЧТЁН","НЕ УЧТЁН","НЕ УЧТЁН","НЕ УЧТЁН","НЕ УЧТЁН","НЕ УЧТЁН","НЕ УЧТЁН","НЕ УЧТЁН","НЕ УЧТЁН","НЕ УЧТЁН","НЕ УЧТЁН","НЕ УЧТЁН","НЕ УЧТЁН","НЕ УЧТЁН","НЕ УЧТЁН","НЕ УЧТЁН","НЕ УЧТЁН","НЕ УЧТЁН","НЕ УЧТЁН","НЕ УЧТЁН","НЕ УЧТЁН","НЕ УЧТЁН","НЕ УЧТЁН","НЕ УЧТЁН","НЕ УЧТЁН","НЕ УЧТЁН","НЕ УЧТЁН","НЕ УЧТЁН","НЕ УЧТЁН","НЕ УЧТЁН","НЕ УЧТЁН","НЕ УЧТЁН","НЕ УЧТЁН","НЕ УЧТЁН","НЕ УЧТЁН","НЕ УЧТЁН","НЕ УЧТЁН","НЕ УЧТЁН","НЕ УЧТЁН","НЕ УЧТЁН","НЕ УЧТЁН","НЕ УЧТЁН","НЕ УЧТЁН","НЕ УЧТЁН","НЕ УЧТЁН","НЕ УЧТЁН","НЕ УЧТЁН","НЕ УЧТЁН","НЕ УЧТЁН","НЕ УЧТЁН","НЕ УЧТЁН","НЕ УЧТЁН","НЕ УЧТЁН","НЕ УЧТЁН","НЕ УЧТЁН","НЕ УЧТЁН","НЕ УЧТЁН","НЕ УЧТЁН","НЕ УЧТЁН","НЕ УЧТЁН","НЕ УЧТЁН","НЕ УЧТЁН","НЕ УЧТЁН","НЕ УЧТЁН","НЕ УЧТЁН","НЕ УЧТЁН","НЕ УЧТЁН","НЕ УЧТЁН","НЕ УЧТЁН","НЕ УЧТЁН","НЕ УЧТЁН","НЕ УЧТЁН","НЕ УЧТЁН","НЕ УЧТЁН","НЕ УЧТЁН","НЕ УЧТЁН","НЕ УЧТЁН","НЕ УЧТЁН","НЕ УЧТЁН","НЕ УЧТЁН","НЕ УЧТЁН","НЕ УЧТЁН","НЕ УЧТЁН","НЕ УЧТЁН","НЕ УЧТЁН","НЕ УЧТЁН","НЕ УЧТЁН","НЕ УЧТЁН","НЕ УЧТЁН","НЕ УЧТЁН","НЕ УЧТЁН","НЕ УЧТЁН","НЕ УЧТЁН","НЕ УЧТЁН","НЕ УЧТЁН","НЕ УЧТЁН","НЕ УЧТЁН","НЕ УЧТЁН","НЕ УЧТЁН","НЕ УЧТЁН","НЕ УЧТЁН","НЕ УЧТЁН","НЕ УЧТЁН","НЕ УЧТЁН","НЕ УЧТЁН","НЕ УЧТЁН","НЕ УЧТЁН","НЕ УЧТЁН","НЕ УЧТЁН","НЕ УЧТЁН","НЕ УЧТЁН","НЕ УЧТЁН","НЕ УЧТЁН","НЕ УЧТЁН","НЕ УЧТЁН","НЕ УЧТЁН","НЕ УЧТЁН","НЕ УЧТЁН","НЕ УЧТЁН","НЕ УЧТЁН","НЕ УЧТЁН","НЕ УЧТЁН","НЕ УЧТЁН","НЕ УЧТЁН","НЕ УЧТЁН","НЕ УЧТЁН","НЕ УЧТЁН","НЕ УЧТЁН","НЕ УЧТЁН","НЕ УЧТЁН","НЕ УЧТЁН","НЕ УЧТЁН","НЕ УЧТЁН","НЕ УЧТЁН","НЕ УЧТЁН","НЕ УЧТЁН","НЕ УЧТЁН","НЕ УЧТЁН","НЕ УЧТЁН","НЕ УЧТЁН","НЕ УЧТЁН","НЕ УЧТЁН","НЕ УЧТЁН","НЕ УЧТЁН","НЕ УЧТЁН","НЕ УЧТЁН","НЕ УЧТЁН","НЕ УЧТЁН","НЕ УЧТЁН","НЕ УЧТЁН","НЕ УЧТЁН","НЕ УЧТЁН","НЕ УЧТЁН","НЕ УЧТЁН","НЕ УЧТЁН","НЕ УЧТЁН","НЕ УЧТЁН","НЕ УЧТЁН","НЕ УЧТЁН","НЕ УЧТЁН","НЕ УЧТЁН","НЕ УЧТЁН","НЕ УЧТЁН","НЕ УЧТЁН","НЕ УЧТЁН","НЕ УЧТЁН","НЕ УЧТЁН","НЕ УЧТЁН","НЕ УЧТЁН","НЕ УЧТЁН","НЕ УЧТЁН","НЕ УЧТЁН","НЕ УЧТЁН","НЕ УЧТЁН","НЕ УЧТЁН","НЕ УЧТЁН","НЕ УЧТЁН","НЕ УЧТЁН","НЕ УЧТЁН","НЕ УЧТЁН","НЕ УЧТЁН","НЕ УЧТЁН","НЕ УЧТЁН","НЕ УЧТЁН","НЕ УЧТЁН","НЕ УЧТЁН","НЕ УЧТЁН","НЕ УЧТЁН","НЕ УЧТЁН","НЕ УЧТЁН","НЕ УЧТЁН","НЕ УЧТЁН","НЕ УЧТЁН","НЕ УЧТЁН","НЕ УЧТЁН","НЕ УЧТЁН","НЕ УЧТЁН","НЕ УЧТЁН","НЕ УЧТЁН","НЕ УЧТЁН","НЕ УЧТЁН","НЕ УЧТЁН","НЕ УЧТЁН","НЕ УЧТЁН","НЕ УЧТЁН","НЕ УЧТЁН","НЕ УЧТЁН","НЕ УЧТЁН","НЕ УЧТЁН","НЕ УЧТЁН","НЕ УЧТЁН","НЕ УЧТЁН","НЕ УЧТЁН","НЕ УЧТЁН","НЕ УЧТЁН","НЕ УЧТЁН","НЕ УЧТЁН","НЕ УЧТЁН","НЕ УЧТЁН","НЕ УЧТЁН","НЕ УЧТЁН","НЕ УЧТЁН","НЕ УЧТЁН","НЕ УЧТЁН","НЕ УЧТЁН","НЕ УЧТЁН","НЕ УЧТЁН","НЕ УЧТЁН","НЕ УЧТЁН","НЕ УЧТЁН","НЕ УЧТЁН","НЕ УЧТЁН","НЕ УЧТЁН","НЕ УЧТЁН","НЕ УЧТЁН","НЕ УЧТЁН","НЕ УЧТЁН","НЕ УЧТЁН","НЕ УЧТЁН","НЕ УЧТЁН","НЕ УЧТЁН","НЕ УЧТЁН","НЕ УЧТЁН","НЕ УЧТЁН","НЕ УЧТЁН","НЕ УЧТЁН","НЕ УЧТЁН","НЕ УЧТЁН","НЕ УЧТЁН","НЕ УЧТЁН","НЕ УЧТЁН","НЕ УЧТЁН","НЕ УЧТЁН","НЕ УЧТЁН","НЕ УЧТЁН","НЕ УЧТЁН","НЕ УЧТЁН","НЕ УЧТЁН","НЕ УЧТЁН","НЕ УЧТЁН","НЕ УЧТЁН","НЕ УЧТЁН","НЕ УЧТЁН","НЕ УЧТЁН","НЕ УЧТЁН","НЕ УЧТЁН","НЕ УЧТЁН","НЕ УЧТЁН","НЕ УЧТЁН","НЕ УЧТЁН","НЕ УЧТЁН","НЕ УЧТЁН","НЕ УЧТЁН","НЕ УЧТЁН","НЕ УЧТЁН","НЕ УЧТЁН","НЕ УЧТЁН","НЕ УЧТЁН","НЕ УЧТЁН","НЕ УЧТЁН","НЕ УЧТЁН","НЕ УЧТЁН","НЕ УЧТЁН","НЕ УЧТЁН","НЕ УЧТЁН","НЕ УЧТЁН","НЕ УЧТЁН","НЕ УЧТЁН","НЕ УЧТЁН","НЕ УЧТЁН","НЕ УЧТЁН","НЕ УЧТЁН","НЕ УЧТЁН","НЕ УЧТЁН","НЕ УЧТЁН","НЕ УЧТЁН","НЕ УЧТЁН","НЕ УЧТЁН","НЕ УЧТЁН","НЕ УЧТЁН","НЕ УЧТЁН","НЕ УЧТЁН","НЕ УЧТЁН","НЕ УЧТЁН","НЕ УЧТЁН","НЕ УЧТЁН","НЕ УЧТЁН","НЕ УЧТЁН","НЕ УЧТЁН","НЕ УЧТЁН","НЕ УЧТЁН","НЕ УЧТЁН","НЕ УЧТЁН","НЕ УЧТЁН","НЕ УЧТЁН","НЕ УЧТЁН","НЕ УЧТЁН","НЕ УЧТЁН","НЕ УЧТЁН","НЕ УЧТЁН","НЕ УЧТЁН","НЕ УЧТЁН","НЕ УЧТЁН","НЕ УЧТЁН","НЕ УЧТЁН","НЕ УЧТЁН","НЕ УЧТЁН","НЕ УЧТЁН","НЕ УЧТЁН","НЕ УЧТЁН","НЕ УЧТЁН","НЕ УЧТЁН","НЕ УЧТЁН","НЕ УЧТЁН","НЕ УЧТЁН","НЕ УЧТЁН","НЕ УЧТЁН","НЕ УЧТЁН","НЕ УЧТЁН","НЕ УЧТЁН","НЕ УЧТЁН","НЕ УЧТЁН","НЕ УЧТЁН","НЕ УЧТЁН","НЕ УЧТЁН","НЕ УЧТЁН","НЕ УЧТЁН","НЕ УЧТЁН","НЕ УЧТЁН","НЕ УЧТЁН","НЕ УЧТЁН","НЕ УЧТЁН","НЕ УЧТЁН","НЕ УЧТЁН","НЕ УЧТЁН","НЕ УЧТЁН","НЕ УЧТЁН","НЕ УЧТЁН","НЕ УЧТЁН","НЕ УЧТЁН","НЕ УЧТЁН","НЕ УЧТЁН","НЕ УЧТЁН","НЕ УЧТЁН","НЕ УЧТЁН","НЕ УЧТЁН","НЕ УЧТЁН","НЕ УЧТЁН","НЕ УЧТЁН","НЕ УЧТЁН","НЕ УЧТЁН","НЕ УЧТЁН","НЕ УЧТЁН","НЕ УЧТЁН","НЕ УЧТЁН","НЕ УЧТЁН","НЕ УЧТЁН","НЕ УЧТЁН","НЕ УЧТЁН","НЕ УЧТЁН","НЕ УЧТЁН","НЕ УЧТЁН","НЕ УЧТЁН","НЕ УЧТЁН","НЕ УЧТЁН","НЕ УЧТЁН","НЕ УЧТЁН","НЕ УЧТЁН","НЕ УЧТЁН","НЕ УЧТЁН","НЕ УЧТЁН","НЕ УЧТЁН","НЕ УЧТЁН","НЕ УЧТЁН","НЕ УЧТЁН","НЕ УЧТЁН","НЕ УЧТЁН","НЕ УЧТЁН","НЕ УЧТЁН","НЕ УЧТЁН","НЕ УЧТЁН","НЕ УЧТЁН","НЕ УЧТЁН","НЕ УЧТЁН","НЕ УЧТЁН","НЕ УЧТЁН","НЕ УЧТЁН","НЕ УЧТЁН","НЕ УЧТЁН","НЕ УЧТЁН","НЕ УЧТЁН","НЕ УЧТЁН","НЕ УЧТЁН","НЕ УЧТЁН","НЕ УЧТЁН","НЕ УЧТЁН","НЕ УЧТЁН","НЕ УЧТЁН","НЕ УЧТЁН","НЕ УЧТЁН","НЕ УЧТЁН","НЕ УЧТЁН","НЕ УЧТЁН","НЕ УЧТЁН","НЕ УЧТЁН","НЕ УЧТЁН","НЕ УЧТЁН","НЕ УЧТЁН","НЕ УЧТЁН","НЕ УЧТЁН","НЕ УЧТЁН","НЕ УЧТЁН","НЕ УЧТЁН","НЕ УЧТЁН","НЕ УЧТЁН","НЕ УЧТЁН","НЕ УЧТЁН","НЕ УЧТЁН","НЕ УЧТЁН","НЕ УЧТЁН","НЕ УЧТЁН","НЕ УЧТЁН","НЕ УЧТЁН","НЕ УЧТЁН","НЕ УЧТЁН","НЕ УЧТЁН","НЕ УЧТЁН","НЕ УЧТЁН","НЕ УЧТЁН","НЕ УЧТЁН","НЕ УЧТЁН","НЕ УЧТЁН","НЕ УЧТЁН","НЕ УЧТЁН","НЕ УЧТЁН","НЕ УЧТЁН","НЕ УЧТЁН","НЕ УЧТЁН","НЕ УЧТЁН","НЕ УЧТЁН","НЕ УЧТЁН","НЕ УЧТЁН","НЕ УЧТЁН","НЕ УЧТЁН","НЕ УЧТЁН","НЕ УЧТЁН","НЕ УЧТЁН","НЕ УЧТЁН","НЕ УЧТЁН","НЕ УЧТЁН","НЕ УЧТЁН","НЕ УЧТЁН","НЕ УЧТЁН","НЕ УЧТЁН","НЕ УЧТЁН","НЕ УЧТЁН","НЕ УЧТЁН","НЕ УЧТЁН","НЕ УЧТЁН","НЕ УЧТЁН","НЕ УЧТЁН","НЕ УЧТЁН","НЕ УЧТЁН","НЕ УЧТЁН","НЕ УЧТЁН","НЕ УЧТЁН","НЕ УЧТЁН","НЕ УЧТЁН","НЕ УЧТЁН","НЕ УЧТЁН","НЕ УЧТЁН","НЕ УЧТЁН","НЕ УЧТЁН","НЕ УЧТЁН","НЕ УЧТЁН","НЕ УЧТЁН","НЕ УЧТЁН","НЕ УЧТЁН","НЕ УЧТЁН","НЕ УЧТЁН","НЕ УЧТЁН","НЕ УЧТЁН","НЕ УЧТЁН","НЕ УЧТЁН","НЕ УЧТЁН","НЕ УЧТЁН","НЕ УЧТЁН","НЕ УЧТЁН","НЕ УЧТЁН","НЕ УЧТЁН","НЕ УЧТЁН","НЕ УЧТЁН","НЕ УЧТЁН","НЕ УЧТЁН","НЕ УЧТЁН","НЕ УЧТЁН","НЕ УЧТЁН","НЕ УЧТЁН","НЕ УЧТЁН","НЕ УЧТЁН","НЕ УЧТЁН","НЕ УЧТЁН","НЕ УЧТЁН","НЕ УЧТЁН","НЕ УЧТЁН","НЕ УЧТЁН","НЕ УЧТЁН","НЕ УЧТЁН","НЕ УЧТЁН","НЕ УЧТЁН","НЕ УЧТЁН","НЕ УЧТЁН","НЕ УЧТЁН","НЕ УЧТЁН","НЕ УЧТЁН","НЕ УЧТЁН","НЕ УЧТЁН","НЕ УЧТЁН","НЕ УЧТЁН","НЕ УЧТЁН","НЕ УЧТЁН","НЕ УЧТЁН","НЕ УЧТЁН","НЕ УЧТЁН","НЕ УЧТЁН","НЕ УЧТЁН","НЕ УЧТЁН","НЕ УЧТЁН","НЕ УЧТЁН","НЕ УЧТЁН","НЕ УЧТЁН","НЕ УЧТЁН","НЕ УЧТЁН","НЕ УЧТЁН","НЕ УЧТЁН","НЕ УЧТЁН","НЕ УЧТЁН","НЕ УЧТЁН","НЕ УЧТЁН","НЕ УЧТЁН","НЕ УЧТЁН","НЕ УЧТЁН","НЕ УЧТЁН","НЕ УЧТЁН","НЕ УЧТЁН","НЕ УЧТЁН","НЕ УЧТЁН","НЕ УЧТЁН","НЕ УЧТЁН","НЕ УЧТЁН","НЕ УЧТЁН","НЕ УЧТЁН","НЕ УЧТЁН","НЕ УЧТЁН","НЕ УЧТЁН","НЕ УЧТЁН","НЕ УЧТЁН","НЕ УЧТЁН","НЕ УЧТЁН","НЕ УЧТЁН","НЕ УЧТЁН","НЕ УЧТЁН","НЕ УЧТЁН","НЕ УЧТЁН","НЕ УЧТЁН","НЕ УЧТЁН","НЕ УЧТЁН","НЕ УЧТЁН","НЕ УЧТЁН","НЕ УЧТЁН","НЕ УЧТЁН","НЕ УЧТЁН","НЕ УЧТЁН","НЕ УЧТЁН","НЕ УЧТЁН","НЕ УЧТЁН","НЕ УЧТЁН","НЕ УЧТЁН","НЕ УЧТЁН","НЕ УЧТЁН","НЕ УЧТЁН","НЕ УЧТЁН","НЕ УЧТЁН","НЕ УЧТЁН","НЕ УЧТЁН","НЕ УЧТЁН","НЕ УЧТЁН","НЕ УЧТЁН","НЕ УЧТЁН","НЕ УЧТЁН","НЕ УЧТЁН","НЕ УЧТЁН","НЕ УЧТЁН","НЕ УЧТЁН","НЕ УЧТЁН","НЕ УЧТЁН","НЕ УЧТЁН","НЕ УЧТЁН","НЕ УЧТЁН","НЕ УЧТЁН","НЕ УЧТЁН","НЕ УЧТЁН","НЕ УЧТЁН","НЕ УЧТЁН","НЕ УЧТЁН","НЕ УЧТЁН","НЕ УЧТЁН","НЕ УЧТЁН","НЕ УЧТЁН","НЕ УЧТЁН","НЕ УЧТЁН","НЕ УЧТЁН","НЕ УЧТЁН","НЕ УЧТЁН","НЕ УЧТЁН","НЕ УЧТЁН","НЕ УЧТЁН","НЕ УЧТЁН","НЕ УЧТЁН","НЕ УЧТЁН","НЕ УЧТЁН","НЕ УЧТЁН","НЕ УЧТЁН","НЕ УЧТЁН","НЕ УЧТЁН","НЕ УЧТЁН","НЕ УЧТЁН","НЕ УЧТЁН","НЕ УЧТЁН","НЕ УЧТЁН","НЕ УЧТЁН","НЕ УЧТЁН","НЕ УЧТЁН","НЕ УЧТЁН","НЕ УЧТЁН","НЕ УЧТЁН","НЕ УЧТЁН","НЕ УЧТЁН","НЕ УЧТЁН","НЕ УЧТЁН","НЕ УЧТЁН","НЕ УЧТЁН","НЕ УЧТЁН","НЕ УЧТЁН","НЕ УЧТЁН","НЕ УЧТЁН","НЕ УЧТЁН","НЕ УЧТЁН","НЕ УЧТЁН","НЕ УЧТЁН","НЕ УЧТЁН","НЕ УЧТЁН","НЕ УЧТЁН","НЕ УЧТЁН","НЕ УЧТЁН","НЕ УЧТЁН","НЕ УЧТЁН","НЕ УЧТЁН","НЕ УЧТЁН","НЕ УЧТЁН","НЕ УЧТЁН","НЕ УЧТЁН","НЕ УЧТЁН","НЕ УЧТЁН","НЕ УЧТЁН","НЕ УЧТЁН","НЕ УЧТЁН","НЕ УЧТЁН","НЕ УЧТЁН","НЕ УЧТЁН","НЕ УЧТЁН","НЕ УЧТЁН","НЕ УЧТЁН","НЕ УЧТЁН","НЕ УЧТЁН","НЕ УЧТЁН","НЕ УЧТЁН","НЕ УЧТЁН","НЕ УЧТЁН","НЕ УЧТЁН","НЕ УЧТЁН","НЕ УЧТЁН","НЕ УЧТЁН","НЕ УЧТЁН","НЕ УЧТЁН","НЕ УЧТЁН","НЕ УЧТЁН","НЕ УЧТЁН","НЕ УЧТЁН","НЕ УЧТЁН","НЕ УЧТЁН","НЕ УЧТЁН","НЕ УЧТЁН","НЕ УЧТЁН","НЕ УЧТЁН","НЕ УЧТЁН","НЕ УЧТЁН","НЕ УЧТЁН","НЕ УЧТЁН","НЕ УЧТЁН","НЕ УЧТЁН","НЕ УЧТЁН","НЕ УЧТЁН","НЕ УЧТЁН","НЕ УЧТЁН","НЕ УЧТЁН","НЕ УЧТЁН","НЕ УЧТЁН","НЕ УЧТЁН","НЕ УЧТЁН","НЕ УЧТЁН","НЕ УЧТЁН","НЕ УЧТЁН","НЕ УЧТЁН","НЕ УЧТЁН","НЕ УЧТЁН","НЕ УЧТЁН","НЕ УЧТЁН","НЕ УЧТЁН","НЕ УЧТЁН","НЕ УЧТЁН","НЕ УЧТЁН","НЕ УЧТЁН","НЕ УЧТЁН","НЕ УЧТЁН","НЕ УЧТЁН","НЕ УЧТЁН","НЕ УЧТЁН","НЕ УЧТЁН","НЕ УЧТЁН","НЕ УЧТЁН","НЕ УЧТЁН","НЕ УЧТЁН","НЕ УЧТЁН","НЕ УЧТЁН","НЕ УЧТЁН","НЕ УЧТЁН","НЕ УЧТЁН","НЕ УЧТЁН","НЕ УЧТЁН","НЕ УЧТЁН","НЕ УЧТЁН","НЕ УЧТЁН","НЕ УЧТЁН","НЕ УЧТЁН","НЕ УЧТЁН","НЕ УЧТЁН","НЕ УЧТЁН","НЕ УЧТЁН","НЕ УЧТЁН","НЕ УЧТЁН","НЕ УЧТЁН","НЕ УЧТЁН","НЕ УЧТЁН","НЕ УЧТЁН","НЕ УЧТЁН","НЕ УЧТЁН","НЕ УЧТЁН","НЕ УЧТЁН","НЕ УЧТЁН","НЕ УЧТЁН","НЕ УЧТЁН","НЕ УЧТЁН","НЕ УЧТЁН","НЕ УЧТЁН","НЕ УЧТЁН","НЕ УЧТЁН","НЕ УЧТЁН","НЕ УЧТЁН","НЕ УЧТЁН","НЕ УЧТЁН","НЕ УЧТЁН","НЕ УЧТЁН","НЕ УЧТЁН","НЕ УЧТЁН","НЕ УЧТЁН","НЕ УЧТЁН","НЕ УЧТЁН","НЕ УЧТЁН","НЕ УЧТЁН","НЕ УЧТЁН","НЕ УЧТЁН","НЕ УЧТЁН","НЕ УЧТЁН","НЕ УЧТЁН","НЕ УЧТЁН","НЕ УЧТЁН","НЕ УЧТЁН","НЕ УЧТЁН","НЕ УЧТЁН","НЕ УЧТЁН","НЕ УЧТЁН","НЕ УЧТЁН","НЕ УЧТЁН","НЕ УЧТЁН","НЕ УЧТЁН","НЕ УЧТЁН","НЕ УЧТЁН","НЕ УЧТЁН","НЕ УЧТЁН","НЕ УЧТЁН","НЕ УЧТЁН","НЕ УЧТЁН","НЕ УЧТЁН","НЕ УЧТЁН","НЕ УЧТЁН","НЕ УЧТЁН","НЕ УЧТЁН","НЕ УЧТЁН","НЕ УЧТЁН","НЕ УЧТЁН","НЕ УЧТЁН","НЕ УЧТЁН","НЕ УЧТЁН","НЕ УЧТЁН","НЕ УЧТЁН","НЕ УЧТЁН","НЕ УЧТЁН","НЕ УЧТЁН","НЕ УЧТЁН","НЕ УЧТЁН","НЕ УЧТЁН","НЕ УЧТЁН","НЕ УЧТЁН","НЕ УЧТЁН","НЕ УЧТЁН","НЕ УЧТЁН","НЕ УЧТЁН","НЕ УЧТЁН","НЕ УЧТЁН","НЕ УЧТЁН","НЕ УЧТЁН","НЕ УЧТЁН","НЕ УЧТЁН","НЕ УЧТЁН","НЕ УЧТЁН","НЕ УЧТЁН","НЕ УЧТЁН","НЕ УЧТЁН","НЕ УЧТЁН","НЕ УЧТЁН","НЕ УЧТЁН","НЕ УЧТЁН","НЕ УЧТЁН","НЕ УЧТЁН","НЕ УЧТЁН","НЕ УЧТЁН","НЕ УЧТЁН","НЕ УЧТЁН","НЕ УЧТЁН","НЕ УЧТЁН","НЕ УЧТЁН","НЕ УЧТЁН","НЕ УЧТЁН","НЕ УЧТЁН","НЕ УЧТЁН","НЕ УЧТЁН","НЕ УЧТЁН","НЕ УЧТЁН","НЕ УЧТЁН","НЕ УЧТЁН","НЕ УЧТЁН","НЕ УЧТЁН","НЕ УЧТЁН","НЕ УЧТЁН","НЕ УЧТЁН","НЕ УЧТЁН","НЕ УЧТЁН","НЕ УЧТЁН","НЕ УЧТЁН","НЕ УЧТЁН","НЕ УЧТЁН","НЕ УЧТЁН","НЕ УЧТЁН","НЕ УЧТЁН","НЕ УЧТЁН","НЕ УЧТЁН","НЕ УЧТЁН","НЕ УЧТЁН","НЕ УЧТЁН","НЕ УЧТЁН","НЕ УЧТЁН","НЕ УЧТЁН","НЕ УЧТЁН","НЕ УЧТЁН","НЕ УЧТЁН","НЕ УЧТЁН","НЕ УЧТЁН","НЕ УЧТЁН","НЕ УЧТЁН","НЕ УЧТЁН","НЕ УЧТЁН","НЕ УЧТЁН","НЕ УЧТЁН","НЕ УЧТЁН","НЕ УЧТЁН","НЕ УЧТЁН","НЕ УЧТЁН","НЕ УЧТЁН","НЕ УЧТЁН","НЕ УЧТЁН","НЕ УЧТЁН","НЕ УЧТЁН","НЕ УЧТЁН","НЕ УЧТЁН","НЕ УЧТЁН","НЕ УЧТЁН","НЕ УЧТЁН","НЕ УЧТЁН","НЕ УЧТЁН","НЕ УЧТЁН","НЕ УЧТЁН","НЕ УЧТЁН","НЕ УЧТЁН","НЕ УЧТЁН","НЕ УЧТЁН","НЕ УЧТЁН","НЕ УЧТЁН","НЕ УЧТЁН","НЕ УЧТЁН","НЕ УЧТЁН","НЕ УЧТЁН","НЕ УЧТЁН","НЕ УЧТЁН","НЕ УЧТЁН","НЕ УЧТЁН","НЕ УЧТЁН","НЕ УЧТЁН","НЕ УЧТЁН","НЕ УЧТЁН","НЕ УЧТЁН","НЕ УЧТЁН","НЕ УЧТЁН","НЕ УЧТЁН","НЕ УЧТЁН","НЕ УЧТЁН","НЕ УЧТЁН","НЕ УЧТЁН","НЕ УЧТЁН","НЕ УЧТЁН","НЕ УЧТЁН","НЕ УЧТЁН","НЕ УЧТЁН","НЕ УЧТЁН","НЕ УЧТЁН","НЕ УЧТЁН","НЕ УЧТЁН","НЕ УЧТЁН","НЕ УЧТЁН","НЕ УЧТЁН","НЕ УЧТЁН","НЕ УЧТЁН","НЕ УЧТЁН","НЕ УЧТЁН","НЕ УЧТЁН","НЕ УЧТЁН","НЕ УЧТЁН","НЕ УЧТЁН","НЕ УЧТЁН","НЕ УЧТЁН","НЕ УЧТЁН","НЕ УЧТЁН","НЕ УЧТЁН","НЕ УЧТЁН","НЕ УЧТЁН","НЕ УЧТЁН","НЕ УЧТЁН","НЕ УЧТЁН","НЕ УЧТЁН","НЕ УЧТЁН","НЕ УЧТЁН","НЕ УЧТЁН","НЕ УЧТЁН","НЕ УЧТЁН","НЕ УЧТЁН","НЕ УЧТЁН","НЕ УЧТЁН","НЕ УЧТЁН","НЕ УЧТЁН","НЕ УЧТЁН","НЕ УЧТЁН","НЕ УЧТЁН","НЕ УЧТЁН","НЕ УЧТЁН","НЕ УЧТЁН","НЕ УЧТЁН","НЕ УЧТЁН","НЕ УЧТЁН","НЕ УЧТЁН","НЕ УЧТЁН","НЕ УЧТЁН","НЕ УЧТЁН","НЕ УЧТЁН","НЕ УЧТЁН","НЕ УЧТЁН","НЕ УЧТЁН","НЕ УЧТЁН","НЕ УЧТЁН","НЕ УЧТЁН","НЕ УЧТЁН","НЕ УЧТЁН","НЕ УЧТЁН","НЕ УЧТЁН","НЕ УЧТЁН","НЕ УЧТЁН","НЕ УЧТЁН","НЕ УЧТЁН","НЕ УЧТЁН","НЕ УЧТЁН","НЕ УЧТЁН","НЕ УЧТЁН","НЕ УЧТЁН","НЕ УЧТЁН","НЕ УЧТЁН","НЕ УЧТЁН","НЕ УЧТЁН","НЕ УЧТЁН","НЕ УЧТЁН","НЕ УЧТЁН","НЕ УЧТЁН","НЕ УЧТЁН","НЕ УЧТЁН","НЕ УЧТЁН","НЕ УЧТЁН","НЕ УЧТЁН","НЕ УЧТЁН","НЕ УЧТЁН","НЕ УЧТЁН","НЕ УЧТЁН","НЕ УЧТЁН","НЕ УЧТЁН","НЕ УЧТЁН","НЕ УЧТЁН","НЕ УЧТЁН","НЕ УЧТЁН","НЕ УЧТЁН","НЕ УЧТЁН","НЕ УЧТЁН","НЕ УЧТЁН","НЕ УЧТЁН","НЕ УЧТЁН","НЕ УЧТЁН","НЕ УЧТЁН","НЕ УЧТЁН","НЕ УЧТЁН","НЕ УЧТЁН","НЕ УЧТЁН","НЕ УЧТЁН","НЕ УЧТЁН","НЕ УЧТЁН","НЕ УЧТЁН","НЕ УЧТЁН","НЕ УЧТЁН","НЕ УЧТЁН","НЕ УЧТЁН","НЕ УЧТЁН","НЕ УЧТЁН","НЕ УЧТЁН","НЕ УЧТЁН","НЕ УЧТЁН","НЕ УЧТЁН","НЕ УЧТЁН","НЕ УЧТЁН","НЕ УЧТЁН","НЕ УЧТЁН","НЕ УЧТЁН","НЕ УЧТЁН","НЕ УЧТЁН","НЕ УЧТЁН","НЕ УЧТЁН","НЕ УЧТЁН","НЕ УЧТЁН","НЕ УЧТЁН","НЕ УЧТЁН","НЕ УЧТЁН","НЕ УЧТЁН","НЕ УЧТЁН","НЕ УЧТЁН","НЕ УЧТЁН","НЕ УЧТЁН","НЕ УЧТЁН","НЕ УЧТЁН","НЕ УЧТЁН","НЕ УЧТЁН","НЕ УЧТЁН","НЕ УЧТЁН","НЕ УЧТЁН","НЕ УЧТЁН","НЕ УЧТЁН","НЕ УЧТЁН","НЕ УЧТЁН","НЕ УЧТЁН","НЕ УЧТЁН","НЕ УЧТЁН","НЕ УЧТЁН","НЕ УЧТЁН","НЕ УЧТЁН","НЕ УЧТЁН","НЕ УЧТЁН","НЕ УЧТЁН","НЕ УЧТЁН","НЕ УЧТЁН","НЕ УЧТЁН","НЕ УЧТЁН","НЕ УЧТЁН","НЕ УЧТЁН","НЕ УЧТЁН","НЕ УЧТЁН","НЕ УЧТЁН","НЕ УЧТЁН","НЕ УЧТЁН","НЕ УЧТЁН","НЕ УЧТЁН","НЕ УЧТЁН","НЕ УЧТЁН","НЕ УЧТЁН","НЕ УЧТЁН","НЕ УЧТЁН","НЕ УЧТЁН","НЕ УЧТЁН","НЕ УЧТЁН","НЕ УЧТЁН","НЕ УЧТЁН","НЕ УЧТЁН","НЕ УЧТЁН","НЕ УЧТЁН","НЕ УЧТЁН","НЕ УЧТЁН","НЕ УЧТЁН","НЕ УЧТЁН","НЕ УЧТЁН","НЕ УЧТЁН","НЕ УЧТЁН","НЕ УЧТЁН","НЕ УЧТЁН","НЕ УЧТЁН","НЕ УЧТЁН","НЕ УЧТЁН","НЕ УЧТЁН","НЕ УЧТЁН","НЕ УЧТЁН","НЕ УЧТЁН","НЕ УЧТЁН","НЕ УЧТЁН","НЕ УЧТЁН","НЕ УЧТЁН","НЕ УЧТЁН","НЕ УЧТЁН","НЕ УЧТЁН","НЕ УЧТЁН","НЕ УЧТЁН","НЕ УЧТЁН","НЕ УЧТЁН","НЕ УЧТЁН","НЕ УЧТЁН","НЕ УЧТЁН","НЕ УЧТЁН","НЕ УЧТЁН","НЕ УЧТЁН","НЕ УЧТЁН","НЕ УЧТЁН","НЕ УЧТЁН","НЕ УЧТЁН","НЕ УЧТЁН","НЕ УЧТЁН","НЕ УЧТЁН","НЕ УЧТЁН","НЕ УЧТЁН","НЕ УЧТЁН","НЕ УЧТЁН","НЕ УЧТЁН","НЕ УЧТЁН","НЕ УЧТЁН","НЕ УЧТЁН","НЕ УЧТЁН","НЕ УЧТЁН","НЕ УЧТЁН","НЕ УЧТЁН","НЕ УЧТЁН","НЕ УЧТЁН","НЕ УЧТЁН","НЕ УЧТЁН","НЕ УЧТЁН","НЕ УЧТЁН","НЕ УЧТЁН","НЕ УЧТЁН","НЕ УЧТЁН","НЕ УЧТЁН","НЕ УЧТЁН","НЕ УЧТЁН","НЕ УЧТЁН","НЕ УЧТЁН","НЕ УЧТЁН","НЕ УЧТЁН","НЕ УЧТЁН","НЕ УЧТЁН","НЕ УЧТЁН","НЕ УЧТЁН","НЕ УЧТЁН","НЕ УЧТЁН","НЕ УЧТЁН","НЕ УЧТЁН","НЕ УЧТЁН","НЕ УЧТЁН","НЕ УЧТЁН","НЕ УЧТЁН","НЕ УЧТЁН","НЕ УЧТЁН","НЕ УЧТЁН","НЕ УЧТЁН","НЕ УЧТЁН","НЕ УЧТЁН","НЕ УЧТЁН","НЕ УЧТЁН","НЕ УЧТЁН","НЕ УЧТЁН","НЕ УЧТЁН","НЕ УЧТЁН","НЕ УЧТЁН","НЕ УЧТЁН","НЕ УЧТЁН","НЕ УЧТЁН","НЕ УЧТЁН","НЕ УЧТЁН","НЕ УЧТЁН","НЕ УЧТЁН","НЕ УЧТЁН","НЕ УЧТЁН","НЕ УЧТЁН","НЕ УЧТЁН","НЕ УЧТЁН","НЕ УЧТЁН","НЕ УЧТЁН","НЕ УЧТЁН","НЕ УЧТЁН","НЕ УЧТЁН","НЕ УЧТЁН","НЕ УЧТЁН","НЕ УЧТЁН","НЕ УЧТЁН","НЕ УЧТЁН","НЕ УЧТЁН","НЕ УЧТЁН","НЕ УЧТЁН","НЕ УЧТЁН","НЕ УЧТЁН","НЕ УЧТЁН","НЕ УЧТЁН","НЕ УЧТЁН","НЕ УЧТЁН","НЕ УЧТЁН","НЕ УЧТЁН","НЕ УЧТЁН","НЕ УЧТЁН","НЕ УЧТЁН","НЕ УЧТЁН","НЕ УЧТЁН","НЕ УЧТЁН","НЕ УЧТЁН","НЕ УЧТЁН","НЕ УЧТЁН","НЕ УЧТЁН","НЕ УЧТЁН","НЕ УЧТЁН","НЕ УЧТЁН","НЕ УЧТЁН","НЕ УЧТЁН","НЕ УЧТЁН","НЕ УЧТЁН","НЕ УЧТЁН","НЕ УЧТЁН","НЕ УЧТЁН","НЕ УЧТЁН","НЕ УЧТЁН","НЕ УЧТЁН","НЕ УЧТЁН","НЕ УЧТЁН","НЕ УЧТЁН","НЕ УЧТЁН","НЕ УЧТЁН","НЕ УЧТЁН","НЕ УЧТЁН","НЕ УЧТЁН","НЕ УЧТЁН","НЕ УЧТЁН","НЕ УЧТЁН","НЕ УЧТЁН","НЕ УЧТЁН","НЕ УЧТЁН","НЕ УЧТЁН","НЕ УЧТЁН","НЕ УЧТЁН","НЕ УЧТЁН","НЕ УЧТЁН","НЕ УЧТЁН","НЕ УЧТЁН","НЕ УЧТЁН","НЕ УЧТЁН","НЕ УЧТЁН","НЕ УЧТЁН","НЕ УЧТЁН","НЕ УЧТЁН","НЕ УЧТЁН","НЕ УЧТЁН","НЕ УЧТЁН","НЕ УЧТЁН","НЕ УЧТЁН","НЕ УЧТЁН","НЕ УЧТЁН","НЕ УЧТЁН","НЕ УЧТЁН","НЕ УЧТЁН","НЕ УЧТЁН","НЕ УЧТЁН","НЕ УЧТЁН","НЕ УЧТЁН","НЕ УЧТЁН","НЕ УЧТЁН","НЕ УЧТЁН","НЕ УЧТЁН","НЕ УЧТЁН","НЕ УЧТЁН","НЕ УЧТЁН","НЕ УЧТЁН","НЕ УЧТЁН","НЕ УЧТЁН","НЕ УЧТЁН","НЕ УЧТЁН","НЕ УЧТЁН","НЕ УЧТЁН","НЕ УЧТЁН","НЕ УЧТЁН","НЕ УЧТЁН","НЕ УЧТЁН","НЕ УЧТЁН","НЕ УЧТЁН","НЕ УЧТЁН","НЕ УЧТЁН","НЕ УЧТЁН","НЕ УЧТЁН","НЕ УЧТЁН","НЕ УЧТЁН","НЕ УЧТЁН","НЕ УЧТЁН","НЕ УЧТЁН","НЕ УЧТЁН","НЕ УЧТЁН","НЕ УЧТЁН","НЕ УЧТЁН","НЕ УЧТЁН","НЕ УЧТЁН","НЕ УЧТЁН","НЕ УЧТЁН","НЕ УЧТЁН","НЕ УЧТЁН","НЕ УЧТЁН","НЕ УЧТЁН","НЕ УЧТЁН","НЕ УЧТЁН","НЕ УЧТЁН","НЕ УЧТЁН","НЕ УЧТЁН","НЕ УЧТЁН","НЕ УЧТЁН","НЕ УЧТЁН","НЕ УЧТЁН","НЕ УЧТЁН","НЕ УЧТЁН","НЕ УЧТЁН","НЕ УЧТЁН","НЕ УЧТЁН","НЕ УЧТЁН","НЕ УЧТЁН","НЕ УЧТЁН","НЕ УЧТЁН","НЕ УЧТЁН","НЕ УЧТЁН","НЕ УЧТЁН","НЕ УЧТЁН","НЕ УЧТЁН","НЕ УЧТЁН","НЕ УЧТЁН","НЕ УЧТЁН","НЕ УЧТЁН","НЕ УЧТЁН","НЕ УЧТЁН","НЕ УЧТЁН","НЕ УЧТЁН","НЕ УЧТЁН","НЕ УЧТЁН","НЕ УЧТЁН","НЕ УЧТЁН","НЕ УЧТЁН","НЕ УЧТЁН","НЕ УЧТЁН","НЕ УЧТЁН","НЕ УЧТЁН","НЕ УЧТЁН","НЕ УЧТЁН","НЕ УЧТЁН","НЕ УЧТЁН","НЕ УЧТЁН","НЕ УЧТЁН","НЕ УЧТЁН","НЕ УЧТЁН","НЕ УЧТЁН","НЕ УЧТЁН","НЕ УЧТЁН","НЕ УЧТЁН","НЕ УЧТЁН","НЕ УЧТЁН","НЕ УЧТЁН","НЕ УЧТЁН","НЕ УЧТЁН","НЕ УЧТЁН","НЕ УЧТЁН","НЕ УЧТЁН","НЕ УЧТЁН","НЕ УЧТЁН","НЕ УЧТЁН","НЕ УЧТЁН","НЕ УЧТЁН","НЕ УЧТЁН","НЕ УЧТЁН","НЕ УЧТЁН","НЕ УЧТЁН","НЕ УЧТЁН","НЕ УЧТЁН","НЕ УЧТЁН","НЕ УЧТЁН","НЕ УЧТЁН","НЕ УЧТЁН","НЕ УЧТЁН","НЕ УЧТЁН","НЕ УЧТЁН","НЕ УЧТЁН","НЕ УЧТЁН","НЕ УЧТЁН","НЕ УЧТЁН","НЕ УЧТЁН","НЕ УЧТЁН","НЕ УЧТЁН","НЕ УЧТЁН","НЕ УЧТЁН","НЕ УЧТЁН","НЕ УЧТЁН","НЕ УЧТЁН","НЕ УЧТЁН","НЕ УЧТЁН","НЕ УЧТЁН","НЕ УЧТЁН","НЕ УЧТЁН","НЕ УЧТЁН","НЕ УЧТЁН","НЕ УЧТЁН","НЕ УЧТЁН","НЕ УЧТЁН","НЕ УЧТЁН","НЕ УЧТЁН","НЕ УЧТЁН","НЕ УЧТЁН","НЕ УЧТЁН","НЕ УЧТЁН","НЕ УЧТЁН","НЕ УЧТЁН","НЕ УЧТЁН","НЕ УЧТЁН","НЕ УЧТЁН","НЕ УЧТЁН","НЕ УЧТЁН","НЕ УЧТЁН","НЕ УЧТЁН","НЕ УЧТЁН","НЕ УЧТЁН","НЕ УЧТЁН","НЕ УЧТЁН","НЕ УЧТЁН","НЕ УЧТЁН","НЕ УЧТЁН","НЕ УЧТЁН","НЕ УЧТЁН","НЕ УЧТЁН","НЕ УЧТЁН","НЕ УЧТЁН","НЕ УЧТЁН","НЕ УЧТЁН","НЕ УЧТЁН","НЕ УЧТЁН","НЕ УЧТЁН","НЕ УЧТЁН","НЕ УЧТЁН","НЕ УЧТЁН","НЕ УЧТЁН","НЕ УЧТЁН","НЕ УЧТЁН","НЕ УЧТЁН","НЕ УЧТЁН","НЕ УЧТЁН","НЕ УЧТЁН","НЕ УЧТЁН","НЕ УЧТЁН","НЕ УЧТЁН","НЕ УЧТЁН","НЕ УЧТЁН","НЕ УЧТЁН","НЕ УЧТЁН","НЕ УЧТЁН","НЕ УЧТЁН","НЕ УЧТЁН","НЕ УЧТЁН","НЕ УЧТЁН","НЕ УЧТЁН","НЕ УЧТЁН","НЕ УЧТЁН","НЕ УЧТЁН","НЕ УЧТЁН","НЕ УЧТЁН","НЕ УЧТЁН","НЕ УЧТЁН","НЕ УЧТЁН","НЕ УЧТЁН","НЕ УЧТЁН","НЕ УЧТЁН","НЕ УЧТЁН","НЕ УЧТЁН","НЕ УЧТЁН","НЕ УЧТЁН","НЕ УЧТЁН","НЕ УЧТЁН","НЕ УЧТЁН","НЕ УЧТЁН","НЕ УЧТЁН","НЕ УЧТЁН","НЕ УЧТЁН","НЕ УЧТЁН","НЕ УЧТЁН","НЕ УЧТЁН","НЕ УЧТЁН","НЕ УЧТЁН","НЕ УЧТЁН","НЕ УЧТЁН","НЕ УЧТЁН","НЕ УЧТЁН","НЕ УЧТЁН","НЕ УЧТЁН","НЕ УЧТЁН","НЕ УЧТЁН","НЕ УЧТЁН","НЕ УЧТЁН","НЕ УЧТЁН","НЕ УЧТЁН","НЕ УЧТЁН","НЕ УЧТЁН","НЕ УЧТЁН","НЕ УЧТЁН","НЕ УЧТЁН","НЕ УЧТЁН","НЕ УЧТЁН","НЕ УЧТЁН","НЕ УЧТЁН","НЕ УЧТЁН","НЕ УЧТЁН","НЕ УЧТЁН","НЕ УЧТЁН","НЕ УЧТЁН","НЕ УЧТЁН","НЕ УЧТЁН","НЕ УЧТЁН","НЕ УЧТЁН","НЕ УЧТЁН","НЕ УЧТЁН","НЕ УЧТЁН","НЕ УЧТЁН","НЕ УЧТЁН","НЕ УЧТЁН","НЕ УЧТЁН","НЕ УЧТЁН","НЕ УЧТЁН","НЕ УЧТЁН","НЕ УЧТЁН","НЕ УЧТЁН","НЕ УЧТЁН","НЕ УЧТЁН","НЕ УЧТЁН","НЕ УЧТЁН","НЕ УЧТЁН","НЕ УЧТЁН","НЕ УЧТЁН","НЕ УЧТЁН","НЕ УЧТЁН","НЕ УЧТЁН","НЕ УЧТЁН","НЕ УЧТЁН","НЕ УЧТЁН","НЕ УЧТЁН","НЕ УЧТЁН","НЕ УЧТЁН","НЕ УЧТЁН","НЕ УЧТЁН","НЕ УЧТЁН","НЕ УЧТЁН","НЕ УЧТЁН","НЕ УЧТЁН","НЕ УЧТЁН","НЕ УЧТЁН","НЕ УЧТЁН","НЕ УЧТЁН","НЕ УЧТЁН","НЕ УЧТЁН","НЕ УЧТЁН","НЕ УЧТЁН","НЕ УЧТЁН","НЕ УЧТЁН","НЕ УЧТЁН","НЕ УЧТЁН","НЕ УЧТЁН","НЕ УЧТЁН","НЕ УЧТЁН","НЕ УЧТЁН","НЕ УЧТЁН","НЕ УЧТЁН","НЕ УЧТЁН","НЕ УЧТЁН","НЕ УЧТЁН","НЕ УЧТЁН","НЕ УЧТЁН","НЕ УЧТЁН","НЕ УЧТЁН","НЕ УЧТЁН","НЕ УЧТЁН","НЕ УЧТЁН","НЕ УЧТЁН","НЕ УЧТЁН","НЕ УЧТЁН","НЕ УЧТЁН","НЕ УЧТЁН","НЕ УЧТЁН","НЕ УЧТЁН","НЕ УЧТЁН","НЕ УЧТЁН","НЕ УЧТЁН","НЕ УЧТЁН","НЕ УЧТЁН","НЕ УЧТЁН","НЕ УЧТЁН","НЕ УЧТЁН","НЕ УЧТЁН","НЕ УЧТЁН","НЕ УЧТЁН","НЕ УЧТЁН","НЕ УЧТЁН","НЕ УЧТЁН","НЕ УЧТЁН","НЕ УЧТЁН","НЕ УЧТЁН","НЕ УЧТЁН","НЕ УЧТЁН","НЕ УЧТЁН","НЕ УЧТЁН","НЕ УЧТЁН","НЕ УЧТЁН","НЕ УЧТЁН","НЕ УЧТЁН","НЕ УЧТЁН","НЕ УЧТЁН","НЕ УЧТЁН","НЕ УЧТЁН","НЕ УЧТЁН","НЕ УЧТЁН","НЕ УЧТЁН","НЕ УЧТЁН","НЕ УЧТЁН","НЕ УЧТЁН","НЕ УЧТЁН","НЕ УЧТЁН","НЕ УЧТЁН","НЕ УЧТЁН","НЕ УЧТЁН","НЕ УЧТЁН","НЕ УЧТЁН","НЕ УЧТЁН","НЕ УЧТЁН","НЕ УЧТЁН","НЕ УЧТЁН","НЕ УЧТЁН","НЕ УЧТЁН","НЕ УЧТЁН","НЕ УЧТЁН","НЕ УЧТЁН","НЕ УЧТЁН","НЕ УЧТЁН","НЕ УЧТЁН","НЕ УЧТЁН","НЕ УЧТЁН","НЕ УЧТЁН","НЕ УЧТЁН","НЕ УЧТЁН","НЕ УЧТЁН","НЕ УЧТЁН","НЕ УЧТЁН","НЕ УЧТЁН","НЕ УЧТЁН","НЕ УЧТЁН","НЕ УЧТЁН","НЕ УЧТЁН","НЕ УЧТЁН","НЕ УЧТЁН","НЕ УЧТЁН","НЕ УЧТЁН","НЕ УЧТЁН","НЕ УЧТЁН","НЕ УЧТЁН","НЕ УЧТЁН","НЕ УЧТЁН","НЕ УЧТЁН","НЕ УЧТЁН","НЕ УЧТЁН","НЕ УЧТЁН","НЕ УЧТЁН","НЕ УЧТЁН","НЕ УЧТЁН","НЕ УЧТЁН","НЕ УЧТЁН","НЕ УЧТЁН","НЕ УЧТЁН","НЕ УЧТЁН","НЕ УЧТЁН","НЕ УЧТЁН","НЕ УЧТЁН","НЕ УЧТЁН","НЕ УЧТЁН","НЕ УЧТЁН","НЕ УЧТЁН","НЕ УЧТЁН","НЕ УЧТЁН","НЕ УЧТЁН","НЕ УЧТЁН","НЕ УЧТЁН","НЕ УЧТЁН","НЕ УЧТЁН","НЕ УЧТЁН","НЕ УЧТЁН","НЕ УЧТЁН","НЕ УЧТЁН","НЕ УЧТЁН","НЕ УЧТЁН","НЕ УЧТЁН","НЕ УЧТЁН","НЕ УЧТЁН","НЕ УЧТЁН","НЕ УЧТЁН","НЕ УЧТЁН","НЕ УЧТЁН","НЕ УЧТЁН","НЕ УЧТЁН","НЕ УЧТЁН","НЕ УЧТЁН","НЕ УЧТЁН","НЕ УЧТЁН","НЕ УЧТЁН","НЕ УЧТЁН","НЕ УЧТЁН","НЕ УЧТЁН","НЕ УЧТЁН","НЕ УЧТЁН","НЕ УЧТЁН","НЕ УЧТЁН","НЕ УЧТЁН","НЕ УЧТЁН","НЕ УЧТЁН","НЕ УЧТЁН","НЕ УЧТЁН","НЕ УЧТЁН","НЕ УЧТЁН","НЕ УЧТЁН","НЕ УЧТЁН","НЕ УЧТЁН","НЕ УЧТЁН","НЕ УЧТЁН","НЕ УЧТЁН","НЕ УЧТЁН","НЕ УЧТЁН","НЕ УЧТЁН","НЕ УЧТЁН","НЕ УЧТЁН","НЕ УЧТЁН","НЕ УЧТЁН","НЕ УЧТЁН","НЕ УЧТЁН","НЕ УЧТЁН","НЕ УЧТЁН","НЕ УЧТЁН","НЕ УЧТЁН","НЕ УЧТЁН","НЕ УЧТЁН","НЕ УЧТЁН","НЕ УЧТЁН","НЕ УЧТЁН","НЕ УЧТЁН","НЕ УЧТЁН","НЕ УЧТЁН","НЕ УЧТЁН","НЕ УЧТЁН","НЕ УЧТЁН","НЕ УЧТЁН","НЕ УЧТЁН","НЕ УЧТЁН","НЕ УЧТЁН","НЕ УЧТЁН","НЕ УЧТЁН","НЕ УЧТЁН","НЕ УЧТЁН","НЕ УЧТЁН","НЕ УЧТЁН","НЕ УЧТЁН","НЕ УЧТЁН","НЕ УЧТЁН","НЕ УЧТЁН","НЕ УЧТЁН","НЕ УЧТЁН","НЕ УЧТЁН","НЕ УЧТЁН","НЕ УЧТЁН","НЕ УЧТЁН","НЕ УЧТЁН","НЕ УЧТЁН","НЕ УЧТЁН","НЕ УЧТЁН","НЕ УЧТЁН","НЕ УЧТЁН","НЕ УЧТЁН","НЕ УЧТЁН","НЕ УЧТЁН","НЕ УЧТЁН","НЕ УЧТЁН","НЕ УЧТЁН","НЕ УЧТЁН","НЕ УЧТЁН","НЕ УЧТЁН","НЕ УЧТЁН","НЕ УЧТЁН","НЕ УЧТЁН","НЕ УЧТЁН","НЕ УЧТЁН","НЕ УЧТЁН","НЕ УЧТЁН","НЕ УЧТЁН","НЕ УЧТЁН","НЕ УЧТЁН","НЕ УЧТЁН","НЕ УЧТЁН","НЕ УЧТЁН","НЕ УЧТЁН","НЕ УЧТЁН","НЕ УЧТЁН","НЕ УЧТЁН","НЕ УЧТЁН","НЕ УЧТЁН","НЕ УЧТЁН","НЕ УЧТЁН","НЕ УЧТЁН","НЕ УЧТЁН","НЕ УЧТЁН","НЕ УЧТЁН","НЕ УЧТЁН","НЕ УЧТЁН","НЕ УЧТЁН","НЕ УЧТЁН","НЕ УЧТЁН","НЕ УЧТЁН","НЕ УЧТЁН","НЕ УЧТЁН","НЕ УЧТЁН","НЕ УЧТЁН","НЕ УЧТЁН","НЕ УЧТЁН","НЕ УЧТЁН","НЕ УЧТЁН","НЕ УЧТЁН","НЕ УЧТЁН","НЕ УЧТЁН","НЕ УЧТЁН","НЕ УЧТЁН","НЕ УЧТЁН","НЕ УЧТЁН","НЕ УЧТЁН","НЕ УЧТЁН","НЕ УЧТЁН","НЕ УЧТЁН","НЕ УЧТЁН","НЕ УЧТЁН","НЕ УЧТЁН","НЕ УЧТЁН","НЕ УЧТЁН","НЕ УЧТЁН","НЕ УЧТЁН","НЕ УЧТЁН","НЕ УЧТЁН","НЕ УЧТЁН","НЕ УЧТЁН","НЕ УЧТЁН","НЕ УЧТЁН","НЕ УЧТЁН","НЕ УЧТЁН","НЕ УЧТЁН","НЕ УЧТЁН","НЕ УЧТЁН","НЕ УЧТЁН","НЕ УЧТЁН","НЕ УЧТЁН","НЕ УЧТЁН","НЕ УЧТЁН","НЕ УЧТЁН","НЕ УЧТЁН","НЕ УЧТЁН","НЕ УЧТЁН","НЕ УЧТЁН","НЕ УЧТЁН","НЕ УЧТЁН","НЕ УЧТЁН","НЕ УЧТЁН","НЕ УЧТЁН","НЕ УЧТЁН","НЕ УЧТЁН","НЕ УЧТЁН","НЕ УЧТЁН","НЕ УЧТЁН","НЕ УЧТЁН","НЕ УЧТЁН","НЕ УЧТЁН","НЕ УЧТЁН","НЕ УЧТЁН","НЕ УЧТЁН","НЕ УЧТЁН","НЕ УЧТЁН","НЕ УЧТЁН","НЕ УЧТЁН","НЕ УЧТЁН","НЕ УЧТЁН","НЕ УЧТЁН","НЕ УЧТЁН","НЕ УЧТЁН","НЕ УЧТЁН","НЕ УЧТЁН","НЕ УЧТЁН","НЕ УЧТЁН","НЕ УЧТЁН","НЕ УЧТЁН","НЕ УЧТЁН","НЕ УЧТЁН","НЕ УЧТЁН","НЕ УЧТЁН","НЕ УЧТЁН","НЕ УЧТЁН","НЕ УЧТЁН","НЕ УЧТЁН","НЕ УЧТЁН","НЕ УЧТЁН","НЕ УЧТЁН","НЕ УЧТЁН","НЕ УЧТЁН","НЕ УЧТЁН","НЕ УЧТЁН","НЕ УЧТЁН","НЕ УЧТЁН","НЕ УЧТЁН","НЕ УЧТЁН","НЕ УЧТЁН","НЕ УЧТЁН","НЕ УЧТЁН","НЕ УЧТЁН","НЕ УЧТЁН","НЕ УЧТЁН","НЕ УЧТЁН","НЕ УЧТЁН","НЕ УЧТЁН","НЕ УЧТЁН","НЕ УЧТЁН","НЕ УЧТЁН","НЕ УЧТЁН","НЕ УЧТЁН","НЕ УЧТЁН","НЕ УЧТЁН","НЕ УЧТЁН","НЕ УЧТЁН","НЕ УЧТЁН","НЕ УЧТЁН","НЕ УЧТЁН","НЕ УЧТЁН","НЕ УЧТЁН","НЕ УЧТЁН","НЕ УЧТЁН","НЕ УЧТЁН","НЕ УЧТЁН","НЕ УЧТЁН","НЕ УЧТЁН","НЕ УЧТЁН","НЕ УЧТЁН","НЕ УЧТЁН","НЕ УЧТЁН","НЕ УЧТЁН","НЕ УЧТЁН","НЕ УЧТЁН","НЕ УЧТЁН","НЕ УЧТЁН","НЕ УЧТЁН","НЕ УЧТЁН","НЕ УЧТЁН","НЕ УЧТЁН","НЕ УЧТЁН","НЕ УЧТЁН","НЕ УЧТЁН","НЕ УЧТЁН","НЕ УЧТЁН","НЕ УЧТЁН","НЕ УЧТЁН","НЕ УЧТЁН","НЕ УЧТЁН","НЕ УЧТЁН","НЕ УЧТЁН","НЕ УЧТЁН","НЕ УЧТЁН","НЕ УЧТЁН","НЕ УЧТЁН","НЕ УЧТЁН","НЕ УЧТЁН","НЕ УЧТЁН","НЕ УЧТЁН","НЕ УЧТЁН","НЕ УЧТЁН","НЕ УЧТЁН","НЕ УЧТЁН","НЕ УЧТЁН","НЕ УЧТЁН","НЕ УЧТЁН","НЕ УЧТЁН","НЕ УЧТЁН","НЕ УЧТЁН","НЕ УЧТЁН","НЕ УЧТЁН","НЕ УЧТЁН","НЕ УЧТЁН","НЕ УЧТЁН","НЕ УЧТЁН","НЕ УЧТЁН","НЕ УЧТЁН","НЕ УЧТЁН","НЕ УЧТЁН","НЕ УЧТЁН","НЕ УЧТЁН","НЕ УЧТЁН","НЕ УЧТЁН","НЕ УЧТЁН","НЕ УЧТЁН","НЕ УЧТЁН","НЕ УЧТЁН","НЕ УЧТЁН","НЕ УЧТЁН","НЕ УЧТЁН","НЕ УЧТЁН","НЕ УЧТЁН","НЕ УЧТЁН","НЕ УЧТЁН","НЕ УЧТЁН","НЕ УЧТЁН","НЕ УЧТЁН","НЕ УЧТЁН","НЕ УЧТЁН","НЕ УЧТЁН","НЕ УЧТЁН","НЕ УЧТЁН","НЕ УЧТЁН","НЕ УЧТЁН","НЕ УЧТЁН","НЕ УЧТЁН","НЕ УЧТЁН","НЕ УЧТЁН","НЕ УЧТЁН","НЕ УЧТЁН","НЕ УЧТЁН","НЕ УЧТЁН","НЕ УЧТЁН","НЕ УЧТЁН","НЕ УЧТЁН","НЕ УЧТЁН","НЕ УЧТЁН","НЕ УЧТЁН","НЕ УЧТЁН","НЕ УЧТЁН","НЕ УЧТЁН","НЕ УЧТЁН","НЕ УЧТЁН","НЕ УЧТЁН","НЕ УЧТЁН","НЕ УЧТЁН","НЕ УЧТЁН","НЕ УЧТЁН","НЕ УЧТЁН","НЕ УЧТЁН","НЕ УЧТЁН","НЕ УЧТЁН","НЕ УЧТЁН","НЕ УЧТЁН","НЕ УЧТЁН","НЕ УЧТЁН","НЕ УЧТЁН","НЕ УЧТЁН","НЕ УЧТЁН","НЕ УЧТЁН","НЕ УЧТЁН","НЕ УЧТЁН","НЕ УЧТЁН","НЕ УЧТЁН","НЕ УЧТЁН","НЕ УЧТЁН","НЕ УЧТЁН","НЕ УЧТЁН","НЕ УЧТЁН","НЕ УЧТЁН","НЕ УЧТЁН","НЕ УЧТЁН","НЕ УЧТЁН","НЕ УЧТЁН","НЕ УЧТЁН","НЕ УЧТЁН","НЕ УЧТЁН","НЕ УЧТЁН","НЕ УЧТЁН","НЕ УЧТЁН","НЕ УЧТЁН","НЕ УЧТЁН","НЕ УЧТЁН","НЕ УЧТЁН","НЕ УЧТЁН","НЕ УЧТЁН","НЕ УЧТЁН","НЕ УЧТЁН","НЕ УЧТЁН","НЕ УЧТЁН","НЕ УЧТЁН","НЕ УЧТЁН","НЕ УЧТЁН","НЕ УЧТЁН","НЕ УЧТЁН","НЕ УЧТЁН","НЕ УЧТЁН","НЕ УЧТЁН","НЕ УЧТЁН","НЕ УЧТЁН","НЕ УЧТЁН","НЕ УЧТЁН","НЕ УЧТЁН","НЕ УЧТЁН","НЕ УЧТЁН","НЕ УЧТЁН","НЕ УЧТЁН","НЕ УЧТЁН","НЕ УЧТЁН","НЕ УЧТЁН","НЕ УЧТЁН","НЕ УЧТЁН","НЕ УЧТЁН","НЕ УЧТЁН","НЕ УЧТЁН","НЕ УЧТЁН","НЕ УЧТЁН","НЕ УЧТЁН","НЕ УЧТЁН","НЕ УЧТЁН","НЕ УЧТЁН","НЕ УЧТЁН","НЕ УЧТЁН","НЕ УЧТЁН","НЕ УЧТЁН","НЕ УЧТЁН","НЕ УЧТЁН","НЕ УЧТЁН","НЕ УЧТЁН","НЕ УЧТЁН","НЕ УЧТЁН","НЕ УЧТЁН","НЕ УЧТЁН","НЕ УЧТЁН","НЕ УЧТЁН","НЕ УЧТЁН","НЕ УЧТЁН","НЕ УЧТЁН","НЕ УЧТЁН","НЕ УЧТЁН","НЕ УЧТЁН","НЕ УЧТЁН","НЕ УЧТЁН","НЕ УЧТЁН","НЕ УЧТЁН","НЕ УЧТЁН","НЕ УЧТЁН","НЕ УЧТЁН","НЕ УЧТЁН","НЕ УЧТЁН","НЕ УЧТЁН","НЕ УЧТЁН","НЕ УЧТЁН","НЕ УЧТЁН","НЕ УЧТЁН","НЕ УЧТЁН","НЕ УЧТЁН","НЕ УЧТЁН","НЕ УЧТЁН","НЕ УЧТЁН","НЕ УЧТЁН","НЕ УЧТЁН","НЕ УЧТЁН","НЕ УЧТЁН","НЕ УЧТЁН","НЕ УЧТЁН","НЕ УЧТЁН","НЕ УЧТЁН","НЕ УЧТЁН","НЕ УЧТЁН","НЕ УЧТЁН","НЕ УЧТЁН","НЕ УЧТЁН","НЕ УЧТЁН","НЕ УЧТЁН","НЕ УЧТЁН","НЕ УЧТЁН","НЕ УЧТЁН","НЕ УЧТЁН","НЕ УЧТЁН","НЕ УЧТЁН","НЕ УЧТЁН","НЕ УЧТЁН","НЕ УЧТЁН","НЕ УЧТЁН","НЕ УЧТЁН","НЕ УЧТЁН","НЕ УЧТЁН","НЕ УЧТЁН","НЕ УЧТЁН","НЕ УЧТЁН","НЕ УЧТЁН","НЕ УЧТЁН","НЕ УЧТЁН","НЕ УЧТЁН","НЕ УЧТЁН","НЕ УЧТЁН","НЕ УЧТЁН","НЕ УЧТЁН","НЕ УЧТЁН","НЕ УЧТЁН","НЕ УЧТЁН","НЕ УЧТЁН","НЕ УЧТЁН","НЕ УЧТЁН","НЕ УЧТЁН","НЕ УЧТЁН","НЕ УЧТЁН","НЕ УЧТЁН","НЕ УЧТЁН","НЕ УЧТЁН","НЕ УЧТЁН","НЕ УЧТЁН","НЕ УЧТЁН","НЕ УЧТЁН","НЕ УЧТЁН","НЕ УЧТЁН","НЕ УЧТЁН","НЕ УЧТЁН","НЕ УЧТЁН","НЕ УЧТЁН","НЕ УЧТЁН","НЕ УЧТЁН","НЕ УЧТЁН","НЕ УЧТЁН","НЕ УЧТЁН","НЕ УЧТЁН","НЕ УЧТЁН","НЕ УЧТЁН","НЕ УЧТЁН","НЕ УЧТЁН","НЕ УЧТЁН","НЕ УЧТЁН","НЕ УЧТЁН","НЕ УЧТЁН","НЕ УЧТЁН","НЕ УЧТЁН","НЕ УЧТЁН","НЕ УЧТЁН","НЕ УЧТЁН","НЕ УЧТЁН","НЕ УЧТЁН","НЕ УЧТЁН","НЕ УЧТЁН","НЕ УЧТЁН","НЕ УЧТЁН","НЕ УЧТЁН","НЕ УЧТЁН","НЕ УЧТЁН","НЕ УЧТЁН","НЕ УЧТЁН","НЕ УЧТЁН","НЕ УЧТЁН","НЕ УЧТЁН","НЕ УЧТЁН","НЕ УЧТЁН","НЕ УЧТЁН","НЕ УЧТЁН","НЕ УЧТЁН","НЕ УЧТЁН","НЕ УЧТЁН","НЕ УЧТЁН","НЕ УЧТЁН","НЕ УЧТЁН","НЕ УЧТЁН","НЕ УЧТЁН","НЕ УЧТЁН","НЕ УЧТЁН","НЕ УЧТЁН","НЕ УЧТЁН","НЕ УЧТЁН","НЕ УЧТЁН","НЕ УЧТЁН","НЕ УЧТЁН","НЕ УЧТЁН","НЕ УЧТЁН","НЕ УЧТЁН","НЕ УЧТЁН","НЕ УЧТЁН","НЕ УЧТЁН","НЕ УЧТЁН","НЕ УЧТЁН","НЕ УЧТЁН","НЕ УЧТЁН","НЕ УЧТЁН","НЕ УЧТЁН","НЕ УЧТЁН","НЕ УЧТЁН","НЕ УЧТЁН","НЕ УЧТЁН","НЕ УЧТЁН","НЕ УЧТЁН","НЕ УЧТЁН","НЕ УЧТЁН","НЕ УЧТЁН","НЕ УЧТЁН","НЕ УЧТЁН","НЕ УЧТЁН","НЕ УЧТЁН","НЕ УЧТЁН","НЕ УЧТЁН","НЕ УЧТЁН","НЕ УЧТЁН","НЕ УЧТЁН","НЕ УЧТЁН","НЕ УЧТЁН","НЕ УЧТЁН","НЕ УЧТЁН","НЕ УЧТЁН","НЕ УЧТЁН","НЕ УЧТЁН","НЕ УЧТЁН","НЕ УЧТЁН","НЕ УЧТЁН","НЕ УЧТЁН","НЕ УЧТЁН","НЕ УЧТЁН","НЕ УЧТЁН","НЕ УЧТЁН","НЕ УЧТЁН","НЕ УЧТЁН","НЕ УЧТЁН","НЕ УЧТЁН","НЕ УЧТЁН","НЕ УЧТЁН","НЕ УЧТЁН","НЕ УЧТЁН","НЕ УЧТЁН","НЕ УЧТЁН","НЕ УЧТЁН","НЕ УЧТЁН","НЕ УЧТЁН","НЕ УЧТЁН","НЕ УЧТЁН","НЕ УЧТЁН","НЕ УЧТЁН","НЕ УЧТЁН","НЕ УЧТЁН","НЕ УЧТЁН","НЕ УЧТЁН","НЕ УЧТЁН","НЕ УЧТЁН","НЕ УЧТЁН","НЕ УЧТЁН","НЕ УЧТЁН","НЕ УЧТЁН","НЕ УЧТЁН","НЕ УЧТЁН","НЕ УЧТЁН","НЕ УЧТЁН","НЕ УЧТЁН","НЕ УЧТЁН","НЕ УЧТЁН","НЕ УЧТЁН","НЕ УЧТЁН","НЕ УЧТЁН","НЕ УЧТЁН","НЕ УЧТЁН","НЕ УЧТЁН","НЕ УЧТЁН","НЕ УЧТЁН","НЕ УЧТЁН","НЕ УЧТЁН","НЕ УЧТЁН","НЕ УЧТЁН","НЕ УЧТЁН","НЕ УЧТЁН","НЕ УЧТЁН","НЕ УЧТЁН","НЕ УЧТЁН","НЕ УЧТЁН","НЕ УЧТЁН","НЕ УЧТЁН","НЕ УЧТЁН","НЕ УЧТЁН","НЕ УЧТЁН","НЕ УЧТЁН","НЕ УЧТЁН","НЕ УЧТЁН","НЕ УЧТЁН","НЕ УЧТЁН","НЕ УЧТЁН","НЕ УЧТЁН","НЕ УЧТЁН","НЕ УЧТЁН","НЕ УЧТЁН","НЕ УЧТЁН","НЕ УЧТЁН","НЕ УЧТЁН","НЕ УЧТЁН","НЕ УЧТЁН","НЕ УЧТЁН","НЕ УЧТЁН","НЕ УЧТЁН","НЕ УЧТЁН","НЕ УЧТЁН","НЕ УЧТЁН","НЕ УЧТЁН","НЕ УЧТЁН","НЕ УЧТЁН","НЕ УЧТЁН","НЕ УЧТЁН","НЕ УЧТЁН","НЕ УЧТЁН","НЕ УЧТЁН","НЕ УЧТЁН","НЕ УЧТЁН","НЕ УЧТЁН","НЕ УЧТЁН","НЕ УЧТЁН","НЕ УЧТЁН","НЕ УЧТЁН","НЕ УЧТЁН","НЕ УЧТЁН","НЕ УЧТЁН","НЕ УЧТЁН","НЕ УЧТЁН","НЕ УЧТЁН","НЕ УЧТЁН","НЕ УЧТЁН","НЕ УЧТЁН","НЕ УЧТЁН","НЕ УЧТЁН","НЕ УЧТЁН","НЕ УЧТЁН","НЕ УЧТЁН","НЕ УЧТЁН","НЕ УЧТЁН","НЕ УЧТЁН","НЕ УЧТЁН","НЕ УЧТЁН","НЕ УЧТЁН","НЕ УЧТЁН","НЕ УЧТЁН","НЕ УЧТЁН","НЕ УЧТЁН","НЕ УЧТЁН","НЕ УЧТЁН","НЕ УЧТЁН","НЕ УЧТЁН","НЕ УЧТЁН","НЕ УЧТЁН","НЕ УЧТЁН","НЕ УЧТЁН","НЕ УЧТЁН","НЕ УЧТЁН","НЕ УЧТЁН","НЕ УЧТЁН","НЕ УЧТЁН","НЕ УЧТЁН","НЕ УЧТЁН","НЕ УЧТЁН","НЕ УЧТЁН","НЕ УЧТЁН","НЕ УЧТЁН","НЕ УЧТЁН","НЕ УЧТЁН","НЕ УЧТЁН","НЕ УЧТЁН","НЕ УЧТЁН","НЕ УЧТЁН","НЕ УЧТЁН","НЕ УЧТЁН","НЕ УЧТЁН","НЕ УЧТЁН","НЕ УЧТЁН","НЕ УЧТЁН","НЕ УЧТЁН","НЕ УЧТЁН","НЕ УЧТЁН","НЕ УЧТЁН","НЕ УЧТЁН","НЕ УЧТЁН","НЕ УЧТЁН","НЕ УЧТЁН","НЕ УЧТЁН","НЕ УЧТЁН","НЕ УЧТЁН","НЕ УЧТЁН","НЕ УЧТЁН","НЕ УЧТЁН","НЕ УЧТЁН","НЕ УЧТЁН","НЕ УЧТЁН","НЕ УЧТЁН","НЕ УЧТЁН","НЕ УЧТЁН","НЕ УЧТЁН","НЕ УЧТЁН","НЕ УЧТЁН","НЕ УЧТЁН","НЕ УЧТЁН","НЕ УЧТЁН","НЕ УЧТЁН","НЕ УЧТЁН","НЕ УЧТЁН","НЕ УЧТЁН","НЕ УЧТЁН","НЕ УЧТЁН","НЕ УЧТЁН","НЕ УЧТЁН","НЕ УЧТЁН","НЕ УЧТЁН","НЕ УЧТЁН","НЕ УЧТЁН","НЕ УЧТЁН","НЕ УЧТЁН","НЕ УЧТЁН","НЕ УЧТЁН","НЕ УЧТЁН","НЕ УЧТЁН","НЕ УЧТЁН","НЕ УЧТЁН","НЕ УЧТЁН","НЕ УЧТЁН","НЕ УЧТЁН","НЕ УЧТЁН","НЕ УЧТЁН","НЕ УЧТЁН","НЕ УЧТЁН","НЕ УЧТЁН","НЕ УЧТЁН","НЕ УЧТЁН","НЕ УЧТЁН","НЕ УЧТЁН","НЕ УЧТЁН","НЕ УЧТЁН","НЕ УЧТЁН","НЕ УЧТЁН","НЕ УЧТЁН","НЕ УЧТЁН","НЕ УЧТЁН","НЕ УЧТЁН","НЕ УЧТЁН","НЕ УЧТЁН","НЕ УЧТЁН","НЕ УЧТЁН","НЕ УЧТЁН","НЕ УЧТЁН","НЕ УЧТЁН","НЕ УЧТЁН","НЕ УЧТЁН","НЕ УЧТЁН","НЕ УЧТЁН","НЕ УЧТЁН","НЕ УЧТЁН","НЕ УЧТЁН","НЕ УЧТЁН","НЕ УЧТЁН","НЕ УЧТЁН","НЕ УЧТЁН","НЕ УЧТЁН","НЕ УЧТЁН","НЕ УЧТЁН","НЕ УЧТЁН","НЕ УЧТЁН","НЕ УЧТЁН","НЕ УЧТЁН","НЕ УЧТЁН","НЕ УЧТЁН","НЕ УЧТЁН","НЕ УЧТЁН","НЕ УЧТЁН","НЕ УЧТЁН","НЕ УЧТЁН","НЕ УЧТЁН","НЕ УЧТЁН","НЕ УЧТЁН","НЕ УЧТЁН","НЕ УЧТЁН","НЕ УЧТЁН","НЕ УЧТЁН","НЕ УЧТЁН","НЕ УЧТЁН","НЕ УЧТЁН","НЕ УЧТЁН","НЕ УЧТЁН","НЕ УЧТЁН","НЕ УЧТЁН","НЕ УЧТЁН","НЕ УЧТЁН","НЕ УЧТЁН","НЕ УЧТЁН","НЕ УЧТЁН","НЕ УЧТЁН","НЕ УЧТЁН","НЕ УЧТЁН","НЕ УЧТЁН","НЕ УЧТЁН","НЕ УЧТЁН","НЕ УЧТЁН","НЕ УЧТЁН","НЕ УЧТЁН","НЕ УЧТЁН","НЕ УЧТЁН","НЕ УЧТЁН","НЕ УЧТЁН","НЕ УЧТЁН","НЕ УЧТЁН","НЕ УЧТЁН","НЕ УЧТЁН","НЕ УЧТЁН","НЕ УЧТЁН","НЕ УЧТЁН","НЕ УЧТЁН","НЕ УЧТЁН","НЕ УЧТЁН","НЕ УЧТЁН","НЕ УЧТЁН","НЕ УЧТЁН","НЕ УЧТЁН","НЕ УЧТЁН","НЕ УЧТЁН","НЕ УЧТЁН","НЕ УЧТЁН","НЕ УЧТЁН","НЕ УЧТЁН","НЕ УЧТЁН","НЕ УЧТЁН","НЕ УЧТЁН","НЕ УЧТЁН","НЕ УЧТЁН","НЕ УЧТЁН","НЕ УЧТЁН","НЕ УЧТЁН","НЕ УЧТЁН","НЕ УЧТЁН","НЕ УЧТЁН","НЕ УЧТЁН","НЕ УЧТЁН","НЕ УЧТЁН","НЕ УЧТЁН","НЕ УЧТЁН","НЕ УЧТЁН","НЕ УЧТЁН","НЕ УЧТЁН","НЕ УЧТЁН","НЕ УЧТЁН","НЕ УЧТЁН","НЕ УЧТЁН","НЕ УЧТЁН","НЕ УЧТЁН","НЕ УЧТЁН","НЕ УЧТЁН","НЕ УЧТЁН","НЕ УЧТЁН","НЕ УЧТЁН","НЕ УЧТЁН","НЕ УЧТЁН","НЕ УЧТЁН","НЕ УЧТЁН","НЕ УЧТЁН","НЕ УЧТЁН","НЕ УЧТЁН","НЕ УЧТЁН","НЕ УЧТЁН","НЕ УЧТЁН","НЕ УЧТЁН","НЕ УЧТЁН","НЕ УЧТЁН","НЕ УЧТЁН","НЕ УЧТЁН","НЕ УЧТЁН","НЕ УЧТЁН","НЕ УЧТЁН","НЕ УЧТЁН","НЕ УЧТЁН","НЕ УЧТЁН","НЕ УЧТЁН","НЕ УЧТЁН","НЕ УЧТЁН","НЕ УЧТЁН","НЕ УЧТЁН","НЕ УЧТЁН","НЕ УЧТЁН","НЕ УЧТЁН","НЕ УЧТЁН","НЕ УЧТЁН","НЕ УЧТЁН","НЕ УЧТЁН","НЕ УЧТЁН","НЕ УЧТЁН","НЕ УЧТЁН","НЕ УЧТЁН","НЕ УЧТЁН","НЕ УЧТЁН","НЕ УЧТЁН","НЕ УЧТЁН","НЕ УЧТЁН","НЕ УЧТЁН","НЕ УЧТЁН","НЕ УЧТЁН","НЕ УЧТЁН","НЕ УЧТЁН","НЕ УЧТЁН","НЕ УЧТЁН","НЕ УЧТЁН","НЕ УЧТЁН","НЕ УЧТЁН","НЕ УЧТЁН","НЕ УЧТЁН","НЕ УЧТЁН","НЕ УЧТЁН","НЕ УЧТЁН","НЕ УЧТЁН","НЕ УЧТЁН","НЕ УЧТЁН","НЕ УЧТЁН","НЕ УЧТЁН","НЕ УЧТЁН","НЕ УЧТЁН","НЕ УЧТЁН","НЕ УЧТЁН","НЕ УЧТЁН","НЕ УЧТЁН","НЕ УЧТЁН","НЕ УЧТЁН","НЕ УЧТЁН","НЕ УЧТЁН","НЕ УЧТЁН","НЕ УЧТЁН","НЕ УЧТЁН","НЕ УЧТЁН","НЕ УЧТЁН","НЕ УЧТЁН","НЕ УЧТЁН","НЕ УЧТЁН","НЕ УЧТЁН","НЕ УЧТЁН","НЕ УЧТЁН","НЕ УЧТЁН","НЕ УЧТЁН","НЕ УЧТЁН","НЕ УЧТЁН","НЕ УЧТЁН","НЕ УЧТЁН","НЕ УЧТЁН","НЕ УЧТЁН","НЕ УЧТЁН","НЕ УЧТЁН","НЕ УЧТЁН","НЕ УЧТЁН","НЕ УЧТЁН","НЕ УЧТЁН","НЕ УЧТЁН","НЕ УЧТЁН","НЕ УЧТЁН","НЕ УЧТЁН","НЕ УЧТЁН","НЕ УЧТЁН","НЕ УЧТЁН","НЕ УЧТЁН","НЕ УЧТЁН","НЕ УЧТЁН","НЕ УЧТЁН","НЕ УЧТЁН","НЕ УЧТЁН","НЕ УЧТЁН","НЕ УЧТЁН","НЕ УЧТЁН","НЕ УЧТЁН","НЕ УЧТЁН","НЕ УЧТЁН","НЕ УЧТЁН","НЕ УЧТЁН","НЕ УЧТЁН","НЕ УЧТЁН","НЕ УЧТЁН","НЕ УЧТЁН","НЕ УЧТЁН","НЕ УЧТЁН","НЕ УЧТЁН","НЕ УЧТЁН","НЕ УЧТЁН","НЕ УЧТЁН","НЕ УЧТЁН","НЕ УЧТЁН","НЕ УЧТЁН","НЕ УЧТЁН","НЕ УЧТЁН","НЕ УЧТЁН","НЕ УЧТЁН","НЕ УЧТЁН","НЕ УЧТЁН","НЕ УЧТЁН","НЕ УЧТЁН","НЕ УЧТЁН","НЕ УЧТЁН","НЕ УЧТЁН","НЕ УЧТЁН","НЕ УЧТЁН","НЕ УЧТЁН","НЕ УЧТЁН","НЕ УЧТЁН","НЕ УЧТЁН","НЕ УЧТЁН","НЕ УЧТЁН","НЕ УЧТЁН","НЕ УЧТЁН","НЕ УЧТЁН","НЕ УЧТЁН","НЕ УЧТЁН","НЕ УЧТЁН","НЕ УЧТЁН","НЕ УЧТЁН","НЕ УЧТЁН","НЕ УЧТЁН","НЕ УЧТЁН","НЕ УЧТЁН","НЕ УЧТЁН","НЕ УЧТЁН","НЕ УЧТЁН","НЕ УЧТЁН","НЕ УЧТЁН","НЕ УЧТЁН","НЕ УЧТЁН","НЕ УЧТЁН","НЕ УЧТЁН","НЕ УЧТЁН","НЕ УЧТЁН","НЕ УЧТЁН","НЕ УЧТЁН","НЕ УЧТЁН","НЕ УЧТЁН","НЕ УЧТЁН","НЕ УЧТЁН","НЕ УЧТЁН","НЕ УЧТЁН","НЕ УЧТЁН","НЕ УЧТЁН","НЕ УЧТЁН","НЕ УЧТЁН","НЕ УЧТЁН","НЕ УЧТЁН","НЕ УЧТЁН","НЕ УЧТЁН","НЕ УЧТЁН","НЕ УЧТЁН","НЕ УЧТЁН","НЕ УЧТЁН","НЕ УЧТЁН","НЕ УЧТЁН","НЕ УЧТЁН","НЕ УЧТЁН","НЕ УЧТЁН","НЕ УЧТЁН","НЕ УЧТЁН","НЕ УЧТЁН","НЕ УЧТЁН","НЕ УЧТЁН","НЕ УЧТЁН","НЕ УЧТЁН","НЕ УЧТЁН","НЕ УЧТЁН","НЕ УЧТЁН","НЕ УЧТЁН","НЕ УЧТЁН","НЕ УЧТЁН","НЕ УЧТЁН","НЕ УЧТЁН","НЕ УЧТЁН","НЕ УЧТЁН","НЕ УЧТЁН","НЕ УЧТЁН","НЕ УЧТЁН","НЕ УЧТЁН","НЕ УЧТЁН","НЕ УЧТЁН","НЕ УЧТЁН","НЕ УЧТЁН","НЕ УЧТЁН","НЕ УЧТЁН","НЕ УЧТЁН","НЕ УЧТЁН","НЕ УЧТЁН","НЕ УЧТЁН","НЕ УЧТЁН","НЕ УЧТЁН","НЕ УЧТЁН","НЕ УЧТЁН","НЕ УЧТЁН","НЕ УЧТЁН","НЕ УЧТЁН","НЕ УЧТЁН","НЕ УЧТЁН","НЕ УЧТЁН","НЕ УЧТЁН","НЕ УЧТЁН","НЕ УЧТЁН","НЕ УЧТЁН","НЕ УЧТЁН","НЕ УЧТЁН","НЕ УЧТЁН","НЕ УЧТЁН","НЕ УЧТЁН","НЕ УЧТЁН","НЕ УЧТЁН","НЕ УЧТЁН","НЕ УЧТЁН","НЕ УЧТЁН","НЕ УЧТЁН","НЕ УЧТЁН","НЕ УЧТЁН","НЕ УЧТЁН","НЕ УЧТЁН","НЕ УЧТЁН","НЕ УЧТЁН","НЕ УЧТЁН","НЕ УЧТЁН","НЕ УЧТЁН","НЕ УЧТЁН","НЕ УЧТЁН","НЕ УЧТЁН","НЕ УЧТЁН","НЕ УЧТЁН","НЕ УЧТЁН","НЕ УЧТЁН","НЕ УЧТЁН","НЕ УЧТЁН","НЕ УЧТЁН","НЕ УЧТЁН","НЕ УЧТЁН","НЕ УЧТЁН","НЕ УЧТЁН","НЕ УЧТЁН","НЕ УЧТЁН","НЕ УЧТЁН","НЕ УЧТЁН","НЕ УЧТЁН","НЕ УЧТЁН","НЕ УЧТЁН","НЕ УЧТЁН","НЕ УЧТЁН","НЕ УЧТЁН","НЕ УЧТЁН","НЕ УЧТЁН","НЕ УЧТЁН","НЕ УЧТЁН","НЕ УЧТЁН","НЕ УЧТЁН","НЕ УЧТЁН","НЕ УЧТЁН","НЕ УЧТЁН","НЕ УЧТЁН","НЕ УЧТЁН","НЕ УЧТЁН","НЕ УЧТЁН","НЕ УЧТЁН","НЕ УЧТЁН","НЕ УЧТЁН","НЕ УЧТЁН","НЕ УЧТЁН","НЕ УЧТЁН","НЕ УЧТЁН","НЕ УЧТЁН","НЕ УЧТЁН","НЕ УЧТЁН","НЕ УЧТЁН","НЕ УЧТЁН","НЕ УЧТЁН","НЕ УЧТЁН","НЕ УЧТЁН","НЕ УЧТЁН","НЕ УЧТЁН","НЕ УЧТЁН","НЕ УЧТЁН","НЕ УЧТЁН","НЕ УЧТЁН","НЕ УЧТЁН","НЕ УЧТЁН","НЕ УЧТЁН","НЕ УЧТЁН","НЕ УЧТЁН","НЕ УЧТЁН","НЕ УЧТЁН","НЕ УЧТЁН","НЕ УЧТЁН","НЕ УЧТЁН","НЕ УЧТЁН","НЕ УЧТЁН","НЕ УЧТЁН","НЕ УЧТЁН","НЕ УЧТЁН","НЕ УЧТЁН","НЕ УЧТЁН","НЕ УЧТЁН","НЕ УЧТЁН","НЕ УЧТЁН","НЕ УЧТЁН","НЕ УЧТЁН","НЕ УЧТЁН","НЕ УЧТЁН","НЕ УЧТЁН","НЕ УЧТЁН","НЕ УЧТЁН","НЕ УЧТЁН","НЕ УЧТЁН","НЕ УЧТЁН","НЕ УЧТЁН","НЕ УЧТЁН","НЕ УЧТЁН","НЕ УЧТЁН","НЕ УЧТЁН","НЕ УЧТЁН","НЕ УЧТЁН","НЕ УЧТЁН","НЕ УЧТЁН","НЕ УЧТЁН","НЕ УЧТЁН","НЕ УЧТЁН","НЕ УЧТЁН","НЕ УЧТЁН","НЕ УЧТЁН","НЕ УЧТЁН","НЕ УЧТЁН","НЕ УЧТЁН","НЕ УЧТЁН","НЕ УЧТЁН","НЕ УЧТЁН","НЕ УЧТЁН","НЕ УЧТЁН","НЕ УЧТЁН","НЕ УЧТЁН","НЕ УЧТЁН","НЕ УЧТЁН","НЕ УЧТЁН","НЕ УЧТЁН","НЕ УЧТЁН","НЕ УЧТЁН","НЕ УЧТЁН","НЕ УЧТЁН","НЕ УЧТЁН","НЕ УЧТЁН","НЕ УЧТЁН","НЕ УЧТЁН","НЕ УЧТЁН","НЕ УЧТЁН","НЕ УЧТЁН","НЕ УЧТЁН","НЕ УЧТЁН","НЕ УЧТЁН","НЕ УЧТЁН","НЕ УЧТЁН","НЕ УЧТЁН","НЕ УЧТЁН","НЕ УЧТЁН","НЕ УЧТЁН","НЕ УЧТЁН","НЕ УЧТЁН","НЕ УЧТЁН","НЕ УЧТЁН","НЕ УЧТЁН","НЕ УЧТЁН","НЕ УЧТЁН","НЕ УЧТЁН","НЕ УЧТЁН","НЕ УЧТЁН","НЕ УЧТЁН","НЕ УЧТЁН","НЕ УЧТЁН","НЕ УЧТЁН","НЕ УЧТЁН","НЕ УЧТЁН","НЕ УЧТЁН","НЕ УЧТЁН","НЕ УЧТЁН","НЕ УЧТЁН","НЕ УЧТЁН","НЕ УЧТЁН","НЕ УЧТЁН","НЕ УЧТЁН","НЕ УЧТЁН","НЕ УЧТЁН","НЕ УЧТЁН","НЕ УЧТЁН","НЕ УЧТЁН","НЕ УЧТЁН","НЕ УЧТЁН","НЕ УЧТЁН","НЕ УЧТЁН","НЕ УЧТЁН","НЕ УЧТЁН","НЕ УЧТЁН","НЕ УЧТЁН","НЕ УЧТЁН","НЕ УЧТЁН","НЕ УЧТЁН","НЕ УЧТЁН","НЕ УЧТЁН","НЕ УЧТЁН","НЕ УЧТЁН","НЕ УЧТЁН","НЕ УЧТЁН","НЕ УЧТЁН","НЕ УЧТЁН","НЕ УЧТЁН","НЕ УЧТЁН","НЕ УЧТЁН","НЕ УЧТЁН","НЕ УЧТЁН","НЕ УЧТЁН","НЕ УЧТЁН","НЕ УЧТЁН","НЕ УЧТЁН","НЕ УЧТЁН","НЕ УЧТЁН","НЕ УЧТЁН","НЕ УЧТЁН","НЕ УЧТЁН","НЕ УЧТЁН","НЕ УЧТЁН","НЕ УЧТЁН","НЕ УЧТЁН","НЕ УЧТЁН","НЕ УЧТЁН","НЕ УЧТЁН","НЕ УЧТЁН","НЕ УЧТЁН","НЕ УЧТЁН","НЕ УЧТЁН","НЕ УЧТЁН","НЕ УЧТЁН","НЕ УЧТЁН","НЕ УЧТЁН","НЕ УЧТЁН","НЕ УЧТЁН","НЕ УЧТЁН","НЕ УЧТЁН","НЕ УЧТЁН","НЕ УЧТЁН","НЕ УЧТЁН","НЕ УЧТЁН","НЕ УЧТЁН","НЕ УЧТЁН","НЕ УЧТЁН","НЕ УЧТЁН","НЕ УЧТЁН","НЕ УЧТЁН","НЕ УЧТЁН","НЕ УЧТЁН","НЕ УЧТЁН","НЕ УЧТЁН","НЕ УЧТЁН","НЕ УЧТЁН","НЕ УЧТЁН","НЕ УЧТЁН","НЕ УЧТЁН","НЕ УЧТЁН","НЕ УЧТЁН","НЕ УЧТЁН","НЕ УЧТЁН","НЕ УЧТЁН","НЕ УЧТЁН","НЕ УЧТЁН","НЕ УЧТЁН","НЕ УЧТЁН","НЕ УЧТЁН","НЕ УЧТЁН","НЕ УЧТЁН","НЕ УЧТЁН","НЕ УЧТЁН","НЕ УЧТЁН","НЕ УЧТЁН","НЕ УЧТЁН","НЕ УЧТЁН","НЕ УЧТЁН","НЕ УЧТЁН","НЕ УЧТЁН","НЕ УЧТЁН","НЕ УЧТЁН","НЕ УЧТЁН","НЕ УЧТЁН","НЕ УЧТЁН","НЕ УЧТЁН","НЕ УЧТЁН","НЕ УЧТЁН","НЕ УЧТЁН","НЕ УЧТЁН","НЕ УЧТЁН","НЕ УЧТЁН","НЕ УЧТЁН","НЕ УЧТЁН","НЕ УЧТЁН","НЕ УЧТЁН","НЕ УЧТЁН","НЕ УЧТЁН","НЕ УЧТЁН","НЕ УЧТЁН","НЕ УЧТЁН","НЕ УЧТЁН","НЕ УЧТЁН","НЕ УЧТЁН","НЕ УЧТЁН","НЕ УЧТЁН","НЕ УЧТЁН","НЕ УЧТЁН","НЕ УЧТЁН","НЕ УЧТЁН","НЕ УЧТЁН","НЕ УЧТЁН","НЕ УЧТЁН","НЕ УЧТЁН","НЕ УЧТЁН","НЕ УЧТЁН","НЕ УЧТЁН","НЕ УЧТЁН","НЕ УЧТЁН","НЕ УЧТЁН","НЕ УЧТЁН","НЕ УЧТЁН","НЕ УЧТЁН","НЕ УЧТЁН","НЕ УЧТЁН","НЕ УЧТЁН","НЕ УЧТЁН","НЕ УЧТЁН","НЕ УЧТЁН","НЕ УЧТЁН","НЕ УЧТЁН","НЕ УЧТЁН","НЕ УЧТЁН","НЕ УЧТЁН","НЕ УЧТЁН","НЕ УЧТЁН","НЕ УЧТЁН","НЕ УЧТЁН","НЕ УЧТЁН","НЕ УЧТЁН","НЕ УЧТЁН","НЕ УЧТЁН","НЕ УЧТЁН","НЕ УЧТЁН","НЕ УЧТЁН","НЕ УЧТЁН","НЕ УЧТЁН","НЕ УЧТЁН","НЕ УЧТЁН","НЕ УЧТЁН","НЕ УЧТЁН","НЕ УЧТЁН","НЕ УЧТЁН","НЕ УЧТЁН","НЕ УЧТЁН","НЕ УЧТЁН","НЕ УЧТЁН","НЕ УЧТЁН","НЕ УЧТЁН","НЕ УЧТЁН","НЕ УЧТЁН","НЕ УЧТЁН","НЕ УЧТЁН","НЕ УЧТЁН","НЕ УЧТЁН","НЕ УЧТЁН","НЕ УЧТЁН","НЕ УЧТЁН","НЕ УЧТЁН","НЕ УЧТЁН","НЕ УЧТЁН","НЕ УЧТЁН","НЕ УЧТЁН","НЕ УЧТЁН","НЕ УЧТЁН","НЕ УЧТЁН","НЕ УЧТЁН","НЕ УЧТЁН","НЕ УЧТЁН","НЕ УЧТЁН","НЕ УЧТЁН","НЕ УЧТЁН","НЕ УЧТЁН","НЕ УЧТЁН","НЕ УЧТЁН","НЕ УЧТЁН","НЕ УЧТЁН","НЕ УЧТЁН","НЕ УЧТЁН","НЕ УЧТЁН","НЕ УЧТЁН","НЕ УЧТЁН","НЕ УЧТЁН","НЕ УЧТЁН","НЕ УЧТЁН","НЕ УЧТЁН","НЕ УЧТЁН","НЕ УЧТЁН","НЕ УЧТЁН","НЕ УЧТЁН","НЕ УЧТЁН","НЕ УЧТЁН","НЕ УЧТЁН","НЕ УЧТЁН","НЕ УЧТЁН","НЕ УЧТЁН","НЕ УЧТЁН","НЕ УЧТЁН","НЕ УЧТЁН","НЕ УЧТЁН","НЕ УЧТЁН","НЕ УЧТЁН","НЕ УЧТЁН","НЕ УЧТЁН","НЕ УЧТЁН","НЕ УЧТЁН","НЕ УЧТЁН","НЕ УЧТЁН","НЕ УЧТЁН","НЕ УЧТЁН","НЕ УЧТЁН","НЕ УЧТЁН","НЕ УЧТЁН","НЕ УЧТЁН","НЕ УЧТЁН","НЕ УЧТЁН","НЕ УЧТЁН","НЕ УЧТЁН","НЕ УЧТЁН","НЕ УЧТЁН","НЕ УЧТЁН","НЕ УЧТЁН","НЕ УЧТЁН","НЕ УЧТЁН","НЕ УЧТЁН","НЕ УЧТЁН","НЕ УЧТЁН","НЕ УЧТЁН","НЕ УЧТЁН","НЕ УЧТЁН","НЕ УЧТЁН","НЕ УЧТЁН","НЕ УЧТЁН","НЕ УЧТЁН","НЕ УЧТЁН","НЕ УЧТЁН","НЕ УЧТЁН","НЕ УЧТЁН","НЕ УЧТЁН","НЕ УЧТЁН","НЕ УЧТЁН","НЕ УЧТЁН","НЕ УЧТЁН","НЕ УЧТЁН","НЕ УЧТЁН","НЕ УЧТЁН","НЕ УЧТЁН","НЕ УЧТЁН","НЕ УЧТЁН","НЕ УЧТЁН","НЕ УЧТЁН","НЕ УЧТЁН","НЕ УЧТЁН","НЕ УЧТЁН","НЕ УЧТЁН","НЕ УЧТЁН","НЕ УЧТЁН","НЕ УЧТЁН","НЕ УЧТЁН","НЕ УЧТЁН","НЕ УЧТЁН","НЕ УЧТЁН","НЕ УЧТЁН","НЕ УЧТЁН","НЕ УЧТЁН","НЕ УЧТЁН","НЕ УЧТЁН","НЕ УЧТЁН","НЕ УЧТЁН","НЕ УЧТЁН","НЕ УЧТЁН","НЕ УЧТЁН","НЕ УЧТЁН","НЕ УЧТЁН","НЕ УЧТЁН","НЕ УЧТЁН","НЕ УЧТЁН","НЕ УЧТЁН","НЕ УЧТЁН","НЕ УЧТЁН","НЕ УЧТЁН","НЕ УЧТЁН","НЕ УЧТЁН","НЕ УЧТЁН","НЕ УЧТЁН","НЕ УЧТЁН","НЕ УЧТЁН","НЕ УЧТЁН","НЕ УЧТЁН","НЕ УЧТЁН","НЕ УЧТЁН","НЕ УЧТЁН","НЕ УЧТЁН","НЕ УЧТЁН","НЕ УЧТЁН","НЕ УЧТЁН","НЕ УЧТЁН","НЕ УЧТЁН","НЕ УЧТЁН","НЕ УЧТЁН","НЕ УЧТЁН","НЕ УЧТЁН","НЕ УЧТЁН","НЕ УЧТЁН","НЕ УЧТЁН","НЕ УЧТЁН","НЕ УЧТЁН","НЕ УЧТЁН","НЕ УЧТЁН","НЕ УЧТЁН","НЕ УЧТЁН","НЕ УЧТЁН","НЕ УЧТЁН","НЕ УЧТЁН","НЕ УЧТЁН","НЕ УЧТЁН","НЕ УЧТЁН","НЕ УЧТЁН","НЕ УЧТЁН","НЕ УЧТЁН","НЕ УЧТЁН","НЕ УЧТЁН","НЕ УЧТЁН","НЕ УЧТЁН","НЕ УЧТЁН","НЕ УЧТЁН","НЕ УЧТЁН","НЕ УЧТЁН","НЕ УЧТЁН","НЕ УЧТЁН","НЕ УЧТЁН","НЕ УЧТЁН","НЕ УЧТЁН","НЕ УЧТЁН","НЕ УЧТЁН","НЕ УЧТЁН","НЕ УЧТЁН","НЕ УЧТЁН","НЕ УЧТЁН","НЕ УЧТЁН","НЕ УЧТЁН","НЕ УЧТЁН","НЕ УЧТЁН","НЕ УЧТЁН","НЕ УЧТЁН","НЕ УЧТЁН","НЕ УЧТЁН","НЕ УЧТЁН","НЕ УЧТЁН","НЕ УЧТЁН","НЕ УЧТЁН","НЕ УЧТЁН","НЕ УЧТЁН","НЕ УЧТЁН","НЕ УЧТЁН","НЕ УЧТЁН","НЕ УЧТЁН","НЕ УЧТЁН","НЕ УЧТЁН","НЕ УЧТЁН","НЕ УЧТЁН","НЕ УЧТЁН","НЕ УЧТЁН","НЕ УЧТЁН","НЕ УЧТЁН","НЕ УЧТЁН","НЕ УЧТЁН","НЕ УЧТЁН","НЕ УЧТЁН","НЕ УЧТЁН","НЕ УЧТЁН","НЕ УЧТЁН","НЕ УЧТЁН","НЕ УЧТЁН","НЕ УЧТЁН","НЕ УЧТЁН","НЕ УЧТЁН","НЕ УЧТЁН","НЕ УЧТЁН","НЕ УЧТЁН","НЕ УЧТЁН","НЕ УЧТЁН","НЕ УЧТЁН","НЕ УЧТЁН","НЕ УЧТЁН","НЕ УЧТЁН","НЕ УЧТЁН","НЕ УЧТЁН","НЕ УЧТЁН","НЕ УЧТЁН","НЕ УЧТЁН","НЕ УЧТЁН","НЕ УЧТЁН","НЕ УЧТЁН","НЕ УЧТЁН","НЕ УЧТЁН","НЕ УЧТЁН","НЕ УЧТЁН","НЕ УЧТЁН","НЕ УЧТЁН","НЕ УЧТЁН","НЕ УЧТЁН","НЕ УЧТЁН","НЕ УЧТЁН","НЕ УЧТЁН","НЕ УЧТЁН","НЕ УЧТЁН","НЕ УЧТЁН","НЕ УЧТЁН","НЕ УЧТЁН","НЕ УЧТЁН","НЕ УЧТЁН","НЕ УЧТЁН","НЕ УЧТЁН","НЕ УЧТЁН","НЕ УЧТЁН","НЕ УЧТЁН","НЕ УЧТЁН","НЕ УЧТЁН","НЕ УЧТЁН","НЕ УЧТЁН","НЕ УЧТЁН","НЕ УЧТЁН","НЕ УЧТЁН","НЕ УЧТЁН","НЕ УЧТЁН","НЕ УЧТЁН","НЕ УЧТЁН","НЕ УЧТЁН","НЕ УЧТЁН","НЕ УЧТЁН","НЕ УЧТЁН","НЕ УЧТЁН","НЕ УЧТЁН","НЕ УЧТЁН","НЕ УЧТЁН","НЕ УЧТЁН","НЕ УЧТЁН","НЕ УЧТЁН","НЕ УЧТЁН","НЕ УЧТЁН","НЕ УЧТЁН","НЕ УЧТЁН","НЕ УЧТЁН","НЕ УЧТЁН","НЕ УЧТЁН","НЕ УЧТЁН","НЕ УЧТЁН","НЕ УЧТЁН","НЕ УЧТЁН","НЕ УЧТЁН","НЕ УЧТЁН","НЕ УЧТЁН","НЕ УЧТЁН","НЕ УЧТЁН","НЕ УЧТЁН","НЕ УЧТЁН","НЕ УЧТЁН","НЕ УЧТЁН","НЕ УЧТЁН","НЕ УЧТЁН","НЕ УЧТЁН","НЕ УЧТЁН","НЕ УЧТЁН","НЕ УЧТЁН","НЕ УЧТЁН","НЕ УЧТЁН","НЕ УЧТЁН","НЕ УЧТЁН","НЕ УЧТЁН","НЕ УЧТЁН","НЕ УЧТЁН","НЕ УЧТЁН","НЕ УЧТЁН","НЕ УЧТЁН","НЕ УЧТЁН","НЕ УЧТЁН","НЕ УЧТЁН","НЕ УЧТЁН","НЕ УЧТЁН","НЕ УЧТЁН","НЕ УЧТЁН","НЕ УЧТЁН","НЕ УЧТЁН","НЕ УЧТЁН","НЕ УЧТЁН","НЕ УЧТЁН","НЕ УЧТЁН","НЕ УЧТЁН","НЕ УЧТЁН","НЕ УЧТЁН","НЕ УЧТЁН","НЕ УЧТЁН","НЕ УЧТЁН","НЕ УЧТЁН","НЕ УЧТЁН","НЕ УЧТЁН","НЕ УЧТЁН","НЕ УЧТЁН","НЕ УЧТЁН","НЕ УЧТЁН","НЕ УЧТЁН","НЕ УЧТЁН","НЕ УЧТЁН","НЕ УЧТЁН","НЕ УЧТЁН","НЕ УЧТЁН","НЕ УЧТЁН","НЕ УЧТЁН","НЕ УЧТЁН","НЕ УЧТЁН","НЕ УЧТЁН","НЕ УЧТЁН","НЕ УЧТЁН","НЕ УЧТЁН","НЕ УЧТЁН","НЕ УЧТЁН","НЕ УЧТЁН","НЕ УЧТЁН","НЕ УЧТЁН","НЕ УЧТЁН","НЕ УЧТЁН","НЕ УЧТЁН","НЕ УЧТЁН","НЕ УЧТЁН","НЕ УЧТЁН","НЕ УЧТЁН","НЕ УЧТЁН","НЕ УЧТЁН","НЕ УЧТЁН","НЕ УЧТЁН","НЕ УЧТЁН","НЕ УЧТЁН","НЕ УЧТЁН","НЕ УЧТЁН","НЕ УЧТЁН","НЕ УЧТЁН","НЕ УЧТЁН","НЕ УЧТЁН","НЕ УЧТЁН","НЕ УЧТЁН","НЕ УЧТЁН","НЕ УЧТЁН","НЕ УЧТЁН","НЕ УЧТЁН","НЕ УЧТЁН","НЕ УЧТЁН","НЕ УЧТЁН","НЕ УЧТЁН","НЕ УЧТЁН","НЕ УЧТЁН","НЕ УЧТЁН","НЕ УЧТЁН","НЕ УЧТЁН","НЕ УЧТЁН","НЕ УЧТЁН","НЕ УЧТЁН","НЕ УЧТЁН","НЕ УЧТЁН","НЕ УЧТЁН","НЕ УЧТЁН","НЕ УЧТЁН","НЕ УЧТЁН","НЕ УЧТЁН","НЕ УЧТЁН","НЕ УЧТЁН","НЕ УЧТЁН","НЕ УЧТЁН","НЕ УЧТЁН","НЕ УЧТЁН","НЕ УЧТЁН","НЕ УЧТЁН","НЕ УЧТЁН","НЕ УЧТЁН","НЕ УЧТЁН","НЕ УЧТЁН","НЕ УЧТЁН","НЕ УЧТЁН","НЕ УЧТЁН","НЕ УЧТЁН","НЕ УЧТЁН","НЕ УЧТЁН","НЕ УЧТЁН","НЕ УЧТЁН","НЕ УЧТЁН","НЕ УЧТЁН","НЕ УЧТЁН","НЕ УЧТЁН","НЕ УЧТЁН","НЕ УЧТЁН","НЕ УЧТЁН","НЕ УЧТЁН","НЕ УЧТЁН","НЕ УЧТЁН","НЕ УЧТЁН","НЕ УЧТЁН","НЕ УЧТЁН","НЕ УЧТЁН","НЕ УЧТЁН","НЕ УЧТЁН","НЕ УЧТЁН","НЕ УЧТЁН","НЕ УЧТЁН","НЕ УЧТЁН","НЕ УЧТЁН","НЕ УЧТЁН","НЕ УЧТЁН","НЕ УЧТЁН","НЕ УЧТЁН","НЕ УЧТЁН","НЕ УЧТЁН","НЕ УЧТЁН","НЕ УЧТЁН","НЕ УЧТЁН","НЕ УЧТЁН","НЕ УЧТЁН","НЕ УЧТЁН","НЕ УЧТЁН","НЕ УЧТЁН","НЕ УЧТЁН","НЕ УЧТЁН","НЕ УЧТЁН","НЕ УЧТЁН","НЕ УЧТЁН","НЕ УЧТЁН","НЕ УЧТЁН","НЕ УЧТЁН","НЕ УЧТЁН","НЕ УЧТЁН","НЕ УЧТЁН","НЕ УЧТЁН","НЕ УЧТЁН","НЕ УЧТЁН","НЕ УЧТЁН","НЕ УЧТЁН","НЕ УЧТЁН","НЕ УЧТЁН","НЕ УЧТЁН","НЕ УЧТЁН","НЕ УЧТЁН","НЕ УЧТЁН","НЕ УЧТЁН","НЕ УЧТЁН","НЕ УЧТЁН","НЕ УЧТЁН","НЕ УЧТЁН","НЕ УЧТЁН","НЕ УЧТЁН","НЕ УЧТЁН","НЕ УЧТЁН","НЕ УЧТЁН","НЕ УЧТЁН","НЕ УЧТЁН","НЕ УЧТЁН","НЕ УЧТЁН","НЕ УЧТЁН","НЕ УЧТЁН","НЕ УЧТЁН","НЕ УЧТЁН","НЕ УЧТЁН","НЕ УЧТЁН","НЕ УЧТЁН","НЕ УЧТЁН","НЕ УЧТЁН","НЕ УЧТЁН","НЕ УЧТЁН","НЕ УЧТЁН","НЕ УЧТЁН","НЕ УЧТЁН","НЕ УЧТЁН","НЕ УЧТЁН","НЕ УЧТЁН","НЕ УЧТЁН","НЕ УЧТЁН","НЕ УЧТЁН","НЕ УЧТЁН","НЕ УЧТЁН","НЕ УЧТЁН","НЕ УЧТЁН","НЕ УЧТЁН","НЕ УЧТЁН","НЕ УЧТЁН","НЕ УЧТЁН","НЕ УЧТЁН","НЕ УЧТЁН","НЕ УЧТЁН","НЕ УЧТЁН","НЕ УЧТЁН","НЕ УЧТЁН","НЕ УЧТЁН","НЕ УЧТЁН","НЕ УЧТЁН","НЕ УЧТЁН","НЕ УЧТЁН","НЕ УЧТЁН","НЕ УЧТЁН","НЕ УЧТЁН","НЕ УЧТЁН","НЕ УЧТЁН","НЕ УЧТЁН","НЕ УЧТЁН","НЕ УЧТЁН","НЕ УЧТЁН","НЕ УЧТЁН","НЕ УЧТЁН","НЕ УЧТЁН","НЕ УЧТЁН","НЕ УЧТЁН","НЕ УЧТЁН","НЕ УЧТЁН","НЕ УЧТЁН","НЕ УЧТЁН","НЕ УЧТЁН","НЕ УЧТЁН","НЕ УЧТЁН","НЕ УЧТЁН","НЕ УЧТЁН","НЕ УЧТЁН","НЕ УЧТЁН","НЕ УЧТЁН","НЕ УЧТЁН","НЕ УЧТЁН","НЕ УЧТЁН","НЕ УЧТЁН","НЕ УЧТЁН","НЕ УЧТЁН","НЕ УЧТЁН","НЕ УЧТЁН","НЕ УЧТЁН","НЕ УЧТЁН","НЕ УЧТЁН","НЕ УЧТЁН","НЕ УЧТЁН","НЕ УЧТЁН","НЕ УЧТЁН","НЕ УЧТЁН","НЕ УЧТЁН","НЕ УЧТЁН","НЕ УЧТЁН","НЕ УЧТЁН","НЕ УЧТЁН","НЕ УЧТЁН","НЕ УЧТЁН","НЕ УЧТЁН","НЕ УЧТЁН","НЕ УЧТЁН","НЕ УЧТЁН","НЕ УЧТЁН","НЕ УЧТЁН","НЕ УЧТЁН","НЕ УЧТЁН","НЕ УЧТЁН","НЕ УЧТЁН","НЕ УЧТЁН","НЕ УЧТЁН","НЕ УЧТЁН","НЕ УЧТЁН","НЕ УЧТЁН","НЕ УЧТЁН","НЕ УЧТЁН","НЕ УЧТЁН","НЕ УЧТЁН","НЕ УЧТЁН","НЕ УЧТЁН","НЕ УЧТЁН","НЕ УЧТЁН","НЕ УЧТЁН","НЕ УЧТЁН","НЕ УЧТЁН","НЕ УЧТЁН","НЕ УЧТЁН","НЕ УЧТЁН","НЕ УЧТЁН","НЕ УЧТЁН","НЕ УЧТЁН","НЕ УЧТЁН","НЕ УЧТЁН","НЕ УЧТЁН","НЕ УЧТЁН","НЕ УЧТЁН","НЕ УЧТЁН","НЕ УЧТЁН","НЕ УЧТЁН","НЕ УЧТЁН","НЕ УЧТЁН","НЕ УЧТЁН","НЕ УЧТЁН","НЕ УЧТЁН","НЕ УЧТЁН","НЕ УЧТЁН","НЕ УЧТЁН","НЕ УЧТЁН","НЕ УЧТЁН","НЕ УЧТЁН","НЕ УЧТЁН","НЕ УЧТЁН","НЕ УЧТЁН","НЕ УЧТЁН","НЕ УЧТЁН","НЕ УЧТЁН","НЕ УЧТЁН","НЕ УЧТЁН","НЕ УЧТЁН","НЕ УЧТЁН","НЕ УЧТЁН","НЕ УЧТЁН","НЕ УЧТЁН","НЕ УЧТЁН","НЕ УЧТЁН","НЕ УЧТЁН","НЕ УЧТЁН","НЕ УЧТЁН","НЕ УЧТЁН","НЕ УЧТЁН","НЕ УЧТЁН","НЕ УЧТЁН","НЕ УЧТЁН","НЕ УЧТЁН","НЕ УЧТЁН","НЕ УЧТЁН","НЕ УЧТЁН","НЕ УЧТЁН","НЕ УЧТЁН","НЕ УЧТЁН","НЕ УЧТЁН","НЕ УЧТЁН","НЕ УЧТЁН","НЕ УЧТЁН","НЕ УЧТЁН","НЕ УЧТЁН","НЕ УЧТЁН","НЕ УЧТЁН","НЕ УЧТЁН","НЕ УЧТЁН","НЕ УЧТЁН","НЕ УЧТЁН","НЕ УЧТЁН","НЕ УЧТЁН","НЕ УЧТЁН","НЕ УЧТЁН","НЕ УЧТЁН","НЕ УЧТЁН","НЕ УЧТЁН","НЕ УЧТЁН","НЕ УЧТЁН","НЕ УЧТЁН","НЕ УЧТЁН","НЕ УЧТЁН","НЕ УЧТЁН","НЕ УЧТЁН","НЕ УЧТЁН","НЕ УЧТЁН","НЕ УЧТЁН","НЕ УЧТЁН","НЕ УЧТЁН","НЕ УЧТЁН","НЕ УЧТЁН","НЕ УЧТЁН","НЕ УЧТЁН","НЕ УЧТЁН","НЕ УЧТЁН","НЕ УЧТЁН","НЕ УЧТЁН","НЕ УЧТЁН","НЕ УЧТЁН","НЕ УЧТЁН","НЕ УЧТЁН","НЕ УЧТЁН","НЕ УЧТЁН","НЕ УЧТЁН","НЕ УЧТЁН","НЕ УЧТЁН","НЕ УЧТЁН","НЕ УЧТЁН","НЕ УЧТЁН","НЕ УЧТЁН","НЕ УЧТЁН","НЕ УЧТЁН","НЕ УЧТЁН","НЕ УЧТЁН","НЕ УЧТЁН","НЕ УЧТЁН","НЕ УЧТЁН","НЕ УЧТЁН","НЕ УЧТЁН","НЕ УЧТЁН","НЕ УЧТЁН","НЕ УЧТЁН","НЕ УЧТЁН","НЕ УЧТЁН","НЕ УЧТЁН","НЕ УЧТЁН","НЕ УЧТЁН","НЕ УЧТЁН","НЕ УЧТЁН","НЕ УЧТЁН","НЕ УЧТЁН","НЕ УЧТЁН","НЕ УЧТЁН","НЕ УЧТЁН","НЕ УЧТЁН","НЕ УЧТЁН","НЕ УЧТЁН","НЕ УЧТЁН","НЕ УЧТЁН","НЕ УЧТЁН","НЕ УЧТЁН","НЕ УЧТЁН","НЕ УЧТЁН","НЕ УЧТЁН","НЕ УЧТЁН","НЕ УЧТЁН","НЕ УЧТЁН","НЕ УЧТЁН","НЕ УЧТЁН","НЕ УЧТЁН","НЕ УЧТЁН","НЕ УЧТЁН","НЕ УЧТЁН","НЕ УЧТЁН","НЕ УЧТЁН","НЕ УЧТЁН","НЕ УЧТЁН","НЕ УЧТЁН","НЕ УЧТЁН","НЕ УЧТЁН","НЕ УЧТЁН","НЕ УЧТЁН","НЕ УЧТЁН","НЕ УЧТЁН","НЕ УЧТЁН","НЕ УЧТЁН","НЕ УЧТЁН","НЕ УЧТЁН","НЕ УЧТЁН","НЕ УЧТЁН","НЕ УЧТЁН","НЕ УЧТЁН","НЕ УЧТЁН","НЕ УЧТЁН","НЕ УЧТЁН","НЕ УЧТЁН","НЕ УЧТЁН","НЕ УЧТЁН","НЕ УЧТЁН","НЕ УЧТЁН","НЕ УЧТЁН","НЕ УЧТЁН","НЕ УЧТЁН","НЕ УЧТЁН","НЕ УЧТЁН","НЕ УЧТЁН","НЕ УЧТЁН","НЕ УЧТЁН","НЕ УЧТЁН","НЕ УЧТЁН","НЕ УЧТЁН","НЕ УЧТЁН","НЕ УЧТЁН","НЕ УЧТЁН","НЕ УЧТЁН","НЕ УЧТЁН","НЕ УЧТЁН","НЕ УЧТЁН","НЕ УЧТЁН","НЕ УЧТЁН","НЕ УЧТЁН","НЕ УЧТЁН","НЕ УЧТЁН","НЕ УЧТЁН","НЕ УЧТЁН","НЕ УЧТЁН","НЕ УЧТЁН","НЕ УЧТЁН","НЕ УЧТЁН","НЕ УЧТЁН","НЕ УЧТЁН","НЕ УЧТЁН","НЕ УЧТЁН","НЕ УЧТЁН","НЕ УЧТЁН","НЕ УЧТЁН","НЕ УЧТЁН","НЕ УЧТЁН","НЕ УЧТЁН","НЕ УЧТЁН","НЕ УЧТЁН","НЕ УЧТЁН","НЕ УЧТЁН","НЕ УЧТЁН","НЕ УЧТЁН","НЕ УЧТЁН","НЕ УЧТЁН","НЕ УЧТЁН","НЕ УЧТЁН","НЕ УЧТЁН","НЕ УЧТЁН","НЕ УЧТЁН","НЕ УЧТЁН","НЕ УЧТЁН","НЕ УЧТЁН","НЕ УЧТЁН","НЕ УЧТЁН","НЕ УЧТЁН","НЕ УЧТЁН","НЕ УЧТЁН","НЕ УЧТЁН","НЕ УЧТЁН","НЕ УЧТЁН","НЕ УЧТЁН","НЕ УЧТЁН","НЕ УЧТЁН","НЕ УЧТЁН","НЕ УЧТЁН","НЕ УЧТЁН","НЕ УЧТЁН","НЕ УЧТЁН","НЕ УЧТЁН","НЕ УЧТЁН","НЕ УЧТЁН","НЕ УЧТЁН","НЕ УЧТЁН","НЕ УЧТЁН","НЕ УЧТЁН","НЕ УЧТЁН","НЕ УЧТЁН","НЕ УЧТЁН","НЕ УЧТЁН","НЕ УЧТЁН","НЕ УЧТЁН","НЕ УЧТЁН","НЕ УЧТЁН","НЕ УЧТЁН","НЕ УЧТЁН","НЕ УЧТЁН","НЕ УЧТЁН","НЕ УЧТЁН","НЕ УЧТЁН","НЕ УЧТЁН","НЕ УЧТЁН","НЕ УЧТЁН","НЕ УЧТЁН","НЕ УЧТЁН","НЕ УЧТЁН","НЕ УЧТЁН","НЕ УЧТЁН","НЕ УЧТЁН","НЕ УЧТЁН","НЕ УЧТЁН","НЕ УЧТЁН","НЕ УЧТЁН","НЕ УЧТЁН","НЕ УЧТЁН","НЕ УЧТЁН","НЕ УЧТЁН","НЕ УЧТЁН","НЕ УЧТЁН","НЕ УЧТЁН","НЕ УЧТЁН","НЕ УЧТЁН","НЕ УЧТЁН","НЕ УЧТЁН","НЕ УЧТЁН","НЕ УЧТЁН","НЕ УЧТЁН","НЕ УЧТЁН","НЕ УЧТЁН","НЕ УЧТЁН","НЕ УЧТЁН","НЕ УЧТЁН","НЕ УЧТЁН","НЕ УЧТЁН","НЕ УЧТЁН","НЕ УЧТЁН","НЕ УЧТЁН","НЕ УЧТЁН","НЕ УЧТЁН","НЕ УЧТЁН","НЕ УЧТЁН","НЕ УЧТЁН","НЕ УЧТЁН","НЕ УЧТЁН","НЕ УЧТЁН","НЕ УЧТЁН","НЕ УЧТЁН","НЕ УЧТЁН","НЕ УЧТЁН","НЕ УЧТЁН","НЕ УЧТЁН","НЕ УЧТЁН","НЕ УЧТЁН","НЕ УЧТЁН","НЕ УЧТЁН","НЕ УЧТЁН","НЕ УЧТЁН","НЕ УЧТЁН","НЕ УЧТЁН","НЕ УЧТЁН","НЕ УЧТЁН","НЕ УЧТЁН","НЕ УЧТЁН","НЕ УЧТЁН","НЕ УЧТЁН","НЕ УЧТЁН","НЕ УЧТЁН","НЕ УЧТЁН","НЕ УЧТЁН","НЕ УЧТЁН","НЕ УЧТЁН","НЕ УЧТЁН","НЕ УЧТЁН","НЕ УЧТЁН","НЕ УЧТЁН","НЕ УЧТЁН","НЕ УЧТЁН","НЕ УЧТЁН","НЕ УЧТЁН","НЕ УЧТЁН","НЕ УЧТЁН","НЕ УЧТЁН","НЕ УЧТЁН","НЕ УЧТЁН","НЕ УЧТЁН","НЕ УЧТЁН","НЕ УЧТЁН","НЕ УЧТЁН","НЕ УЧТЁН","НЕ УЧТЁН","НЕ УЧТЁН","НЕ УЧТЁН","НЕ УЧТЁН","НЕ УЧТЁН","НЕ УЧТЁН","НЕ УЧТЁН","НЕ УЧТЁН","НЕ УЧТЁН","НЕ УЧТЁН","НЕ УЧТЁН","НЕ УЧТЁН","НЕ УЧТЁН","НЕ УЧТЁН","НЕ УЧТЁН","НЕ УЧТЁН","НЕ УЧТЁН","НЕ УЧТЁН","НЕ УЧТЁН","НЕ УЧТЁН","НЕ УЧТЁН","НЕ УЧТЁН","НЕ УЧТЁН","НЕ УЧТЁН","НЕ УЧТЁН","НЕ УЧТЁН","НЕ УЧТЁН","НЕ УЧТЁН","НЕ УЧТЁН","НЕ УЧТЁН","НЕ УЧТЁН","НЕ УЧТЁН","НЕ УЧТЁН","НЕ УЧТЁН","НЕ УЧТЁН","НЕ УЧТЁН","НЕ УЧТЁН","НЕ УЧТЁН","НЕ УЧТЁН","НЕ УЧТЁН","НЕ УЧТЁН","НЕ УЧТЁН","НЕ УЧТЁН","НЕ УЧТЁН","НЕ УЧТЁН","НЕ УЧТЁН","НЕ УЧТЁН","НЕ УЧТЁН","НЕ УЧТЁН","НЕ УЧТЁН","НЕ УЧТЁН","НЕ УЧТЁН","НЕ УЧТЁН","НЕ УЧТЁН","НЕ УЧТЁН","НЕ УЧТЁН","НЕ УЧТЁН","НЕ УЧТЁН","НЕ УЧТЁН","НЕ УЧТЁН","НЕ УЧТЁН","НЕ УЧТЁН","НЕ УЧТЁН","НЕ УЧТЁН","НЕ УЧТЁН","НЕ УЧТЁН","НЕ УЧТЁН","НЕ УЧТЁН","НЕ УЧТЁН","НЕ УЧТЁН","НЕ УЧТЁН","НЕ УЧТЁН","НЕ УЧТЁН","НЕ УЧТЁН","НЕ УЧТЁН","НЕ УЧТЁН","НЕ УЧТЁН","НЕ УЧТЁН","НЕ УЧТЁН","НЕ УЧТЁН","НЕ УЧТЁН","НЕ УЧТЁН","НЕ УЧТЁН","НЕ УЧТЁН","НЕ УЧТЁН","НЕ УЧТЁН","НЕ УЧТЁН","НЕ УЧТЁН","НЕ УЧТЁН","НЕ УЧТЁН","НЕ УЧТЁН","НЕ УЧТЁН","НЕ УЧТЁН","НЕ УЧТЁН","НЕ УЧТЁН","НЕ УЧТЁН","НЕ УЧТЁН","НЕ УЧТЁН","НЕ УЧТЁН","НЕ УЧТЁН","НЕ УЧТЁН","НЕ УЧТЁН","НЕ УЧТЁН","НЕ УЧТЁН","НЕ УЧТЁН","НЕ УЧТЁН","НЕ УЧТЁН","НЕ УЧТЁН","НЕ УЧТЁН","НЕ УЧТЁН","НЕ УЧТЁН","НЕ УЧТЁН","НЕ УЧТЁН","НЕ УЧТЁН","НЕ УЧТЁН","НЕ УЧТЁН","НЕ УЧТЁН","НЕ УЧТЁН","НЕ УЧТЁН","НЕ УЧТЁН","НЕ УЧТЁН","НЕ УЧТЁН","НЕ УЧТЁН","НЕ УЧТЁН","НЕ УЧТЁН","НЕ УЧТЁН","НЕ УЧТЁН","НЕ УЧТЁН","НЕ УЧТЁН","НЕ УЧТЁН","НЕ УЧТЁН","НЕ УЧТЁН","НЕ УЧТЁН","НЕ УЧТЁН","НЕ УЧТЁН","НЕ УЧТЁН","НЕ УЧТЁН","НЕ УЧТЁН","НЕ УЧТЁН","НЕ УЧТЁН","НЕ УЧТЁН","НЕ УЧТЁН","НЕ УЧТЁН","НЕ УЧТЁН","НЕ УЧТЁН","НЕ УЧТЁН","НЕ УЧТЁН","НЕ УЧТЁН","НЕ УЧТЁН","НЕ УЧТЁН","НЕ УЧТЁН","НЕ УЧТЁН","НЕ УЧТЁН","НЕ УЧТЁН","НЕ УЧТЁН","НЕ УЧТЁН","НЕ УЧТЁН","НЕ УЧТЁН","НЕ УЧТЁН","НЕ УЧТЁН","НЕ УЧТЁН","НЕ УЧТЁН","НЕ УЧТЁН","НЕ УЧТЁН","НЕ УЧТЁН","НЕ УЧТЁН","НЕ УЧТЁН","НЕ УЧТЁН","НЕ УЧТЁН","НЕ УЧТЁН","НЕ УЧТЁН","НЕ УЧТЁН","НЕ УЧТЁН","НЕ УЧТЁН","НЕ УЧТЁН","НЕ УЧТЁН","НЕ УЧТЁН","НЕ УЧТЁН","НЕ УЧТЁН","НЕ УЧТЁН","НЕ УЧТЁН","НЕ УЧТЁН","НЕ УЧТЁН","НЕ УЧТЁН","НЕ УЧТЁН","НЕ УЧТЁН","НЕ УЧТЁН","НЕ УЧТЁН","НЕ УЧТЁН","НЕ УЧТЁН","НЕ УЧТЁН","НЕ УЧТЁН","НЕ УЧТЁН","НЕ УЧТЁН","НЕ УЧТЁН","НЕ УЧТЁН","НЕ УЧТЁН","НЕ УЧТЁН","НЕ УЧТЁН","НЕ УЧТЁН","НЕ УЧТЁН","НЕ УЧТЁН","НЕ УЧТЁН","НЕ УЧТЁН","НЕ УЧТЁН","НЕ УЧТЁН","НЕ УЧТЁН","НЕ УЧТЁН","НЕ УЧТЁН","НЕ УЧТЁН","НЕ УЧТЁН","НЕ УЧТЁН","НЕ УЧТЁН","НЕ УЧТЁН","НЕ УЧТЁН","НЕ УЧТЁН","НЕ УЧТЁН","НЕ УЧТЁН","НЕ УЧТЁН","НЕ УЧТЁН","НЕ УЧТЁН","НЕ УЧТЁН","НЕ УЧТЁН","НЕ УЧТЁН","НЕ УЧТЁН","НЕ УЧТЁН","НЕ УЧТЁН","НЕ УЧТЁН","НЕ УЧТЁН","НЕ УЧТЁН","НЕ УЧТЁН","НЕ УЧТЁН","НЕ УЧТЁН","НЕ УЧТЁН","НЕ УЧТЁН","НЕ УЧТЁН","НЕ УЧТЁН","НЕ УЧТЁН","НЕ УЧТЁН","НЕ УЧТЁН","НЕ УЧТЁН","НЕ УЧТЁН","НЕ УЧТЁН","НЕ УЧТЁН","НЕ УЧТЁН","НЕ УЧТЁН","НЕ УЧТЁН","НЕ УЧТЁН","НЕ УЧТЁН","НЕ УЧТЁН","НЕ УЧТЁН","НЕ УЧТЁН","НЕ УЧТЁН","НЕ УЧТЁН","НЕ УЧТЁН","НЕ УЧТЁН","НЕ УЧТЁН","НЕ УЧТЁН","НЕ УЧТЁН","НЕ УЧТЁН","НЕ УЧТЁН","НЕ УЧТЁН","НЕ УЧТЁН","НЕ УЧТЁН","НЕ УЧТЁН","НЕ УЧТЁН","НЕ УЧТЁН","НЕ УЧТЁН","НЕ УЧТЁН","НЕ УЧТЁН","НЕ УЧТЁН","НЕ УЧТЁН","НЕ УЧТЁН","НЕ УЧТЁН","НЕ УЧТЁН","НЕ УЧТЁН","НЕ УЧТЁН","НЕ УЧТЁН","НЕ УЧТЁН","НЕ УЧТЁН","НЕ УЧТЁН","НЕ УЧТЁН","НЕ УЧТЁН","НЕ УЧТЁН","НЕ УЧТЁН","НЕ УЧТЁН","НЕ УЧТЁН","НЕ УЧТЁН","НЕ УЧТЁН","НЕ УЧТЁН","НЕ УЧТЁН","НЕ УЧТЁН","НЕ УЧТЁН","НЕ УЧТЁН","НЕ УЧТЁН","НЕ УЧТЁН","НЕ УЧТЁН","НЕ УЧТЁН","НЕ УЧТЁН","НЕ УЧТЁН","НЕ УЧТЁН","НЕ УЧТЁН","НЕ УЧТЁН","НЕ УЧТЁН","НЕ УЧТЁН","НЕ УЧТЁН","НЕ УЧТЁН","НЕ УЧТЁН","НЕ УЧТЁН","НЕ УЧТЁН","НЕ УЧТЁН","НЕ УЧТЁН","НЕ УЧТЁН","НЕ УЧТЁН","НЕ УЧТЁН","НЕ УЧТЁН","НЕ УЧТЁН","НЕ УЧТЁН","НЕ УЧТЁН","НЕ УЧТЁН","НЕ УЧТЁН","НЕ УЧТЁН","НЕ УЧТЁН","НЕ УЧТЁН","НЕ УЧТЁН","НЕ УЧТЁН","НЕ УЧТЁН","НЕ УЧТЁН","НЕ УЧТЁН","НЕ УЧТЁН","НЕ УЧТЁН","НЕ УЧТЁН","НЕ УЧТЁН","НЕ УЧТЁН","НЕ УЧТЁН","НЕ УЧТЁН","НЕ УЧТЁН","НЕ УЧТЁН","НЕ УЧТЁН","НЕ УЧТЁН","НЕ УЧТЁН","НЕ УЧТЁН","НЕ УЧТЁН","НЕ УЧТЁН","НЕ УЧТЁН","НЕ УЧТЁН","НЕ УЧТЁН","НЕ УЧТЁН","НЕ УЧТЁН","НЕ УЧТЁН","НЕ УЧТЁН","НЕ УЧТЁН","НЕ УЧТЁН","НЕ УЧТЁН","НЕ УЧТЁН","НЕ УЧТЁН","НЕ УЧТЁН","НЕ УЧТЁН","НЕ УЧТЁН","НЕ УЧТЁН","НЕ УЧТЁН","НЕ УЧТЁН","НЕ УЧТЁН","НЕ УЧТЁН","НЕ УЧТЁН","НЕ УЧТЁН","НЕ УЧТЁН","НЕ УЧТЁН","НЕ УЧТЁН","НЕ УЧТЁН","НЕ УЧТЁН","НЕ УЧТЁН","НЕ УЧТЁН","НЕ УЧТЁН","НЕ УЧТЁН","НЕ УЧТЁН","НЕ УЧТЁН","НЕ УЧТЁН","НЕ УЧТЁН","НЕ УЧТЁН","НЕ УЧТЁН","НЕ УЧТЁН","НЕ УЧТЁН","НЕ УЧТЁН","НЕ УЧТЁН","НЕ УЧТЁН","НЕ УЧТЁН","НЕ УЧТЁН","НЕ УЧТЁН","НЕ УЧТЁН","НЕ УЧТЁН","НЕ УЧТЁН","НЕ УЧТЁН","НЕ УЧТЁН","НЕ УЧТЁН","НЕ УЧТЁН","НЕ УЧТЁН","НЕ УЧТЁН","НЕ УЧТЁН","НЕ УЧТЁН","НЕ УЧТЁН","НЕ УЧТЁН","НЕ УЧТЁН","НЕ УЧТЁН","НЕ УЧТЁН","НЕ УЧТЁН","НЕ УЧТЁН","НЕ УЧТЁН","НЕ УЧТЁН","НЕ УЧТЁН","НЕ УЧТЁН","НЕ УЧТЁН","НЕ УЧТЁН","НЕ УЧТЁН","НЕ УЧТЁН","НЕ УЧТЁН","НЕ УЧТЁН","НЕ УЧТЁН","НЕ УЧТЁН","НЕ УЧТЁН","НЕ УЧТЁН","НЕ УЧТЁН","НЕ УЧТЁН","НЕ УЧТЁН","НЕ УЧТЁН","НЕ УЧТЁН","НЕ УЧТЁН","НЕ УЧТЁН","НЕ УЧТЁН","НЕ УЧТЁН","НЕ УЧТЁН","НЕ УЧТЁН","НЕ УЧТЁН","НЕ УЧТЁН","НЕ УЧТЁН","НЕ УЧТЁН","НЕ УЧТЁН","НЕ УЧТЁН","НЕ УЧТЁН","НЕ УЧТЁН","НЕ УЧТЁН","НЕ УЧТЁН","НЕ УЧТЁН","НЕ УЧТЁН","НЕ УЧТЁН","НЕ УЧТЁН","НЕ УЧТЁН","НЕ УЧТЁН","НЕ УЧТЁН","НЕ УЧТЁН","НЕ УЧТЁН","НЕ УЧТЁН","НЕ УЧТЁН","НЕ УЧТЁН","НЕ УЧТЁН","НЕ УЧТЁН","НЕ УЧТЁН","НЕ УЧТЁН","НЕ УЧТЁН","НЕ УЧТЁН","НЕ УЧТЁН","НЕ УЧТЁН","НЕ УЧТЁН","НЕ УЧТЁН","НЕ УЧТЁН","НЕ УЧТЁН","НЕ УЧТЁН","НЕ УЧТЁН","НЕ УЧТЁН","НЕ УЧТЁН","НЕ УЧТЁН","НЕ УЧТЁН","НЕ УЧТЁН","НЕ УЧТЁН","НЕ УЧТЁН","НЕ УЧТЁН","НЕ УЧТЁН","НЕ УЧТЁН","НЕ УЧТЁН","НЕ УЧТЁН","НЕ УЧТЁН","НЕ УЧТЁН","НЕ УЧТЁН","НЕ УЧТЁН","НЕ УЧТЁН","НЕ УЧТЁН","НЕ УЧТЁН","НЕ УЧТЁН","НЕ УЧТЁН","НЕ УЧТЁН","НЕ УЧТЁН","НЕ УЧТЁН","НЕ УЧТЁН","НЕ УЧТЁН","НЕ УЧТЁН","НЕ УЧТЁН","НЕ УЧТЁН","НЕ УЧТЁН","НЕ УЧТЁН","НЕ УЧТЁН","НЕ УЧТЁН","НЕ УЧТЁН","НЕ УЧТЁН","НЕ УЧТЁН","НЕ УЧТЁН","НЕ УЧТЁН","НЕ УЧТЁН","НЕ УЧТЁН","НЕ УЧТЁН","НЕ УЧТЁН","НЕ УЧТЁН","НЕ УЧТЁН","НЕ УЧТЁН","НЕ УЧТЁН","НЕ УЧТЁН","НЕ УЧТЁН","НЕ УЧТЁН","НЕ УЧТЁН","НЕ УЧТЁН","НЕ УЧТЁН","НЕ УЧТЁН","НЕ УЧТЁН","НЕ УЧТЁН","НЕ УЧТЁН","НЕ УЧТЁН","НЕ УЧТЁН","НЕ УЧТЁН","НЕ УЧТЁН","НЕ УЧТЁН","НЕ УЧТЁН","НЕ УЧТЁН","НЕ УЧТЁН","НЕ УЧТЁН","НЕ УЧТЁН","НЕ УЧТЁН","НЕ УЧТЁН","НЕ УЧТЁН","НЕ УЧТЁН","НЕ УЧТЁН","НЕ УЧТЁН","НЕ УЧТЁН","НЕ УЧТЁН","НЕ УЧТЁН","НЕ УЧТЁН","НЕ УЧТЁН","НЕ УЧТЁН","НЕ УЧТЁН","НЕ УЧТЁН","НЕ УЧТЁН","НЕ УЧТЁН","НЕ УЧТЁН","НЕ УЧТЁН","НЕ УЧТЁН","НЕ УЧТЁН","НЕ УЧТЁН","НЕ УЧТЁН","НЕ УЧТЁН","НЕ УЧТЁН","НЕ УЧТЁН","НЕ УЧТЁН","НЕ УЧТЁН","НЕ УЧТЁН","НЕ УЧТЁН","НЕ УЧТЁН","НЕ УЧТЁН","НЕ УЧТЁН","НЕ УЧТЁН","НЕ УЧТЁН","НЕ УЧТЁН","НЕ УЧТЁН","НЕ УЧТЁН","НЕ УЧТЁН","НЕ УЧТЁН","НЕ УЧТЁН","НЕ УЧТЁН","НЕ УЧТЁН","НЕ УЧТЁН","НЕ УЧТЁН","НЕ УЧТЁН","НЕ УЧТЁН","НЕ УЧТЁН","НЕ УЧТЁН","НЕ УЧТЁН","НЕ УЧТЁН","НЕ УЧТЁН","НЕ УЧТЁН","НЕ УЧТЁН","НЕ УЧТЁН","НЕ УЧТЁН"]
["Артикул","Наименование","Производитель","Ед. изм.","Количество на складе","Количество в 1С","Место хранения","Общее кол-во резерва","Остаток",512,743,405,62,1035,836,1928,1079,1078,1250,2426,1077,1345,819,580,1376,1526,1530,1586,1401,1338,441,1323,1016,1063,725,479,1320]
[null,"Держатель с защёлкой d=16мм",null,"шт",200,null,"Склад",{"$f":"SUM(J3:XFD3)","v":154},{"$f":"E3-H3","v":46},null,null,null,null,{"$f":"104+30+12+8","v":154}]
["sw2c-11s-r","Кнопка красная возвратная SW2C-11 без подсветки IP54"," EKF","шт",31,null,"2.4.7",{"$f":"SUM(J4:XFD4)","v":12},19,null,null,null,null,12]
["RRP10D-RRM-4","Разъем розеточный модульный РРМ77/4","IEK","шт",18,null,"2.2.4",{"$f":"SUM(J5:XFD5)","v":18},0,4,{"$f":"1+5","v":6},null,2,6]
["RRP10-4-10-220A","Реле промежуточное 10А 220В 4ПК РЭК77/4","IEK","шт",17,null,"Склад",{"$f":"SUM(J6:XFD6)","v":17},0,4,null,null,2,11]
["ОПН-П 0,4кВ","Ограничитель перенапряжения ОПН-П 0,4кВ",null,"шт",43,null,"Цех",{"$f":"SUM(J7:XFD7)","v":30},13,null,null,null,null,30]
["ИОРП-10","Изолятор полимерный опорный ИОРП-10",null,"шт",116,null,"Цех",{"$f":"SUM(J8:XFD8)","v":90},26,null,{"$f":"1+39","v":40},null,null,50]
["DRP-240-24","Блок питания","MEAN WELL","шт",2,null,"2.3",{"$f":"SUM(J9:XFD9)","v":1},1,null,null,null,1]
["XB5AD33","Переключатель 22 мм 3 позиции","Shneider Electric","шт",5,null,"1.1.5",{"$f":"SUM(J10:XFD10)","v":4},1,2,null,null,1,null,null,null,null,null,null,null,null,1]
["179622","Автоматический выключатель NB1-63 1Р 4А 6кА х-ка C","CHINT","шт",1,null,"2.3.5",{"$f":"SUM(J11:XFD11)","v":1},0,null,1]
["xb2-bv64","Лампа сигнальная BV64 красная","EKF","шт",2,null,"2.4.1",{"$f":"SUM(J12:XFD12)","v":2},0,null,null,null,null,null,null,null,2]
["АЦДР.436534.002-01","Источник питания резервированный РИП-24  (исп.01)","Болид","шт",0,null,"3.5",{"$f":"SUM(J13:XFD13)","v":0},0]
["psw-alc-2p","Переключатель АLС-22 2P черный NO+NC","EKF","шт",1,null,"2.4.1",{"$f":"SUM(J14:XFD14)","v":1},0,null,1]
["R5A55","Усиленные кронштейны для настенного крепления, для CE/CDE"," DKC","упак",11,null,"4.5.3",{"$f":"SUM(J15:XFD15)","v":11},0,null,null,null,null,null,null,null,null,null,null,null,null,null,null,9,null,null,null,null,null,null,null,null,1,1]
[" 25002DEK ","Лампа ADDS 22мм зеленая LED 220В","DEKraft","шт",2,null,"1.5.4",{"$f":"SUM(J16:XFD16)","v":1},1,null,1]
["12052DEK","Выключатель автоматический однополюсный 4А С ВА-103 6кА","DEKraft","шт",1,null,"1.5.3",{"$f":"SUM(J17:XFD17)","v":1},0,null,1]
["22103DEK","Контактор КМ-103 9А катушка управления 220В AC","DEKraft","шт",1,null,"1.5.3",{"$f":"SUM(J18:XFD18)","v":1},0,null,1]
["kn-t-16","Коннектор для гофрированной трубы (16мм.)","EKF","шт",700,null,"Цех",{"$f":"SUM(J19:XFD19)","v":225},475,null,107,null,null,null,null,null,null,null,null,null,null,9,null,null,20,null,null,null,null,null,null,null,null,null,null,null,89]
["rv-5a","Реле напряжения","EKF","шт",5,null,"2.4.1",{"$f":"SUM(J20:XFD20)","v":2},3,null,null,null,null,null,null,null,2]
["YNN10-69-24C2-K05","Шина PE \"земля\" на двух угловых изоляторах ШНИ-6х9-24-У2-Ж","IEK","шт",6,null,"2.2.4",{"$f":"SUM(J21:XFD21)","v":4},2,null,null,null,null,null,null,null,2,null,null,null,null,null,null,null,null,null,null,null,null,null,null,null,null,null,null,null,2]

{"sheet":"Лист2","index":1,"n_rows":0,"n_cols":0,"rows_kept":0,"cut":false,"hidden":false,"merged":[]}

{"sheet":"Лист3","index":2,"n_rows":20,"n_cols":3,"rows_kept":20,"cut":false,"hidden":false,"merged":[]}
["Произв / Пост","Полное наименование в 1С","Ед. изм. "]
["Chint","Бутылка","бут"]
["Dkc","Килограмм","кг"]
["Ekf","километр","км"]
["Hyundai","Комплект","компл"]
["Iek","Литр","л"]
["Omron","Лист","л."]
["Phoenix","Метр","м"]
["Tdm","Квадратные метры","м2"]
["Rittal","Кубический метр","м3"]
["Schneider","Пара","Пар"]
["Mat","Погонный метр","пог.м"]
[null,"Рулон","Рул."]
[null,"секция","секц"]
[null,"тонна","т"]
[null,"упаковка","упак"]
[null,"Штука","шт"]
[]
["СБОРКА","УЧТЁН"]
["ОТГРУЖЕН","НЕ УЧТЁН"]